Workbook

Sheet Ingresos
B5: Tus datos:
B7: Nombre | C7: [Ingresa tu nombre]
B9: Fecha de nacimiento | C9: [Ingresa fecha] | H9: Sexo | I9: [Selecciona una opción]
B14: Primero calculemos tus ingresos, aquel dinero que hace que incremente tu patrimonio.
B16: Llena los espacios de color gris: En caso de no aplicar, conserva los valores predeterminados, tus ingresos deben ser mayor a $0.00
B18: Tus ingresos | D18: Monto percibido | F18: Periodicidad | H18: Ingreso mensual | J18: Ingreso anual
B20: [Selecciona una opción] | D20: [Ingresa monto] | F20: [Selecciona una opción] | H20: =IFERROR(IF(F20="Diario",D20*30,IF(F20="Semanal",D20*4,IF(F20="Quincenal",D20*2,IF(F20="Mensual",D20,IF(F20="Bimestral",D20/2,IF(F20="Trimestral",D20/3,IF(F20="Cuatrimestral",D20/4,IF(F20="Semestral",D20/6,IF(F20="[Selecciona una opción]","",D20/12))))))))),"") ->  | J20: =IFERROR(H20*12,"") -> 
B22: [Selecciona una opción] | D22: [Ingresa monto] | F22: [Selecciona una opción] | H22: =IFERROR(IF(F22="Diario",D22*30,IF(F22="Semanal",D22*4,IF(F22="Quincenal",D22*2,IF(F22="Mensual",D22,IF(F22="Bimestral",D22/2,IF(F22="Trimestral",D22/3,IF(F22="Cuatrimestral",D22/4,IF(F22="Semestral",D22/6,IF(F22="[Selecciona una opción]","",D22/12))))))))),"") ->  | J22: =IFERROR(H22*12,"") -> 
B24: [Selecciona una opción] | D24: [Ingresa monto] | F24: [Selecciona una opción] | H24: =IFERROR(IF(F24="Diario",D24*30,IF(F24="Semanal",D24*4,IF(F24="Quincenal",D24*2,IF(F24="Mensual",D24,IF(F24="Bimestral",D24/2,IF(F24="Trimestral",D24/3,IF(F24="Cuatrimestral",D24/4,IF(F24="Semestral",D24/6,IF(F24="[Selecciona una opción]","",D24/12))))))))),"") ->  | J24: =IFERROR(H24*12,"") -> 
B26: [Selecciona una opción] | D26: [Ingresa monto] | F26: [Selecciona una opción] | H26: =IFERROR(IF(F26="Diario",D26*30,IF(F26="Semanal",D26*4,IF(F26="Quincenal",D26*2,IF(F26="Mensual",D26,IF(F26="Bimestral",D26/2,IF(F26="Trimestral",D26/3,IF(F26="Cuatrimestral",D26/4,IF(F26="Semestral",D26/6,IF(F26="[Selecciona una opción]","",D26/12))))))))),"") ->  | J26: =IFERROR(H26*12,"") -> 
H29: Total ingreso mensual | J29: Total ingreso anual
H30: =SUM(H20:H26) -> 0 | J30: =SUM(J20:J26) -> 0
B31: •La información presentada es una estimación realizada por esta Administradora, puede variar de conformidad con los movimientos que registren los mercados financieros, la política de inversión y la comisión de la misma. Los recursos en tu Cuenta Individual son tuyos. Infórmate en https://www.gob.mx/consar

Sheet Egresos (hidden)
B7: Los egresos son todos los montos que representan una disminución en tu patrimonio, es decir, todo aquello por lo que pagas.
B11: Indica en los espacios de color gris el monto que destinas a cada rubro y su periodicidad. En caso de no aplicar algún concepto, ingresa $0.00 en monto y "[Selecciona una opción]" en periodicidad.
B13: Concepto | D13: Monto | F13: Periodicidad | H13: Mensual | J13: Anual | N13: Concepto | P13: Monto | R13: Periodicidad | T13: Mensual | V13: Anual
B15: Renta | D15: 6000 | F15: Mensual | H15: =IFERROR(IF(F15="Diario",D15*30,IF(F15="Semanal",D15*4,IF(F15="Quincenal", D15*2,IF(F15="Bimestral",D15/2,IF(F15="Mensual",D15,IF(F15="Trimestral",D15/3,IF(F15="Cuatrimestral",D15/4,IF(F15="Semestral",D15/6,IF(F15="Anual",D15/12,""))))))))),"") -> 6000 | J15: =IFERROR(H15*12,"") -> 72000 | N15: Comida fuera de casa | P15: [Ingresa monto] | R15: [Selecciona una opción] | T15: =IFERROR(IF(R15="Diario",P15*30,IF(R15="Semanal",P15*4,IF(R15="Quincenal", P15*2,IF(R15="Bimestral",P15/2,IF(R15="Mensual",P15,IF(R15="Trimestral",P15/3,IF(R15="Cuatrimestral",P15/4,IF(R15="Semestral",P15/6,IF(R15="Anual",P15/12,""))))))))),"") ->  | V15: =IFERROR(T15*12,"") -> 
B17: Comida | D17: 1000 | F17: Semanal | H17: =IFERROR(IF(F17="Diario",D17*30,IF(F17="Semanal",D17*4,IF(F17="Quincenal", D17*2,IF(F17="Bimestral",D17/2,IF(F17="Mensual",D17,IF(F17="Trimestral",D17/3,IF(F17="Cuatrimestral",D17/4,IF(F17="Semestral",D17/6,IF(F17="Anual",D17/12,""))))))))),"") -> 4000 | J17: =IFERROR(H17*12,"") -> 48000 | N17: Botanas y refresco | P17: [Ingresa monto] | R17: [Selecciona una opción] | T17: =IFERROR(IF(R17="Diario",P17*30,IF(R17="Semanal",P17*4,IF(R17="Quincenal", P17*2,IF(R17="Bimestral",P17/2,IF(R17="Mensual",P17,IF(R17="Trimestral",P17/3,IF(R17="Cuatrimestral",P17/4,IF(R17="Semestral",P17/6,IF(R17="Anual",P17/12,""))))))))),"") ->  | V17: =IFERROR(T17*12,"") -> 
B19: Luz | D19: [Ingresa monto] | F19: [Selecciona una opción] | H19: =IFERROR(IF(F19="Diario",D19*30,IF(F19="Semanal",D19*4,IF(F19="Quincenal", D19*2,IF(F19="Bimestral",D19/2,IF(F19="Mensual",D19,IF(F19="Trimestral",D19/3,IF(F19="Cuatrimestral",D19/4,IF(F19="Semestral",D19/6,IF(F19="Anual",D19/12,""))))))))),"") ->  | N19: Bebidas alcohólicas | P19: 500 | R19: Semanal | T19: 2000 | V19: =IFERROR(T19*12,"") -> 24000
B21: Agua | D21: [Ingresa monto] | F21: [Selecciona una opción] | H21: =IFERROR(IF(F21="Diario",D21*30,IF(F21="Semanal",D21*4,IF(F21="Quincenal", D21*2,IF(F21="Bimestral",D21/2,IF(F21="Mensual",D21,IF(F21="Trimestral",D21/3,IF(F21="Cuatrimestral",D21/4,IF(F21="Semestral",D21/6,IF(F21="Anual",D21/12,""))))))))),"") ->  | N21: Cigarros | P21: 100 | R21: Semanal | T21: 400 | V21: =IFERROR(T21*12,"") -> 4800
B23: Gas | D23: 600 | F23: Mensual | H23: 600 | J23: 7200 | N23: Café | P23: 20 | R23: Diario | T23: 600 | V23: =IFERROR(T23*12,"") -> 7200
B25: Educación | D25: [Ingresa monto] | F25: [Selecciona una opción] | N25: Propinas | P25: [Ingresa monto] | R25: [Selecciona una opción] | V25: =IFERROR(T25*12,"") -> 
B27: Seguros | D27: [Ingresa monto] | F27: [Selecciona una opción] | N27: Transporte privado (taxi, apps, etc) | P27: [Ingresa monto] | R27: [Selecciona una opción] | V27: =IFERROR(T27*12,"") -> 
B29: Transporte/Gasolina | D29: [Ingresa monto] | F29: [Selecciona una opción] | N29: Plan telefónico | P29: 500 | R29: Mensual | T29: 500 | V29: =IFERROR(T29*12,"") -> 6000
B31: Créditos | D31: 4500 | F31: Mensual | H31: 4500 | J31: 54000 | N31: TV de paga/Apps de streaming | P31: 300 | R31: Mensual | T31: 300 | V31: =IFERROR(T31*12,"") -> 3600
B33: Actividades deportivas | D33: [Ingresa monto] | F33: [Selecciona una opción] | N33: Otros egresos | P33: [Ingresa monto] | R33: [Selecciona una opción] | V33: =IFERROR(T33*12,"") -> 
B35: Salud | D35: [Ingresa monto] | F35: [Selecciona una opción] | J35: =IFERROR(H35*12,"") -> 
B37: Ahorro | D37: [Ingresa monto] | F37: [Selecciona una opción] | J37: =IFERROR(H37*12,"") -> 
B41: Mensual | C41: =+SUM(H15:H37,T15:T33) -> 18900 | J41: Hay gastos que no podemos evitar, sin embargo, existen pequeños gastos que se pueden disminuir para lograr grandes beneficios . Continua en la calculadora para ver cómo lograrlo. En el siguiente paso, veamos tu capacidad de ahorro.
B45: Anual | C45: =+C41*12 -> 226800
B49: • La información presentada es una estimación realizada por esta Administradora, puede variar de conformidad con los movimientos que registren los mercados financieros, la política de inversión y la comisión de la misma. Los recursos en tu Cuenta Individual son tuyos. Infórmate en https://www.gob.mx/consar.

Sheet Ahorro (hidden)
C8: Tu ahorro mensual actual es de: | G8: =IF(Egresos!H37="",0,Egresos!H37) -> 0
C13: Tu capacidad de ahorro adicional es de: | F13: =+IF(Ingresos!$H$30<Egresos!C41,"Estás gastando más de lo que recibes",Ingresos!$H$30-Egresos!C41) -> Estás gastando más de lo que recibes
C17: Tu capacidad de ahorro es aquella cantidad que resulta de restar a los ingresos tus egresos, puedes destinarlo a un ahorro y disponer de él en un futuro cercano o lejano, dependiendo de tus metas.
C22: • La información presentada es una estimación realizada por esta Administradora, puede variar de conformidad con los movimientos que registren los mercados financieros, la política de inversión y la comisión de la misma. Los recursos en tu Cuenta Individual son tuyos. Infórmate en https://www.gob.mx/consar

Sheet Resumen (hidden)
B8: TU INGRESO MENSUAL TOTAL | O8: Ingresos | P8: =+Ingresos!H30 -> 0
B9: =+Ingresos!H30 -> 0 | E9: Se distribuye así: | O9: Gastos fijos | P9: =+Q9/$P$8 ->  | Q9: =+SUM(Egresos!H15:H35) -> 15100
O10: Gastos hormiga | P10: =+Q10/$P$8 ->  | Q10: =+SUM(Egresos!T15:T33) -> 3800
O11: Ahorro | P11: =+Q11/$P$8 ->  | Q11: =+Ahorro!G8 -> 0
O12: Capacidad de ahorro | P12: =+Q12/$P$8 ->  | Q12: =+Ahorro!F13 -> Estás gastando más de lo que recibes
B30: ="¡¡Tu gasto hormiga representa el " &FIXED((SUM(Egresos!T15:T33)/Ingresos!H30)*100,0)& "% de tus ingresos mensuales!!" -> 
B32: Tu gasto hormiga son aquellos gastos innecesarios que cubren un gusto o deseo momentáneo y pueden realizarse de manera periódica (diario, semanal, quincenal o mensual), tales como, comprar café en algún establecimiento, dulces, refrescos, cigarros, comida rápida, entre otros. Continúa en la calculadora para observar cómo puedes aprovecharlos.
B39: • La información presentada es una estimación realizada por esta Administradora, puede variar de conformidad con los movimientos que registren los mercados financieros, la política de inversión y la comisión de la misma. Los recursos en tu Cuenta Individual son tuyos. Infórmate en https://www.gob.mx/consar

Sheet Gasto_Hormiga_senc (hidden)
C7: CONVIERTE TUS GASTOS HORMIGA EN BENEFICIO PARA TU FUTURO.
C12: Actualmente lo que destinas mensualmente es:
F14: =+SUM(Egresos!T15:T33) -> 3800
B18: =IFERROR("Estos gastos representan el " &ROUND(F14/Ingresos!H30,2)*100 & "% de tus ingresos mensuales.","") -> 
B20: ¿Cuánto te gustaría disminuir tu gasto hormiga? Ingresa un monto menor o igual a lo que actualmente destinas. | H20: 2500
B23: Si inviertes lo que te gustaría disminuir de tu gasto hormiga en PENSIONISSSTE, podrías irte al viaje que tanto deseas, adquirir un auto nuevo, pagar estudios escolares o ahorrarlo para obtener una mejor pensión. ¡¡¡Descúbrelo!!!
B28: Selecciona tu meta:
C37: ¿Cuánto cuesta estudiar lo que deseas? | G37: 1000
C39: =IFERROR(IF(G37="[Ingresa monto]","","Si depositas mensualmente " &TEXT(H20,"$#,##0.00")& " como Ahorro Voluntario, en " &Metas!B7& " habrás ahorrado para tus estudios."),"") -> Si depositas mensualmente $2,500.00 como Ahorro Voluntario, en 0.4 meses habrás ahorrado para tus estudios.
C44: ¿Cuánto requieres para adquirir un auto? | G44: 400000
C46: =IFERROR(IF(G44="[Ingresa monto]","","Si depositas mensualmente "&TEXT($H$20,"$#,##0.00")&" como Ahorro Voluntario, en "&Metas!B14&" habrás ahorrado para el automóvil que deseas."),"") -> Si depositas mensualmente $2,500.00 como Ahorro Voluntario, en 11.2 años habrás ahorrado para el automóvil que deseas.
C51: ¿Cuánto requieres para viajar a donde deseas? | G51: 20000
C53: =IFERROR(IF(G51="[Ingresa monto]","","Si depositas mensualmente " &TEXT(H20,"$#,##0.00")& " como Ahorro Voluntario, en " &Metas!B21& " habrás ahorrado para tu viaje."),"") -> Si depositas mensualmente $2,500.00 como Ahorro Voluntario, en 7.9 meses habrás ahorrado para tu viaje.
C59: =IFERROR(IF('Datos pensión'!E16="ISSSTE",IF('Pensión ISSSTE_senc'!C96>0,"Si desde ahora y hasta la edad de tu retiro depositas mensualmente " &TEXT(H20,"$#,##0.00")& " como Ahorro Voluntario, el monto de tu pensión mensual incrementaría en "&TEXT('Pensión ISSSTE_senc'!C96,"$#,##0.00")&" pesos con lo que tu pensión crecerá, ésta pasaría de "&TEXT('Pensión ISSSTE_senc'!D91,"$#,##0.00")&" a "&TEXT('Pensión ISSSTE_senc'!I91,"$#,##0.00")&" pesos.","Tendrías que destinar más de "&TEXT(H20,"$#,##0.00")&" a tu ahorro voluntario para obtener una pensión mayor a la garantizada que es de "&TEXT('Pensión ISSSTE_senc'!D66,"$#,##0.00")&" pesos."),IF('Pensión IMSS_senc'!E178>0,"Si desde ahora y hasta la edad de tu retiro depositas mensualmente " &TEXT(H20,"$#,##0.00")& " como Ahorro Voluntario, el monto de tu pensión mensual incrementaría en "&TEXT('Pensión IMSS_senc'!E178,"$#,##0.00")&" pesos con lo que tu pensión crecerá, ésta pasaría de "&TEXT('Pensión IMSS_senc'!E86,"$#,##0.00")&" a "&TEXT('Pensión IMSS_senc'!E175,"$#,##0.00")&" pesos.","Tendrías que destinar más de "&TEXT(Gasto_Hormiga_senc!H20,"$#,##0.00")&" a tu ahorro voluntario para obtener una pensión mayor a la garantizada que es de "&TEXT('Pensión IMSS_senc'!E154,"$#,##0.00")&" pesos.")),"") -> 
B65: • La información presentada es una estimación realizada por esta Administradora, puede variar de conformidad con los movimientos que registren los mercados financieros, la política de inversión y la comisión de la misma. Los recursos en tu Cuenta Individual son tuyos. Infórmate en https://www.gob.mx/consar
B67: • La tasa de rendimiento empleada para el cálculo es de 3.52%.
B68: • El monto de la Pensión mensual se estimó bajo la modalidad de Retiro Programado, conforme a las Disposiciones de carácter general aplicables a los Retiros Programados publicadas en el Diario Oficial de la Federación el 16 de noviembre de 2022. No incluye el costo del seguro de sobrevivencia, considera la tasa de rendimiento indicada por el cuentahabiente.

Sheet Metas (hidden)
A1: FINANZAS PERSONALES
A3: Estudios | E3: Comisión anual | F3: =+Parametros!$C$4 -> 0.0053
A4: ¿Cuánto cuesta? | B4: =Gasto_Hormiga_senc!G37 -> 1000 | E4: Comisión mensual | F4: =+(F3/12) -> 0.0004416666667
A5: Ahorro mensual | B5: =+Gasto_Hormiga_senc!H20 -> 2500 | E5: Tasa de rendimiento anual | F5: =Parametros!I10 -> 0.036
A6: Meses en que se logra objetivo | B6: =+(LN(((B4/B5)*F7)+1))/(LN(1+F7)) -> 0.4003007099 | E6: Tasa de rendimiento mensual | F6: =((1+F5)^(1/12))-1 -> 0.002951609433
A7: Años | B7: =_xlfn.IFS(ROUND(B6,1)<1, ROUND(B6,1)&" meses", ROUND(B6,1)=1, ROUND(B6,1)&" mes", AND(ROUND(B6,1)>1,ROUND(B6,1)<=12), ROUND(B6,1)&" meses", ROUND(B6,1)>12, ROUND(B6/12,1)&" años") -> 0.4 meses | E7: Tasa de rendimiento neta mensual | F7: =((1+F6)*(1-F4))-1 -> 0.002508639139
A10: Automóvil
A11: ¿Cuánto cuesta? | B11: =+Gasto_Hormiga_senc!G44 -> 400000
A12: Ahorro mensual | B12: =+Gasto_Hormiga_senc!H20 -> 2500
A13: Meses en que se logra objetivo | B13: =+(LN(((B11/B12)*F7)+1))/(LN(1+F7)) -> 134.6874404 | C13: =+B13/12 -> 11.22395337
A14: Años | B14: =_xlfn.IFS(ROUND(B13,1)<1, ROUND(B13,1)&" meses", ROUND(B13,1)=1, ROUND(B13,1)&" mes", AND(ROUND(B13,1)>1,ROUND(B13,1)<=12), ROUND(B13,1)&" meses", ROUND(B13,1)>12, ROUND(B13/12,1)&" años") -> 11.2 años
E16: [Selecciona una opción]
A17: Viaje
A18: ¿Cuánto cuesta? | B18: =+Gasto_Hormiga_senc!G51 -> 20000
A19: Ahorro mensual | B19: =+Gasto_Hormiga_senc!H20 -> 2500
A20: Meses en que se logra objetivo | B20: =+(LN(((B18/B19)*F7)+1))/(LN(1+F7)) -> 7.930712731
A21: Años | B21: =_xlfn.IFS(ROUND(B20,1)<1, ROUND(B20,1)&" meses", ROUND(B20,1)=1, ROUND(B20,1)&" mes", AND(ROUND(B20,1)>1,ROUND(B20,1)<=12), ROUND(B20,1)&" meses", ROUND(B20,1)>12, ROUND(B20/12,1)&" años") -> 7.9 meses | F21: [Ingresa edad]
F23: [Ingresa monto]
F25: [Ingresa monto]
F27: [Ingresa años]
G34: [Selecciona una opción]

Sheet Datos pensión (hidden)
B7: Ingresa los datos que se te solicitan:
B12: Nombre | C12: =Ingresos!C7 -> [Ingresa tu nombre]
B14: Fecha de nacimiento | E14: =+Ingresos!C9 -> [Ingresa fecha] | H14: Edad | I14: 30
B16: Institución en la que cotiza | E16: ISSSTE | H16: Sexo | I16: =+Ingresos!I9 -> [Selecciona una opción]
B21: Edad deseada de retiro | F21: 65
B23: =IF(E16="ISSSTE","Sueldo Básico mensual","Salario Base de Cotización mensual") -> Sueldo Básico mensual | F23: 16000
B25: Saldo actual en la Cuenta Individual | F25: 80000
B27: Número de años cotizados al día de hoy | F27: 6
B29: =IF(E16="ISSSTE","Número de años cotizados a la edad de retiro","Número de semanas cotizadas a la edad de retiro") -> Número de años cotizados a la edad de retiro | F29: =IFERROR(IF(E16="ISSSTE",ROUNDUP(((((DATE(YEAR($E$14)+$F$21,MONTH($E$14),DAY($E$14))-TODAY())/365))*0.8)+F27,0),IF(E16="IMSS",ROUNDUP((((((DATE(YEAR($E$14)+$F$21,MONTH($E$14),DAY($E$14))-TODAY())/365))*0.8)+F27)*52,0),"-")),"-") -> -
B31: Valor Nominal del Bono de Pensión | F31: 0
B34: Actualmente, ¿realizas aportaciones adicionales a las obligatorias? | G34: Sí
B36: Porcentaje destinado en Ahorro Solidario | F36: 0.01
B38: Monto mensual destinado al Ahorro Voluntario | F38: =Gasto_Hormiga_senc!H20 -> 2500
B41: • La información presentada es una estimación realizada por esta Administradora, puede variar de conformidad con los movimientos que registren los mercados financieros, la política de inversión y la comisión de la misma. Los recursos en tu Cuenta Individual son tuyos. Infórmate en https://www.gob.mx/consar

Sheet Pensión ISSSTE_senc (hidden)
A1: SIN GASTO HORMIGA | F1: CON GASTO HORMIGA
B2: Descripción | C2: ID | D2: Resultado | G2: Descripción | H2: ID | I2: Resultado
A3: INPUTS | B3: Fecha de nacimiento | C3: F_NAC | D3: =+'Datos pensión'!E14 -> [Ingresa fecha] | F3: INPUTS | G3: Fecha de nacimiento | H3: F_NAC | I3: =D3 -> [Ingresa fecha]
B4: Edad | C4: EDAD | D4: =IFERROR(INT(YEARFRAC($D$3,TODAY(),1)),"-") -> - | G4: Edad | H4: EDAD | I4: -
B5: Sexo | C5: SEXO | D5: ='Datos pensión'!I16 -> [Selecciona una opción] | G5: Sexo | H5: SEXO | I5: [Selecciona una opción]
B6: Institución en la que cotiza | C6: ID_COT | D6: ='Datos pensión'!E16 -> ISSSTE | G6: Institución en la que cotiza | H6: ID_COT | I6: ISSSTE
B7: Edad deseada de retiro | C7: EDAD_RET | D7: ='Datos pensión'!F21 -> 65 | G7: Edad deseada de retiro | H7: EDAD_RET | I7: 65
B8: Salario básico mensual (salario de cotización) | C8: SALARIO | D8: ='Datos pensión'!F23 -> 16000 | G8: Salario básico mensual (salario de cotización) | H8: SALARIO | I8: 16000
B9: Número de años cotizados | C9: ANT | D9: ='Datos pensión'!F27 -> 6 | G9: Número de años cotizados | H9: ANT | I9: 6
B10: Saldo actual en la cuenta de ahorro | C10: SALDO_0 | D10: ='Datos pensión'!F25 -> 80000 | G10: Saldo actual en la cuenta de ahorro | H10: SALDO_0 | I10: 80000
B11: Valor nominal del Bono de pensión | C11: BONO_NOM | D11: ='Datos pensión'!F31 -> 0 | G11: Valor nominal del Bono de pensión | H11: BONO_NOM | I11: 0
B12: Tasa de rendimiento anual | C12: r | D12: =Parametros!I10 -> 0.036 | G12: Tasa de rendimiento anual | H12: r | I12: 0.036
B13: Porcentaje destinado en Ahorro Solidario | C13: PORC_AS | D13: ='Datos pensión'!F36 -> 0.01 | G13: Porcentaje destinado en Ahorro Solidario | H13: PORC_AS | I13: 0.01
B14: Monto mensual destinado al ahorro voluntario | C14: MONTO_AV | D14: =+'Datos pensión'!F38 -> 2500 | G14: Monto mensual destinado al ahorro voluntario | H14: MONTO_AV | I14: =D14+Gasto_Hormiga_senc!H20 -> 5000
B15: Densidad de cotización | C15: d | D15: 0.8 | G15: Densidad de cotización | H15: d | I15: =D15 -> 0.8
A18: Variables | B18: Fecha de Corte | C18: F_val | D18: =+TODAY() -> 2024-11-05 | F18: Variables | G18: Fecha de Corte | H18: F_val | I18: =+TODAY() -> 2024-11-05
B19: Edad de retiro | C19: edad | D19: =$D$7 -> 65 | G19: Edad de retiro | H19: edad | I19: =$I$7 -> 65
B20: Fecha de Retiro | C20: F_retiro | D20: =DATE(YEAR($D$3)+$D$7,MONTH($D$3),DAY($D$3)) ->  | G20: Fecha de Retiro | H20: F_retiro | I20: =DATE(YEAR($I$3)+$I$7,MONTH($I$3),DAY($I$3)) -> 
B21: Rendimiento mensual | C21: r (m) | D21: =((1+D12)^(1/12))-1 -> 0.002951609433 | G21: Rendimiento mensual | H21: r (m) | I21: =((1+I12)^(1/12))-1 -> 0.002951609433
B22: Comisión mensual | C22: c (m) | D22: =(Parametros!C4/12) -> 0.0004416666667 | G22: Comisión mensual | H22: c (m) | I22: =(Parametros!C4/12) -> 0.0004416666667
B23: Densidad de cotización | C23: d | D23: =D15 -> 0.8 | G23: Densidad de cotización | H23: d | I23: =I15 -> 0.8
B24: Aportación obligatoria mensual | C24: A0 | D24: =D8*IF($D$6="ISSSTE",Parametros!$E$58,0) -> 1808 | G24: Aportación obligatoria mensual | H24: A0 | I24: =I8*IF($D$6="ISSSTE",Parametros!$E$58,0) -> 1808
B25: Ahorro solidario mensual | C25: AS | D25: =IF($D$6="ISSSTE",($D$8*$D$13)+MIN((($D$8*$D$13)*3.25),($D$8*6.5%)),0) -> 680 | G25: Ahorro solidario mensual | H25: AS | I25: =IF($I$6="ISSSTE",($I$8*$I$13)+MIN((($I$8*$I$13)*3.25),($I$8*6.5%)),0) -> 680
B26: Ahorro voluntario mensual | C26: Av | D26: =D14 -> 2500 | G26: Ahorro voluntario mensual | H26: Av | I26: =I14 -> 5000
B27: Ahorro solidario mensual+ Ahorro voluntario mensual | C27: Zj = As + Av | D27: =IF($D$6="ISSSTE",$D$25+$D$26,$D$26) -> 3180 | G27: Ahorro solidario mensual+ Ahorro voluntario mensual | H27: Zj = As + Av | I27: =IF($I$6="ISSSTE",$I$25+$I$26,$I$26) -> 5680
B28: Monto mensual por concepto de cuota social | C28: CS | D28: =(IF($D$6="ISSSTE",Parametros!$D$31,0))*30.4 -> 192.5719059 | G28: Monto mensual por concepto de cuota social | H28: CS | I28: =(IF($I$6="ISSSTE",Parametros!$D$31,0))*30.4 -> 192.5719059
B29: Bono del Pension del ISSSTE | C29: Bono | D29: =IF(D6="ISSSTE",$D$11,0) -> 0 | G29: Bono del Pension del ISSSTE | H29: Bono | I29: =IF(I6="ISSSTE",$I$11,0) -> 0
B30: Fecha que el trabajador cumple 55 años | C30: F_55años | D30: =DATE((YEAR(D3)+55),MONTH(D3),DAY(D3)) ->  | G30: Fecha que el trabajador cumple 55 años | H30: F_55años | I30: =DATE((YEAR(I3)+55),MONTH(I3),DAY(I3)) -> 
B31: Fecha que el trabajador cumple 30 años cotizados | C31: F_30añoscot | D31: =D18+ROUND(365*(30-D9)/D15,0) -> 2054-10-29 | G31: Fecha que el trabajador cumple 30 años cotizados | H31: F_30añoscot | I31: =I18+ROUND(365*(30-I9)/I15,0) -> 2054-10-29
B32: Fecha de redención | C32: F_Reden | D32: =MIN(D30,D31) ->  | G32: Fecha de redención | H32: F_Reden | I32: =MIN(I30,I31) -> 
B33: Número de meses que faltan para que un trabajador cumpla la Edad de retiro a partir de la fecha de corte. | C33: n | D33: =INT(((D20-D18)/365)*12) ->  | G33: Número de meses que faltan para que un trabajador cumpla la Edad de retiro a partir de la fecha de corte. | H33: n | I33: =INT(((I20-I18)/365)*12) -> 
B34: Número de meses que faltan para que un trabajador cumpla la edad de retiro a apartir de la fecha de redención | C34: k | D34: =IF(D32>=D18,INT(((D20-D32)/365)*12),D33) ->  | G34: Número de meses que faltan para que un trabajador cumpla la edad de retiro a apartir de la fecha de redención | H34: k | I34: =IF(I32>=I18,INT(((I20-I32)/365)*12),I33) -> 
B35: Saldo inicial | C35: Si | D35: =D10 -> 80000 | G35: Saldo inicial | H35: Si | I35: =I10 -> 80000
B36: Semanas cotizadas | C36: SemCot | D36: =ROUND($D$9*52+(ROUND((($D$20-$D$18)/365)*52,0)*D15),0) ->  | G36: Semanas cotizadas | H36: SemCot | I36: =ROUND($I$9*52+(ROUND((($I$20-$I$18)/365)*52,0)*I15),0) -> 
B37: Años cotizados | C37: AñosCot | D37: =ROUND((((D20-D18)*D15)/365)+D9,0) ->  | G37: Años cotizados | H37: AñosCot | I37: =ROUND((((I20-I18)*I15)/365)+I9,0) -> 
B38: Rango Salarial para aportaciones obligatorias del patrón IMSS | C38: Rango_salario_Ao | D38: =IF($D$8<=Parametros!G19,Parametros!H19,IF(AND($D$8>Parametros!G19,$D$8<=Parametros!G20),Parametros!H20,IF(AND($D$8>Parametros!G20,$D$8<=Parametros!G21),Parametros!H21,IF(AND($D$8>Parametros!G21,$D$8<=Parametros!G22),Parametros!H22,IF(AND($D$8>Parametros!G22,$D$8<=Parametros!G23),Parametros!H23,IF(AND($D$8>Parametros!G23,$D$8<=Parametros!G24),Parametros!H24,IF(AND($D$8>Parametros!G24,$D$8<=Parametros!G25),Parametros!H25,IF($D$8>Parametros!G25,Parametros!H26)))))))) -> 4.01 UMA en adelante | G38: Rango Salarial para aportaciones obligatorias del patrón IMSS | H38: Rango_salario_Ao | I38: =D38 -> 4.01 UMA en adelante
B39: Rango Salarial para Pensión Garantizada IMSS | C39: Rango_salario_PG | D39: =IF($D$8<=Parametros!K19,Parametros!L19,IF(AND($D$8>Parametros!K19,$D$8<=Parametros!K20),Parametros!L20,IF(AND(D8>Parametros!K20,D8<=Parametros!K21),Parametros!L21,IF(AND(D8>Parametros!K21,D8<=Parametros!K22),Parametros!L22,IF(D8>Parametros!K22,Parametros!L23))))) -> 4.0 a 4.99 UMA | G39: Rango Salarial para Pensión Garantizada IMSS | H39: Rango_salario_PG | I39: =D39 -> 4.0 a 4.99 UMA
A41: Saldo Final cotizaciones obligatorias | B41: A: | C41: A | D41: =($D$35*((1+$D$21)^$D$33)*((1-$D$22)^$D$33)) ->  | F41: Saldo Final cotizaciones obligatorias | G41: A: | H41: A | I41: =($I$35*((1+$I$21)^$I$33)*((1-$I$22)^$I$33)) -> 
B42: B: | C42: B | D42: =IF(D6="ISSSTE",$D$23*($D$24+$D$28)*((((1+$D$21)^$D$33)*((1-$D$22)^$D$33)-1)/((1+$D$21)*(1-$D$22)-1)),IF(D6="IMSS",O115,0)) ->  | G42: B: | H42: B | I42: =IF(I6="ISSSTE",$I$23*($I$24+$I$28)*((((1+$I$21)^$I$33)*((1-$I$22)^$I$33)-1)/((1+$I$21)*(1-$I$22)-1)),IF(I6="IMSS",O115,0)) -> 
B43: C: (Para IMSS, NO APLICA) | C43: C | D43: =IF(D6="ISSSTE",$D$29*((1+$D$21)^$D$34)*((1-$D$22)^$D$34),0) ->  | G43: C: (Para IMSS, NO APLICA) | H43: C | I43: =IF(I6="ISSSTE",$I$29*((1+$I$21)^$I$34)*((1-$I$22)^$I$34),0) -> 
B45: Saldo Final cotizaciones obligatorias | C45: Sf = A+B+C | D45: =D41+D42+D43 ->  | G45: Saldo Final cotizaciones obligatorias | H45: Sf = A+B+C | I45: =I41+I42+I43 -> 
B47: Saldo final cotizaciones obligatorias | C47: Sf | D47: =D45+D46 ->  | G47: Saldo final cotizaciones obligatorias | H47: Sf | I47: =I45+I46 -> 
A49: Pensión mensual | B49: Unidad de Renta Vitalicia | C49: URV | D49: =IFERROR(IF($D$5="Hombre",VLOOKUP($D$19,Parametros!$S$8:$U$68,2,FALSE),VLOOKUP($D$19,Parametros!$S$8:$U$68,3,FALSE)),"-") -> 12.15360201 | F49: Pensión mensual | G49: Unidad de Renta Vitalicia | H49: URV | I49: =IFERROR(IF($I$5="Hombre",VLOOKUP($I$19,Parametros!$S$8:$U$68,2,FALSE),VLOOKUP($I$19,Parametros!$S$8:$U$68,3,FALSE)),"-") -> 12.15360201
B50: Pensión Garantizada | C50: PG | D50: =IF($D$6="ISSSTE",Parametros!$H$7,IF(D6="IMSS",HLOOKUP($D$36,'Parametros IMSS'!D43:$N$73,MATCH(CONCATENATE(D39," & ",IF($D$19>=65,"65 o más",$D$19)),'Parametros IMSS'!$A$43:$A$73,0),TRUE),0)) -> 6406.62 | G50: Pensión Garantizada | H50: PG | I50: =IF($I$6="ISSSTE",Parametros!$H$7,IF(I6="IMSS",HLOOKUP($I$36,'Parametros IMSS'!I43:$N$73,MATCH(CONCATENATE(I39," & ",IF($I$19>=65,"65 o más",$I$19)),'Parametros IMSS'!$A$43:$A$73,0),TRUE),0)) -> 6406.62
B51: Pensión mensual estimada | C51: P_mensual | D51: =IF((D45/(12*$D$49))>$D$50,D45/(12*$D$49),$D$50) ->  | G51: Pensión mensual estimada | H51: P_mensual | I51: =IF((I45/(12*$I$49))>$I$50,I45/(12*$I$49),$I$50) -> 
B52: Tasa de Reemplazo | C52: Tr | D52: =IFERROR((D51/$D$8),"-") -> - | G52: Tasa de Reemplazo | H52: Tr | I52: =IFERROR((I51/$I$8),"-") -> -
A57: Saldo Final cotizaciones obligatorias + ahorro voluntario y/o ahorro solidario | B57: A: | D57: =$D$35*((1+$D$21)^$D$33)*((1-$D$22)^$D$33) ->  | F57: Saldo Final cotizaciones obligatorias + ahorro voluntario y/o ahorro solidario | G57: A: | I57: =$I$35*((1+$I$21)^$I$33)*((1-$I$22)^$I$33) -> 
B58: B: | D58: =IF($D$6="ISSSTE",$D$23*($D$24+$D$27+$D$28)*((((1+$D$21)^$D$33)*((1-$D$22)^$D$33)-1)/((1+$D$21)*(1-$D$22)-1)),IF($D$6="IMSS",P115,0)) ->  | G58: B: | I58: =IF($I$6="ISSSTE",$I$23*($I$24+$I$27+$I$28)*((((1+$I$21)^$I$33)*((1-$I$22)^$I$33)-1)/((1+$I$21)*(1-$I$22)-1)),IF($I$6="IMSS",P115,0)) -> 
B59: C: (Para IMSS, NO APLICA) | D59: =IF(D6="ISSSTE",$D$29*((1+$D$21)^$D$34)*((1-$D$22)^$D$34),0) ->  | G59: C: (Para IMSS, NO APLICA) | I59: =IF(I6="ISSSTE",$I$29*((1+$I$21)^$I$34)*((1-$I$22)^$I$34),0) -> 
B61: Saldo Final cotizaciones obligatorias + aportaciones voluntarias | C61: Sf = A+B+C | D61: =D57+D58+D59 ->  | G61: Saldo Final cotizaciones obligatorias + aportaciones voluntarias | H61: Sf = A+B+C | I61: =I57+I58+I59 -> 
B63: Saldo final cotizaciones obligatorias y voluntarias | C63: Sf | D63: =D61+D62 ->  | G63: Saldo final cotizaciones obligatorias y voluntarias | H63: Sf | I63: =I61+I62 -> 
A65: Pensión mensual considerando aportaciones adicionales a las obligatorias | B65: Unidad de Renta Vitaliacia | C65: URV | D65: =IFERROR(IF($D$5="Hombre",VLOOKUP($D$19,Parametros!$S$8:$U$68,2,FALSE),VLOOKUP($D$19,Parametros!$S$8:$U$68,3,FALSE)),"-") -> 12.15360201 | F65: Pensión mensual considerando aportaciones adicionales a las obligatorias | G65: Unidad de Renta Vitaliacia | H65: URV | I65: =IFERROR(IF($I$5="Hombre",VLOOKUP($I$19,Parametros!$S$8:$U$68,2,FALSE),VLOOKUP($I$19,Parametros!$S$8:$U$68,3,FALSE)),"-") -> 12.15360201
B66: Pensión Garantizada | C66: PG | D66: =IF($D$6="ISSSTE",Parametros!$H$7,IF(D6="IMSS",HLOOKUP($D$36,'Parametros IMSS'!D43:$N$73,MATCH(CONCATENATE(D39," & ",IF($D$19>=65,"65 o más",$D$19)),'Parametros IMSS'!$A$43:$A$73,0),TRUE),0)) -> 6406.62 | G66: Pensión Garantizada | H66: PG | I66: =IF($I$6="ISSSTE",Parametros!$H$7,IF(I6="IMSS",HLOOKUP($I$36,'Parametros IMSS'!I43:$N$73,MATCH(CONCATENATE(I39," & ",IF($I$19>=65,"65 o más",$I$19)),'Parametros IMSS'!$A$43:$A$73,0),TRUE),0)) -> 6406.62
B67: Pensión mensual estimada | C67: P_mensual | D67: =IF((D61/(12*$D$65))>$D$66,D61/(12*$D$65),$D$66) ->  | G67: Pensión mensual estimada | H67: P_mensual | I67: =IF((I61/(12*$I$65))>$I$66,I61/(12*$I$65),$I$66) -> 
B68: Tasa de Reemplazo | C68: Tr | D68: =IFERROR(D67/$D$8,"-") -> - | G68: Tasa de Reemplazo | H68: Tr | I68: =IFERROR(I67/$I$8,"-") -> -
A72: Proyección de aportaciones adicionales | B72: Monto estimado del ahorro solidario (solo aplica ISSSTE) | C72: AS_est | D72: =IF($D$6="ISSSTE",$D$23*($D$25)*((((1+$D$21)^$D$33)*((1-$D$22)^$D$33)-1)/((1+$D$21)*(1-$D$22)-1)),0) ->  | F72: Proyección de aportaciones adicionales | G72: Monto estimado del ahorro solidario (solo aplica ISSSTE) | H72: AS_est | I72: =IF($I$6="ISSSTE",$I$23*($I$25)*((((1+$I$21)^$I$33)*((1-$I$22)^$I$33)-1)/((1+$I$21)*(1-$I$22)-1)),0) -> 
B73: Monto estimado del ahorro voluntario | C73: Av_est | D73: =IF($D$6="ISSSTE",$D$23*($D$26)*((((1+$D$21)^$D$33)*((1-$D$22)^$D$33)-1)/((1+$D$21)*(1-$D$22)-1)),0) ->  | G73: Monto estimado del ahorro voluntario | H73: Av_est | I73: =IF($I$6="ISSSTE",$I$23*($I$26)*((((1+$I$21)^$I$33)*((1-$I$22)^$I$33)-1)/((1+$I$21)*(1-$I$22)-1)),0) -> 
B74: Monto total estimado de aportaciones adicionales a las obligatorias | C74: Zj_est = As_est + Av_est | D74: =D72+D73 ->  | G74: Monto total estimado de aportaciones adicionales a las obligatorias | H74: Zj_est = As_est + Av_est | I74: =I72+I73 -> 
A77: DISTRIBUCIÓN SALDO FINAL | F77: DISTRIBUCIÓN SALDO FINAL
A78: Distribución Saldo Final | B78: Aportaciones obligatorias* | D78: =D45 ->  | F78: Distribución Saldo Final | G78: Aportaciones obligatorias* | I78: =I45 -> 
B79: Ahorro solidario | D79: =D72 ->  | G79: Ahorro solidario | I79: =I72 -> 
B80: Ahorro voluntario | D80: =D73 ->  | G80: Ahorro voluntario | I80: =I73 -> 
B82: Total saldo final estimado | D82: =SUM(D78:D81) ->  | G82: Total saldo final estimado | I82: =SUM(I78:I81) -> 
B83: *Incluye saldo inicial, aportaciones obligatorias y bono de pensión | G83: *Incluye saldo inicial, aportaciones obligatorias y bono de pensión
A86: DISTRIBUCIÓN PENSIÓN MENSUAL | F86: DISTRIBUCIÓN PENSIÓN MENSUAL
A87: Distribución Pensión Mensual | B87: Aportaciones obligatorias* | D87: =IF(D67>D66,D78/(12*$D$65),"N/A") ->  | F87: Distribución Pensión Mensual | G87: Aportaciones obligatorias* | I87: =IF(I67>I66,I78/(12*$D$65),"N/A") -> 
B88: Ahorro solidario | D88: =IF(D67>D66,D79/(12*$D$65),"N/A") ->  | G88: Ahorro solidario | I88: =IF(I67>I66,I79/(12*$D$65),"N/A") -> 
B89: Ahorro voluntario | D89: =IF(D67>D66,D80/(12*$D$65),"N/A") ->  | G89: Ahorro voluntario | I89: =IF(I67>I66,I80/(12*$D$65),"N/A") -> 
B91: Total pensión mensual estimada | D91: =IF(ROUND(SUM(D87:D90),2)<D66,D66,ROUND(SUM(D87:D90),2)) ->  | G91: Total pensión mensual estimada | I91: =IF(ROUND(SUM(I87:I90),2)<I66,I66,ROUND(SUM(I87:I90),2)) -> 
B92: *Incluye saldo inicial, aportaciones obligatorias y bono de pensión | G92: *Incluye saldo inicial, aportaciones obligatorias y bono de pensión
A96: Diferencia entre pensión sin Gasto Hormiga y pensión con Gasto Hormiga. | C96: =IF(ROUND(I91-D91,2)<=0,0,ROUND(I91-D91,2)) -> 

Sheet Pensión IMSS_senc (hidden)
B1: SIN GASTO HORMIGA
C4: Descripción | D4: ID | E4: Resultado | G4: Cálculo inciso B) para el caso IMSS (Las aportaciones del patrón y la cuota social del gobierno es variable) | P4: B: | Q4: B:
B5: INPUTS | C5: Fecha de nacimiento | D5: F_NAC | E5: =+'Datos pensión'!E14 -> [Ingresa fecha] | G5: Año | H5: Fecha | I5: m | J5: s=n-m | K5: %Ao | L5: Ao | M5: Cs Unitario | N5: Cs | O5: Av
C6: Edad | D6: EDAD | E6: =IFERROR(INT(YEARFRAC($E$5,TODAY(),1)),"-") -> -
C7: Sexo | D7: SEXO | E7: =+'Datos pensión'!I16 -> [Selecciona una opción] | G7: 2023 | H7: =DATE(G7,12,IF(E21=31,31,DAY($E$20+1))) -> 2023-12-06 | I7: =IF($E$22>H7,ROUND(((H7-$E$20)/365)*12,0)-SUM(I6:I6),ROUND((($E$22-$E$20)/365)*12,0)-SUM(I6:I6)) ->  | J7: =+J6-I7 ->  | K7: =HLOOKUP(G7,Parametros!$E$62:$N$68,7,FALSE) -> 0.07366 | L7: =$E$10*K7 -> 1178.56 | M7: =VLOOKUP(($E$10/30.4)/Parametros!$C$26,Parametros!$D$35:$H$48, IF(G7=2021,2, IF(G7=2022,3, IF(G7=2023,4,5))),TRUE) -> 2.45 | N7: =M7*30.4 -> 74.48 | O7: =$E$27 -> 2500 | P7: =($E$17*(L7+N7)*((((1+$E$23)^I7)*((1-$E$24)^I7)-1)/((1+$E$23)*(1-$E$24)-1)))*((1+$E$23)^J7)*((1-$E$24)^J7) ->  | Q7: =($E$17*(L7+N7+O7)*((((1+$E$23)^I7)*((1-$E$24)^I7)-1)/((1+$E$23)*(1-$E$24)-1)))*((1+$E$23)^J7)*((1-$E$24)^J7) -> 
C8: Institución en la que cotiza | D8: ID_COT | E8: =+'Datos pensión'!E16 -> ISSSTE | G8: 2024 | I8: =IF($E$22>H8,ROUND(((H8-$E$20)/365)*12,0)-SUM(I6:I7),ROUND((($E$22-$E$20)/365)*12,0)-SUM(I6:I7)) ->  | J8: =+J7-I8 ->  | K8: =HLOOKUP(G8,Parametros!$E$62:$N$68,7,FALSE) -> 0.08456 | L8: 1352.96 | M8: =VLOOKUP(($E$10/30.4)/Parametros!$C$26,Parametros!$D$35:$H$48, IF(G8=2021,2, IF(G8=2022,3, IF(G8=2023,4,5))),TRUE) -> 0 | N8: 0 | O8: 2500 | P8: =($E$17*(L8+N8)*((((1+$E$23)^I8)*((1-$E$24)^I8)-1)/((1+$E$23)*(1-$E$24)-1)))*((1+$E$23)^J8)*((1-$E$24)^J8) -> 
C9: Edad deseada de retiro | D9: EDAD_RET | E9: =+'Datos pensión'!F21 -> 65 | G9: 2025 | H9: 2025-12-06 | I9: =IF($E$22>H9,ROUND(((H9-$E$20)/365)*12,0)-SUM(I6:I8),ROUND((($E$22-$E$20)/365)*12,0)-SUM(I6:I8)) ->  | K9: =HLOOKUP(G9,Parametros!$E$62:$N$68,7,FALSE) -> 0.09547 | L9: 1527.52 | M9: =VLOOKUP(($E$10/30.4)/Parametros!$C$26,Parametros!$D$35:$H$48, IF(G9=2021,2, IF(G9=2022,3, IF(G9=2023,4,5))),TRUE) -> 0 | N9: 0 | O9: 2500 | P9: =($E$17*(L9+N9)*((((1+$E$23)^I9)*((1-$E$24)^I9)-1)/((1+$E$23)*(1-$E$24)-1)))*((1+$E$23)^J9)*((1-$E$24)^J9) -> 
C10: Salario básico mensual (salario de cotización) | D10: SALARIO | E10: =+'Datos pensión'!F23 -> 16000 | G10: 2026 | H10: 2026-12-06 | I10: =IF($E$22>H10,ROUND(((H10-$E$20)/365)*12,0)-SUM(I6:I9),ROUND((($E$22-$E$20)/365)*12,0)-SUM(I6:I9)) ->  | K10: =HLOOKUP(G10,Parametros!$E$62:$N$68,7,FALSE) -> 0.10638 | L10: 1702.08 | M10: =VLOOKUP(($E$10/30.4)/Parametros!$C$26,Parametros!$D$35:$H$48, IF(G10=2021,2, IF(G10=2022,3, IF(G10=2023,4,5))),TRUE) -> 0 | N10: 0 | O10: 2500
C11: Número de años cotizados | D11: ANT | E11: =+'Datos pensión'!F27 -> 6 | G11: 2027 | H11: 2027-12-06 | I11: =IF($E$22>H11,ROUND(((H11-$E$20)/365)*12,0)-SUM(I6:I10),ROUND((($E$22-$E$20)/365)*12,0)-SUM(I6:I10)) ->  | K11: =HLOOKUP(G11,Parametros!$E$62:$N$68,7,FALSE) -> 0.11728 | L11: 1876.48 | M11: =VLOOKUP(($E$10/30.4)/Parametros!$C$26,Parametros!$D$35:$H$48, IF(G11=2021,2, IF(G11=2022,3, IF(G11=2023,4,5))),TRUE) -> 0 | N11: 0 | O11: 2500
C12: Saldo actual en la cuenta de ahorro | D12: SALDO_0 | E12: =+'Datos pensión'!F25 -> 80000 | G12: 2028 | H12: 2028-12-06 | I12: =IF($E$22>H12,ROUND(((H12-$E$20)/365)*12,0)-SUM(I6:I11),ROUND((($E$22-$E$20)/365)*12,0)-SUM(I6:I11)) ->  | K12: =HLOOKUP(G12,Parametros!$E$62:$N$68,7,FALSE) -> 0.12819 | L12: 2051.04 | M12: =VLOOKUP(($E$10/30.4)/Parametros!$C$26,Parametros!$D$35:$H$48, IF(G12=2021,2, IF(G12=2022,3, IF(G12=2023,4,5))),TRUE) -> 0 | N12: 0 | O12: 2500
C13: Valor nominal del Bono de pensión | D13: BONO_NOM | E13: =IF($E$8="ISSSTE",'Datos pensión'!F31:G31,0) -> 0 | F13: 0 | G13: 2029 | H13: 2029-12-06 | I13: =IF($E$22>H13,ROUND(((H13-$E$20)/365)*12,0)-SUM(I6:I12),ROUND((($E$22-$E$20)/365)*12,0)-SUM(I6:I12)) ->  | K13: =HLOOKUP(G13,Parametros!$E$62:$N$68,7,FALSE) -> 0.13909 | L13: 2225.44 | M13: =VLOOKUP(($E$10/30.4)/Parametros!$C$26,Parametros!$D$35:$H$48, IF(G13=2021,2, IF(G13=2022,3, IF(G13=2023,4,5))),TRUE) -> 0 | N13: 0 | O13: 2500 | P13: =($E$17*(L13+N13)*((((1+$E$23)^I13)*((1-$E$24)^I13)-1)/((1+$E$23)*(1-$E$24)-1)))*((1+$E$23)^J13)*((1-$E$24)^J13) -> 
C14: Tasa de rendimiento anual | D14: r | E14: =Parametros!I10 -> 0.036 | G14: 2030 | I14: =IF($E$22>H13,E29-SUM(I6:I13),0) ->  | K14: =HLOOKUP(G14,Parametros!$E$62:$N$68,7,FALSE) -> 0.15 | L14: 2400 | M14: =VLOOKUP(($E$10/30.4)/Parametros!$C$26,Parametros!$D$35:$H$48, IF(G14=2021,2, IF(G14=2022,3, IF(G14=2023,4,5))),TRUE) -> 0 | N14: 0 | O14: 2500 | Q14: =($E$17*(L14+N14+O14)*((((1+$E$23)^I14)*((1-$E$24)^I14)-1)/((1+$E$23)*(1-$E$24)-1)))*((1+$E$23)^J14)*((1-$E$24)^J14) -> 
C15: Porcentaje destinado en Ahorro Solidario | D15: PORC_AS | E15: 0
C16: Monto mensual destinado al ahorro voluntario | D16: MONTO_AV | E16: =+'Datos pensión'!F38 -> 2500 | N16: Total | P16: =SUM(P6:P14) ->  | Q16: =SUM(Q6:Q14) -> 
C17: Densidad de cotización | D17: d | E17: 0.8
B20: Variables | C20: Fecha de Corte | D20: F_val | E20: =TODAY() -> 2024-11-05
C21: Edad de retiro | D21: edad | E21: =$E$9 -> 65
C22: Fecha de Retiro | D22: F_retiro | E22: =DATE(YEAR($E$5)+$E$9,MONTH($E$5),DAY($E$5)) -> 
C23: Rendimiento mensual | D23: r (m) | E23: =((1+E14)^(1/12))-1 -> 0.002951609433
C24: Comisión mensual | D24: c (m) | E24: =(Parametros!C4/12) -> 0.0004416666667
C25: Densidad de cotización | D25: d | E25: =E17 -> 0.8
C26: Aportación obligatoria mensual (Aplicable al día de corte) | D26: A0 | E26: =E10*IF($E$8="IMSS",(HLOOKUP(YEAR(E20),Parametros!$E$62:$N$68,7,TRUE)),0) -> 0 | F26: SÓLO INFORMATIVA
C27: Ahorro voluntario mensual | D27: Av | E27: =E16 -> 2500
C28: Monto mensual por concepto de cuota social (Aplicable al día de corte) | D28: CS | E28: =VLOOKUP(($E$10/30.4)/Parametros!$C$26,Parametros!$D$35:$H$48,IF(YEAR(E20)=2021,2,IF(YEAR(E20)=2022,3,IF(YEAR(E20)=2023,4,5))),TRUE) -> 0
C29: Número de meses que faltan para que un trabajador cumpla la Edad de retiro a partir de la fecha de corte. | D29: n | E29: =INT(((E22-E20)/365)*12) -> 
C31: Saldo inicial | D31: Si | E31: =E12 -> 80000
C32: Semanas cotizadas a la fecha de retiro | D32: SemCot | E32: =ROUND($E$11*52+(ROUND((($E$22-$E$20)/365)*52,0)*E17),0) -> 
C33: Años cotizados | D33: AñosCot | E33: =ROUND((((E22-E20)*E17)/365)+E11,0) -> 
C34: Rango Salarial para aportaciones obligatorias del patrón IMSS | D34: Rango_salario_Ao | E34: =IF($E$10<=Parametros!G19,Parametros!H19,IF(AND($E$10>Parametros!G19,$E$10<=Parametros!G20),Parametros!H20,IF(AND($E$10>Parametros!G20,$E$10<=Parametros!G21),Parametros!H21,IF(AND($E$10>Parametros!G21,$E$10<=Parametros!G22),Parametros!H22,IF(AND($E$10>Parametros!G22,$E$10<=Parametros!G23),Parametros!H23,IF(AND($E$10>Parametros!G23,$E$10<=Parametros!G24),Parametros!H24,IF(AND($E$10>Parametros!G24,$E$10<=Parametros!G25),Parametros!H25,IF($E$10>Parametros!G25,Parametros!H26)))))))) -> 4.01 UMA en adelante
C35: Rango Salarial para Pensión Garantizada IMSS | D35: Rango_salario_PG | E35: =IF($E$10<=Parametros!K19,Parametros!L19,IF(AND($E$10>Parametros!K19,$E$10<=Parametros!K20),Parametros!L20,IF(AND(E10>Parametros!K20,E10<=Parametros!K21),Parametros!L21,IF(AND(E10>Parametros!K21,E10<=Parametros!K22),Parametros!L22,IF(E10>Parametros!K22,Parametros!L23))))) -> 4.0 a 4.99 UMA
B40: Saldo Final cotizaciones obligatorias | C40: A: | D40: A | E40: =($E$31*((1+$E$23)^$E$29)*((1-$E$24)^$E$29)) -> 
C41: B: | D41: B | E41: =IF(E8="IMSS",P16,0) -> 0
C44: Saldo Final cotizaciones obligatorias | D44: Sf = A+B | E44: =E40+E41+E42 -> 
C46: Saldo final cotizaciones obligatorias | D46: Sf + Sf_RRO | E46: =E44+E45 -> 
B48: Pensión mensual considerando solamente aportaciones obligatorias | C48: Unidad de Renta Vitaliacia | D48: URV | E48: =IFERROR(IF($E$7="Hombre",VLOOKUP($E$21,Parametros!$S$8:$U$68,2,FALSE),VLOOKUP($E$21,Parametros!$S$8:$U$68,3,FALSE)),"-") -> 12.15360201
C49: Pensión Garantizada | D49: PG | E49: =IF($E$8="ISSSTE",Parametros!$H$7,IF(E8="IMSS",HLOOKUP($E$32,'Parametros IMSS'!D43:$N$73,MATCH(CONCATENATE(E35," & ",IF($E$21>=65,"65 o más",$E$21)),'Parametros IMSS'!$A$43:$A$73,0),TRUE),0)) -> 6406.62
C50: Pensión mensual estimada | D50: P_mensual | E50: =IF((E44/(12*$E$48))>$E$49,E44/(12*$E$48),$E$49) -> 
C51: Tasa de Reemplazo | D51: Tr | E51: =IFERROR((E50/$E$10),"-") -> -
B56: Saldo Final cotizaciones obligatorias + ahorro voluntario | C56: A: | E56: =$E$31*((1+$E$23)^$E$29)*((1-$E$24)^$E$29) -> 
C57: B: | E57: =IF($E$8="IMSS",Q16,0) -> 0
C60: Saldo Final cotizaciones obligatorias + aportaciones voluntarias | D60: Sf = A+B | E60: =E56+E57 -> 
B64: Pensión mensual considerando aportaciones adicionales a las obligatorias | C64: Unidad de Renta Vitalicia | D64: URV | E64: =IFERROR(IF($E$7="Hombre",VLOOKUP($E$21,Parametros!$S$8:$U$68,2,FALSE),VLOOKUP($E$21,Parametros!$S$8:$U$68,3,FALSE)),"-") -> 12.15360201
C65: Pensión Garantizada | D65: PG | E65: =IF($E$8="ISSSTE",Parametros!$H$7,IF(E8="IMSS",HLOOKUP($E$32,'Parametros IMSS'!D43:$N$73,MATCH(CONCATENATE(E35," & ",IF($E$21>=65,"65 o más",$E$21)),'Parametros IMSS'!$A$43:$A$73,0),TRUE),0)) -> 6406.62
C66: Pensión mensual estimada | D66: P_mensual | E66: =IF((E60/(12*$E$64))>$E$65,E60/(12*$E$64),$E$65) ->  | F66: =+E60/(12*$E$64) -> 
C67: Tasa de Reemplazo | D67: Tr | E67: =IFERROR(E66/$E$10,"-") -> -
B73: DISTRIBUCIÓN SALDO FINAL
B74: Distribución Saldo Final | C74: Aportaciones obligatorias* | E74: =E44 -> 
C75: Ahorro voluntario | E75: =E60-E44 -> 
C77: Total saldo final estimada | E77: =SUM(E74:E76) -> 
C78: *Incluye saldo inicial y aportaciones obligatorias.
B82: DISTRIBUCIÓN PENSIÓN MENSUAL
B83: Distribución Pensión Mensual | C83: Aportaciones obligatorias* | E83: =E74/(12*$E$64) ->  | F83: =IF($E$68>$E$65,E74/(12*$E$64),"N/A") -> N/A
C84: Ahorro voluntario | E84: =(E75/(12*$E$64)) ->  | F84: =IF($E$68>$E$65,E75/(12*$E$64),"N/A") -> N/A
C86: Total pensión mensual estimada | E86: =ROUND(IF(SUM(E83:E85)<=E65,E65,SUM(E83:E85)),2) -> 
C87: *Incluye saldo inicial y aportaciones obligatorias
B90: CON GASTO HORMIGA
C93: Descripción | D93: ID | E93: Resultado | G93: Cálculo inciso B) para el caso IMSS (Las aportaciones del patrón y la cuota social del gobierno es variable) | P93: B: | Q93: B:
B94: INPUTS | C94: Fecha de nacimiento | D94: F_NAC | E94: =E5 -> [Ingresa fecha] | G94: Año | H94: Fecha | I94: m | J94: s=n-m | K94: %Ao | L94: Ao | M94: Cs Unitario | N94: Cs | O94: Av
C95: Edad | D95: EDAD | E95: -
C96: Sexo | D96: SEXO | E96: [Selecciona una opción] | G96: 2023 | H96: =DATE(G96,12,IF(E110=31,31,DAY($E$109+1))) -> 2023-12-06 | I96: =IF($E$111>H96,ROUND(((H96-$E$109)/365)*12,0)-SUM(I95:I95),ROUND((($E$111-$E$109)/365)*12,0)-SUM(I95:I95)) ->  | J96: =+J95-I96 ->  | K96: =HLOOKUP(G96,Parametros!$E$62:$N$68,7,FALSE) -> 0.07366 | L96: =$E$99*K96 -> 1178.56 | M96: =VLOOKUP(($E$99/30.4)/Parametros!$C$26,Parametros!$D$35:$H$48, IF(G96=2021,2, IF(G96=2022,3, IF(G96=2023,4,5))),TRUE) -> 2.45 | N96: =M96*30.4 -> 74.48 | O96: =$E$116 -> 5000 | P96: =($E$17*(L96+N96)*((((1+$E$23)^I96)*((1-$E$24)^I96)-1)/((1+$E$23)*(1-$E$24)-1)))*((1+$E$23)^J96)*((1-$E$24)^J96) ->  | Q96: =($E$17*(L96+N96+O96)*((((1+$E$23)^I96)*((1-$E$24)^I96)-1)/((1+$E$23)*(1-$E$24)-1)))*((1+$E$23)^J96)*((1-$E$24)^J96) -> 
C97: Institución en la que cotiza | D97: ID_COT | E97: ISSSTE | G97: 2024 | I97: =IF($E$111>H97,ROUND(((H97-$E$109)/365)*12,0)-SUM(I95:I96),ROUND((($E$111-$E$109)/365)*12,0)-SUM(I95:I96)) ->  | J97: =+J96-I97 ->  | K97: =HLOOKUP(G97,Parametros!$E$62:$N$68,7,FALSE) -> 0.08456 | L97: 1352.96 | M97: =VLOOKUP(($E$99/30.4)/Parametros!$C$26,Parametros!$D$35:$H$48, IF(G97=2021,2, IF(G97=2022,3, IF(G97=2023,4,5))),TRUE) -> 0 | N97: 0 | O97: 5000
C98: Edad deseada de retiro | D98: EDAD_RET | E98: 65 | G98: 2025 | H98: 2025-12-06 | I98: =IF($E$111>H98,ROUND(((H98-$E$109)/365)*12,0)-SUM(I95:I97),ROUND((($E$111-$E$109)/365)*12,0)-SUM(I95:I97)) ->  | K98: =HLOOKUP(G98,Parametros!$E$62:$N$68,7,FALSE) -> 0.09547 | L98: 1527.52 | M98: =VLOOKUP(($E$99/30.4)/Parametros!$C$26,Parametros!$D$35:$H$48, IF(G98=2021,2, IF(G98=2022,3, IF(G98=2023,4,5))),TRUE) -> 0 | N98: 0 | O98: 5000
C99: Salario básico mensual (salario de cotización) | D99: SALARIO | E99: 16000 | G99: 2026 | H99: 2026-12-06 | I99: =IF($E$111>H99,ROUND(((H99-$E$109)/365)*12,0)-SUM(I95:I98),ROUND((($E$111-$E$109)/365)*12,0)-SUM(I95:I98)) ->  | K99: =HLOOKUP(G99,Parametros!$E$62:$N$68,7,FALSE) -> 0.10638 | L99: 1702.08 | M99: =VLOOKUP(($E$99/30.4)/Parametros!$C$26,Parametros!$D$35:$H$48, IF(G99=2021,2, IF(G99=2022,3, IF(G99=2023,4,5))),TRUE) -> 0 | N99: 0 | O99: 5000
C100: Número de años cotizados | D100: ANT | E100: 6 | G100: 2027 | H100: 2027-12-06 | I100: =IF($E$111>H100,ROUND(((H100-$E$109)/365)*12,0)-SUM(I95:I99),ROUND((($E$111-$E$109)/365)*12,0)-SUM(I95:I99)) ->  | K100: =HLOOKUP(G100,Parametros!$E$62:$N$68,7,FALSE) -> 0.11728 | L100: 1876.48 | M100: =VLOOKUP(($E$99/30.4)/Parametros!$C$26,Parametros!$D$35:$H$48, IF(G100=2021,2, IF(G100=2022,3, IF(G100=2023,4,5))),TRUE) -> 0 | N100: 0 | O100: 5000
C101: Saldo actual en la cuenta de ahorro | D101: SALDO_0 | E101: 80000 | G101: 2028 | H101: 2028-12-06 | I101: =IF($E$111>H101,ROUND(((H101-$E$109)/365)*12,0)-SUM(I95:I100),ROUND((($E$111-$E$109)/365)*12,0)-SUM(I95:I100)) ->  | K101: =HLOOKUP(G101,Parametros!$E$62:$N$68,7,FALSE) -> 0.12819 | L101: 2051.04 | M101: =VLOOKUP(($E$99/30.4)/Parametros!$C$26,Parametros!$D$35:$H$48, IF(G101=2021,2, IF(G101=2022,3, IF(G101=2023,4,5))),TRUE) -> 0 | N101: 0 | O101: 5000
C102: Valor nominal del Bono de pensión | D102: BONO_NOM | E102: 0 | G102: 2029 | H102: 2029-12-06 | I102: =IF($E$111>H102,ROUND(((H102-$E$109)/365)*12,0)-SUM(I95:I101),ROUND((($E$111-$E$109)/365)*12,0)-SUM(I95:I101)) ->  | K102: =HLOOKUP(G102,Parametros!$E$62:$N$68,7,FALSE) -> 0.13909 | L102: 2225.44 | M102: =VLOOKUP(($E$99/30.4)/Parametros!$C$26,Parametros!$D$35:$H$48, IF(G102=2021,2, IF(G102=2022,3, IF(G102=2023,4,5))),TRUE) -> 0 | N102: 0 | O102: 5000
C103: Tasa de rendimiento anual | D103: r | E103: 0.036 | G103: 2030 | H103: 2030-12-06 | I103: =IF($E$111>H102,E118-SUM(I95:I102),0) ->  | K103: =HLOOKUP(G103,Parametros!$E$62:$N$68,7,FALSE) -> 0.15 | L103: 2400 | M103: =VLOOKUP(($E$99/30.4)/Parametros!$C$26,Parametros!$D$35:$H$48, IF(G103=2021,2, IF(G103=2022,3, IF(G103=2023,4,5))),TRUE) -> 0 | N103: 0 | O103: 5000 | Q103: =($E$17*(L103+N103+O103)*((((1+$E$23)^I103)*((1-$E$24)^I103)-1)/((1+$E$23)*(1-$E$24)-1)))*((1+$E$23)^J103)*((1-$E$24)^J103) -> 
C104: Porcentaje destinado en Ahorro Solidario | D104: PORC_AS | E104: 0
C105: Monto mensual destinado al ahorro voluntario | D105: MONTO_AV | E105: =E16+Gasto_Hormiga_senc!H20 -> 5000 | N105: Total | P105: =SUM(P95:P103) ->  | Q105: =SUM(Q95:Q103) -> 
C106: Densidad de cotización | D106: d | E106: 0.8
B109: Variables | C109: Fecha de Corte | D109: F_val | E109: =TODAY() -> 2024-11-05
C110: Edad de retiro | D110: edad | E110: =$E$98 -> 65
C111: Fecha de Retiro | D111: F_retiro | E111: =DATE(YEAR($E$94)+$E$98,MONTH($E$94),DAY($E$94)) -> 
C112: Rendimiento mensual | D112: r (m) | E112: =((1+E103)^(1/12))-1 -> 0.002951609433
C113: Comisión mensual | D113: c (m) | E113: =(Parametros!C4/12) -> 0.0004416666667
C114: Densidad de cotización | D114: d | E114: =E106 -> 0.8
C115: Aportación obligatoria mensual (Aplicable al día de corte) | D115: A0 | E115: =E99*IF($E$97="IMSS",(HLOOKUP(YEAR(E109),Parametros!$E$62:$N$68,7,TRUE)),0) -> 0 | F115: SÓLO INFORMATIVA
C116: Ahorro voluntario mensual | D116: Av | E116: =E105 -> 5000
C117: Monto mensual por concepto de cuota social (Aplicable al día de corte) | D117: CS | E117: =VLOOKUP(($E$99/30.4)/Parametros!$C$26,Parametros!$D$35:$H$48, IF(YEAR(E109)=2021,2, IF(YEAR(E109)=2022,3, IF(YEAR(E109)=2023,4,5))),TRUE) -> 0
C118: Número de meses que faltan para que un trabajador cumpla la Edad de retiro a partir de la fecha de corte. | D118: n | E118: =INT(((E111-E109)/365)*12) -> 
C120: Saldo inicial | D120: Si | E120: =E101 -> 80000
C121: Semanas cotizadas a la fecha de retiro | D121: SemCot | E121: =ROUND($E$100*52+(ROUND((($E$111-$E$109)/365)*52,0)*E106),0) -> 
C122: Años cotizados | D122: AñosCot | E122: =ROUND((((E111-E109)*E106)/365)+E100,0) -> 
C123: Rango Salarial para aportaciones obligatorias del patrón IMSS | D123: Rango_salario_Ao | E123: =IF($E$99<=Parametros!G19,Parametros!H19,IF(AND($E$99>Parametros!G19,$E$99<=Parametros!G20),Parametros!H20,IF(AND($E$99>Parametros!G20,$E$99<=Parametros!G21),Parametros!H21,IF(AND($E$99>Parametros!G21,$E$99<=Parametros!G22),Parametros!H22,IF(AND($E$99>Parametros!G22,$E$99<=Parametros!G23),Parametros!H23,IF(AND($E$99>Parametros!G23,$E$99<=Parametros!G24),Parametros!H24,IF(AND($E$99>Parametros!G24,$E$99<=Parametros!G25),Parametros!H25,IF($E$99>Parametros!G25,Parametros!H26)))))))) -> 4.01 UMA en adelante
C124: Rango Salarial para Pensión Garantizada IMSS | D124: Rango_salario_PG | E124: =IF($E$99<=Parametros!K19,Parametros!L19,IF(AND($E$99>Parametros!K19,$E$99<=Parametros!K20),Parametros!L20,IF(AND(E99>Parametros!K20,E99<=Parametros!K21),Parametros!L21,IF(AND(E99>Parametros!K21,E99<=Parametros!K22),Parametros!L22,IF(E99>Parametros!K22,Parametros!L23))))) -> 4.0 a 4.99 UMA
B129: Saldo Final cotizaciones obligatorias | C129: A: | D129: A | E129: =($E$120*((1+$E$112)^$E$118)*((1-$E$113)^$E$118)) -> 
C130: B: | D130: B | E130: =IF(E97="IMSS",P105,0) -> 0
C133: Saldo Final cotizaciones obligatorias | D133: Sf = A+B | E133: =E129+E130+E131 -> 
C135: Saldo final cotizaciones obligatorias | D135: Sf + Sf_RRO | E135: =E133+E134 -> 
B137: Pensión mensual considerando solamente aportaciones obligatorias | C137: Unidad de Renta Vitaliacia | D137: URV | E137: =IFERROR(IF($E$96="Hombre",VLOOKUP($E$110,Parametros!$S$8:$U$68,2,FALSE),VLOOKUP($E$110,Parametros!$S$8:$U$68,3,FALSE)),"-") -> 12.15360201
C138: Pensión Garantizada | D138: PG | E138: =IF($E$97="ISSSTE",Parametros!$H$7,IF(E97="IMSS",HLOOKUP($E$121,'Parametros IMSS'!D43:$N$73,MATCH(CONCATENATE(E124," & ",IF($E$110>=65,"65 o más",$E$110)),'Parametros IMSS'!$A$43:$A$73,0),TRUE),0)) -> 6406.62
C139: Pensión mensual estimada | D139: P_mensual | E139: =IF((E133/(12*$E$137))>$E$138,E133/(12*$E$137),$E$138) -> 
C140: Tasa de Reemplazo | D140: Tr | E140: =IFERROR((E139/$E$99),"-") -> -
B145: Saldo Final cotizaciones obligatorias + ahorro voluntario | C145: A: | E145: =$E$120*((1+$E$112)^$E$118)*((1-$E$113)^$E$118) -> 
C146: B: | E146: =IF($E$97="IMSS",Q105,0) -> 0
C149: Saldo Final cotizaciones obligatorias + aportaciones voluntarias | D149: Sf = A+B | E149: =E145+E146 -> 
B153: Pensión mensual considerando aportaciones adicionales a las obligatorias | C153: Unidad de Renta Vitalicia | D153: URV | E153: =IFERROR(IF($E$7="Hombre",VLOOKUP($E$21,Parametros!$S$8:$U$68,2,FALSE),VLOOKUP($E$21,Parametros!$S$8:$U$68,3,FALSE)),"-") -> 12.15360201
C154: Pensión Garantizada | D154: PG | E154: =IF($E$97="ISSSTE",Parametros!$H$7,IF(E97="IMSS",HLOOKUP($E$121,'Parametros IMSS'!D43:$N$73,MATCH(CONCATENATE(E124," & ",IF($E$110>=65,"65 o más",$E$110)),'Parametros IMSS'!$A$43:$A$73,0),TRUE),0)) -> 6406.62
C155: Pensión mensual estimada | D155: P_mensual | E155: =IF((E149/(12*$E$153))>$E$154,E149/(12*$E$153),$E$154) -> 
C156: Tasa de Reemplazo | D156: Tr | E156: =IFERROR(E155/$E$99,"-") -> -
B162: DISTRIBUCIÓN SALDO FINAL
B163: Distribución Saldo Final | C163: Aportaciones obligatorias* | E163: =E133 -> 
C164: Ahorro voluntario | E164: =E149-E133 -> 
C166: Total saldo final estimada | E166: =SUM(E163:E165) -> 
C167: *Incluye saldo inicial y aportaciones obligatorias.
B171: DISTRIBUCIÓN PENSIÓN MENSUAL
B172: Distribución Pensión Mensual | C172: Aportaciones obligatorias* | E172: =E163/(12*$E$64) ->  | F172: =IF($E$68>$E$65,E163/(12*$E$64),"N/A") -> N/A
C173: Ahorro voluntario | E173: =(E164/(12*$E$64)) ->  | F173: =IF($E$68>$E$65,E164/(12*$E$64),"N/A") -> N/A
F174: =IF($E$68>$E$65,E165/(12*$E$64),"N/A") -> N/A
C175: Total pensión mensual estimada | E175: =ROUND(IF(SUM(E172:E174)<=E138,E138,SUM(E172:E174)),2) -> 
C176: *Incluye saldo inicial y aportaciones obligatorias
A178: Diferencia entre pensión sin gasto hormiga y pensión con gasto hormiga | E178: =IF(ROUND(E175-E86,2)<=0, 0, ROUND(E175-E86,2)) -> 

Sheet Parametros (hidden)
B3: AFORE | C3: Comisión 2023 | G3: Pensión garantizada ISSSTE vigente (MXN) | S3: Factores Unidad de Renta Vitalicia (URV)
B4: PENSIONISSSTE | C4: 0.0053
B5: CITIBANAMEX | C5: 0.0057 | G5: Año | H5: ISSSTE | S5: Fecha de corte | T5: =TODAY() -> 2024-11-05
B6: XXI BANORTE | C6: 0.0057 | H6: PG
B7: PROFUTURO | C7: 0.0057 | G7: 2024 | H7: 6406.62 | T7: 0.0353
B8: SURA | C8: 0.0057 | S8: Edad | T8: HOMBRES | U8: MUJERES
B9: COPPEL | C9: 0.00566 | S9: 60 | T9: =HLOOKUP($T$5,URV_hom!$C$3:$XFD$57,S9-60+5,TRUE) -> 12.04663187 | U9: =HLOOKUP($T$5,URV_muj!$C$3:$XFD$57,Parametros!S9-60+5,TRUE) -> 13.19574532
B10: PRINCIPAL | C10: 0.0057 | G10: Tasa de rendimiento | I10: 0.036 | S10: 61 | T10: =HLOOKUP($T$5,URV_hom!$C$3:$XFD$57,S10-60+5,TRUE) -> 11.86153814 | U10: =HLOOKUP($T$5,URV_muj!$C$3:$XFD$57,Parametros!S10-60+5,TRUE) -> 13.00146481
B11: AZTECA | C11: 0.0057 | S11: 62 | T11: =HLOOKUP($T$5,URV_hom!$C$3:$XFD$57,S11-60+5,TRUE) -> 11.67241355 | U11: =HLOOKUP($T$5,URV_muj!$C$3:$XFD$57,Parametros!S11-60+5,TRUE) -> 12.80019345
B12: INBURSA | C12: 0.0057 | S12: 63 | T12: =HLOOKUP($T$5,URV_hom!$C$3:$XFD$57,S12-60+5,TRUE) -> 11.47927306 | U12: =HLOOKUP($T$5,URV_muj!$C$3:$XFD$57,Parametros!S12-60+5,TRUE) -> 12.59181662
B13: INVERCAP | C13: 0.0057 | S13: 64 | T13: =HLOOKUP($T$5,URV_hom!$C$3:$XFD$57,S13-60+5,TRUE) -> 11.28221815 | U13: =HLOOKUP($T$5,URV_muj!$C$3:$XFD$57,Parametros!S13-60+5,TRUE) -> 12.37630962
B14: PROMEDIO DEL SISTEMA | C14: =AVERAGE(C4:C13) -> 0.005656 | S14: 65 | T14: =HLOOKUP($T$5,URV_hom!$C$3:$XFD$57,S14-60+5,TRUE) -> 11.08130939 | U14: =HLOOKUP($T$5,URV_muj!$C$3:$XFD$57,Parametros!S14-60+5,TRUE) -> 12.15360201
S15: 66 | T15: =HLOOKUP($T$5,URV_hom!$C$3:$XFD$57,S15-60+5,TRUE) -> 10.87668008 | U15: =HLOOKUP($T$5,URV_muj!$C$3:$XFD$57,Parametros!S15-60+5,TRUE) -> 11.92357701
G16: Rango Salarial para aportación del patrón | K16: Rango Salarial para la Pensión Garantizada | S16: 67 | T16: =HLOOKUP($T$5,URV_hom!$C$3:$XFD$57,S16-60+5,TRUE) -> 10.66842059 | U16: =HLOOKUP($T$5,URV_muj!$C$3:$XFD$57,Parametros!S16-60+5,TRUE) -> 11.68630736
G17: Monto máximo de rango | H17: Rango | K17: Monto máximo de rango | L17: Rango | S17: 68 | T17: =HLOOKUP($T$5,URV_hom!$C$3:$XFD$57,S17-60+5,TRUE) -> 10.45668652 | U17: =HLOOKUP($T$5,URV_muj!$C$3:$XFD$57,Parametros!S17-60+5,TRUE) -> 11.44192628
S18: 69 | T18: =HLOOKUP($T$5,URV_hom!$C$3:$XFD$57,S18-60+5,TRUE) -> 10.24157959 | U18: =HLOOKUP($T$5,URV_muj!$C$3:$XFD$57,Parametros!S18-60+5,TRUE) -> 11.19038858
B19: Unidad de Medida y Actualización (UMA) | G19: =1*$D$26 -> 7567.472 | H19: 1.0 SM | K19: =1.99*$D$21 -> 6568.05072 | L19: 1 SM a 1.99 UMA | S19: 70 | T19: =HLOOKUP($T$5,URV_hom!$C$3:$XFD$57,S19-60+5,TRUE) -> 10.02335919 | U19: =HLOOKUP($T$5,URV_muj!$C$3:$XFD$57,Parametros!S19-60+5,TRUE) -> 10.93180694
B20: 2024 | C20: Diario | D20: Mensual | G20: =1.5*$D$21 -> 4950.792 | H20: 1.01 SM a 1.50 UMA | K20: =2.99*$D$21 -> 9868.57872 | L20: 2.0 a 2.99 UMA | S20: 71 | T20: =HLOOKUP($T$5,URV_hom!$C$3:$XFD$57,S20-60+5,TRUE) -> 9.802127678 | U20: =HLOOKUP($T$5,URV_muj!$C$3:$XFD$57,Parametros!S20-60+5,TRUE) -> 10.6663251
C21: 108.57 | D21: 3300.528 | G21: =2*$D$21 -> 6601.056 | H21: 1.51 a 2.00 UMA | K21: =3.99*$D$21 -> 13169.10672 | L21: 3.0 a 3.99 UMA | S21: 72 | T21: =HLOOKUP($T$5,URV_hom!$C$3:$XFD$57,S21-60+5,TRUE) -> 9.578021136 | U21: =HLOOKUP($T$5,URV_muj!$C$3:$XFD$57,Parametros!S21-60+5,TRUE) -> 10.39411231
B22: Fuente: https://www.inegi.org.mx/temas/uma/ | G22: =2.5*$D$21 -> 8251.32 | H22: 2.01 A 2.50 UMA | K22: =4.99*$D$21 -> 16469.63472 | L22: 4.0 a 4.99 UMA | S22: 73 | T22: =HLOOKUP($T$5,URV_hom!$C$3:$XFD$57,S22-60+5,TRUE) -> 9.351310431 | U22: =HLOOKUP($T$5,URV_muj!$C$3:$XFD$57,Parametros!S22-60+5,TRUE) -> 10.11544765
G23: =3*$D$21 -> 9901.584 | H23: 2.51 a 3.00 UMA | L23: 5.0 UMA en adelante | S23: 74 | T23: =HLOOKUP($T$5,URV_hom!$C$3:$XFD$57,S23-60+5,TRUE) -> 9.122289312 | U23: =HLOOKUP($T$5,URV_muj!$C$3:$XFD$57,Parametros!S23-60+5,TRUE) -> 9.830503872
B24: SALARIO MINIMO (SM) | G24: =3.5*$D$21 -> 11551.848 | H24: 3.01 a 3.50 UMA | S24: 75 | T24: =HLOOKUP($T$5,URV_hom!$C$3:$XFD$57,S24-60+5,TRUE) -> 8.891180028 | U24: =HLOOKUP($T$5,URV_muj!$C$3:$XFD$57,Parametros!S24-60+5,TRUE) -> 9.539633575
B25: 2024 | C25: Diario | D25: Mensual | G25: =4*$D$21 -> 13202.112 | H25: 3.51 a 4.00 UMA | S25: 76 | T25: =HLOOKUP($T$5,URV_hom!$C$3:$XFD$57,S25-60+5,TRUE) -> 8.658217492 | U25: =HLOOKUP($T$5,URV_muj!$C$3:$XFD$57,Parametros!S25-60+5,TRUE) -> 9.243246071
C26: 248.93 | D26: 7567.472 | H26: 4.01 UMA en adelante | S26: 77 | T26: =HLOOKUP($T$5,URV_hom!$C$3:$XFD$57,S26-60+5,TRUE) -> 8.423628345 | U26: =HLOOKUP($T$5,URV_muj!$C$3:$XFD$57,Parametros!S26-60+5,TRUE) -> 8.941793576
S27: 78 | T27: =HLOOKUP($T$5,URV_hom!$C$3:$XFD$57,S27-60+5,TRUE) -> 8.187722229 | U27: =HLOOKUP($T$5,URV_muj!$C$3:$XFD$57,Parametros!S27-60+5,TRUE) -> 8.635644947
S28: 79 | T28: =HLOOKUP($T$5,URV_hom!$C$3:$XFD$57,S28-60+5,TRUE) -> 7.950792505 | U28: =HLOOKUP($T$5,URV_muj!$C$3:$XFD$57,Parametros!S28-60+5,TRUE) -> 8.32542915
S29: 80 | T29: =HLOOKUP($T$5,URV_hom!$C$3:$XFD$57,S29-60+5,TRUE) -> 7.713206352 | U29: =HLOOKUP($T$5,URV_muj!$C$3:$XFD$57,Parametros!S29-60+5,TRUE) -> 8.011811632
B30: Cuota social ISSSTE | S30: 81 | T30: =HLOOKUP($T$5,URV_hom!$C$3:$XFD$57,S30-60+5,TRUE) -> 7.475218061 | U30: =HLOOKUP($T$5,URV_muj!$C$3:$XFD$57,Parametros!S30-60+5,TRUE) -> 7.695377506
B31: ISSSTE | C31: =TODAY() -> 2024-11-05 | D31: =VLOOKUP(C31,'Cuota Social ISSSTE'!E7:H189,4) -> 6.334602169 | S31: 82 | T31: =HLOOKUP($T$5,URV_hom!$C$3:$XFD$57,S31-60+5,TRUE) -> 7.237195901 | U31: =HLOOKUP($T$5,URV_muj!$C$3:$XFD$57,Parametros!S31-60+5,TRUE) -> 7.376847857
B33: Cuota social IMSS
B34: Salario base de cotización del trabajador | C34: Cmin | D34: Indicador de buscar | G34: 2023 | H34: 2024
B35: 1.0 SM | C35: 1 | D35: =C35*($C$21/$C$26) -> 0.4361467079 | G35: 10.75 | H35: 10.75
B36: 1.01 SM a 1.50 UMA | C36: 1.01 | D36: =C36*($C$21/$C$26) -> 0.440508175 | G36: 10 | H36: 10
B37: 1.51 a 2.00 UMA | C37: 1.51 | D37: 0.6585815289 | G37: 9.25 | H37: 9.25
B38: 2.01 A 2.50 UMA | C38: 2.01 | D38: =C38*($C$21/$C$26) -> 0.8766548829 | G38: 8.5 | H38: 8.5
B39: 2.51 a 3.00 UMA | C39: 2.51 | D39: 1.094728237 | G39: 7.75 | H39: 7.75
B40: 3.01 a 3.50 UMA | C40: 3.01 | D40: 1.312801591 | G40: 7 | H40: 7
B41: 3.51 a 4.00 UMA | C41: 3.51 | D41: 1.530874945 | G41: 6.25 | H41: 6.25
B42: 4.01 a 5.00 UMA | C42: 4.01 | D42: 1.748948299 | G42: 2.45 | H42: 0
B43: 5.01 a 6.00 UMA | C43: 5.01 | D43: 2.185095007 | G43: 1.8 | H43: 0
B44: 6.01 a 7.00 UMA | C44: 6.01 | D44: 2.621241715 | G44: 1 | H44: 0
B45: 7.01 a 7.09 UMA | C45: 7.01 | D45: 3.057388422 | G45: 1 | H45: 0
B46: 8.00 a 10 UMA | C46: 8 | D46: 3.489173663 | G46: 0 | H46: 0
B47: 10.01 a 15 UMA | C47: 10.01 | D47: 4.365828546 | G47: 0 | H47: 0
B48: 15.01 UMA en adelante | C48: 15.01 | D48: =C48*($C$21/$C$26) -> 6.546562086 | G48: 0 | H48: 0
B51: Aportaciones Obligatorias ISSSTE
B52: Subcuenta | C52: Ramo | D52: ¿Quién aporta? | E52: ISSSTE
B53: Subcuenta del Retiro, Cesantía en Edad Avanzada y Vejez (RCV) | C53: Cesantía en Edad Avanzada y Vejez | D53: Patrón / Dependencia | E53: 0.03175
D54: Trabajador | E54: 0.06125
D55: Gobierno Federal
C56: Retiro | D56: Patrón / Dependencia | E56: 0.02
D58: Total | E58: =SUM(E53:E56) -> 0.113
B61: Aportaciones Obligatorias IMSS
B62: Subcuenta | C62: Ramo | D62: ¿Quién aporta? | G62: 2023 | H62: 2024 | I62: 2025 | J62: 2026 | K62: 2027 | L62: 2028 | M62: 2029 | N62: 2030
B63: Subcuenta del Retiro, Cesantía en Edad Avanzada y Vejez (RCV) | C63: Cesantía en Edad Avanzada y Vejez | D63: Patrón / Dependencia | G63: =VLOOKUP('Pensión ISSSTE_senc'!$D$38,'Parametros IMSS'!$B$9:$J$16,2,FALSE) -> 0.04241 | H63: =VLOOKUP('Pensión ISSSTE_senc'!$D$38,'Parametros IMSS'!$B$9:$J$16,3,FALSE) -> 0.05331 | I63: =VLOOKUP('Pensión ISSSTE_senc'!$D$38,'Parametros IMSS'!$B$9:$J$16,4,FALSE) -> 0.06422 | J63: =VLOOKUP('Pensión ISSSTE_senc'!$D$38,'Parametros IMSS'!$B$9:$J$16,5,FALSE) -> 0.07513 | K63: =VLOOKUP('Pensión ISSSTE_senc'!$D$38,'Parametros IMSS'!$B$9:$J$16,6,FALSE) -> 0.08603 | L63: =VLOOKUP('Pensión ISSSTE_senc'!$D$38,'Parametros IMSS'!$B$9:$J$16,7,FALSE) -> 0.09694 | M63: =VLOOKUP('Pensión ISSSTE_senc'!$D$38,'Parametros IMSS'!$B$9:$J$16,8,FALSE) -> 0.10784 | N63: =VLOOKUP('Pensión ISSSTE_senc'!$D$38,'Parametros IMSS'!$B$9:$J$16,9,FALSE) -> 0.11875
D64: Trabajador | G64: 0.01125 | H64: 0.01125 | I64: 0.01125 | J64: 0.01125 | K64: 0.01125 | L64: 0.01125 | M64: 0.01125 | N64: 0.01125
D65: Gobierno Federal | G65: 0 | H65: 0 | I65: 0 | J65: 0 | K65: 0 | L65: 0 | M65: 0 | N65: 0
C66: Retiro | D66: Patrón / Dependencia | G66: 0.02 | H66: 0.02 | I66: 0.02 | J66: 0.02 | K66: 0.02 | L66: 0.02 | M66: 0.02 | N66: 0.02
D68: Total | G68: =SUM(G63:G66) -> 0.07366 | H68: =SUM(H63:H66) -> 0.08456 | I68: 0.09547 | J68: 0.10638 | K68: 0.11728 | L68: 0.12819 | M68: 0.13909 | N68: 0.15

Sheet Cuota Social ISSSTE (hidden)
A2: https://www.banxico.org.mx/SieInternet/consultarDirectorioInternetAction.do?accion=consultarCuadro&idCuadro=CP154&locale=es
A4: CUOTA SOCIAL ISSSTE | M4: CUOTA SOCIAL IMSS
F6: INPC | G6: Variación | H6: Cuota social
E7: 1997-03-01 | F7: 30.367889
A8: Salario mínimo general para el DF vigente al 01 de julio de 1997 | E8: 1997-06-01 | F8: 31.250957 | G8: =F8/F7 -> 1.029079005 | H8: =C16 -> 1.45475
E9: 1997-09-01 | F9: 32.199613 | G9: 1.030356062 | H9: =G9*H8 -> 1.498910482
E10: 1997-12-01 | F10: 33.279875 | G10: 1.033548913 | H10: =G10*H9 -> 1.549197298
A11: 26.45 | E11: 1998-03-01 | F11: 35.004533 | G11: 1.051822851 | H11: 1.629481119
E12: 1998-06-01 | F12: 36.03442 | G12: 1.029421532 | H12: 1.67742295
E13: 1998-09-01 | F13: 37.327376 | G13: 1.035881138 | H13: 1.737610795
E14: 1998-12-01 | F14: 39.472974 | G14: 1.057480547 | H14: 1.837489614
A15: %Cuota Social (art. 102) | C15: 0.055 | E15: 1999-03-01 | F15: 41.394684 | G15: 1.048684196 | H15: 1.926946319
A16: Cuota social Inicial 01/julio/1997 | C16: =A11*5.5% -> 1.45475 | E16: 1999-06-01 | F16: 42.302006 | G16: 1.021918805 | H16: 1.969182679
E17: 1999-09-01 | F17: 43.235018 | G17: 1.022055975 | H17: 2.012614924
E18: 1999-12-01 | F18: 44.335516 | G18: 1.025453858 | H18: 2.063843738
E19: 2000-03-01 | F19: 45.580681 | G19: 1.028085046 | H19: 2.121806884
E20: 2000-06-01 | F20: 46.28392 | G20: 1.015428444 | H20: 2.154543063
E21: 2000-09-01 | F21: 47.061072 | G21: 1.016790972 | H21: 2.190719935
E22: 2000-12-01 | F22: 48.307671 | G22: 1.026488963 | H22: 2.248749835
E23: 2001-03-01 | F23: 48.850888 | G23: 1.011244943 | H23: 2.274036898
E24: 2001-06-01 | F24: 49.326364 | G24: 1.009733211 | H24: 2.296170579
E25: 2001-09-01 | F25: 49.950381 | G25: 1.01265078 | H25: 2.325218929
E26: 2001-12-01 | F26: 50.434899 | G26: 1.009699986 | H26: 2.34777352
E27: 2002-03-01 | F27: 51.127948 | G27: 1.013741457 | H27: 2.380035349
E28: 2002-06-01 | F28: 51.762586 | G28: 1.012412741 | H28: 2.409578113
E29: 2002-09-01 | F29: 52.421984 | G29: 1.012738892 | H29: 2.440273468
E30: 2002-12-01 | F30: 53.30993 | G30: 1.016938428 | H30: 2.481607865
E31: 2003-03-01 | F31: 54.01293 | G31: 1.013187037 | H31: 2.514332918
E32: 2003-06-01 | F32: 53.975112 | G32: 0.9992998343 | H32: 2.512572469
E33: 2003-09-01 | F33: 54.538238 | G33: 1.010433068 | H33: 2.538786308
E34: 2003-12-01 | F34: 55.429811 | G34: 1.016347668 | H34: 2.580289543
E35: 2004-03-01 | F35: 56.298071 | G35: 1.015664134 | H35: 2.620707545
E36: 2004-06-01 | F36: 56.331745 | G36: 1.000598138 | H36: 2.622275089
E37: 2004-09-01 | F37: 57.297917 | G37: 1.017151466 | H37: 2.66725095
E38: 2004-12-01 | F38: 58.307088 | G38: 1.0176127 | H38: =G38*H37 -> 2.71422844
E39: 2005-03-01 | F39: 58.767121 | G39: 1.00788983 | H39: 2.73564324
E40: 2005-06-01 | F40: 58.771783 | G40: 1.00007933 | H40: 2.735860259
E41: 2005-09-01 | F41: 59.309006 | G41: 1.009140832 | H41: 2.760868298
E42: 2005-12-01 | F42: 60.250312 | G42: 1.015871215 | H42: 2.804686634
E43: 2006-03-01 | F43: 60.772512 | G43: 1.008667175 | H43: 2.828995343
E44: 2006-06-01 | F44: 60.642998 | G44: 0.997868872 | H44: 2.822966392
E45: 2006-09-01 | F45: 61.736612 | G45: 1.01803364 | H45: 2.873874752
E46: 2006-12-01 | F46: 62.692424 | G46: 1.015482094 | H46: 2.91836835
E47: 2007-03-01 | F47: 63.329113 | G47: 1.010155757 | H47: 2.948006589
E48: 2007-06-01 | F48: 63.05817 | G48: 0.9957216675 | H48: 2.935394036
E49: 2007-09-01 | F49: 64.077703 | G49: 1.016168135 | H49: 2.982853883
E50: 2007-12-01 | F50: 65.049056 | G50: 1.015158986 | H50: 3.028070923
E51: 2008-03-01 | F51: 66.019891 | G51: 1.014924659 | H51: 3.07326385
E52: 2008-06-01 | F52: 66.372168 | G52: 1.005335922 | H52: 3.089662547
E53: 2008-09-01 | F53: 67.584935 | G53: 1.018272222 | H53: 3.146117547
E54: 2008-12-01 | F54: 69.295552 | G54: 1.025310626 | H54: 3.225747751
E55: 2009-03-01 | F55: 70.00995 | G55: 1.010309435 | H55: 3.259003389
E56: 2009-06-01 | F56: 70.179354 | G56: 1.002419713 | H56: 3.266889242
E57: 2009-09-01 | F57: 70.892716 | G57: 1.010164841 | H57: 3.300096653
E58: 2009-12-01 | F58: 71.771855 | G58: 1.012400978 | H58: 3.341021079
E59: 2010-03-01 | F59: 73.489725 | G59: 1.023935148 | H59: 3.420988914
E60: 2010-06-01 | F60: 72.771183 | G60: 0.9902225515 | H60: 3.387540371
E61: 2010-09-01 | F61: 73.51511 | G61: 1.010222824 | H61: 3.4221706
E62: 2010-12-01 | F62: 74.930954 | G62: 1.019259224 | H62: 3.488078952
E63: 2011-03-01 | F63: 75.723451 | G63: 1.010576363 | H63: 3.524970142
E64: 2011-06-01 | F64: 75.155508 | G64: 0.9924997739 | H64: 3.498532069
E65: 2011-09-01 | F65: 75.821113 | G65: 1.00885637 | H65: 3.529516364
E66: 2011-12-01 | F66: 77.792385 | G66: 1.025998985 | H66: 3.621280208
E67: 2012-03-01 | F67: 78.547389 | G67: 1.009705372 | H67: 3.656426078
E68: 2012-06-01 | F68: 78.413667 | G68: 0.9982975628 | H68: 3.650201242
E69: 2012-09-01 | F69: 79.439119 | G69: 1.013077465 | H69: 3.697936622
E70: 2012-12-01 | F70: 80.568243 | G70: 1.014213702 | H70: 3.750497993
E71: 2013-03-01 | F71: 81.887433 | G71: 1.016373573 | H71: 3.811907045
E72: 2013-06-01 | F72: 81.619238 | G72: =F72/F71 -> 0.9967248332 | H72: 3.799422414
E73: 2013-09-01 | F73: 82.13234 | G73: =F73/F72 -> 1.006286533 | H73: 3.823307607
E74: 2013-12-01 | F74: 83.770058 | G74: =F74/F73 -> 1.01993999 | H74: =G74*H73 -> 3.89954432
E75: 2014-03-01 | F75: 84.965292 | G75: =F75/F74 -> 1.014268034 | H75: 3.95518315
E76: 2014-06-01 | F76: 84.682072 | G76: =F76/F75 -> 0.9966666389 | H76: 3.941999096
E77: 2014-09-01 | F77: 85.59634 | G77: =F77/F76 -> 1.010796476 | H77: 3.984558797
E78: 2014-12-01 | F78: 87.188984 | G78: 1.01860645 | H78: 4.05869729
E79: 2015-03-01 | F79: 87.630717 | G79: 1.005066385 | H79: 4.079260215
E80: 2015-06-01 | F80: 87.113108 | G80: 0.9940932927 | H80: 4.055165218
E81: 2015-09-01 | F81: 87.752419 | G81: 1.007338861 | H81: 4.084925513
E82: 2015-12-01 | F82: 89.046818 | G82: 1.014750579 | H82: 4.14518053
E83: 2016-03-01 | F83: 89.910001 | G83: 1.009693586 | H83: 4.185362194
E84: 2016-06-01 | F84: 89.324028 | G84: 0.9934826716 | H84: 4.158084814
E85: 2016-09-01 | F85: 90.357744 | G85: 1.011572653 | H85: 4.206204888
E86: 2016-12-01 | F86: 92.039035 | G86: 1.018607049 | H86: 4.28446995
E87: 2017-03-01 | F87: 94.722489 | G87: 1.029155608 | H87: 4.409386275
E88: 2017-06-01 | F88: 94.96364 | G88: 1.002545868 | H88: 4.420611992
E89: 2017-09-01 | F89: 96.093515 | G89: 1.011897975 | H89: 4.473208323
E90: 2017-12-01 | F90: 98.272883 | G90: 1.022679657 | H90: 4.574659155
E91: 2018-03-01 | F91: 99.492157 | G91: 1.012407024 | H91: 4.63141706
E92: 2018-06-01 | F92: 99.376465 | G92: 0.9988371747 | H92: 4.626031531
E93: 2018-09-01 | F93: 100.917 | G93: 1.01550201 | H93: 4.69774432
E94: 2018-12-01 | F94: 103.02 | G94: 1.020838907 | H94: 4.795640178
E95: 2019-03-01 | F95: 103.476 | G95: 1.004426325 | H95: 4.81686724
E96: 2019-06-01 | F96: 103.299 | G96: 0.9982894584 | H96: 4.808627789
E97: 2019-09-01 | F97: 103.942 | G97: 1.006224649 | H97: 4.838559808
E98: 2019-12-01 | F98: 105.934 | G98: 1.019164534 | H98: 4.931288552
E99: 2020-03-01 | F99: 106.838 | G99: 1.008533615 | H99: =G99*H98 -> 4.973370272
E100: 2020-06-01 | F100: 106.743 | G100: 0.9991108033 | H100: =G100*H99 -> 4.968947967
E101: 2020-09-01 | F101: 108.114 | G101: 1.012843934 | H101: 5.032768804
E102: 2020-12-01 | F102: 109.271 | G102: 1.010701667 | H102: 5.086627819
E103: 2021-03-01 | F103: 111.824 | G103: 1.02336393 | H103: 5.205471436
E104: 2021-06-01 | F104: 113.018 | G104: 1.010677493 | H104: 5.261052822
E105: 2021-09-01 | F105: 114.601 | G105: 1.014006618 | H105: 5.334742381
E106: 2021-12-01 | F106: 117.308 | G106: =F106/F105 -> 1.023621085 | H106: 5.460754786
E107: 2022-03-01 | F107: 120.159 | G107: 1.024303543 | H107: 5.593470474
E108: 2022-06-01 | F108: 122.044 | G108: 1.015687547 | H108: 5.681218306
E109: 2022-09-01 | F109: 124.571 | G109: 1.020705647 | H109: 5.798851608
E110: 2022-12-01 | F110: 126.478 | G110: =F110/F109 -> 1.015308539 | H110: =G110*H109 -> 5.887623553
E111: 2023-03-01 | F111: 128.389 | G111: =F111/F110 -> 1.015109347 | H111: =G111*H110 -> 5.976581701
E112: 2023-06-01 | F112: 128.214 | G112: =F112/F111 -> 0.9986369549 | H112: =G112*H111 -> 5.968435351
E113: 2023-09-01 | F113: 130.12 | G113: =F113/F112 -> 1.014865771 | H113: =G113*H112 -> 6.057160746
E114: 2023-12-01 | F114: 132.373 | G114: =F114/F113 -> 1.017314786 | H114: =G114*H113 -> 6.16203919
E115: 2024-03-01 | F115: 134.065 | G115: =F115/F114 -> 1.012782063 | H115: =G115*H114 -> 6.240802762
E116: 2024-06-01 | F116: 134.594 | G116: =F116/F115 -> 1.003945847 | H116: =G116*H115 -> 6.265428016
E117: 2024-09-01 | F117: 136.08 | G117: =F117/F116 -> 1.011040611 | H117: =G117*H116 -> 6.334602169

Sheet Parametros IMSS (hidden)
B2: * SM: Salario Mínimo
B3: ** UMA: Unidad de Medida y Actualización
B7: Cuota Patronal (art. 168, fracción II, inciso a) y Transitorio Segundo)
B8: Salario base de cotización | C8: 2023 | D8: 2024 | E8: 2025 | F8: 2026 | G8: 2027 | H8: 2028 | I8: 2029 | J8: 2030
B9: 1.0 SM | C9: 0.0315 | D9: 0.0315 | E9: 0.0315 | F9: 0.0315 | G9: 0.0315 | H9: 0.0315 | I9: 0.0315 | J9: 0.0315
B10: 1.01 SM a 1.50 UMA | C10: 0.03281 | D10: 0.03413 | E10: 0.03544 | F10: 0.03676 | G10: 0.03807 | H10: 0.03939 | I10: 0.0407 | J10: 0.04202
B11: 1.51 a 2.00 UMA | C11: 0.03575 | D11: 0.04 | E11: 0.04426 | F11: 0.04851 | G11: 0.05276 | H11: 0.05701 | I11: 0.06126 | J11: 0.06552
B12: 2.01 A 2.50 UMA | C12: 0.03751 | D12: 0.04353 | E12: 0.04954 | F12: 0.05556 | G12: 0.06157 | H12: 0.06759 | I12: 0.0736 | J12: 0.07962
B13: 2.51 a 3.00 UMA | C13: 0.03869 | D13: 0.04588 | E13: 0.05307 | F13: 0.06026 | G13: 0.06745 | H13: 0.07464 | I13: 0.08183 | J13: 0.08902
B14: 3.01 a 3.50 UMA | C14: 0.03953 | D14: 0.04756 | E14: 0.05559 | F14: 0.06361 | G14: 0.07164 | H14: 0.07967 | I14: 0.0877 | J14: 0.09573
B15: 3.51 a 4.00 UMA | C15: 0.04016 | D15: 0.04882 | E15: 0.05747 | F15: 0.06613 | G15: 0.07479 | H15: 0.08345 | I15: 0.09211 | J15: 0.10077
B16: 4.01 UMA en adelante | C16: 0.04241 | D16: 0.05331 | E16: 0.06422 | F16: 0.07513 | G16: 0.08603 | H16: 0.09694 | I16: 0.10784 | J16: 0.11875
B19: Aportación del Gobierno Federal (art. 168, fracción IV, y Transitorio Segundo y Tercero)
B20: Cuota social
B21: Salario base de cotización del trabajador | C21: 2021 | D21: 2022 | E21: 2023 | F21: 2024
B22: 1.0 SM | C22: 6.10375 | D22: 6.10375 | E22: 10.75 | F22: 10.75
B23: 1.01 SM a 1.50 UMA | C23: 5.84494 | D23: 5.84494 | E23: 10 | F23: 10
B24: 1.51 a 2.00 UMA | C24: 5.84494 | D24: 5.84494 | E24: 9.25 | F24: 9.25
B25: 2.01 A 2.50 UMA | C25: 5.84494 | D25: 5.84494 | E25: 8.5 | F25: 8.5
B26: 2.51 a 3.00 UMA | C26: 5.84494 | D26: 5.84494 | E26: 7.75 | F26: 7.75
B27: 3.01 a 3.50 UMA | C27: 5.84494 | D27: 5.84494 | E27: 7 | F27: 7
B28: 3.51 a 4.00 UMA | C28: 5.84494 | D28: 5.84494 | E28: 6.25 | F28: 6.25
B29: 4.01 a 5.00 UMA | C29: 5.59511 | D29: 5.59511 | E29: 2.45 | F29: 0
B30: 5.01 a 6.00 UMA | C30: 5.59511 | D30: 5.59511 | E30: 1.8 | F30: 0
B31: 6.01 a 7.00 UMA | C31: 5.59511 | D31: 5.59511 | E31: 1 | F31: 0
B32: 7.01 a 7.09 UMA | C32: 5.34078 | D32: 5.34078 | E32: 1 | F32: 0
B33: 8.00 a 10 UMA | C33: 5.34078 | D33: 5.34078 | E33: 0 | F33: 0
B34: 10.01 a 15 UMA | C34: 5.08646 | D34: 5.08646 | E34: 0 | F34: 0
B40: PENSIÓN GARANTIZADA IMSS
B41: Pensión garantizada es aquella que el Estado asegura. (art. 170 y Transitorio cuarto)
B42: Salario base de cotización | C42: Edad | D42: Semanas cotizadas
D43: =VLOOKUP(YEAR('Pensión IMSS_senc'!E22),$C$79:$N$89,2,TRUE) ->  | E43: =VLOOKUP(YEAR('Pensión IMSS_senc'!E22),$C$79:$N$89,3,TRUE) ->  | F43: =VLOOKUP(YEAR('Pensión IMSS_senc'!E22),$C$79:$N$89,4,TRUE) ->  | G43: =VLOOKUP(YEAR('Pensión IMSS_senc'!E22),$C$79:$N$89,5,TRUE) ->  | H43: =VLOOKUP(YEAR('Pensión IMSS_senc'!E22),$C$79:$N$89,6,TRUE) ->  | I43: =VLOOKUP(YEAR('Pensión IMSS_senc'!E22),$C$79:$N$89,7,TRUE) ->  | J43: =VLOOKUP(YEAR('Pensión IMSS_senc'!E22),$C$79:$N$89,8,TRUE) ->  | K43: =VLOOKUP(YEAR('Pensión IMSS_senc'!E22),$C$79:$N$89,9,TRUE) ->  | L43: =VLOOKUP(YEAR('Pensión IMSS_senc'!E22),$C$79:$N$89,10,TRUE) ->  | M43: =VLOOKUP(YEAR('Pensión IMSS_senc'!E22),$C$79:$N$89,11,TRUE) ->  | N43: =VLOOKUP(YEAR('Pensión IMSS_senc'!E22),$C$79:$N$89,12,TRUE) -> 
A44: =CONCATENATE($B$44," & ",C44) -> 1 SM a 1.99 UMA & 60 | B44: 1 SM a 1.99 UMA | C44: 60 | D44: 3276.61 | E44: 3394.07 | F44: 3510.29 | G44: 3627.76 | H44: 3745.24 | I44: 3861.45 | J44: 3978.91 | K44: 4096.39 | L44: 4212.61 | M44: 4330.08 | N44: 4447.54
A45: 1 SM a 1.99 UMA & 61 | C45: 61 | D45: 3324.1 | E45: 3440.31 | F45: 3557.78 | G45: 3675.25 | H45: 3791.47 | I45: 3908.93 | J45: 4025.15 | K45: 4142.62 | L45: 4260.09 | M45: 4376.31 | N45: 4493.77
A46: 1 SM a 1.99 UMA & 62 | C46: 62 | D46: 3370.33 | E46: 3487.8 | F46: 3604.03 | G46: 3721.5 | H46: 3838.96 | I46: 3955.17 | J46: 4072.65 | K46: 4190.1 | L46: 4306.32 | M46: 4423.79 | N46: 4541.26
A47: 1 SM a 1.99 UMA & 63 | C47: 63 | D47: 3416.56 | E47: 3534.04 | F47: 3651.5 | G47: 3767.72 | H47: 3885.19 | I47: 4002.66 | J47: 4118.87 | K47: 4236.34 | L47: 4353.82 | M47: 4470.04 | N47: 4587.51
A48: 1 SM a 1.99 UMA & 64 | C48: 64 | D48: 3464.07 | E48: 3581.53 | F48: 3697.74 | G48: 3815.21 | H48: 3932.68 | I48: 4048.9 | J48: 4166.36 | K48: 4282.58 | L48: 4400.05 | M48: 4517.51 | N48: 4633.74
A49: 1 SM a 1.99 UMA & 65 o más | C49: 65 o más | D49: 3510.29 | E49: 3627.76 | F49: 3745.24 | G49: 3861.45 | H49: 3978.91 | I49: 4096.39 | J49: 4212.61 | K49: 4330.08 | L49: 4447.54 | M49: 4563.75 | N49: 4681.22
A50: =CONCATENATE($B$50," & ",C50) -> 2.0 a 2.99 UMA & 60 | B50: 2.0 a 2.99 UMA | C50: 60 | D50: 4260.09 | E50: 4411.3 | F50: 4563.75 | G50: 4716.22 | H50: 4868.67 | I50: 5019.88 | J50: 5172.35 | K50: 5324.8 | L50: 5477.26 | M50: 5628.48 | N50: 5780.93
A51: 2.0 a 2.99 UMA & 61 | C51: 61 | D51: 4320.08 | E51: 4472.53 | F51: 4624.99 | G51: 4777.45 | H51: 4928.66 | I51: 5081.12 | J51: 5233.58 | K51: 5386.04 | L51: 5537.25 | M51: 5689.7 | N51: 5842.16
A52: 2.0 a 2.99 UMA & 62 | C52: 62 | D52: 4381.31 | E52: 4533.76 | F52: 4686.22 | G52: 4837.44 | H52: 4989.89 | I52: 5142.34 | J52: 5294.82 | K52: 5446.01 | L52: 5598.47 | M52: 5750.93 | N52: 5903.4
A53: 2.0 a 2.99 UMA & 63 | C53: 63 | D53: 4442.53 | E53: 4595 | F53: 4746.22 | G53: 4898.66 | H53: 5051.12 | I53: 5203.58 | J53: 5354.79 | K53: 5507.25 | L53: 5659.7 | M53: 5812.18 | N53: 5963.38
A54: 2.0 a 2.99 UMA & 64 | C54: 64 | D54: 4503.78 | E54: 4654.99 | F54: 4807.44 | G54: 4959.9 | H54: 5112.36 | I54: 5263.57 | J54: 5416.02 | K54: 5568.48 | L54: 5719.7 | M54: 5872.15 | N54: 6024.61
A55: 2.0 a 2.99 UMA & 65 o más | C55: 65 o más | D55: 4563.75 | E55: 4716.22 | F55: 4868.67 | G55: 5019.88 | H55: 5172.35 | I55: 5324.8 | J55: 5477.26 | K55: 5628.48 | L55: 5780.93 | M55: 5933.38 | N55: 6085.84
A56: =CONCATENATE($B$56," & ",C56) -> 3.0 a 3.99 UMA & 60 | B56: 3.0 a 3.99 UMA | C56: 60 | D56: 5242.33 | E56: 5429.78 | F56: 5617.22 | G56: 5804.67 | H56: 5992.12 | I56: 6179.58 | J56: 6365.77 | K56: 6553.22 | L56: 6740.66 | M56: 6928.12 | N56: 7115.56
A57: 3.0 a 3.99 UMA & 61 | C57: 61 | D57: 5317.29 | E57: 5504.75 | F57: 5692.2 | G57: 5879.65 | H57: 6067.09 | I57: 6254.54 | J57: 6440.75 | K57: 6628.2 | L57: 6815.65 | M57: 7003.1 | N57: 7190.54
A58: 3.0 a 3.99 UMA & 62 | C58: 62 | D58: 5392.28 | E58: 5579.74 | F58: 5767.17 | G58: 5954.63 | H58: 6142.08 | I58: 6328.28 | J58: 6515.72 | K58: 6703.18 | L58: 6890.62 | M58: 7078.07 | N58: 7265.52
A59: 3.0 a 3.99 UMA & 63 | C59: 63 | D59: 5467.26 | E59: 5654.72 | F59: 5842.16 | G59: 6029.62 | H59: 6217.06 | I59: 6403.27 | J59: 6590.7 | K59: 6778.16 | L59: 6965.6 | M59: 7153.06 | N59: 7340.5
A60: 3.0 a 3.99 UMA & 64 | C60: 64 | D60: 5542.24 | E60: 5729.7 | F60: 5917.13 | G60: 6104.59 | H60: 6290.78 | I60: 6478.24 | J60: 6665.69 | K60: 6853.15 | L60: 7040.57 | M60: 7228.04 | N60: 7414.23
A61: 3.0 a 3.99 UMA & 65 o más | C61: 65 o más | D61: 5617.22 | E61: 5804.67 | F61: 5992.12 | G61: 6179.58 | H61: 6365.77 | I61: 6553.22 | J61: 6740.66 | K61: 6928.12 | L61: 7115.56 | M61: 7303.02 | N61: 7489.21
A62: =CONCATENATE($B$62," & ",C62) -> 4.0 a 4.99 UMA & 60 | B62: 4.0 a 4.99 UMA | C62: 60 | D62: 6225.8 | E62: 6448.25 | F62: 6670.68 | G62: 6893.13 | H62: 7115.56 | I62: 7338.01 | J62: 7560.45 | K62: 7782.88 | L62: 8004.07 | M62: 8226.51 | N62: 8448.94
A63: 4.0 a 4.99 UMA & 61 | C63: 61 | D63: 6314.54 | E63: 6536.98 | F63: 6759.4 | G63: 6981.86 | H63: 7204.29 | I63: 7426.72 | J63: 7649.17 | K63: 7871.6 | L63: 8094.05 | M63: 8316.48 | N63: 8537.67
A64: 4.0 a 4.99 UMA & 62 | C64: 62 | D64: 6403.27 | E64: 6625.69 | F64: 6848.13 | G64: 7070.58 | H64: 7293.01 | I64: 7515.45 | J64: 7737.9 | K64: 7960.33 | L64: 8182.77 | M64: 8405.21 | N64: 8627.66
A65: 4.0 a 4.99 UMA & 63 | C65: 63 | D65: 6493.22 | E65: 6714.42 | F65: 6936.86 | G65: 7159.3 | H65: 7381.74 | I65: 7604.18 | J65: 7826.62 | K65: 8049.06 | L65: 8271.5 | M65: 8493.94 | N65: 8716.38
A66: 4.0 a 4.99 UMA & 64 | C66: 64 | D66: 6581.95 | E66: 6804.41 | F66: 7026.83 | G66: 7249.27 | H66: 7470.47 | I66: 7692.9 | J66: 7915.35 | K66: 8137.79 | L66: 8360.22 | M66: 8582.66 | N66: 8805.1
A67: 4.0 a 4.99 UMA & 65 o más | C67: 65 o más | D67: 6670.68 | E67: 6893.13 | F67: 7115.56 | G67: 7338.01 | H67: 7560.45 | I67: 7782.88 | J67: 8004.07 | K67: 8226.51 | L67: 8448.94 | M67: 8671.39 | N67: 8893.83
A68: =CONCATENATE($B$68," & ",C68) -> 5.0 UMA en adelante & 60 | B68: 5.0 UMA en adelante | C68: 60 | D68: 7209.28 | E68: 7466.72 | F68: 7724.15 | G68: 7981.57 | H68: 8239 | I68: 8496.43 | J68: 8753.87 | K68: 9011.3 | L68: 9268.73 | M68: 9526.15 | N68: 9783.57
A69: 5.0 UMA en adelante & 61 | C69: 61 | D69: 7311.77 | E69: 7569.2 | F69: 7826.62 | G69: 8084.05 | H69: 8341.49 | I69: 8598.9 | J69: 8856.33 | K69: 9113.76 | L69: 9371.19 | M69: 9628.63 | N69: 9886.06
A70: 5.0 UMA en adelante & 62 | C70: 62 | D70: 7414.23 | E70: 7672.91 | F70: 7930.34 | G70: 8187.77 | H70: 8445.2 | I70: 8702.64 | J70: 8960.07 | K70: 9217.48 | L70: 9474.91 | M70: 9732.34 | N70: 9989.78
A71: 5.0 UMA en adelante & 63 | C71: 63 | D71: 7517.95 | E71: 7775.38 | F71: 8032.81 | G71: 8290.23 | H71: 8547.67 | I71: 8805.1 | J71: 9062.53 | K71: 9319.96 | L71: 9577.39 | M71: 9834.83 | N71: 10092.25
A72: 5.0 UMA en adelante & 64 | C72: 64 | D72: 7620.43 | E72: 7877.86 | F72: 8135.3 | G72: 8392.72 | H72: 8650.15 | I72: 8907.58 | J72: 9165.01 | K72: 9422.42 | L72: 9679.86 | M72: 9938.54 | N72: 10195.98
A73: 5.0 UMA en adelante & 65 o más | C73: 65 o más | D73: 7724.15 | E73: 7981.57 | F73: 8239 | G73: 8496.43 | H73: 8753.87 | I73: 9011.3 | J73: 9268.73 | K73: 9526.15 | L73: 9783.57 | M73: 10041.01 | N73: 10298.44
C78: Año | D78: Semanas cotizadas
C79: 2021 | D79: 750 | E79: 775 | F79: 800 | G79: 825 | H79: 850 | I79: 875 | J79: 900 | K79: 925 | L79: 950 | M79: 975 | N79: 1000
C80: 2022 | D80: 775 | E80: 800 | F80: 825 | G80: 850 | H80: 875 | I80: 900 | J80: 925 | K80: 950 | L80: 975 | M80: 1000 | N80: 1025
C81: 2023 | D81: 800 | E81: 825 | F81: 850 | G81: 875 | H81: 900 | I81: 925 | J81: 950 | K81: 975 | L81: 1000 | M81: 1025 | N81: 1050
C82: 2024 | D82: 825 | E82: 850 | F82: 875 | G82: 900 | H82: 925 | I82: 950 | J82: 975 | K82: 1000 | L82: 1025 | M82: 1050 | N82: 1075
C83: 2025 | D83: 850 | E83: 875 | F83: 900 | G83: 925 | H83: 950 | I83: 975 | J83: 1000 | K83: 1025 | L83: 1050 | M83: 1075 | N83: 1100
C84: 2026 | D84: 875 | E84: 900 | F84: 925 | G84: 950 | H84: 975 | I84: 1000 | J84: 1025 | K84: 1050 | L84: 1075 | M84: 1100 | N84: 1125
C85: 2027 | D85: 900 | E85: 925 | F85: 950 | G85: 975 | H85: 1000 | I85: 1025 | J85: 1050 | K85: 1075 | L85: 1100 | M85: 1125 | N85: 1150
C86: 2028 | D86: 925 | E86: 950 | F86: 975 | G86: 1000 | H86: 1025 | I86: 1050 | J86: 1075 | K86: 1100 | L86: 1125 | M86: 1150 | N86: 1175
C87: 2029 | D87: 950 | E87: 975 | F87: 1000 | G87: 1025 | H87: 1050 | I87: 1075 | J87: 1100 | K87: 1125 | L87: 1150 | M87: 1175 | N87: 1200
C88: 2030 | D88: 975 | E88: 1000 | F88: 1025 | G88: 1050 | H88: 1075 | I88: 1100 | J88: 1125 | K88: 1150 | L88: 1175 | M88: 1200 | N88: 1225
C89: 2031 | D89: 1000 | E89: 1025 | F89: 1050 | G89: 1075 | H89: 1100 | I89: 1125 | J89: 1150 | K89: 1175 | L89: 1200 | M89: 1225 | N89: 1250

Sheet URV_muj (hidden)
B1: Factores Unidad de Renta Vitalicia ACTIVOS - MUJERES
B3: Vigencia: | D3: 1997-07-01 | F3: 2009-08-17 | H3: 2009-09-16 | J3: 2009-10-05 | L3: 2009-10-21 | N3: 2009-10-27 | P3: 2009-11-20 | R3: 2009-11-24 | T3: 2009-12-22 | V3: 2010-02-01 | X3: 2010-02-15 | Z3: 2010-04-19 | AB3: 2010-06-16 | AD3: 2010-07-07 | AF3: 2010-08-02 | AH3: 2010-08-04 | AJ3: 2010-08-05 | AL3: 2010-08-16 | AN3: 2010-08-23 | AP3: 2010-08-30 | AR3: 2010-09-10 | AT3: 2010-10-05 | AV3: 2010-10-22 | AX3: 2010-12-06 | AZ3: 2010-12-13 | BB3: 2010-12-20 | BD3: 2010-12-29 | BF3: 2011-01-05 | BH3: 2011-01-10 | BJ3: 2011-01-17 | BL3: 2011-01-24 | BN3: 2011-02-07 | BP3: 2011-02-28 | BR3: 2011-03-07 | BT3: 2011-03-21 | BV3: 2011-04-11 | BX3: 2011-04-25 | BZ3: 2011-05-23 | CB3: 2011-06-06 | CD3: 2011-07-11 | CF3: 2011-08-15 | CH3: 2011-08-22 | CJ3: 2011-08-29 | CL3: 2011-09-05 | CN3: 2011-09-12 | CP3: 2011-09-26 | CR3: 2011-10-03 | CT3: 2011-10-10 | CV3: 2011-10-24 | CX3: 2011-10-31 | CZ3: 2011-11-14 | DB3: 2011-11-21 | DD3: 2011-11-28 | DF3: 2011-12-05 | DH3: 2011-12-19 | DJ3: 2012-01-01 | DL3: 2012-01-02 | DN3: 2012-01-09 | DP3: 2012-01-30 | DR3: 2012-02-06 | DT3: 2012-02-13 | DV3: 2012-02-20 | DX3: 2012-02-27 | DZ3: 2012-03-05 | EB3: 2012-03-12 | ED3: 2012-04-23 | EF3: 2012-04-30 | EH3: 2012-05-07 | EJ3: 2012-05-21 | EL3: 2012-05-28 | EN3: 2012-06-18 | EP3: 2012-06-25 | ER3: 2012-07-02 | ET3: 2012-07-09 | EV3: 2012-07-16 | EX3: 2012-07-23 | EZ3: 2012-07-30 | FB3: 2012-08-06 | FD3: 2012-08-13 | FF3: 2012-08-20 | FH3: 2012-08-27 | FJ3: 2012-09-03 | FL3: 2012-09-10 | FN3: 2012-09-24 | FP3: 2012-10-01 | FR3: 2012-10-08 | FT3: 2012-10-15 | FV3: 2012-11-05 | FX3: 2012-12-10 | FZ3: 2012-12-17 | GB3: 2013-01-01 | GD3: 2013-02-04 | GF3: 2013-02-18 | GH3: 2013-03-25 | GJ3: 2013-04-01 | GL3: 2013-04-08 | GN3: 2013-04-15 | GP3: 2013-04-22 | GR3: 2013-04-29 | GT3: 2013-05-13 | GV3: 2013-05-27 | GX3: 2013-06-03 | GZ3: 2013-06-10 | HB3: 2013-06-17 | HD3: 2013-06-24 | HF3: 2013-07-01 | HH3: 2013-07-08 | HJ3: 2013-07-15 | HL3: 2013-07-29 | HN3: 2013-08-12 | HP3: 2013-08-19 | HR3: 2013-09-02 | HT3: 2013-09-09 | HV3: 2013-09-16 | HX3: 2013-09-30 | HZ3: 2013-10-07 | IB3: 2013-10-14 | ID3: 2013-11-04 | IF3: 2013-11-11 | IH3: 2013-11-18 | IJ3: 2013-11-25 | IL3: 2013-12-16 | IN3: 2013-12-30 | IP3: 2014-01-01 | IR3: 2014-01-27 | IT3: 2014-02-03 | IV3: 2014-02-10 | IX3: 2014-02-17 | IZ3: 2014-02-24 | JB3: 2014-03-03 | JD3: 2014-03-10 | JF3: 2014-03-18 | JH3: 2014-03-20 | JJ3: 2014-03-24 | JL3: 2014-03-31 | JN3: 2014-04-14 | JP3: 2014-04-21 | JR3: 2014-04-28 | JT3: 2014-05-05 | JV3: 2014-05-12 | JX3: 2014-05-19 | JZ3: 2014-05-26 | KB3: 2014-06-02 | KD3: 2014-06-09 | KF3: 2014-06-16 | KH3: 2014-06-23 | KJ3: 2014-06-30 | KL3: 2014-07-07 | KN3: 2014-07-14 | KP3: 2014-07-28 | KR3: 2014-08-04 | KT3: 2014-08-11 | KV3: 2014-08-18 | KX3: 2014-08-25 | KZ3: 2014-09-01 | LB3: 2014-09-08 | LD3: 2014-09-15 | LF3: 2014-09-22 | LH3: 2014-09-29 | LJ3: 2014-10-06 | LL3: 2014-10-13 | LN3: 2014-10-20 | LP3: 2014-10-27 | LR3: 2014-11-03 | LT3: 2014-11-10 | LV3: 2014-11-12 | LX3: 2014-11-18 | LZ3: 2014-11-20 | MB3: 2014-11-24 | MD3: 2014-12-01 | MF3: 2014-12-08 | MH3: 2014-12-15 | MJ3: 2014-12-22 | ML3: 2014-12-29 | MN3: 2015-01-05 | MP3: 2015-01-12 | MR3: 2015-01-19 | MT3: 2015-01-21 | MV3: 2015-01-26 | MX3: 2015-01-28 | MZ3: 2015-02-03 | NB3: 2015-02-09 | ND3: 2015-02-16 | NF3: 2015-02-25 | NH3: 2015-03-02 | NJ3: 2015-03-09 | NL3: 2015-03-11 | NN3: 2015-03-17 | NP3: 2015-03-23 | NR3: 2015-03-30 | NT3: 2015-04-06 | NV3: 2015-04-13 | NX3: 2015-04-27 | NZ3: 2015-05-04 | OB3: 2015-05-11 | OD3: 2015-05-18 | OF3: 2015-05-25 | OH3: 2015-06-01 | OJ3: 2015-06-08 | OL3: 2015-06-15 | ON3: 2015-06-22 | OP3: 2015-06-29 | OR3: 2015-07-06 | OT3: 2015-07-08 | OV3: 2015-07-13 | OX3: 2015-07-27 | OZ3: 2015-08-03 | PB3: 2015-08-10 | PD3: 2015-08-17 | PF3: 2015-08-31 | PH3: 2015-09-07 | PJ3: 2015-09-14 | PL3: 2015-09-21 | PN3: 2015-09-28 | PP3: 2015-10-05 | PR3: 2015-10-07 | PT3: 2015-10-12 | PV3: 2015-10-26 | PX3: 2015-11-02 | PZ3: 2015-11-09 | QB3: 2015-11-16 | QD3: 2015-11-23 | QF3: 2015-12-07 | QH3: 2015-12-14 | QJ3: 2015-12-16 | QL3: 2015-12-21 | QN3: 2015-12-28 | QP3: 2016-01-01 | QR3: 2016-01-04 | QT3: 2016-01-11 | QV3: 2016-01-18 | QX3: 2016-01-25 | QZ3: 2016-02-01 | RB3: 2016-02-08 | RD3: 2016-02-15 | RF3: 2016-02-22 | RH3: 2016-02-29 | RJ3: 2016-03-07 | RL3: 2016-03-14 | RN3: 2016-03-21 | RP3: 2016-03-28 | RR3: 2016-04-04 | RT3: 2016-04-06 | RV3: 2016-04-11 | RX3: 2016-04-18 | RZ3: 2016-04-25 | SB3: 2016-05-02 | SD3: 2016-05-09 | SF3: 2016-05-16 | SH3: 2016-05-23 | SJ3: 2016-05-30 | SL3: 2016-06-06 | SN3: 2016-06-13 | SP3: 2016-06-20 | SR3: 2016-06-27 | ST3: 2016-07-04 | SV3: 2016-07-11 | SX3: 2016-07-18 | SZ3: 2016-07-25 | TB3: 2016-08-01 | TD3: 2016-08-08 | TF3: 2016-08-15 | TH3: 2016-08-22 | TJ3: 2016-08-29 | TL3: 2016-09-05 | TN3: 2016-09-12 | TP3: 2016-09-19 | TR3: 2016-09-26 | TT3: 2016-10-03 | TV3: 2016-10-05 | TX3: 2016-10-10 | TZ3: 2016-10-17 | UB3: 2016-10-31 | UD3: 2016-11-07 | UF3: 2016-11-14 | UH3: 2016-11-16 | UJ3: 2016-11-21 | UL3: 2016-11-28 | UN3: 2016-12-05 | UP3: 2016-12-12 | UR3: 2016-12-19 | UT3: 2017-01-02 | UV3: 2017-01-09 | UX3: 2017-01-16 | UZ3: 2017-01-18 | VB3: 2017-01-23 | VD3: 2017-01-30 | VF3: 2017-02-06 | VH3: 2017-02-13 | VJ3: 2017-02-20 | VL3: 2017-02-27 | VN3: 2017-03-06 | VP3: 2017-03-13 | VR3: 2017-03-20 | VT3: 2017-03-27 | VV3: 2017-04-03 | VX3: 2017-04-17 | VZ3: 2017-04-24 | WB3: 2017-05-01 | WD3: 2017-05-08 | WF3: 2017-05-15 | WH3: 2017-05-22 | WJ3: 2017-05-29 | WL3: 2017-06-05 | WN3: 2017-06-12 | WP3: 2017-06-19 | WR3: 2017-06-26 | WT3: 2017-07-03 | WV3: 2017-07-10 | WX3: 2017-07-17 | WZ3: 2017-07-24 | XB3: 2017-07-31 | XD3: 2017-08-07 | XF3: 2017-08-21 | XH3: 2017-08-28 | XJ3: 2017-09-04 | XL3: 2017-09-11 | XN3: 2017-09-18 | XP3: 2017-09-25 | XR3: 2017-10-02 | XT3: 2017-10-09 | XV3: 2017-10-16 | XX3: 2017-10-23 | XZ3: 2017-10-30 | YB3: 2017-11-06 | YD3: 2017-11-13 | YF3: 2017-11-20 | YH3: 2017-11-27 | YJ3: 2017-12-04 | YL3: 2017-12-11 | YN3: 2017-12-18 | YP3: 2017-12-25 | YR3: 2018-01-01 | YT3: 2018-01-08 | YV3: 2018-01-15 | YX3: 2018-01-22 | YZ3: 2018-01-29 | ZB3: 2018-02-05 | ZD3: 2018-02-12 | ZF3: 2018-02-19 | ZH3: 2018-02-26 | ZJ3: 2018-03-05 | ZL3: 2018-03-12 | ZN3: 2018-03-19 | ZP3: 2018-04-02 | ZR3: 2018-04-09 | ZT3: 2018-04-16 | ZV3: 2018-04-23 | ZX3: 2018-04-30 | ZZ3: 2018-05-07 | AAB3: 2018-05-14 | AAD3: 2018-05-21 | AAF3: 2018-05-28 | AAH3: 2018-06-04 | AAJ3: 2018-06-11 | AAL3: 2018-06-18 | AAN3: 2018-06-25 | AAP3: 2018-07-02 | AAR3: 2018-07-09 | AAT3: 2018-07-16 | AAV3: 2018-07-23 | AAX3: 2018-07-30 | AAZ3: 2018-08-06 | ABB3: 2018-08-13 | ABD3: 2018-08-20 | ABF3: 2018-08-27 | ABH3: 2018-09-11 | ABJ3: 2018-09-17 | ABL3: 2018-09-24 | ABN3: 2018-10-01 | ABP3: 2018-10-15 | ABR3: 2018-10-22 | ABT3: 2018-10-29 | ABV3: 2018-11-05 | ABX3: 2018-11-12 | ABZ3: 2018-11-19 | ACB3: 2018-11-22 | ACD3: 2018-11-26 | ACF3: 2018-12-03 | ACH3: 2018-12-10 | ACJ3: 2018-12-12 | ACL3: 2018-12-17 | ACN3: 2018-12-24 | ACP3: 2018-12-31 | ACR3: 2019-01-01 | ACT3: 2019-01-07 | ACV3: 2019-01-14 | ACX3: 2019-01-16 | ACZ3: 2019-01-21 | ADB3: 2019-01-30 | ADD3: 2019-02-04 | ADF3: 2019-02-11 | ADH3: 2019-02-18 | ADJ3: 2019-02-25 | ADL3: 2019-03-04 | ADN3: 2019-03-11 | ADP3: 2019-03-13 | ADR3: 2019-03-19 | ADT3: 2019-03-25 | ADV3: 2019-04-01 | ADX3: 2019-04-08 | ADZ3: 2019-04-15 | AEB3: 2019-04-22 | AED3: 2019-04-29 | AEF3: 2019-05-08 | AEH3: 2019-05-13 | AEJ3: 2019-05-20 | AEL3: 2019-05-27 | AEN3: 2019-06-03 | AEP3: 2019-06-10 | AER3: 2019-06-17 | AET3: 2019-06-24 | AEV3: 2019-07-08 | AEX3: 2019-07-15 | AEZ3: 2019-07-22 | AFB3: 2019-07-29 | AFD3: 2019-08-05 | AFF3: 2019-08-12 | AFH3: 2019-08-19 | AFJ3: 2019-08-26 | AFL3: 2019-09-02 | AFN3: 2019-09-17 | AFP3: 2019-09-23 | AFR3: 2019-09-30 | AFT3: 2019-10-07 | AFV3: 2019-10-14 | AFX3: 2019-10-21 | AFZ3: 2019-10-28 | AGB3: 2019-11-04 | AGD3: 2019-11-11 | AGF3: 2019-11-18 | AGH3: 2019-11-25 | AGJ3: 2019-12-02 | AGL3: 2019-12-09 | AGN3: 2019-12-16 | AGP3: 2019-12-23 | AGR3: 2019-12-30 | AGT3: 2020-01-06 | AGV3: 2020-01-13 | AGX3: 2020-01-27 | AGZ3: 2020-02-03 | AHB3: 2020-02-10 | AHD3: 2020-02-17 | AHF3: 2020-02-24 | AHH3: 2020-03-16 | AHJ3: 2020-03-23 | AHL3: 2020-03-30 | AHN3: 2020-04-06 | AHP3: 2020-04-13 | AHR3: 2020-04-20 | AHT3: 2020-04-27 | AHV3: 2020-05-04 | AHX3: 2020-05-11 | AHZ3: 2020-05-18 | AIB3: 2020-05-25 | AID3: 2020-06-01 | AIF3: 2020-06-08 | AIH3: 2020-06-15 | AIJ3: 2020-06-22 | AIL3: 2020-06-29 | AIN3: 2020-07-06 | AIP3: 2020-07-13 | AIR3: 2020-07-20 | AIT3: 2020-07-27 | AIV3: 2020-08-03 | AIX3: 2020-08-10 | AIZ3: 2020-08-17 | AJB3: 2020-08-24 | AJD3: 2020-08-31 | AJF3: 2020-09-07 | AJH3: 2020-09-14 | AJJ3: 2020-09-21 | AJL3: 2020-09-28 | AJN3: 2020-10-05 | AJP3: 2020-10-12 | AJR3: 2020-10-19 | AJT3: 2020-10-26 | AJV3: 2020-11-02 | AJX3: 2020-11-09 | AJZ3: 2020-11-16 | AKB3: 2020-11-23 | AKD3: 2020-11-30 | AKF3: 2020-12-07 | AKH3: 2020-12-14 | AKJ3: 2020-12-21 | AKL3: 2020-12-28 | AKN3: 2021-01-04 | AKP3: 2021-01-11 | AKR3: 2021-01-18 | AKT3: 2021-01-25 | AKV3: 2021-02-01 | AKX3: 2021-02-08 | AKZ3: 2021-02-22 | ALB3: 2021-03-01 | ALD3: 2021-03-08 | ALF3: 2021-03-15 | ALH3: 2021-03-22 | ALJ3: 2021-03-29 | ALL3: 2021-04-05 | ALN3: 2021-04-12 | ALP3: 2021-04-19 | ALR3: 2021-04-26 | ALT3: 2021-05-03 | ALV3: 2021-05-10 | ALX3: 2021-05-17 | ALZ3: 2021-05-24 | AMB3: 2021-05-31 | AMD3: 2021-06-07 | AMF3: 2021-06-14 | AMH3: 2021-06-21 | AMJ3: 2021-06-28 | AML3: 2021-07-05 | AMN3: 2021-07-12 | AMP3: 2021-07-19 | AMR3: 2021-07-26 | AMT3: 2021-08-02 | AMV3: 2021-08-16 | AMX3: 2021-08-30 | AMZ3: 2021-09-06 | ANB3: 2021-09-13 | AND3: 2021-09-20 | ANF3: 2021-09-27 | ANH3: 2021-10-04 | ANJ3: 2021-10-11 | ANL3: 2021-10-18 | ANN3: 2021-10-25 | ANP3: 2021-11-01 | ANR3: 2021-11-08 | ANT3: 2021-11-15 | ANV3: 2021-11-22 | ANX3: 2021-11-29 | ANZ3: 2021-12-06 | AOB3: 2021-12-13 | AOD3: 2021-12-20 | AOF3: 2021-12-27 | AOH3: 2022-01-03 | AOJ3: 2022-01-10 | AOL3: 2022-01-17 | AON3: 2022-01-24 | AOP3: 2022-01-31 | AOR3: 2022-02-07 | AOT3: 2022-02-14 | AOV3: 2022-02-21 | AOX3: 2022-02-28 | AOZ3: 2022-03-07 | APB3: 2022-03-14 | APD3: 2022-03-21 | APF3: 2022-03-28 | APH3: 2022-04-04 | APJ3: 2022-04-11 | APL3: 2022-04-18 | APN3: 2022-04-25 | APP3: 2022-05-02 | APR3: 2022-05-09 | APT3: 2022-05-16 | APV3: 2022-05-23 | APX3: 2022-05-30 | APZ3: 2022-06-06 | AQB3: 2022-06-13 | AQD3: 2022-06-20 | AQF3: 2022-06-27 | AQH3: 2022-07-04 | AQJ3: 2022-07-11 | AQL3: 2022-07-18 | AQN3: 2022-07-25 | AQP3: 2022-08-01 | AQR3: 2022-08-08 | AQT3: 2022-08-15 | AQV3: 2022-08-22 | AQX3: 2022-08-29 | AQZ3: 2022-09-05 | ARB3: 2022-09-12 | ARD3: 2022-09-19 | ARF3: 2022-09-26 | ARH3: 2022-10-03 | ARJ3: 2022-10-10 | ARL3: 2022-10-17 | ARN3: 2022-10-24 | ARP3: 2022-10-31 | ARR3: 2022-11-07 | ART3: 2022-11-14 | ARV3: 2022-11-21 | ARX3: 2022-11-28 | ARZ3: 2022-12-05 | ASB3: 2022-12-06 | ASD3: 2022-12-12 | ASF3: 2022-12-19 | ASH3: 2022-12-26 | ASJ3: 2023-01-02 | ASL3: 2023-01-09 | ASN3: 2023-01-16 | ASP3: 2023-01-23 | ASR3: 2023-01-30 | AST3: 2023-02-06 | ASV3: 2023-02-13 | ASX3: 2023-02-20 | ASZ3: 2023-02-27 | ATB3: 2023-03-06 | ATD3: 2023-03-13 | ATF3: 2023-03-20 | ATH3: 2023-03-27 | ATJ3: 2023-04-03 | ATL3: 2023-04-10 | ATN3: 2023-04-17 | ATP3: 2023-04-24 | ATR3: 2023-05-02 | ATT3: 2023-05-08 | ATV3: 2023-05-15 | ATX3: 2023-05-22 | ATZ3: 2023-05-29 | AUB3: 2023-06-05 | AUD3: 2023-06-12 | AUF3: 2023-06-19 | AUH3: 2023-06-26 | AUJ3: 2023-07-03 | AUL3: 2023-07-10 | AUN3: 2023-07-17 | AUP3: 2023-07-24 | AUR3: 2023-07-31 | AUT3: 2023-08-07 | AUV3: 2023-08-14 | AUX3: 2023-08-21 | AUZ3: 2023-08-28 | AVB3: 2023-09-04 | AVD3: 2023-09-11 | AVF3: 2023-09-18 | AVH3: 2023-09-25 | AVJ3: 2023-10-02 | AVL3: 2023-10-09 | AVN3: 2023-10-16 | AVP3: 2023-10-23 | AVR3: 2023-10-30 | AVT3: 2023-11-06 | AVV3: 2023-11-13 | AVX3: 2023-11-20 | AVZ3: 2023-11-27 | AWB3: 2023-12-04 | AWD3: 2023-12-11 | AWF3: 2023-12-18 | AWH3: 2023-12-26 | AWJ3: 2024-01-02 | AWL3: 2024-01-08 | AWN3: 2024-01-15 | AWP3: 2024-01-22 | AWR3: 2024-01-29 | AWT3: 2024-02-06 | AWV3: 2024-02-12 | AWX3: 2024-02-19 | AWZ3: 2024-02-26 | AXB3: 2024-03-04 | AXD3: 2024-03-11 | AXF3: 2024-03-19 | AXH3: 2024-03-25 | AXJ3: 2024-04-01 | AXL3: 2024-04-08 | AXN3: 2024-04-15 | AXP3: 2024-04-22 | AXR3: 2024-04-29 | AXT3: 2024-05-06 | AXV3: 2024-05-13 | AXX3: 2024-05-20 | AXZ3: 2024-05-27 | AYB3: 2024-06-03 | AYD3: 2024-06-10 | AYF3: 2024-06-17 | AYH3: 2024-06-24 | AYJ3: 2024-07-01 | AYL3: 2024-07-08 | AYN3: 2024-07-15 | AYP3: 2024-07-22 | AYR3: 2024-07-29 | AYT3: 2024-08-05 | AYV3: 2024-08-12 | AYX3: 2024-08-19 | AYZ3: 2024-08-26 | AZB3: 2024-09-02 | AZD3: 2024-09-09 | AZF3: 2024-09-17 | AZH3: 2024-09-23 | AZJ3: 2024-09-30 | AZL3: 2024-10-07 | AZN3: 2024-10-14 | AZP3: 2024-10-21 | AZR3: 2024-10-28 | AZT3: 2024-11-04
D4: 2009-08-14 | F4: 2009-09-15 | H4: 2009-10-04 | J4: 2009-10-20 | L4: 2009-10-26 | N4: 2009-11-19 | P4: 2009-11-23 | R4: 2009-12-21 | T4: 2010-01-31 | V4: 2010-02-14 | X4: 2010-04-18 | Z4: 2010-06-15 | AB4: 2010-07-06 | AD4: 2010-08-01 | AF4: 2010-08-03 | AH4: 2010-08-04 | AJ4: 2010-08-15 | AL4: 2010-08-22 | AN4: 2010-08-29 | AP4: 2010-09-09 | AR4: 2010-10-04 | AT4: 2010-10-21 | AV4: 2010-12-05 | AX4: 2010-12-12 | AZ4: 2010-12-19 | BB4: 2010-12-28 | BD4: 2011-01-04 | BF4: 2011-01-09 | BH4: 2011-01-16 | BJ4: 2011-01-23 | BL4: 2011-02-06 | BN4: 2011-02-27 | BP4: 2011-03-06 | BR4: 2011-03-20 | BT4: 2011-04-10 | BV4: 2011-04-24 | BX4: 2011-05-22 | BZ4: 2011-06-05 | CB4: 2011-07-10 | CD4: 2011-08-14 | CF4: 2011-08-21 | CH4: 2011-08-28 | CJ4: 2011-09-04 | CL4: 2011-09-11 | CN4: 2011-09-25 | CP4: 2011-10-02 | CR4: 2011-10-09 | CT4: 2011-10-23 | CV4: 2011-10-30 | CX4: 2011-11-13 | CZ4: 2011-11-20 | DB4: 2011-11-27 | DD4: 2011-12-04 | DF4: 2011-12-18 | DH4: 2011-12-31 | DJ4: 2012-01-01 | DL4: 2012-01-08 | DN4: 2012-01-29 | DP4: 2012-02-05 | DR4: 2012-02-12 | DT4: 2012-02-19 | DV4: 2012-02-26 | DX4: 2012-03-04 | DZ4: 2012-03-11 | EB4: 2012-04-22 | ED4: 2012-04-29 | EF4: 2012-05-06 | EH4: 2012-05-20 | EJ4: 2012-05-27 | EL4: 2012-06-17 | EN4: 2012-06-24 | EP4: 2012-07-01 | ER4: 2012-07-08 | ET4: 2012-07-15 | EV4: 2012-07-22 | EX4: 2012-07-29 | EZ4: 2012-08-05 | FB4: 2012-08-12 | FD4: 2012-08-19 | FF4: 2012-08-26 | FH4: 2012-09-02 | FJ4: 2012-09-09 | FL4: 2012-09-23 | FN4: 2012-09-30 | FP4: 2012-10-07 | FR4: 2012-10-14 | FT4: 2012-11-04 | FV4: 2012-12-09 | FX4: 2012-12-16 | FZ4: 2012-12-31 | GB4: 2013-02-03 | GD4: 2013-02-17 | GF4: 2013-03-24 | GH4: 2013-03-31 | GJ4: 2013-04-07 | GL4: 2013-04-14 | GN4: 2013-04-21 | GP4: 2013-04-28 | GR4: 2013-05-12 | GT4: 2013-05-26 | GV4: 2013-06-02 | GX4: 2013-06-09 | GZ4: 2013-06-16 | HB4: 2013-06-23 | HD4: 2013-06-30 | HF4: 2013-07-07 | HH4: 2013-07-14 | HJ4: 2013-07-28 | HL4: 2013-08-11 | HN4: 2013-08-18 | HP4: 2013-09-01 | HR4: 2013-09-08 | HT4: 2013-09-15 | HV4: 2013-09-29 | HX4: 2013-10-06 | HZ4: 2013-10-13 | IB4: 2013-11-03 | ID4: 2013-11-10 | IF4: 2013-11-17 | IH4: 2013-11-24 | IJ4: 2013-12-15 | IL4: 2013-12-29 | IN4: 2013-12-31 | IP4: 2014-01-26 | IR4: 2014-02-02 | IT4: 2014-02-09 | IV4: 2014-02-16 | IX4: 2014-02-23 | IZ4: 2014-03-02 | JB4: 2014-03-09 | JD4: 2014-03-17 | JF4: 2014-03-19 | JH4: 2014-03-23 | JJ4: 2014-03-30 | JL4: 2014-04-13 | JN4: 2014-04-20 | JP4: 2014-04-27 | JR4: 2014-05-04 | JT4: 2014-05-11 | JV4: 2014-05-18 | JX4: 2014-05-25 | JZ4: 2014-06-01 | KB4: 2014-06-08 | KD4: 2014-06-15 | KF4: 2014-06-22 | KH4: 2014-06-29 | KJ4: 2014-07-06 | KL4: 2014-07-13 | KN4: 2014-07-27 | KP4: 2014-08-03 | KR4: 2014-08-10 | KT4: 2014-08-17 | KV4: 2014-08-24 | KX4: 2014-08-31 | KZ4: 2014-09-07 | LB4: 2014-09-14 | LD4: 2014-09-21 | LF4: 2014-09-28 | LH4: 2014-10-05 | LJ4: 2014-10-12 | LL4: 2014-10-19 | LN4: 2014-10-26 | LP4: 2014-11-02 | LR4: 2014-11-09 | LT4: 2014-11-11 | LV4: 2014-11-17 | LX4: 2014-11-19 | LZ4: 2014-11-23 | MB4: 2014-11-30 | MD4: 2014-12-07 | MF4: 2014-12-14 | MH4: 2014-12-21 | MJ4: 2014-12-28 | ML4: 2015-01-04 | MN4: 2015-01-11 | MP4: 2015-01-18 | MR4: 2015-01-20 | MT4: 2015-01-25 | MV4: 2015-01-27 | MX4: 2015-02-02 | MZ4: 2015-02-08 | NB4: 2015-02-15 | ND4: 2015-02-24 | NF4: 2015-03-01 | NH4: 2015-03-08 | NJ4: 2015-03-10 | NL4: 2015-03-16 | NN4: 2015-03-22 | NP4: 2015-03-29 | NR4: 2015-04-05 | NT4: 2015-04-12 | NV4: 2015-04-26 | NX4: 2015-05-03 | NZ4: 2015-05-10 | OB4: 2015-05-17 | OD4: 2015-05-24 | OF4: 2015-05-31 | OH4: 2015-06-07 | OJ4: 2015-06-14 | OL4: 2015-06-21 | ON4: 2015-06-28 | OP4: 2015-07-05 | OR4: 2015-07-07 | OT4: 2015-07-12 | OV4: 2015-07-26 | OX4: 2015-08-02 | OZ4: 2015-08-09 | PB4: 2015-08-16 | PD4: 2015-08-30 | PF4: 2015-09-06 | PH4: 2015-09-13 | PJ4: 2015-09-20 | PL4: 2015-09-27 | PN4: 2015-10-04 | PP4: 2015-10-06 | PR4: 2015-10-11 | PT4: 2015-10-25 | PV4: 2015-11-01 | PX4: 2015-11-08 | PZ4: 2015-11-15 | QB4: 2015-11-22 | QD4: 2015-12-06 | QF4: 2015-12-13 | QH4: 2015-12-15 | QJ4: 2015-12-20 | QL4: 2015-12-27 | QN4: 2015-12-31 | QP4: 2016-01-03 | QR4: 2016-01-10 | QT4: 2016-01-17 | QV4: 2016-01-24 | QX4: 2016-01-31 | QZ4: 2016-02-07 | RB4: 2016-02-14 | RD4: 2016-02-21 | RF4: 2016-02-28 | RH4: 2016-03-06 | RJ4: 2016-03-13 | RL4: 2016-03-20 | RN4: 2016-03-27 | RP4: 2016-04-03 | RR4: 2016-04-05 | RT4: 2016-04-10 | RV4: 2016-04-17 | RX4: 2016-04-24 | RZ4: 2016-05-01 | SB4: 2016-05-08 | SD4: 2016-05-15 | SF4: 2016-05-22 | SH4: 2016-05-29 | SJ4: 2016-06-05 | SL4: 2016-06-12 | SN4: 2016-06-19 | SP4: 2016-06-26 | SR4: 2016-07-03 | ST4: 2016-07-10 | SV4: 2016-07-17 | SX4: 2016-07-24 | SZ4: 2016-07-31 | TB4: 2016-08-07 | TD4: 2016-08-14 | TF4: 2016-08-21 | TH4: 2016-08-28 | TJ4: 2016-09-04 | TL4: 2016-09-11 | TN4: 2016-09-18 | TP4: 2016-09-25 | TR4: 2016-10-02 | TT4: 2016-10-04 | TV4: 2016-10-09 | TX4: 2016-10-16 | TZ4: 2016-10-30 | UB4: 2016-11-06 | UD4: 2016-11-13 | UF4: 2016-11-15 | UH4: 2016-11-20 | UJ4: 2016-11-27 | UL4: 2016-12-04 | UN4: 2016-12-11 | UP4: 2016-12-18 | UR4: 2016-12-31 | UT4: 2017-01-08 | UV4: 2017-01-15 | UX4: 2017-01-17 | UZ4: 2017-01-22 | VB4: 2017-01-29 | VD4: 2017-02-05 | VF4: 2017-02-12 | VH4: 2017-02-19 | VJ4: 2017-02-26 | VL4: 2017-03-05 | VN4: 2017-03-12 | VP4: 2017-03-20 | VR4: 2017-03-26 | VT4: 2017-04-02 | VV4: 2017-04-16 | VX4: 2017-04-23 | VZ4: 2017-04-30 | WB4: 2017-05-07 | WD4: 2017-05-14 | WF4: 2017-05-21 | WH4: 2017-05-28 | WJ4: 2017-06-04 | WL4: 2017-06-11 | WN4: 2017-06-18 | WP4: 2017-06-25 | WR4: 2017-07-02 | WT4: 2017-07-09 | WV4: 2017-07-16 | WX4: 2017-07-23 | WZ4: 2017-07-30 | XB4: 2017-08-06 | XD4: 2017-08-20 | XF4: 2017-08-27 | XH4: 2017-09-03 | XJ4: 2017-09-10 | XL4: 2017-09-17 | XN4: 2017-09-24 | XP4: 2017-10-01 | XR4: 2017-10-08 | XT4: 2017-10-15 | XV4: 2017-10-22 | XX4: 2017-10-29 | XZ4: 2017-11-05 | YB4: 2017-11-12 | YD4: 2017-11-19 | YF4: 2017-11-26 | YH4: 2017-12-03 | YJ4: 2017-12-10 | YL4: 2017-12-17 | YN4: 2017-12-24 | YP4: 2017-12-31 | YR4: 2018-01-07 | YT4: 2018-01-14 | YV4: 2018-01-21 | YX4: 2018-01-28 | YZ4: 2018-02-04 | ZB4: 2018-02-11 | ZD4: 2018-02-18 | ZF4: 2018-02-25 | ZH4: 2018-03-04 | ZJ4: 2018-03-11 | ZL4: 2018-03-18 | ZN4: 2018-04-01 | ZP4: 2018-04-08 | ZR4: 2018-04-15 | ZT4: 2018-04-22 | ZV4: 2018-04-29 | ZX4: 2018-05-06 | ZZ4: 2018-05-13 | AAB4: 2018-05-20 | AAD4: 2018-05-27 | AAF4: 2018-06-03 | AAH4: 2018-06-10 | AAJ4: 2018-06-17 | AAL4: 2018-06-24 | AAN4: 2018-06-01 | AAP4: 2018-07-08 | AAR4: 2018-07-15 | AAT4: 2018-07-22 | AAV4: 2018-07-29 | AAX4: 2018-08-05 | AAZ4: 2018-08-12 | ABB4: 2018-08-19 | ABD4: 2018-08-26 | ABF4: 2018-09-10 | ABH4: 2018-09-16 | ABJ4: 2018-09-23 | ABL4: 2018-09-30 | ABN4: 2018-10-14 | ABP4: 2018-10-21 | ABR4: 2018-10-28 | ABT4: 2018-11-04 | ABV4: 2018-11-11 | ABX4: 2018-11-18 | ABZ4: 2018-11-21 | ACB4: 2018-11-25 | ACD4: 2018-12-02 | ACF4: 2018-12-09 | ACH4: 2018-12-11 | ACJ4: 2018-12-16 | ACL4: 2018-12-23 | ACN4: 2018-12-30 | ACP4: 2018-12-31 | ACR4: 2019-01-06 | ACT4: 2019-01-13 | ACV4: 2019-01-15 | ACX4: 2019-01-20 | ACZ4: 2019-01-29 | ADB4: 2019-02-03 | ADD4: 2019-02-10 | ADF4: 2019-02-17 | ADH4: 2019-02-24 | ADJ4: 2019-03-03 | ADL4: 2019-03-10 | ADN4: 2019-03-12 | ADP4: 2019-03-18 | ADR4: 2019-03-24 | ADT4: 2019-03-31 | ADV4: 2019-04-07 | ADX4: 2019-04-14 | ADZ4: 2019-04-21 | AEB4: 2019-04-28 | AED4: 2019-05-07 | AEF4: 2019-05-12 | AEH4: 2019-05-19 | AEJ4: 2019-05-26 | AEL4: 2019-06-02 | AEN4: 2019-06-09 | AEP4: 2019-06-16 | AER4: 2019-06-23 | AET4: 2019-07-07 | AEV4: 2019-07-14 | AEX4: 2019-07-21 | AEZ4: 2019-07-28 | AFB4: 2019-08-04 | AFD4: 2019-08-11 | AFF4: 2019-08-18 | AFH4: 2019-08-25 | AFJ4: 2019-09-01 | AFL4: 2019-09-16 | AFN4: 2019-09-22 | AFP4: 2019-09-29 | AFR4: 2019-10-06 | AFT4: 2019-10-13 | AFV4: 2019-10-20 | AFX4: 2019-10-27 | AFZ4: 2019-11-03 | AGB4: 2019-11-10 | AGD4: 2019-11-17 | AGF4: 2019-11-24 | AGH4: 2019-12-01 | AGJ4: 2019-12-08 | AGL4: 2019-12-15 | AGN4: 2019-12-22 | AGP4: 2019-12-29 | AGR4: 2020-01-05 | AGT4: 2020-01-12 | AGV4: 2020-01-26 | AGX4: 2020-02-02 | AGZ4: 2020-02-09 | AHB4: 2020-02-16 | AHD4: 2020-02-23 | AHF4: 2020-03-15 | AHH4: 2020-03-22 | AHJ4: 2020-03-29 | AHL4: 2020-04-05 | AHN4: 2020-04-12 | AHP4: 2020-04-19 | AHR4: 2020-04-26 | AHT4: 2020-05-03 | AHV4: 2020-05-10 | AHX4: 2020-05-17 | AHZ4: 2020-05-24 | AIB4: 2020-05-31 | AID4: 2020-06-07 | AIF4: 2020-06-14 | AIH4: 2020-06-21 | AIJ4: 2020-06-28 | AIL4: 2020-07-05 | AIN4: 2020-07-12 | AIP4: 2020-07-19 | AIR4: 2020-07-26 | AIT4: 2020-08-02 | AIV4: 2020-08-09 | AIX4: 2020-08-16 | AIZ4: 2020-08-23 | AJB4: 2020-08-30 | AJD4: 2020-09-06 | AJF4: 2020-09-13 | AJH4: 2020-09-20 | AJJ4: 2020-09-27 | AJL4: 2020-10-04 | AJN4: 2020-10-11 | AJP4: 2020-10-18 | AJR4: 2020-10-25 | AJT4: 2020-11-01 | AJV4: 2020-11-08 | AJX4: 2020-11-15 | AJZ4: 2020-11-22 | AKB4: 2020-11-29 | AKD4: 2020-12-06 | AKF4: 2020-12-13 | AKH4: 2020-12-20 | AKJ4: 2020-12-27 | AKL4: 2021-01-03 | AKN4: 2021-01-10 | AKP4: 2021-01-17 | AKR4: 2021-01-24 | AKT4: 2021-01-31 | AKV4: 2021-02-07 | AKX4: 2021-02-21 | AKZ4: 2021-02-28 | ALB4: 2021-03-07 | ALD4: 2021-03-14 | ALF4: 2021-03-21 | ALH4: 2021-03-28 | ALJ4: 2021-04-04 | ALL4: 2021-04-11 | ALN4: 2021-04-18 | ALP4: 2021-04-25 | ALR4: 2021-05-02 | ALT4: 2021-05-09 | ALV4: 2021-05-16 | ALX4: 2021-05-23 | ALZ4: 2021-05-30 | AMB4: 2021-06-06 | AMD4: 2021-06-13 | AMF4: 2021-06-20 | AMH4: 2021-06-27 | AMJ4: 2021-07-04 | AML4: 2021-07-11 | AMN4: 2021-07-18 | AMP4: 2021-07-25 | AMR4: 2021-08-01 | AMT4: 2021-08-15 | AMV4: 2021-08-29 | AMX4: 2021-09-05 | AMZ4: 2021-09-12 | ANB4: 2021-09-19 | AND4: 2021-09-26 | ANF4: 2021-10-03 | ANH4: 2021-10-10 | ANJ4: 2021-10-17 | ANL4: 2021-10-24 | ANN4: 2021-10-31 | ANP4: 2021-11-07 | ANR4: 2021-11-14 | ANT4: 2021-11-21 | ANV4: 2021-11-28 | ANX4: 2021-12-05 | ANZ4: 2021-12-12 | AOB4: 2021-12-19 | AOD4: 2021-12-26 | AOF4: 2022-01-02 | AOH4: 2022-01-09 | AOJ4: 2022-01-16 | AOL4: 2022-01-23 | AON4: 2022-01-30 | AOP4: 2022-02-06 | AOR4: 2022-02-13 | AOT4: 2022-02-20 | AOV4: 2022-02-27 | AOX4: 2022-03-06 | AOZ4: 2022-03-13 | APB4: 2022-03-20 | APD4: 2022-03-27 | APF4: 2022-04-03 | APH4: 2022-04-10 | APJ4: 2022-04-17 | APL4: 2022-04-24 | APN4: 2022-05-01 | APP4: 2022-05-08 | APR4: 2022-05-15 | APT4: 2022-05-22 | APV4: 2022-05-29 | APX4: 2022-06-05 | APZ4: 2022-06-12 | AQB4: 2022-06-19 | AQD4: 2022-06-26 | AQH4: 2022-07-10 | AQJ4: 2022-07-17 | AQL4: 2022-07-24 | AQP4: 2022-08-07 | AQR4: 2022-08-14 | AQT4: 2022-08-21 | AQV4: 2022-08-28 | AQX4: 2022-09-04 | AQZ4: 2022-09-11 | ARB4: 2022-09-18 | ARD4: 2022-09-25 | ARF4: 2022-09-02 | ARH4: 2022-10-09 | ARJ4: 2022-10-16 | ARL4: 2022-10-23 | ARN4: 2022-10-30 | ARP4: 2022-11-06 | ARR4: 2022-11-13 | ART4: 2022-11-20 | ARV4: 2022-11-27 | ARX4: 2022-12-04 | ARZ4: 2022-12-05 | ASB4: 2022-12-11 | ASD4: 2022-12-18 | ASF4: 2022-12-25 | ASH4: 2023-01-01 | ASJ4: 2023-01-08 | ASL4: 2023-01-15 | ASN4: 2023-01-22 | ASP4: 2023-01-29 | ASR4: 2023-02-05 | AST4: 2023-02-12 | ASV4: 2023-02-19 | ASX4: 2023-02-26 | ASZ4: 2023-03-05 | ATB4: 2023-03-12 | ATD4: 2023-03-19 | ATF4: 2023-03-26 | ATH4: 2023-04-02 | ATJ4: 2023-04-09 | ATL4: 2023-04-16 | ATN4: 2023-04-23 | ATP4: 2023-05-01 | ATR4: 2023-05-07 | ATT4: 2023-05-14 | ATV4: 2023-05-21 | ATX4: 2023-05-28 | ATZ4: 2023-06-04 | AUB4: 2023-06-11 | AUD4: 2023-06-18 | AUF4: 2023-06-25 | AUH4: 2023-07-02 | AUJ4: 2023-07-09 | AUL4: 2023-07-16 | AUN4: 2023-07-23 | AUP4: 2023-07-30 | AUR4: 2023-08-06 | AUT4: 2023-08-13 | AUV4: 2023-08-20 | AUX4: 2023-08-27 | AUZ4: 2023-09-03 | AVB4: 2023-09-10 | AVD4: 2023-09-17 | AVF4: 2023-09-24 | AVH4: 2023-10-01 | AVJ4: 2023-10-08 | AVL4: 2023-10-15 | AVN4: 2023-10-22 | AVP4: 2023-10-29 | AVR4: 2023-11-05 | AVT4: 2023-11-12 | AVV4: 2023-11-19 | AVX4: 2023-11-26 | AVZ4: 2023-12-03 | AWB4: 2023-12-10 | AWD4: 2023-12-17 | AWF4: 2023-12-24 | AWH4: 2024-01-01 | AWJ4: 2024-01-07 | AWL4: 2024-01-14 | AWN4: 2024-01-21 | AWP4: 2024-01-28 | AWR4: 2024-02-05 | AWT4: 2024-02-11 | AWV4: 2024-02-18 | AWX4: 2024-02-25 | AWZ4: 2024-03-03 | AXB4: 2024-03-10 | AXD4: 2024-03-18 | AXF4: 2024-03-24 | AXH4: 2024-03-31 | AXJ4: 2024-04-07 | AXL4: 2024-04-14 | AXN4: 2024-04-21 | AXP4: 2024-04-28 | AXR4: 2024-05-05 | AXT4: 2024-05-12 | AXV4: 2024-05-19 | AXX4: 2024-05-26 | AXZ4: 2024-06-02 | AYB4: 2024-06-09 | AYD4: 2024-06-16 | AYF4: 2024-06-23 | AYH4: 2024-06-30 | AYJ4: 2024-07-07 | AYL4: 2024-07-14 | AYN4: 2024-07-21 | AYP4: 2024-07-28 | AYR4: 2024-08-04 | AYT4: 2024-08-11 | AYV4: 2024-08-18 | AYX4: 2024-08-25 | AYZ4: 2024-09-01 | AZB4: 2024-09-08 | AZD4: 2024-09-16 | AZF4: 2024-09-22 | AZH4: 2024-09-29 | AZJ4: 2024-10-06 | AZL4: 2024-10-13 | AZN4: 2024-10-20 | AZP4: 2024-10-27 | AZR4: 2024-11-03
DJ5: Tasa 3.09% | DL5: Tasa 3.19% | DN5: Tasa 3.09% | DP5: Tasa 2.99% | DR5: Tasa 2.79% | DT5: Tasa 2.69% | DV5: Tasa 2.79% | DX5: Tasa 2.89% | DZ5: Tasa 2.99% | EB5: Tasa 3.19% | ED5: Tasa 3.09% | EF5: Tasa 2.99% | EH5: Tasa 2.79% | EJ5: Tasa 2.69% | EL5: Tasa 2.79% | EN5: Tasa 2.69% | EP5: Tasa 2.59% | ER5: Tasa 2.39% | ET5: Tasa 2.19% | EV5: Tasa 1.99% | EX5: Tasa 1.79% | EZ5: Tasa 1.69% | FB5: Tasa 1.59% | FD5: Tasa 1.79% | FF5: Tasa 1.89% | FH5: Tasa 1.99% | FJ5: Tasa 2.09% | FL5: Tasa 1.99% | FN5: Tasa 2.19% | FP5: Tasa 2.29% | FR5: Tasa 2.09% | FT5: Tasa 1.99% | FV5: Tasa 2.09% | FX5: Tasa 2.19% | FZ5: Tasa 2.09% | GB5: Tasa 2.09% | GD5: Tasa 1.89% | GF5: Tasa 1.79% | GH5: Tasa 1.69% | GJ5: Tasa 1.59% | GL5: Tasa 1.69% | GN5: Tasa 1.59% | GP5: Tasa 1.49% | GR5: Tasa 1.39% | GT5: Tasa 1.29% | GV5: Tasa 1.52% | GX5: Tasa 1.72% | GZ5: Tasa 2.02% | HB5: Tasa 2.22% | HD5: Tasa 2.42% | HF5: Tasa 2.52% | HH5: Tasa 2.92% | HJ5: Tasa 2.82% | HL5: Tasa 2.62% | HN5: Tasa 2.82% | HP5: Tasa 2.72% | HR5: Tasa 2.92% | HT5: Tasa 3.02% | HV5: Tasa 3.12% | HX5: Tasa 2.92% | HZ5: Tasa 2.72% | IB5: Tasa 2.92% | ID5: Tasa 2.72% | IF5: Tasa 2.82% | IH5: Tasa 3.02% | IJ5: Tasa 3.22% | IL5: Tasa 3.32% | IN5: Tasa 3.22% | IP5: Tasa 3.22% | IR5: Tasa 3.52% | IT5: Tasa 3.64% | IV5: Tasa 3.61% | IX5: Tasa 3.51% | IZ5: Tasa 3.37% | JB5: Tasa 3.34% | JD5: Tasa 3.29% | JF5: Tasa 3.26% | JH5: Tasa 3.20% | JJ5: Tasa 3.22% | JL5: 0.0319 | JN5: 0.0317 | JP5: 0.0314 | JR5: 0.0318 | JT5: 0.0319 | JV5: 0.0305 | JX5: 0.0291 | JZ5: 0.0288 | KB5: 0.0283 | KD5: 0.0285 | KF5: 0.0263 | KH5: 0.0271 | KJ5: 0.0267 | KL5: 0.0262 | KN5: 0.0256 | KP5: 0.0251 | KR5: 0.0255 | KT5: 0.0263 | KV5: 0.0256 | KX5: 0.0251 | KZ5: 0.0257 | LB5: 0.0256 | LD5: 0.0266 | LF5: 0.0274 | LH5: 0.0278 | LJ5: 0.0288 | LL5: 0.0278 | LN5: 0.0268 | LP5: 0.0274 | LR5: 0.027 | LT5: 0.0275 | LV5: 0.028 | LX5: 0.0282 | LZ5: 0.028 | MB5: 0.0277 | MD5: 0.0267 | MF5: 0.0273 | MH5: 0.0288 | MJ5: 0.0289 | ML5: 0.0265 | MN5: 0.0264 | MP5: 0.0256 | MR5: 0.0245 | MT5: 0.0237 | MV5: 0.0227 | MX5: 0.0222 | MZ5: 0.0216 | NB5: 0.0222 | ND5: 0.0251 | NF5: 0.0246 | NH5: 0.0243 | NJ5: 0.0262 | NL5: 0.0276 | NN5: 0.0286 | NP5: 0.0282 | NR5: 0.0261 | NT5: 0.0273 | NV5: 0.0261 | NX5: 0.0267 | NZ5: 0.027 | OB5: 0.0288 | OD5: 0.0284 | OF5: 0.0276 | OH5: 0.0279 | OJ5: 0.0293 | OL5: 0.0307 | ON5: 0.03 | OP5: 0.0296 | OR5: 0.0299 | OT5: 0.0298 | OV5: 0.0292 | OX5: 0.0297 | OZ5: 0.0298 | PB5: 0.0294 | PD5: 0.0292 | PF5: 0.0298 | PH5: 0.03 | PJ5: 0.0302 | PL5: 0.0303 | PN5: 0.0297 | PP5: 0.0303 | PR5: 0.0299 | PT5: 0.0291 | PV5: 0.0286 | PX5: 0.0289 | PZ5: 0.0297 | QB5: 0.0305 | QD5: 0.0304 | QF5: 0.0308 | QH5: 0.0317 | QJ5: 0.0323 | QL5: 0.032 | QN5: 0.0308 | QP5: 0.0308 | QR5: 0.0314 | QT5: 0.0315 | QV5: 0.031 | QX5: 0.0319 | QZ5: 0.0315 | RB5: 0.0297 | RD5: 0.0296 | RF5: 0.0294 | RH5: 0.0295 | RJ5: 0.0304 | RL5: 0.0306 | RN5: 0.0305 | RP5: 0.0299 | RR5: 0.0295 | RT5: 0.0288 | RV5: 0.0282 | RX5: 0.028 | RZ5: 0.0274 | SB5: 0.0279 | SD5: 0.0277 | SF5: 0.028 | SH5: 0.0289 | SJ5: 0.0302 | SL5: 0.0303 | SN5: 0.0319 | SP5: 0.0321 | SR5: 0.0313 | ST5: 0.0298 | SV5: 0.0285 | SX5: 0.0278 | SZ5: 0.0287 | TB5: 0.028 | TD5: 0.0282 | TF5: 0.0279 | TH5: 0.0273 | TJ5: 0.0274 | TL5: 0.0275 | TN5: 0.0277 | TP5: 0.029 | TR5: 0.0298 | TT5: 0.0294 | TV5: 0.029 | TX5: 0.0293 | TZ5: 0.0294 | UB5: 0.0299 | UD5: 0.0316 | UF5: 0.033 | UH5: 0.0359 | UJ5: 0.0375 | UL5: 0.0387 | UN5: 0.0386 | UP5: 0.0379 | UR5: 0.0381 | UT5: 0.0392 | UV5: 0.0376 | UX5: 0.0393 | UZ5: 0.0395 | VB5: 0.0398 | VD5: 0.0391 | VF5: 0.038 | VH5: 0.0366 | VJ5: 0.0357 | VL5: 0.0362 | VN5: 0.037 | VP5: 0.0381 | VR5: 0.0379 | VT5: 0.0367 | VV5: 0.0358 | VX5: 0.036 | VZ5: 0.0361 | WB5: 0.0366 | WD5: 0.0362 | WF5: 0.0364 | WH5: 0.0359 | WJ5: 0.0369 | WL5: 0.0366 | WN5: 0.0346 | WP5: 0.0338 | WR5: 0.0329 | WT5: 0.0322 | WV5: 0.0339 | WX5: 0.0341 | WZ5: 0.0338 | XB5: 0.034 | XD5: 0.0338 | XF5: 0.0336 | XH5: 0.0334 | XJ5: 0.0335 | XL5: 0.0336 | XN5: 0.0333 | XP5: 0.0338 | XR5: 0.0337 | XT5: 0.0344 | XV5: 0.0362 | XX5: 0.0363 | XZ5: 0.0366 | YB5: 0.0369 | YD5: 0.0365 | YF5: 0.0373 | YH5: 0.0367 | YJ5: 0.0366 | YL5: 0.0369 | YN5: 0.0372 | YP5: 0.0384 | YR5: 0.0397 | YT5: 0.0381 | YV5: 0.0377 | YX5: 0.0383 | YZ5: 0.038 | ZB5: 0.0383 | ZD5: 0.0388 | ZF5: 0.0398 | ZH5: 0.0396 | ZJ5: 0.0393 | ZL5: 0.0392 | ZN5: 0.0389 | ZP5: 0.0384 | ZR5: 0.0372 | ZT5: 0.0371 | ZV5: 0.0377 | ZX5: 0.0387 | ZZ5: 0.0381 | AAB5: 0.0388 | AAD5: 0.0391 | AAF5: 0.0393 | AAH5: 0.0391 | AAJ5: 0.04 | AAL5: 0.0404 | AAN5: 0.0399 | AAP5: 0.0388 | AAR5: 0.0384 | AAT5: 0.0389 | AAV5: 0.0391 | AAX5: 0.0388 | AAZ5: 0.0387 | ABB5: 0.0384 | ABD5: 0.0394 | ABF5: 0.0393 | ABH5: 0.0402 | ABJ5: 0.0408 | ABL5: 0.041 | ABN5: 0.0406 | ABP5: 0.0419 | ABR5: 0.0417 | ABT5: 0.0433 | ABV5: 0.0456 | ABX5: 0.0468 | ABZ5: 0.049 | ACB5: 0.0496 | ACD5: 0.0498 | ACF5: 0.0516 | ACH5: 0.0512 | ACJ5: 0.0509 | ACL5: 0.0503 | ACN5: 0.0472 | ACP5: 0.0466 | ACR5: 0.0466 | ACT5: 0.0463 | ACV5: 0.047 | ACX5: 0.0478 | ACZ5: 0.0477 | ADB5: 0.0469 | ADD5: 0.0463 | ADF5: 0.046 | ADH5: 0.0463 | ADJ5: 0.0459 | ADL5: 0.0455 | ADN5: 0.0449 | ADP5: 0.0444 | ADR5: 0.0438 | ADT5: 0.0437 | ADV5: 0.0429 | ADX5: 0.0436 | ADZ5: 0.0426 | AEB5: 0.0425 | AED5: 0.0436 | AEF5: 0.0437 | AEH5: 0.044 | AEJ5: 0.0439 | AEL5: 0.0435 | AEN5: 0.0427 | AEP5: 0.0424 | AER5: 0.0399 | AET5: 0.0388 | AEV5: 0.0372 | AEX5: 0.0382 | AEZ5: 0.0394 | AFB5: 0.038 | AFD5: 0.0382 | AFF5: 0.0375 | AFH5: 0.0357 | AFJ5: 0.0346 | AFL5: 0.0347 | AFN5: 0.0357 | AFP5: 0.036 | AFR5: 0.0342 | AFT5: 0.0335 | AFV5: 0.0324 | AFX5: 0.0325 | AFZ5: 0.0328 | AGB5: 0.033 | AGD5: 0.0332 | AGF5: 0.0342 | AGH5: 0.0344 | AGJ5: 0.035 | AGL5: 0.0351 | AGN5: 0.0337 | AGP5: 0.033 | AGR5: 0.0336 | AGT5: 0.0337 | AGV5: 0.0326 | AGX5: 0.0325 | AGZ5: 0.0319 | AHB5: 0.0315 | AHD5: 0.0309 | AHF5: 0.0303 | AHH5: 0.0339 | AHJ5: 0.0414 | AHL5: 0.0412 | AHN5: 0.0378 | AHP5: 0.0389 | AHR5: 0.0365 | AHT5: 0.0359 | AHV5: 0.0355 | AHX5: 0.0324 | AHZ5: 0.0286 | AIB5: 0.0285 | AID5: 0.028 | AIF5: 0.0273 | AIH5: 0.0284 | AIJ5: 0.0269 | AIL5: 0.0266 | AIN5: 0.0253 | AIP5: 0.025 | AIR5: 0.0245 | AIT5: 0.0254 | AIV5: 0.0246 | AIX5: 0.0252 | AIZ5: 0.0247 | AJB5: 0.0243 | AJD5: 0.0252 | AJF5: 0.0253 | AJH5: 0.0251 | AJJ5: 0.0246 | AJL5: 0.0248 | AJN5: 0.0257 | AJP5: 0.0288 | AJR5: 0.0281 | AJT5: 0.0282 | AJV5: 0.0284 | AJX5: 0.0288 | AJZ5: 0.0274 | AKB5: 0.0275 | AKD5: 0.027 | AKF5: 0.0261 | AKH5: 0.0255 | AKJ5: 0.025 | AKL5: 0.0235 | AKN5: 0.0233 | AKP5: 0.0236 | AKR5: 0.0245 | AKT5: 0.0236 | AKV5: 0.0231 | AKX5: 0.023 | AKZ5: 0.0234 | ALB5: 0.0265 | ALD5: 0.0269 | ALF5: 0.0274 | ALH5: 0.029 | ALJ5: 0.0319 | ALL5: 0.033 | ALN5: 0.0336 | ALP5: 0.0337 | ALR5: 0.0342 | ALT5: 0.0352 | ALV5: 0.0359 | ALX5: 0.0354 | ALZ5: 0.0353 | AMB5: 0.0347 | AMD5: 0.0336 | AMF5: 0.0321 | AMH5: 0.0325 | AMJ5: 0.034 | AML5: 0.0345 | AMN5: 0.0344 | AMP5: 0.0337 | AMR5: 0.0345 | AMT5: 0.0351 | AMV5: 0.0355 | AMX5: 0.0353 | AMZ5: 0.0348 | ANB5: 0.0346 | AND5: 0.0347 | ANF5: 0.0356 | ANH5: 0.0368 | ANJ5: 0.0372 | ANL5: 0.0368 | ANN5: 0.0372 | ANP5: 0.0375 | ANR5: 0.0371 | ANT5: 0.0356 | ANV5: 0.0367 | ANX5: 0.0387 | ANZ5: 0.0377 | AOB5: 0.0364 | AOD5: 0.0361 | AOF5: 0.0365 | AOH5: 0.0372 | AOJ5: 0.0387 | AOL5: 0.0392 | AON5: 0.0387 | AOP5: 0.0389 | AOR5: 0.039 | AOT5: 0.039 | AOV5: 0.0396 | AOX5: 0.0398 | AOZ5: 0.0412 | APB5: 0.0432 | APD5: 0.0439 | APF5: 0.0427 | APH5: 0.0431 | APJ5: 0.0428 | APL5: 0.0442 | APN5: 0.0456 | APP5: 0.0465 | APR5: 0.0477 | APT5: 0.0474 | APV5: 0.0463 | APX5: 0.0453 | APZ5: 0.0444 | AQB5: 0.0458 | AQD5: 0.0474 | AQF5: 0.0468 | AQH5: 0.0465 | AQJ5: 0.0457 | AQL5: 0.0469 | AQN5: 0.0479 | AQP5: 0.0456 | AQR5: 0.0424 | AQT5: 0.042 | AQV5: 0.043 | AQX5: 0.0449 | AQZ5: 0.0457 | ARB5: 0.0459 | ARD5: 0.0461 | ARF5: 0.048 | ARH5: 0.0515 | ARJ5: 0.0507 | ARL5: 0.0518 | ARN5: 0.0525 | ARP5: 0.0529 | ARR5: 0.0528 | ART5: 0.0519 | ARV5: 0.049 | ARX5: 0.0487 | ARZ5: 0.0477 | ASB5: 0.0478 | ASD5: 0.0463 | ASF5: 0.0457 | ASH5: 0.0456 | ASJ5: 0.0463 | ASL5: 0.0466 | ASN5: 0.0449 | ASP5: 0.0453 | ASR5: 0.0456 | AST5: 0.0453 | ASV5: 0.0453 | ASX5: 0.0468 | ASZ5: 0.0495 | ATB5: 0.0496 | ATD5: 0.0493 | ATF5: 0.0489 | ATH5: 0.0492 | ATJ5: 0.0485 | ATL5: 0.0475 | ATN5: 0.0471 | ATP5: 0.0484 | ATR5: 0.0486 | ATT5: 0.0485 | ATV5: 0.0484 | ATX5: 0.0484 | ATZ5: 0.0486 | AUB5: 0.0482 | AUD5: 0.0486 | AUF5: 0.0482 | AUH5: 0.0477 | AUJ5: 0.0466 | AUL5: 0.0476 | AUN5: 0.0484 | AUP5: 0.0473 | AUR5: 0.0478 | AUT5: 0.0481 | AUV5: 0.0492 | AUX5: 0.0497 | AUZ5: 0.0512 | AVB5: 0.0511 | AVD5: 0.0519 | AVF5: 0.0533 | AVH5: 0.0533 | AVJ5: 0.0556 | AVL5: 0.0554 | AVN5: 0.0543 | AVP5: 0.0551 | AVR5: 0.0562 | AVT5: 0.0567 | AVV5: 0.0543 | AVX5: 0.0532 | AVZ5: 0.0524 | AWB5: 0.052 | AWD5: 0.05 | AWF5: 0.0495 | AWH5: 0.0486 | AWJ5: 0.0483 | AWL5: 0.049 | AWN5: 0.0497 | AWP5: 0.0493 | AWR5: 0.0507 | AWT5: 0.0509 | AWV5: 0.051 | AWX5: 0.0511 | AWZ5: 0.0515 | AXB5: 0.0515 | AXD5: 0.0448 | AXF5: 0.0454 | AXH5: 0.0466 | AXJ5: 0.0468 | AXL5: 0.0525 | AXN5: 0.0543 | AXP5: 0.0571 | AXR5: 0.057 | AXT5: 0.0569 | AXV5: 0.0541 | AXX5: 0.0546 | AXZ5: 0.0553 | AYB5: 0.0557 | AYD5: 0.0563 | AYF5: 0.0594 | AYH5: 0.0589 | AYJ5: 0.0574 | AYL5: 0.0571 | AYN5: 0.057 | AYP5: 0.0558 | AYR5: 0.0577 | AYT5: 0.0564 | AYV5: 0.0547 | AYX5: 0.0527 | AYZ5: 0.0539 | AZB5: 0.0554 | AZD5: 0.0555 | AZF5: 0.0542 | AZH5: 0.0518 | AZJ5: 0.0515 | AZL5: 0.0526 | AZN5: 0.0542 | AZP5: 0.0554 | AZR5: 0.0579 | AZT5: 0.058
B6: Edad | C6: Hombres | D6: Mujeres | E6: Hombres | F6: Mujeres | G6: Hombres | H6: Mujeres | I6: Hombres | J6: Mujeres | K6: Hombres | L6: Mujeres | M6: Hombres | N6: Mujeres | O6: Hombres | P6: Mujeres | Q6: Hombres | R6: Mujeres | S6: Hombres | T6: Mujeres | U6: Hombres | V6: Mujeres | W6: Hombres | X6: Mujeres | Y6: Hombres | Z6: Mujeres | AA6: Hombres | AB6: Mujeres | AC6: Hombres | AD6: Mujeres | AE6: Hombres | AF6: Mujeres | AG6: Hombres | AH6: Mujeres | AI6: Hombres | AJ6: Mujeres | AK6: Hombres | AL6: Mujeres | AM6: Hombres | AN6: Mujeres | AO6: Hombres | AP6: Mujeres | AQ6: Hombres | AR6: Mujeres | AS6: Hombres | AT6: Mujeres | AU6: Hombres | AV6: Mujeres | AW6: Hombres | AX6: Mujeres | AY6: Hombres | AZ6: Mujeres | BA6: Hombres | BB6: Mujeres | BC6: Hombres | BD6: Mujeres | BE6: Hombres | BF6: Mujeres | BG6: Hombres | BH6: Mujeres | BI6: Hombres | BJ6: Mujeres | BK6: Hombres | BL6: Mujeres | BM6: Hombres | BN6: Mujeres | BO6: Hombres | BP6: Mujeres | BQ6: Hombres | BR6: Mujeres | BS6: Hombres | BT6: Mujeres | BU6: Hombres | BV6: Mujeres | BW6: Hombres | BX6: Mujeres | BY6: Hombres | BZ6: Mujeres | CA6: Hombres | CB6: Mujeres | CC6: Hombres | CD6: Mujeres | CE6: Hombres | CF6: Mujeres | CG6: Hombres | CH6: Mujeres | CI6: Hombres | CJ6: Mujeres | CK6: Hombres | CL6: Mujeres | CM6: Hombres | CN6: Mujeres | CO6: Hombres | CP6: Mujeres | CQ6: Hombres | CR6: Mujeres | CS6: Hombres | CT6: Mujeres | CU6: Hombres | CV6: Mujeres | CW6: Hombres | CX6: Mujeres | CY6: Hombres | CZ6: Mujeres | DA6: Hombres | DB6: Mujeres | DC6: Hombres | DD6: Mujeres | DE6: Hombres | DF6: Mujeres | DG6: Hombres | DH6: Mujeres | DI6: Hombres | DJ6: Mujeres | DK6: Hombres | DL6: Mujeres | DM6: Hombres | DN6: Mujeres | DO6: Hombres | DP6: Mujeres | DQ6: Hombres | DR6: Mujeres | DS6: Hombres | DT6: Mujeres | DU6: Hombres | DV6: Mujeres | DW6: Hombres | DX6: Mujeres | DY6: Hombres | DZ6: Mujeres | EA6: Hombres | EB6: Mujeres | EC6: Hombres | ED6: Mujeres | EE6: Hombres | EF6: Mujeres | EG6: Hombres | EH6: Mujeres | EI6: Hombres | EJ6: Mujeres | EK6: Hombres | EL6: Mujeres | EM6: Hombres | EN6: Mujeres | EO6: Hombres | EP6: Mujeres | EQ6: Hombres | ER6: Mujeres | ES6: Hombres | ET6: Mujeres | EU6: Hombres | EV6: Mujeres | EW6: Hombres | EX6: Mujeres | EY6: Hombres | EZ6: Mujeres | FA6: Hombres | FB6: Mujeres | FC6: Hombres | FD6: Mujeres | FE6: Hombres | FF6: Mujeres | FG6: Hombres | FH6: Mujeres | FI6: Hombres | FJ6: Mujeres | FK6: Hombres | FL6: Mujeres | FM6: Hombres | FN6: Mujeres | FO6: Hombres | FP6: Mujeres | FQ6: Hombres | FR6: Mujeres | FS6: Hombres | FT6: Mujeres | FU6: Hombres | FV6: Mujeres | FW6: Hombres | FX6: Mujeres | FY6: Hombres | FZ6: Mujeres | GA6: Hombres | GB6: Mujeres | GC6: Hombres | GD6: Mujeres | GE6: Hombres | GF6: Mujeres | GG6: Hombres | GH6: Mujeres | GI6: Hombres | GJ6: Mujeres | GK6: Hombres | GL6: Mujeres | GM6: Hombres | GN6: Mujeres | GO6: Hombres | GP6: Mujeres | GQ6: Hombres | GR6: Mujeres | GS6: Hombres | GT6: Mujeres | GU6: Hombres | GV6: Mujeres | GW6: Hombres | GX6: Mujeres | GY6: Hombres | GZ6: Mujeres | HA6: Hombres | HB6: Mujeres | HC6: Hombres | HD6: Mujeres | HE6: Hombres | HF6: Mujeres | HG6: Hombres | HH6: Mujeres | HI6: Hombres | HJ6: Mujeres | HK6: Hombres | HL6: Mujeres | HM6: Hombres | HN6: Mujeres | HO6: Hombres | HP6: Mujeres | HQ6: Hombres | HR6: Mujeres | HS6: Hombres | HT6: Mujeres | HU6: Hombres | HV6: Mujeres | HW6: Hombres | HX6: Mujeres | HY6: Hombres | HZ6: Mujeres | IA6: Hombres | IB6: Mujeres | IC6: Hombres | ID6: Mujeres | IE6: Hombres | IF6: Mujeres | IG6: Hombres | IH6: Mujeres | II6: Hombres | IJ6: Mujeres | IK6: Hombres | IL6: Mujeres | IM6: Hombres | IN6: Mujeres | IO6: Hombres | IP6: Mujeres | IQ6: Hombres | IR6: Mujeres | IS6: Hombres | IT6: Mujeres | IU6: Hombres | IV6: Mujeres | IW6: Hombres | IX6: Mujeres | IY6: Hombres | IZ6: Mujeres | JA6: Hombres | JB6: Mujeres | JC6: Hombres | JD6: Mujeres | JE6: Hombres | JF6: Mujeres | JG6: Hombres | JH6: Mujeres | JI6: Hombres | JJ6: Mujeres | JK6: Hombres | JL6: Mujeres | JM6: Hombres | JN6: Mujeres | JO6: Hombres | JP6: Mujeres | JQ6: Hombres | JR6: Mujeres | JS6: Hombres | JT6: Mujeres | JU6: Hombres | JV6: Mujeres | JW6: Hombres | JX6: Mujeres | JY6: Hombres | JZ6: Mujeres | KA6: Hombres | KB6: Mujeres | KC6: Hombres | KD6: Mujeres | KE6: Hombres | KF6: Mujeres | KG6: Hombres | KH6: Mujeres | KI6: Hombres | KJ6: Mujeres | KK6: Hombres | KL6: Mujeres | KM6: Hombres | KN6: Mujeres | KO6: Hombres | KP6: Mujeres | KQ6: Hombres | KR6: Mujeres | KS6: Hombres | KT6: Mujeres | KU6: Hombres | KV6: Mujeres | KW6: Hombres | KX6: Mujeres | KY6: Hombres | KZ6: Mujeres | LA6: Hombres | LB6: Mujeres | LC6: Hombres | LD6: Mujeres | LE6: Hombres | LF6: Mujeres | LG6: Hombres | LH6: Mujeres | LI6: Hombres | LJ6: Mujeres | LK6: Hombres | LL6: Mujeres | LM6: Hombres | LN6: Mujeres | LO6: Hombres | LP6: Mujeres | LQ6: Hombres | LR6: Mujeres | LS6: Hombres | LT6: Mujeres | LU6: Hombres | LV6: Mujeres | LW6: Hombres | LX6: Mujeres | LY6: Hombres | LZ6: Mujeres | MA6: Hombres | MB6: Mujeres | MC6: Hombres | MD6: Mujeres | ME6: Hombres | MF6: Mujeres | MG6: Hombres | MH6: Mujeres | MI6: Hombres | MJ6: Mujeres | MK6: Hombres | ML6: Mujeres | MM6: Hombres | MN6: Mujeres | MO6: Hombres | MP6: Mujeres | MQ6: Hombres | MR6: Mujeres | MS6: Hombres | MT6: Mujeres | MU6: Hombres | MV6: Mujeres | MW6: Hombres | MX6: Mujeres | MY6: Hombres | MZ6: Mujeres | NA6: Hombres | NB6: Mujeres | NC6: Hombres | ND6: Mujeres | NE6: Hombres | NF6: Mujeres | NG6: Hombres | NH6: Mujeres | NI6: Hombres | NJ6: Mujeres | NK6: Hombres | NL6: Mujeres | NM6: Hombres | NN6: Mujeres | NO6: Hombres | NP6: Mujeres | NQ6: Hombres | NR6: Mujeres | NS6: Hombres | NT6: Mujeres | NU6: Hombres | NV6: Mujeres | NW6: Hombres | NX6: Mujeres | NY6: Hombres | NZ6: Mujeres | OA6: Hombres | OB6: Mujeres | OC6: Hombres | OD6: Mujeres | OE6: Hombres | OF6: Mujeres | OG6: Hombres | OH6: Mujeres | OI6: Hombres | OJ6: Mujeres | OK6: Hombres | OL6: Mujeres | OM6: Hombres | ON6: Mujeres | OO6: Hombres | OP6: Mujeres | OQ6: Hombres | OR6: Mujeres | OS6: Hombres | OT6: Mujeres | OU6: Hombres | OV6: Mujeres | OW6: Hombres | OX6: Mujeres | OY6: Hombres | OZ6: Mujeres | PA6: Hombres | PB6: Mujeres | PC6: Hombres | PD6: Mujeres | PE6: Hombres | PF6: Mujeres | PG6: Hombres | PH6: Mujeres | PI6: Hombres | PJ6: Mujeres | PK6: Hombres | PL6: Mujeres | PM6: Hombres | PN6: Mujeres | PO6: Hombres | PP6: Mujeres | PQ6: Hombres | PR6: Mujeres | PS6: Hombres | PT6: Mujeres | PU6: Hombres | PV6: Mujeres | PW6: Hombres | PX6: Mujeres | PY6: Hombres | PZ6: Mujeres | QA6: Hombres | QB6: Mujeres | QC6: Hombres | QD6: Mujeres | QE6: Hombres | QF6: Mujeres | QG6: Hombres | QH6: Mujeres | QI6: Hombres | QJ6: Mujeres | QK6: Hombres | QL6: Mujeres | QM6: Hombres | QN6: Mujeres | QO6: Hombres | QP6: Mujeres | QQ6: Hombres | QR6: Mujeres | QS6: Hombres | QT6: Mujeres | QU6: Hombres | QV6: Mujeres | QW6: Hombres | QX6: Mujeres | QY6: Hombres | QZ6: Mujeres | RA6: Hombres | RB6: Mujeres | RC6: Hombres | RD6: Mujeres | RE6: Hombres | RF6: Mujeres | RG6: Hombres | RH6: Mujeres | RI6: Hombres | RJ6: Mujeres | RK6: Hombres | RL6: Mujeres | RM6: Hombres | RN6: Mujeres | RO6: Hombres | RP6: Mujeres | RQ6: Hombres | RR6: Mujeres | RS6: Hombres | RT6: Mujeres | RU6: Hombres | RV6: Mujeres | RW6: Hombres | RX6: Mujeres | RY6: Hombres | RZ6: Mujeres | SA6: Hombres | SB6: Mujeres | SC6: Hombres | SD6: Mujeres | SE6: Hombres | SF6: Mujeres | SG6: Hombres | SH6: Mujeres | SI6: Hombres | SJ6: Mujeres | SK6: Hombres | SL6: Mujeres | SM6: Hombres | SN6: Mujeres | SO6: Hombres | SP6: Mujeres | SQ6: Hombres | SR6: Mujeres | SS6: Hombres | ST6: Mujeres | SU6: Hombres | SV6: Mujeres | SW6: Hombres | SX6: Mujeres | SY6: Hombres | SZ6: Mujeres | TA6: Hombres | TB6: Mujeres | TC6: Hombres | TD6: Mujeres | TE6: Hombres | TF6: Mujeres | TG6: Hombres | TH6: Mujeres | TI6: Hombres | TJ6: Mujeres | TK6: Hombres | TL6: Mujeres | TM6: Hombres | TN6: Mujeres | TO6: Hombres | TP6: Mujeres | TQ6: Hombres | TR6: Mujeres | TS6: Hombres | TT6: Mujeres | TU6: Hombres | TV6: Mujeres | TW6: Hombres | TX6: Mujeres | TY6: Hombres | TZ6: Mujeres | UA6: Hombres | UB6: Mujeres | UC6: Hombres | UD6: Mujeres | UE6: Hombres | UF6: Mujeres | UG6: Hombres | UH6: Mujeres | UI6: Hombres | UJ6: Mujeres | UK6: Hombres | UL6: Mujeres | UM6: Hombres | UN6: Mujeres | UO6: Hombres | UP6: Mujeres | UQ6: Hombres | UR6: Mujeres | US6: Hombres | UT6: Mujeres | UU6: Hombres | UV6: Mujeres | UW6: Hombres | UX6: Mujeres | UY6: Hombres | UZ6: Mujeres | VA6: Hombres | VB6: Mujeres | VC6: Hombres | VD6: Mujeres | VE6: Hombres | VF6: Mujeres | VG6: Hombres | VH6: Mujeres | VI6: Hombres | VJ6: Mujeres | VK6: Hombres | VL6: Mujeres | VM6: Hombres | VN6: Mujeres | VO6: Hombres | VP6: Mujeres | VQ6: Hombres | VR6: Mujeres | VS6: Hombres | VT6: Mujeres | VU6: Hombres | VV6: Mujeres | VW6: Hombres | VX6: Mujeres | VY6: Hombres | VZ6: Mujeres | WA6: Hombres | WB6: Mujeres | WC6: Hombres | WD6: Mujeres | WE6: Hombres | WF6: Mujeres | WG6: Hombres | WH6: Mujeres | WI6: Hombres | WJ6: Mujeres | WK6: Hombres | WL6: Mujeres | WM6: Hombres | WN6: Mujeres | WO6: Hombres | WP6: Mujeres | WQ6: Hombres | WR6: Mujeres | WS6: Hombres | WT6: Mujeres | WU6: Hombres | WV6: Mujeres | WW6: Hombres | WX6: Mujeres | WY6: Hombres | WZ6: Mujeres | XA6: Hombres | XB6: Mujeres | XC6: Hombres | XD6: Mujeres | XE6: Hombres | XF6: Mujeres | XG6: Hombres | XH6: Mujeres | XI6: Hombres | XJ6: Mujeres | XK6: Hombres | XL6: Mujeres | XM6: Hombres | XN6: Mujeres | XO6: Hombres | XP6: Mujeres | XQ6: Hombres | XR6: Mujeres | XS6: Hombres | XT6: Mujeres | XU6: Hombres | XV6: Mujeres | XW6: Hombres | XX6: Mujeres | XY6: Hombres | XZ6: Mujeres | YA6: Hombres | YB6: Mujeres | YC6: Hombres | YD6: Mujeres | YE6: Hombres | YF6: Mujeres | YG6: Hombres | YH6: Mujeres | YI6: Hombres | YJ6: Mujeres | YK6: Hombres | YL6: Mujeres | YM6: Hombres | YN6: Mujeres | YO6: Hombres | YP6: Mujeres | YQ6: Hombres | YR6: Mujeres | YS6: Hombres | YT6: Mujeres | YU6: Hombres | YV6: Mujeres | YW6: Hombres | YX6: Mujeres | YY6: Hombres | YZ6: Mujeres | ZA6: Hombres | ZB6: Mujeres | ZC6: Hombres | ZD6: Mujeres | ZE6: Hombres | ZF6: Mujeres | ZG6: Hombres | ZH6: Mujeres | ZI6: Hombres | ZJ6: Mujeres | ZK6: Hombres | ZL6: Mujeres | ZM6: Hombres | ZN6: Mujeres | ZO6: Hombres | ZP6: Mujeres | ZQ6: Hombres | ZR6: Mujeres | ZS6: Hombres | ZT6: Mujeres | ZU6: Hombres | ZV6: Mujeres | ZW6: Hombres | ZX6: Mujeres | ZY6: Hombres | ZZ6: Mujeres | AAA6: Hombres | AAB6: Mujeres | AAC6: Hombres | AAD6: Mujeres | AAE6: Hombres | AAF6: Mujeres | AAG6: Hombres | AAH6: Mujeres | AAI6: Hombres | AAJ6: Mujeres | AAK6: Hombres | AAL6: Mujeres | AAM6: Hombres | AAN6: Mujeres | AAO6: Hombres | AAP6: Mujeres | AAQ6: Hombres | AAR6: Mujeres | AAS6: Hombres | AAT6: Mujeres | AAU6: Hombres | AAV6: Mujeres | AAW6: Hombres | AAX6: Mujeres | AAY6: Hombres | AAZ6: Mujeres | ABA6: Hombres | ABB6: Mujeres | ABC6: Hombres | ABD6: Mujeres | ABE6: Hombres | ABF6: Mujeres | ABG6: Hombres | ABH6: Mujeres | ABI6: Hombres | ABJ6: Mujeres | ABK6: Hombres | ABL6: Mujeres | ABM6: Hombres | ABN6: Mujeres | ABO6: Hombres | ABP6: Mujeres | ABQ6: Hombres | ABR6: Mujeres | ABS6: Hombres | ABT6: Mujeres | ABU6: Hombres | ABV6: Mujeres | ABW6: Hombres | ABX6: Mujeres | ABY6: Hombres | ABZ6: Mujeres | ACA6: Hombres | ACB6: Mujeres | ACC6: Hombres | ACD6: Mujeres | ACE6: Hombres | ACF6: Mujeres | ACG6: Hombres | ACH6: Mujeres | ACI6: Hombres | ACJ6: Mujeres | ACK6: Hombres | ACL6: Mujeres | ACM6: Hombres | ACN6: Mujeres | ACO6: Hombres | ACP6: Mujeres | ACQ6: Hombres | ACR6: Mujeres | ACS6: Hombres | ACT6: Mujeres | ACU6: Hombres | ACV6: Mujeres | ACW6: Hombres | ACX6: Mujeres | ACY6: Hombres | ACZ6: Mujeres | ADA6: Hombres | ADB6: Mujeres | ADC6: Hombres | ADD6: Mujeres | ADE6: Hombres | ADF6: Mujeres | ADG6: Hombres | ADH6: Mujeres | ADI6: Hombres | ADJ6: Mujeres | ADK6: Hombres | ADL6: Mujeres | ADM6: Hombres | ADN6: Mujeres | ADO6: Hombres | ADP6: Mujeres | ADQ6: Hombres | ADR6: Mujeres | ADS6: Hombres | ADT6: Mujeres | ADU6: Hombres | ADV6: Mujeres | ADW6: Hombres | ADX6: Mujeres | ADY6: Hombres | ADZ6: Mujeres | AEA6: Hombres | AEB6: Mujeres | AEC6: Hombres | AED6: Mujeres | AEE6: Hombres | AEF6: Mujeres | AEG6: Hombres | AEH6: Mujeres | AEI6: Hombres | AEJ6: Mujeres | AEK6: Hombres | AEL6: Mujeres | AEM6: Hombres | AEN6: Mujeres | AEO6: Hombres | AEP6: Mujeres | AEQ6: Hombres | AER6: Mujeres | AES6: Hombres | AET6: Mujeres | AEU6: Hombres | AEV6: Mujeres | AEW6: Hombres | AEX6: Mujeres | AEY6: Hombres | AEZ6: Mujeres | AFA6: Hombres | AFB6: Mujeres | AFC6: Hombres | AFD6: Mujeres | AFE6: Hombres | AFF6: Mujeres | AFG6: Hombres | AFH6: Mujeres | AFI6: Hombres | AFJ6: Mujeres | AFK6: Hombres | AFL6: Mujeres | AFM6: Hombres | AFN6: Mujeres | AFO6: Hombres | AFP6: Mujeres | AFQ6: Hombres | AFR6: Mujeres | AFS6: Hombres | AFT6: Mujeres | AFU6: Hombres | AFV6: Mujeres | AFW6: Hombres | AFX6: Mujeres | AFY6: Hombres | AFZ6: Mujeres | AGA6: Hombres | AGB6: Mujeres | AGC6: Hombres | AGD6: Mujeres | AGE6: Hombres | AGF6: Mujeres | AGG6: Hombres | AGH6: Mujeres | AGI6: Hombres | AGJ6: Mujeres | AGK6: Hombres | AGL6: Mujeres | AGM6: Hombres | AGN6: Mujeres | AGO6: Hombres | AGP6: Mujeres | AGQ6: Hombres | AGR6: Mujeres | AGS6: Hombres | AGT6: Mujeres | AGU6: Hombres | AGV6: Mujeres | AGW6: Hombres | AGX6: Mujeres | AGY6: Hombres | AGZ6: Mujeres | AHA6: Hombres | AHB6: Mujeres | AHC6: Hombres | AHD6: Mujeres | AHE6: Hombres | AHF6: Mujeres | AHG6: Hombres | AHH6: Mujeres | AHI6: Hombres | AHJ6: Mujeres | AHK6: Hombres | AHL6: Mujeres | AHM6: Hombres | AHN6: Mujeres | AHO6: Hombres | AHP6: Mujeres | AHQ6: Hombres | AHR6: Mujeres | AHS6: Hombres | AHT6: Mujeres | AHU6: Hombres | AHV6: Mujeres | AHW6: Hombres | AHX6: Mujeres | AHY6: Hombres | AHZ6: Mujeres | AIA6: Hombres | AIB6: Mujeres | AIC6: Hombres | AID6: Mujeres | AIE6: Hombres | AIF6: Mujeres | AIG6: Hombres | AIH6: Mujeres | AII6: Hombres | AIJ6: Mujeres | AIK6: Hombres | AIL6: Mujeres | AIM6: Hombres | AIN6: Mujeres | AIO6: Hombres | AIP6: Mujeres | AIQ6: Hombres | AIR6: Mujeres | AIS6: Hombres | AIT6: Mujeres | AIU6: Hombres | AIV6: Mujeres | AIW6: Hombres | AIX6: Mujeres | AIY6: Hombres | AIZ6: Mujeres | AJA6: Hombres | AJB6: Mujeres | AJC6: Hombres | AJD6: Mujeres | AJE6: Hombres | AJF6: Mujeres | AJG6: Hombres | AJH6: Mujeres | AJI6: Hombres | AJJ6: Mujeres | AJK6: Hombres | AJL6: Mujeres | AJM6: Hombres | AJN6: Mujeres | AJO6: Hombres | AJP6: Mujeres | AJQ6: Hombres | AJR6: Mujeres | AJS6: Hombres | AJT6: Mujeres | AJU6: Hombres | AJV6: Mujeres | AJW6: Hombres | AJX6: Mujeres | AJY6: Hombres | AJZ6: Mujeres | AKA6: Hombres | AKB6: Mujeres | AKC6: Hombres | AKD6: Mujeres | AKE6: Hombres | AKF6: Mujeres | AKG6: Hombres | AKH6: Mujeres | AKI6: Hombres | AKJ6: Mujeres | AKK6: Hombres | AKL6: Mujeres | AKM6: Hombres | AKN6: Mujeres | AKO6: Hombres | AKP6: Mujeres | AKQ6: Hombres | AKR6: Mujeres | AKS6: Hombres | AKT6: Mujeres | AKU6: Hombres | AKV6: Mujeres | AKW6: Hombres | AKX6: Mujeres | AKY6: Hombres | AKZ6: Mujeres | ALA6: Hombres | ALB6: Mujeres | ALC6: Hombres | ALD6: Mujeres | ALE6: Hombres | ALF6: Mujeres | ALG6: Hombres | ALH6: Mujeres | ALI6: Hombres | ALJ6: Mujeres | ALK6: Hombres | ALL6: Mujeres | ALM6: Hombres | ALN6: Mujeres | ALO6: Hombres | ALP6: Mujeres | ALQ6: Hombres | ALR6: Mujeres | ALS6: Hombres | ALT6: Mujeres | ALU6: Hombres | ALV6: Mujeres | ALW6: Hombres | ALX6: Mujeres | ALY6: Hombres | ALZ6: Mujeres | AMA6: Hombres | AMB6: Mujeres | AMC6: Hombres | AMD6: Mujeres | AME6: Hombres | AMF6: Mujeres | AMG6: Hombres | AMH6: Mujeres | AMI6: Hombres | AMJ6: Mujeres | AMK6: Hombres | AML6: Mujeres | AMM6: Hombres | AMN6: Mujeres | AMO6: Hombres | AMP6: Mujeres | AMQ6: Hombres | AMR6: Mujeres | AMS6: Hombres | AMT6: Mujeres | AMU6: Hombres | AMV6: Mujeres | AMW6: Hombres | AMX6: Mujeres | AMY6: Hombres | AMZ6: Mujeres | ANA6: Hombres | ANB6: Mujeres | ANC6: Hombres | AND6: Mujeres | ANE6: Hombres | ANF6: Mujeres | ANG6: Hombres | ANH6: Mujeres | ANI6: Hombres | ANJ6: Mujeres | ANK6: Hombres | ANL6: Mujeres | ANM6: Hombres | ANN6: Mujeres | ANO6: Hombres | ANP6: Mujeres | ANQ6: Hombres | ANR6: Mujeres | ANS6: Hombres | ANT6: Mujeres | ANU6: Hombres | ANV6: Mujeres | ANW6: Hombres | ANX6: Mujeres | ANY6: Hombres | ANZ6: Mujeres | AOA6: Hombres | AOB6: Mujeres | AOC6: Hombres | AOD6: Mujeres | AOE6: Hombres | AOF6: Mujeres | AOG6: Hombres | AOH6: Mujeres | AOI6: Hombres | AOJ6: Mujeres | AOK6: Hombres | AOL6: Mujeres | AOM6: Hombres | AON6: Mujeres | AOO6: Hombres | AOP6: Mujeres | AOQ6: Hombres | AOR6: Mujeres | AOS6: Hombres | AOT6: Mujeres | AOU6: Hombres | AOV6: Mujeres | AOW6: Hombres | AOX6: Mujeres | AOY6: Hombres | AOZ6: Mujeres | APA6: Hombres | APB6: Mujeres | APC6: Hombres | APD6: Mujeres | APE6: Hombres | APF6: Mujeres | APG6: Hombres | APH6: Mujeres | API6: Hombres | APJ6: Mujeres | APK6: Hombres | APL6: Mujeres | APM6: Hombres | APN6: Mujeres | APO6: Hombres | APP6: Mujeres | APQ6: Hombres | APR6: Mujeres | APS6: Hombres | APT6: Mujeres | APU6: Hombres | APV6: Mujeres | APW6: Hombres | APX6: Mujeres | APY6: Hombres | APZ6: Mujeres | AQA6: Hombres | AQB6: Mujeres | AQC6: Hombres | AQD6: Mujeres | AQE6: Hombres | AQF6: Mujeres | AQG6: Hombres | AQH6: Mujeres | AQI6: Hombres | AQJ6: Mujeres | AQK6: Hombres | AQL6: Mujeres | AQM6: Hombres | AQN6: Mujeres | AQO6: Hombres | AQP6: Mujeres | AQQ6: Hombres | AQR6: Mujeres | AQS6: Hombres | AQT6: Mujeres | AQU6: Hombres | AQV6: Mujeres | AQW6: Hombres | AQX6: Mujeres | AQY6: Hombres | AQZ6: Mujeres | ARA6: Hombres | ARB6: Mujeres | ARC6: Hombres | ARD6: Mujeres | ARE6: Hombres | ARF6: Mujeres | ARG6: Hombres | ARH6: Mujeres | ARI6: Hombres | ARJ6: Mujeres | ARK6: Hombres | ARL6: Mujeres | ARM6: Hombres | ARN6: Mujeres | ARO6: Hombres | ARP6: Mujeres | ARQ6: Hombres | ARR6: Mujeres | ARS6: Hombres | ART6: Mujeres | ARU6: Hombres | ARV6: Mujeres | ARW6: Hombres | ARX6: Mujeres | ARY6: Hombres | ARZ6: Mujeres | ASA6: Hombres | ASB6: Mujeres | ASC6: Hombres | ASD6: Mujeres | ASE6: Hombres | ASF6: Mujeres | ASG6: Hombres | ASH6: Mujeres | ASI6: Hombres | ASJ6: Mujeres | ASK6: Hombres | ASL6: Mujeres | ASM6: Hombres | ASN6: Mujeres | ASO6: Hombres | ASP6: Mujeres | ASQ6: Hombres | ASR6: Mujeres | ASS6: Hombres | AST6: Mujeres | ASU6: Hombres | ASV6: Mujeres | ASW6: Hombres | ASX6: Mujeres | ASY6: Hombres | ASZ6: Mujeres | ATA6: Hombres | ATB6: Mujeres | ATC6: Hombres | ATD6: Mujeres | ATE6: Hombres | ATF6: Mujeres | ATG6: Hombres | ATH6: Mujeres | ATI6: Hombres | ATJ6: Mujeres | ATK6: Hombres | ATL6: Mujeres | ATM6: Hombres | ATN6: Mujeres | ATO6: Hombres | ATP6: Mujeres | ATQ6: Hombres | ATR6: Mujeres | ATS6: Hombres | ATT6: Mujeres | ATU6: Hombres | ATV6: Mujeres | ATW6: Hombres | ATX6: Mujeres | ATY6: Hombres | ATZ6: Mujeres | AUA6: Hombres | AUB6: Mujeres | AUC6: Hombres | AUD6: Mujeres | AUE6: Hombres | AUF6: Mujeres | AUG6: Hombres | AUH6: Mujeres | AUI6: Hombres | AUJ6: Mujeres | AUK6: Hombres | AUL6: Mujeres | AUM6: Hombres | AUN6: Mujeres | AUO6: Hombres | AUP6: Mujeres | AUQ6: Hombres | AUR6: Mujeres | AUS6: Hombres | AUT6: Mujeres | AUU6: Hombres | AUV6: Mujeres | AUW6: Hombres | AUX6: Mujeres | AUY6: Hombres | AUZ6: Mujeres | AVA6: Hombres | AVB6: Mujeres | AVC6: Hombres | AVD6: Mujeres | AVE6: Hombres | AVF6: Mujeres | AVG6: Hombres | AVH6: Mujeres | AVI6: Hombres | AVJ6: Mujeres | AVK6: Hombres | AVL6: Mujeres | AVM6: Hombres | AVN6: Mujeres | AVO6: Hombres | AVP6: Mujeres | AVQ6: Hombres | AVR6: Mujeres | AVS6: Hombres | AVT6: Mujeres | AVU6: Hombres | AVV6: Mujeres | AVW6: Hombres | AVX6: Mujeres | AVY6: Hombres | AVZ6: Mujeres | AWA6: Hombres | AWB6: Mujeres | AWC6: Hombres | AWD6: Mujeres | AWE6: Hombres | AWF6: Mujeres | AWG6: Hombres | AWH6: Mujeres | AWI6: Hombres | AWJ6: Mujeres | AWK6: Hombres | AWL6: Mujeres | AWM6: Hombres | AWN6: Mujeres | AWO6: Hombres | AWP6: Mujeres | AWQ6: Hombres | AWR6: Mujeres | AWS6: Hombres | AWT6: Mujeres | AWU6: Hombres | AWV6: Mujeres | AWW6: Hombres | AWX6: Mujeres | AWY6: Hombres | AWZ6: Mujeres | AXA6: Hombres | AXB6: Mujeres | AXC6: Hombres | AXD6: Mujeres | AXE6: Hombres | AXF6: Mujeres | AXG6: Hombres | AXH6: Mujeres | AXI6: Hombres | AXJ6: Mujeres | AXK6: Hombres | AXL6: Mujeres | AXM6: Hombres | AXN6: Mujeres | AXO6: Hombres | AXP6: Mujeres | AXQ6: Hombres | AXR6: Mujeres | AXS6: Hombres | AXT6: Mujeres | AXU6: Hombres | AXV6: Mujeres | AXW6: Hombres | AXX6: Mujeres | AXY6: Hombres | AXZ6: Mujeres | AYA6: Hombres | AYB6: Mujeres | AYC6: Hombres | AYD6: Mujeres | AYE6: Hombres | AYF6: Mujeres | AYG6: Hombres | AYH6: Mujeres | AYI6: Hombres | AYJ6: Mujeres | AYK6: Hombres | AYL6: Mujeres | AYM6: Hombres | AYN6: Mujeres | AYO6: Hombres | AYP6: Mujeres | AYQ6: Hombres | AYR6: Mujeres | AYS6: Hombres | AYT6: Mujeres | AYU6: Hombres | AYV6: Mujeres | AYW6: Hombres | AYX6: Mujeres | AYY6: Hombres | AYZ6: Mujeres | AZA6: Hombres | AZB6: Mujeres | AZC6: Hombres | AZD6: Mujeres | AZE6: Hombres | AZF6: Mujeres | AZG6: Hombres | AZH6: Mujeres | AZI6: Hombres | AZJ6: Mujeres | AZK6: Hombres | AZL6: Mujeres | AZM6: Hombres | AZN6: Mujeres | AZO6: Hombres | AZP6: Mujeres | AZQ6: Hombres | AZR6: Mujeres | AZS6: Hombres | AZT6: Mujeres
B7: 60 | C7: 13.8914 | D7: 15.5865 | E7: 15.56552372 | F7: 17.52652918 | G7: 15.63709843 | H7: 17.61051159 | I7: 15.7092325 | J7: 17.6951439 | K7: 15.78193149 | L7: 17.78043234 | M7: 15.85520105 | N7: 17.8663832 | O7: 15.91053107 | P7: 17.93128489 | Q7: 16.26864044 | R7: 18.35124187 | S7: 16.46259576 | T7: 18.5786164 | U7: 16.49744786 | V7: 18.60024847 | W7: 16.71615488 | X7: 18.85613187 | Y7: 16.9191726 | Z7: 19.09363618 | AA7: 17.14727224 | AB7: 19.36039946 | AC7: 17.35909708 | AD7: 19.60804728 | AE7: 19.16215152 | AF7: 20.70536559 | AG7: 19.42457908 | AH7: 20.99572092 | AI7: 19.69289498 | AJ7: 21.29254932 | AK7: 19.9672641 | AL7: 21.59602837 | AM7: 20.24785659 | AN7: 21.90634122 | AO7: 20.53484809 | AP7: 22.22367673 | AQ7: 20.82841989 | AR7: 22.54822971 | AS7: 20.97773167 | AT7: 22.7132753 | AU7: 21.28152679 | AV7: 23.04903322 | AW7: 20.97773167 | AX7: 22.7132753 | AY7: 20.68079989 | AZ7: 22.38503863 | BA7: 20.10677158 | BB7: 21.75031891 | BC7: 19.82931238 | BD7: 21.4434462 | BE7: 19.29263936 | BF7: 20.84974501 | BG7: 19.03309575 | BH7: 20.5625613 | BI7: 18.80416567 | BJ7: 20.2960397 | BK7: 18.4571245 | BL7: 19.91228732 | BM7: 18.21563143 | BN7: 19.64521352 | BO7: 17.97930489 | BP7: 19.38382793 | BQ7: 17.7480073 | BR7: 19.12798181 | BS7: 17.52160524 | BT7: 18.87753082 | BU7: 17.29996936 | BV7: 18.63233488 | BW7: 17.52160524 | BX7: 18.87753082 | BY7: 17.7480073 | BZ7: 19.12798181 | CA7: 17.97930489 | CB7: 19.38382793 | CC7: 18.21563143 | CD7: 19.64521352 | CE7: 18.4571245 | CF7: 19.91228732 | CG7: 18.70392604 | CH7: 20.18520268 | CI7: 20.07872412 | CJ7: 21.70484547 | CK7: 20.36189262 | CL7: 22.01770177 | CM7: 20.07872412 | CN7: 21.70484547 | CO7: 19.80185051 | CP7: 21.39889315 | CQ7: 19.00730155 | CR7: 20.52063483 | CS7: 18.75393617 | CT7: 20.24050056 | CU7: 19.00730155 | CV7: 20.52063483 | CW7: 19.26630367 | CX7: 20.8069648 | CY7: 19.53109937 | CZ7: 21.09965949 | DA7: 19.80185051 | DB7: 21.39889315 | DC7: 19.26630367 | DD7: 20.8069648 | DE7: 18.75393617 | DF7: 20.24050056 | DG7: 19.26630367 | DH7: 20.8069648 | DI7: 19.2921961 | DJ7: 20.8220338 | DK7: 19.03259531 | DL7: 20.53530265 | DM7: 19.2921961 | DN7: 20.8220338 | DO7: 19.55760801 | DP7: 21.11514237 | DQ7: 20.10654131 | DR7: 21.72119913 | DS7: 20.39038259 | DT7: 22.03451061 | DU7: 20.10654131 | DV7: 21.72119913 | DW7: 19.82901427 | DX7: 21.41480573 | DY7: 19.55762844 | DZ7: 21.11514463 | EA7: 19.03261501 | EB7: 20.53530418 | EC7: 19.29221616 | ED7: 20.82203568 | EE7: 19.55762844 | EF7: 21.11514463 | EG7: 20.10654131 | EH7: 21.72119913 | EI7: 20.39038259 | EJ7: 22.03451061 | EK7: 20.10654131 | EL7: 21.72119913 | EM7: 20.39038259 | EN7: 22.03451061 | EO7: 20.68071671 | EP7: 22.35493179 | EQ7: 21.281607 | ER7: 23.01790009 | ES7: 21.91076038 | ET7: 23.71176134 | EU7: 22.56982773 | EV7: 24.4382798 | EW7: 23.26057023 | EX7: 25.19933419 | EY7: 23.61840214 | EZ7: 25.59343276 | FA7: 23.98486736 | FB7: 25.99692588 | FC7: 23.26057023 | FD7: 25.19933419 | FE7: 22.91112499 | FF7: 24.81436789 | FG7: 22.56982773 | FH7: 24.4382798 | FI7: 22.23644741 | FJ7: 24.07082377 | FK7: 22.56982773 | FL7: 24.4382798 | FM7: 21.91076038 | FN7: 23.71176134 | FO7: 21.59255012 | FP7: 23.36086142 | FQ7: 22.23644741 | FR7: 24.07082377 | FS7: 22.56982773 | FT7: 24.4382798 | FU7: 22.23644741 | FV7: 24.07082377 | FW7: 21.91076038 | FX7: 23.71176134 | FY7: 22.23644741 | FZ7: 24.07082377 | GA7: 22.26922987 | GB7: 24.0905688 | GC7: 22.94558127 | GD7: 24.83526304 | GE7: 23.29590202 | GF7: 25.22083283 | GG7: 23.65463638 | GH7: 25.61555475 | GI7: 24.02203189 | GJ7: 26.01969178 | GK7: 23.65463638 | GL7: 25.61555475 | GM7: 24.02203189 | GN7: 26.01969178 | GO7: 24.39834438 | GP7: 26.43351542 | GQ7: 24.78383824 | GR7: 26.85730602 | GS7: 25.17878672 | GT7: 27.29135305 | GU7: 24.28449879 | GV7: 26.30833473 | GW7: 23.54611807 | GX7: 25.49616171 | GY7: 22.50234956 | GZ7: 24.3472868 | HA7: 21.84626901 | HB7: 23.62468075 | HC7: 21.21994121 | HD7: 22.93452854 | HE7: 20.91741769 | HF7: 22.60107079 | HG7: 19.7737701 | HH7: 21.33989346 | HI7: 20.05008174 | HJ7: 21.64468251 | HK7: 20.6217251 | HL7: 22.27507785 | HM7: 20.05008174 | HN7: 21.64468251 | HO7: 20.33267422 | HP7: 21.95634719 | HQ7: 19.7737701 | HR7: 21.33989346 | HS7: 19.50356731 | HT7: 21.04179552 | HU7: 19.2393067 | HV7: 20.75020972 | HW7: 19.7737701 | HX7: 21.33989346 | HY7: 20.33267422 | HZ7: 21.95634719 | IA7: 19.7737701 | IB7: 21.33989346 | IC7: 20.33267422 | ID7: 21.95634719 | IE7: 20.05008174 | IF7: 21.64468251 | IG7: 19.50356731 | IH7: 21.04179552 | II7: 18.98082679 | IJ7: 20.46496254 | IK7: 18.72797109 | IL7: 20.18588567 | IM7: 18.98082679 | IN7: 20.46496254 | IO7: 19.00567359 | IP7: 20.47933313 | IQ7: 18.26170884 | IR7: 19.6588547 | IS7: 17.97741985 | IT7: 19.34527812 | IU7: 18.04779818 | IV7: 19.42291624 | IW7: 18.28571093 | IX7: 19.68535364 | IY7: 18.62757747 | IZ7: 20.06241205 | JA7: 18.70220153 | JB7: 20.14470989 | JC7: 18.82766864 | JD7: 20.28307233 | JE7: 18.90361173 | JF7: 20.36681653 | JG7: 19.0570084 | JH7: 20.53596069 | JI7: 19.00565097 | JJ7: 20.47933247 | JK7: 19.08277212 | JL7: 20.56436795 | JM7: 19.13447031 | JN7: 20.62136959 | JO7: 19.21244688 | JP7: 20.7073424 | JQ7: 19.1085927 | JR7: 20.59283752 | JS7: 19.08277212 | JT7: 20.56436795 | JU7: 19.44950734 | JV7: 20.96869028 | JW7: 19.82782865 | JX7: 21.38569917 | JY7: 19.91044843 | JZ7: 21.4767555 | KA7: 20.04938942 | KB7: 21.62987398 | KC7: 19.99362578 | KD7: 21.56842179 | KE7: 20.62108046 | KF7: 22.25976152 | KG7: 20.38929745 | KH7: 22.00441107 | KI7: 20.50466344 | KJ7: 22.1315121 | KK7: 20.65035032 | KL7: 22.2920048 | KM7: 20.82737498 | KN7: 22.48699956 | KO7: 20.97675689 | KP7: 22.65152772 | KQ7: 20.85711511 | KR7: 22.51975642 | KS7: 20.62108046 | KT7: 22.25976152 | KU7: 20.82737498 | KV7: 22.48699956 | KW7: 20.97675689 | KX7: 22.65152772 | KY7: 20.79770261 | KZ7: 22.45431668 | LA7: 20.82737498 | LB7: 22.48699956 | LC7: 20.5336687 | LD7: 22.1634663 | LE7: 20.30345566 | LF7: 21.9098314 | LG7: 20.18990091 | LH7: 21.78471004 | LI7: 19.91044843 | LJ7: 21.4767555 | LK7: 20.18990091 | LL7: 21.78471004 | LM7: 20.47572387 | LN7: 22.09962967 | LO7: 20.30345566 | LP7: 21.9098314 | LQ7: 20.41804106 | LR7: 22.03607935 | LS7: 20.2749708 | LT7: 21.87844592 | LU7: 20.13350645 | LV7: 21.72256801 | LW7: 20.07736537 | LX7: 21.66070304 | LY7: 20.13350645 | LZ7: 21.72256801 | MA7: 20.2181936 | MB7: 21.81588544 | MC7: 20.50466344 | MD7: 22.1315121 | ME7: 20.33200493 | MF7: 21.94128729 | MG7: 19.91044843 | MH7: 21.4767555 | MI7: 19.88284678 | MJ7: 21.44633586 | MK7: 20.56273984 | ML7: 22.19549247 | MM7: 20.62023837 | MN7: 22.24432852 | MO7: 20.85629035 | MP7: 22.50411255 | MQ7: 21.18798355 | MR7: 22.86908374 | MS7: 21.43452752 | MT7: 23.14030898 | MU7: 21.74917308 | MV7: 23.48638507 | MW7: 21.9092491 | MX7: 23.66242147 | MY7: 22.10381188 | MZ7: 23.87635557 | NA7: 21.9092491 | NB7: 23.66242147 | NC7: 21.00602522 | ND7: 22.66888014 | NE7: 21.15748307 | NF7: 22.83552667 | NG7: 21.24919498 | NH7: 22.93642733 | NI7: 20.67884895 | NJ7: 22.30883543 | NK7: 20.27410456 | NL7: 21.86332299 | NM7: 19.99274103 | NN7: 21.55355164 | NO7: 20.10452681 | NP7: 21.67663033 | NQ7: 20.70825437 | NR7: 22.34119816 | NS7: 20.3597584 | NT7: 21.95761402 | NU7: 20.70825437 | NV7: 22.34119816 | NW7: 20.53282037 | NX7: 22.14811151 | NY7: 20.44599537 | NZ7: 22.05254178 | OA7: 19.93722375 | OB7: 21.49242272 | OC7: 20.04850825 | OD7: 21.61495368 | OE7: 20.27410456 | OF7: 21.86332299 | OG7: 20.18902896 | OH7: 21.76966348 | OI7: 19.79951495 | OJ7: 21.3407856 | OK7: 19.42201386 | OL7: 20.92503972 | OM7: 19.60929178 | ON7: 21.13130221 | OO7: 19.71762642 | OP7: 21.25060868 | OQ7: 19.63628487 | OR7: 21.16102979 | OS7: 19.66333823 | OT7: 21.19082327 | OU7: 19.82693347 | OV7: 21.37097831 | OW7: 19.69045202 | OX7: 21.22068284 | OY7: 19.66333823 | OZ7: 21.19082327 | PA7: 19.77215772 | PB7: 21.31065988 | PC7: 19.82693347 | PD7: 21.37097831 | PE7: 19.66333823 | PF7: 21.19082327 | PG7: 19.60929178 | PH7: 21.13130221 | PI7: 19.55548576 | PJ7: 21.07204408 | PK7: 19.52867249 | PL7: 21.04251316 | PM7: 19.69045202 | PN7: 21.22068284 | PO7: 19.52867249 | PP7: 21.04251316 | PQ7: 19.63628487 | PR7: 21.16102979 | PS7: 19.85441343 | PT7: 21.4012382 | PU7: 19.99274103 | PV7: 21.55355164 | PW7: 19.9095584 | PX7: 21.46196022 | PY7: 19.69045202 | PZ7: 21.22068284 | QA7: 19.47522462 | QB7: 20.98364675 | QC7: 19.50191883 | QD7: 21.01304744 | QE7: 19.395497 | QF7: 20.89583303 | QG7: 19.15947155 | QH7: 20.63584667 | QI7: 19.00470935 | QJ7: 20.46535521 | QK7: 19.08183447 | QL7: 20.5503207 | QM7: 19.395497 | QN7: 20.89583303 | QO7: 19.42089508 | QP7: 20.9105778 | QQ7: 19.2626663 | QR7: 20.73644381 | QS7: 19.23649877 | QT7: 20.70764442 | QU7: 19.36791802 | QV7: 20.85227719 | QW7: 19.13240546 | QX7: 20.59307758 | QY7: 19.23649877 | QZ7: 20.70764442 | RA7: 19.71652016 | RB7: 21.23587687 | RC7: 19.74375655 | RD7: 21.26584433 | RE7: 19.79841236 | RF7: 21.32597915 | RG7: 19.77105389 | RH7: 21.29587836 | RI7: 19.52755809 | RJ7: 21.02795379 | RK7: 19.474108 | RL7: 20.9691362 | RM7: 19.50080332 | RN7: 20.9985125 | RO7: 19.66222958 | RP7: 21.17614098 | RQ7: 19.77105389 | RR7: 21.29587836 | RS7: 19.9638563 | RT7: 21.50799606 | RU7: 20.13154396 | RV7: 21.69246258 | RW7: 20.18794496 | RX7: 21.75450274 | RY7: 20.35868315 | RZ7: 21.94229838 | SA7: 20.21624097 | SB7: 21.78562704 | SC7: 20.273 | SD7: 21.8481 | SE7: 20.18794496 | SF7: 21.75450274 | SG7: 19.93612751 | SH7: 21.47749088 | SI7: 19.58124667 | SJ7: 21.08703197 | SK7: 19.55437249 | SL7: 21.05746022 | SM7: 19.13240546 | SN7: 20.59307758 | SO7: 19.08070267 | SP7: 20.53617021 | SQ7: 19.28889183 | SR7: 20.76530661 | SS7: 19.68934456 | ST7: 21.20597581 | SU7: 20.04741732 | SV7: 21.59992061 | SW7: 20.24460088 | SX7: 21.81682107 | SY7: 19.99164742 | SZ7: 21.53856929 | TA7: 20.18794496 | TB7: 21.75450274 | TC7: 20.13154396 | TD7: 21.69246258 | TE7: 20.21624097 | TF7: 21.78562704 | TG7: 20.38736528 | TH7: 21.97384396 | TI7: 20.35868315 | TJ7: 21.94229838 | TK7: 20.33006583 | TL7: 21.9108235 | TM7: 20.27302487 | TN7: 21.84808503 | TO7: 19.90846086 | TP7: 21.44705356 | TQ7: 19.68934456 | TR7: 21.20597581 | TS7: 19.79841236 | TT7: 21.32597915 | TU7: 19.90846086 | TV7: 21.44705356 | TW7: 19.82583211 | TX7: 21.35614688 | TY7: 19.79841236 | TZ7: 21.32597915 | UA7: 19.66222958 | UB7: 21.17614098 | UC7: 19.21038908 | UD7: 20.67890827 | UE7: 18.85083847 | UF7: 20.2831481 | UG7: 18.14020635 | UH7: 19.50073882 | UI7: 17.76682572 | UJ7: 19.08954454 | UK7: 17.49507551 | UL7: 18.79023498 | UM7: 17.51745662 | UN7: 18.81488698 | UO7: 17.67546733 | UP7: 18.9889245 | UQ7: 17.63008031 | UR7: 18.93893498 | US7: 17.40468583 | UT7: 18.67945693 | UU7: 17.76548613 | UV7: 19.07651567 | UW7: 17.3825414 | UX7: 18.6550854 | UY7: 17.33839327 | UZ7: 18.60649668 | VA7: 17.27252106 | VB7: 18.53399742 | VC7: 17.42687734 | VD7: 18.70388009 | VE7: 17.67412752 | VF7: 18.97598116 | VG7: 17.9973412 | VH7: 19.33164117 | VI7: 18.21032337 | VJ7: 19.5659773 | VK7: 18.09148917 | VL7: 19.43523129 | VM7: 17.90400094 | VN7: 19.22893566 | VO7: 17.65140974 | VP7: 18.95098108 | VQ7: 17.69689392 | VR7: 19.00103451 | VS7: 17.97393075 | VT7: 19.30588223 | VU7: 18.18645364 | VV7: 19.53971545 | VW7: 18.13886879 | VX7: 19.48736102 | VY7: 18.1151534 | VZ7: 19.46126815 | WA7: 17.9973412 | WB7: 19.33164117 | WC7: 18.09148917 | WD7: 19.43523129 | WE7: 18.04431367 | WF7: 19.38332507 | WG7: 18.16263549 | WH7: 19.51351007 | WI7: 17.92726076 | WJ7: 19.25452961 | WK7: 17.9973412 | WL7: 19.33164117 | WM7: 18.47633534 | WN7: 19.85862812 | WO7: 18.67383804 | WP7: 20.0758848 | WQ7: 18.90019921 | WR7: 20.32485964 | WS7: 19.07937837 | WT7: 20.5219179 | WU7: 18.64896112 | WV7: 20.0485209 | WW7: 18.59937009 | WX7: 19.99397115 | WY7: 18.67383804 | WZ7: 20.0758848 | XA7: 18.62413852 | XB7: 20.0212164 | XC7: 18.67383804 | XD7: 20.0758848 | XE7: 18.72375542 | XF7: 20.13079146 | XG7: 18.77389186 | XH7: 20.18593767 | XI7: 18.74879619 | XJ7: 20.15833454 | XK7: 18.72375542 | XL7: 20.13079146 | XM7: 18.7990426 | XN7: 20.213601 | XO7: 18.67383804 | XP7: 20.0758848 | XQ7: 18.69876943 | XR7: 20.10330827 | XS7: 18.52538835 | XT7: 19.91258932 | XU7: 18.09148917 | XV7: 19.43523129 | XW7: 18.06787598 | XX7: 19.40925032 | XY7: 17.9973412 | XZ7: 19.33164117 | YA7: 17.92726076 | YB7: 19.25452961 | YC7: 18.02080213 | YD7: 19.35745541 | YE7: 17.83452061 | YF7: 19.15248143 | YG7: 17.97393075 | YH7: 19.30588223 | YI7: 17.9973412 | YJ7: 19.33164117 | YK7: 17.92726076 | YL7: 19.25452961 | YM7: 17.857631 | YN7: 19.17791171 | YO7: 17.58354678 | YP7: 18.87629913 | YQ7: 17.31488622 | YR7: 18.56958715 | YS7: 17.6726187 | YT7: 18.96295045 | YU7: 17.76397612 | YV7: 19.06339861 | YW7: 17.62723224 | YX7: 18.91304635 | YY7: 17.69538479 | YZ7: 18.98798228 | ZA7: 17.62723224 | ZB7: 18.91304635 | ZC7: 17.5146102 | ZD7: 18.78921045 | ZE7: 17.29292926 | ZF7: 18.54544159 | ZG7: 17.33688976 | ZH7: 18.59378376 | ZI7: 17.40318115 | ZJ7: 18.66668121 | ZK7: 17.42537228 | ZL7: 18.69108334 | ZM7: 17.49222946 | ZN7: 18.76460062 | ZO7: 17.60461163 | ZP7: 18.88817381 | ZQ7: 17.87927972 | ZR7: 19.19017043 | ZS7: 17.90248935 | ZT7: 19.21568777 | ZU7: 17.76397612 | ZV7: 19.06339861 | ZW7: 17.53703866 | ZX7: 18.81387255 | ZY7: 17.6726187 | ZZ7: 18.96295045 | AAA7: 17.5146102 | AAB7: 18.78921045 | AAC7: 17.44761063 | AAD7: 18.7155372 | AAE7: 17.40318115 | AAF7: 18.66668121 | AAG7: 17.44761063 | AAH7: 18.7155372 | AAI7: 17.24915461 | AAJ7: 18.49730306 | AAK7: 17.1621589 | AAL7: 18.40163272 | AAM7: 17.27101876 | AAN7: 18.52134693 | AAO7: 17.5146102 | AAP7: 18.78921045 | AAQ7: 17.60461163 | AAR7: 18.88817381 | AAS7: 17.49222946 | AAT7: 18.76460062 | AAU7: 17.44761063 | AAV7: 18.7155372 | AAW7: 17.5146102 | AAX7: 18.78921045 | AAY7: 17.53703866 | AAZ7: 18.81387255 | ABA7: 17.60461163 | ABB7: 18.88817381 | ABC7: 17.3810371 | ABD7: 18.64233065 | ABE7: 17.40318115 | ABF7: 18.66668121 | ABG7: 17.20556481 | ABH7: 18.44936712 | ABI7: 17.07589482 | ABJ7: 18.30676429 | ABK7: 17.03303471 | ABL7: 18.2596282 | ABM7: 17.11893589 | ABN7: 18.35409879 | ABO7: 16.84237821 | ABP7: 18.04994339 | ABQ7: 16.88443571 | ABR7: 18.09619938 | ABS7: 16.55284591 | ABT7: 17.7314942 | ABU7: 16.09506929 | ABV7: 17.22795738 | ABW7: 15.86468622 | ABX7: 16.97453153 | ABY7: 15.45665331 | ABZ7: 16.52567626 | ACA7: 15.34848244 | ACB7: 16.40668253 | ACC7: 15.31271421 | ACD7: 16.36733562 | ACE7: 14.9971544 | ACF7: 16.02020687 | ACG7: 15.06630373 | ACH7: 16.09627323 | ACI7: 15.11852797 | ACJ7: 16.1537218 | ACK7: 15.22391824 | ACL7: 16.26965567 | ACM7: 15.7891375 | ACN7: 16.89142519 | ACO7: 15.90269212 | ACP7: 17.0163392 | ACQ7: 15.90269212 | ACR7: 17.0163392 | ACS7: 15.97756219 | ACT7: 17.08897545 | ACU7: 15.84413945 | ACV7: 16.94232768 | ACW7: 15.69396796 | ACX7: 16.77726877 | ACY7: 15.71260617 | ACZ7: 16.79775481 | ADA7: 15.86308336 | ADB7: 16.96314946 | ADC7: 15.97756219 | ADD7: 17.08897545 | ADE7: 16.03533033 | ADF7: 17.15246891 | ADG7: 15.97756219 | ADH7: 17.08897545 | ADI7: 16.05466538 | ADJ7: 17.17372013 | ADK7: 16.1324034 | ADL7: 17.25916163 | ADM7: 16.25021527 | ADN7: 17.38864612 | ADO7: 16.34951079 | ADP7: 17.49777759 | ADQ7: 16.47002818 | ADR7: 17.63023027 | ADS7: 16.49026048 | ADT7: 17.65246591 | ADU7: 16.65364098 | ADV7: 17.83202012 | ADW7: 16.51053479 | ADX7: 17.67474763 | ADY7: 16.71561371 | ADZ7: 17.90012591 | AEA7: 16.73635765 | AEB7: 17.92292251 | AEC7: 16.51053479 | AED7: 17.67474763 | AEE7: 16.49026048 | AEF7: 17.65246591 | AEG7: 16.42968923 | AEH7: 17.58589677 | AEI7: 16.44983781 | AEJ7: 17.6080406 | AEK7: 16.53085124 | AEL7: 17.69707556 | AEM7: 16.69491303 | AEN7: 17.87737673 | AEO7: 16.75714496 | AEP7: 17.94576664 | AEQ7: 17.29126476 | AER7: 18.5326876 | AES7: 17.53536632 | AET7: 18.80088518 | AEU7: 17.90080672 | AEV7: 19.20235171 | AEW7: 17.67094235 | AEX7: 18.94983362 | AEY7: 17.40151301 | AEZ7: 18.65382177 | AFA7: 17.71652199 | AFB7: 18.99990716 | AFC7: 17.67094235 | AFD7: 18.94983362 | AFE7: 17.83132898 | AFF7: 19.12602932 | AFG7: 18.25501265 | AFH7: 19.59141592 | AFI7: 18.52217645 | AFJ7: 19.88482911 | AFK7: 18.49762374 | AFL7: 19.85786566 | AFM7: 18.25501265 | AFN7: 19.59141592 | AFO7: 18.18325016 | AFP7: 19.5125962 | AFQ7: 18.62092472 | AFR7: 19.99326975 | AFS7: 18.79582602 | AFT7: 20.18532443 | AFU7: 19.07615892 | AFV7: 20.49311345 | AFW7: 19.05039261 | AFX7: 20.46482554 | AFY7: 18.97343365 | AFZ7: 20.38033262 | AGA7: 18.92240942 | AGB7: 20.32431137 | AGC7: 18.87160916 | AGD7: 20.26853448 | AGE7: 18.62092472 | AGF7: 19.99326975 | AGG7: 18.57144281 | AGH7: 19.93893175 | AGI7: 18.42428574 | AGJ7: 19.7773249 | AGK7: 18.39994597 | AGL7: 19.75059399 | AGM7: 18.74558032 | AGN7: 20.13015271 | AGO7: 18.92240942 | AGP7: 20.32431137 | AGQ7: 18.79394212 | AGR7: 20.17104291 | AGS7: 18.7687925 | AGT7: 20.14345105 | AGU7: 19.04850145 | AGV7: 20.45030078 | AGW7: 19.07426706 | AGX7: 20.4785641 | AGY7: 19.23006168 | AGZ7: 20.64945255 | AHA7: 19.33508011 | AHB7: 20.7646368 | AHC7: 19.49436643 | AHD7: 20.93932851 | AHE7: 19.65579447 | AHF7: 21.11635203 | AHG7: 18.71865835 | AHH7: 20.08844735 | AHI7: 16.98689134 | AHJ7: 18.18768207 | AHK7: 17.02956761 | AHL7: 18.23453863 | AHM7: 17.78341113 | AHN7: 19.06210709 | AHO7: 17.53352998 | AHP7: 18.78781413 | AHQ7: 18.08642897 | AHR7: 19.39468865 | AHS7: 18.22917499 | AHT7: 19.55134569 | AHU7: 18.32537482 | AHV7: 19.65691447 | AHW7: 19.1000896 | AHX7: 20.50688945 | AHY7: 20.1251211 | AHZ7: 21.63091922 | AIA7: 20.15329089 | AIB7: 21.66179953 | AIC7: 20.29509726 | AID7: 21.81724199 | AIE7: 20.49633964 | AIF7: 22.0378108 | AIG7: 20.18152427 | AIH7: 21.69274898 | AII7: 20.61277798 | AIJ7: 22.16541776 | AIK7: 20.70080437 | AIL7: 22.26188082 | AIM7: 21.08929278 | AIN7: 22.68753283 | AIO7: 21.180598 | AIP7: 22.78755564 | AIQ7: 21.33417919 | AIR7: 22.95578566 | AIS7: 21.05899711 | AIT7: 22.65434317 | AIU7: 21.30332144 | AIV7: 22.92198613 | AIW7: 21.11965803 | AIX7: 22.72079799 | AIY7: 21.27253464 | AIZ7: 22.88826358 | AJA7: 21.39610837 | AJB7: 23.0236165 | AJC7: 21.11965803 | AJD7: 22.72079799 | AJE7: 21.08929278 | AJF7: 22.68753283 | AJG7: 21.15009303 | AJH7: 22.75413886 | AJI7: 21.30332144 | AJJ7: 22.92198613 | AJK7: 21.24181861 | AJL7: 22.85461779 | AJM7: 20.96852551 | AJN7: 22.55522509 | AJO7: 20.06897158 | AJP7: 21.56936528 | AJQ7: 20.26660774 | AJR7: 21.78601408 | AJS7: 20.23818252 | AJT7: 21.75485607 | AJU7: 20.18152427 | AJV7: 21.69274898 | AJW7: 20.06897158 | AJX7: 21.56936528 | AJY7: 20.46739491 | AJZ7: 22.00608818 | AKA7: 20.43851576 | AKB7: 21.97443681 | AKC7: 20.58356911 | AKD7: 22.13340816 | AKE7: 20.84885882 | AKF7: 22.42411204 | AKG7: 21.0287708 | AKH7: 22.6212288 | AKI7: 21.180598 | AKJ7: 22.78755564 | AKK7: 21.64670395 | AKL7: 23.29806186 | AKM7: 21.73972895 | AKN7: 23.38509034 | AKO7: 21.64455465 | AKP7: 23.28095988 | AKQ7: 21.36296316 | AKR7: 22.972827 | AKS7: 21.64455465 | AKT7: 23.28095988 | AKU7: 21.80354735 | AKV7: 23.45491011 | AKW7: 21.83556784 | AKX7: 23.4899405 | AKY7: 21.70793062 | AKZ7: 23.35030052 | ALA7: 20.75769087 | ALB7: 22.31029302 | ALC7: 20.63992343 | ALD7: 22.18135143 | ALE7: 20.49421341 | ALF7: 22.02180156 | ALG7: 20.03887833 | ALH7: 21.52311716 | ALI7: 19.25414386 | ALJ7: 20.66333277 | ALK7: 18.96947124 | ALL7: 20.35133477 | ALM7: 18.81708036 | ALN7: 20.18429545 | ALO7: 18.79187663 | ALP7: 20.1566677 | ALQ7: 18.66668362 | ALR7: 20.01942833 | ALS7: 18.42036602 | ALT7: 19.74938305 | ALU7: 18.25110754 | ALV7: 19.56380035 | ALW7: 18.37177404 | ALX7: 19.69607031 | ALY7: 18.39605893 | ALZ7: 19.7226967 | AMA7: 18.54288387 | AMB7: 19.8836712 | AMC7: 18.81711197 | AMD7: 20.18429363 | AME7: 19.20190155 | AMF7: 20.60604269 | AMG7: 19.09804303 | AMH7: 20.49221751 | AMI7: 18.71662769 | AMJ7: 20.07414289 | AMK7: 18.59225398 | AML7: 19.93779639 | AMM7: 18.61702004 | AMN7: 19.96494725 | AMO7: 18.79190819 | AMP7: 20.15666585 | AMQ7: 18.59225398 | AMR7: 19.93779639 | AMS7: 18.44478751 | AMT7: 19.7761226 | AMU7: 18.34754189 | AMV7: 19.66950143 | AMW7: 18.39605893 | AMX7: 19.7226967 | AMY7: 18.51827951 | AMZ7: 19.85669656 | ANA7: 18.56754198 | ANB7: 19.91070442 | ANC7: 18.54288387 | AND7: 19.8836712 | ANE7: 18.32336234 | ANF7: 19.64298989 | ANG7: 18.03725872 | ANH7: 19.32926955 | ANI7: 17.94352753 | ANJ7: 19.2264816 | ANK7: 18.03725872 | ANL7: 19.32926955 | ANM7: 17.94352753 | ANN7: 19.2264816 | ANO7: 17.87375705 | ANP7: 19.14996673 | ANQ7: 17.96688464 | ANR7: 19.252096 | ANS7: 18.32336234 | ANT7: 19.64298989 | ANU7: 18.06081811 | ANV7: 19.35510468 | ANW7: 17.59912367 | ANX7: 18.84876325 | ANY7: 17.82749276 | ANZ7: 19.09922897 | AOA7: 18.13180234 | AOB7: 19.43294393 | AOC7: 18.20324853 | AOD7: 19.51128711 | AOE7: 18.10808979 | AOF7: 19.40694172 | AOG7: 17.96469417 | AOH7: 19.23843411 | AOI7: 17.6195757 | AOJ7: 18.86024683 | AOK7: 17.50697702 | AOL7: 18.73684699 | AOM7: 17.6195757 | AON7: 18.86024683 | AOO7: 17.574392 | AOP7: 18.81072951 | AOQ7: 17.55187239 | AOR7: 18.78604968 | AOS7: 17.55187239 | AOT7: 18.78604968 | AOU7: 17.41775807 | AOV7: 18.63906561 | AOW7: 17.37343245 | AOX7: 18.59048474 | AOY7: 17.06835869 | AOZ7: 18.25610217 | APA7: 16.64784737 | APB7: 17.79513569 | APC7: 16.50477184 | APD7: 17.63828279 | APE7: 16.75132966 | APF7: 17.90857892 | APG7: 16.66845753 | APH7: 17.81772999 | API7: 16.73054667 | APJ7: 17.88579568 | APK7: 16.44408809 | APL7: 17.5717538 | APM7: 16.16582532 | APN7: 17.26667616 | APO7: 15.99113238 | APP7: 17.07514036 | APQ7: 15.76315692 | APR7: 16.82517715 | APS7: 15.81962881 | APT7: 16.88709632 | APU7: 16.02967478 | APV7: 17.11739928 | APW7: 16.22477806 | APX7: 17.3313114 | APY7: 16.40384149 | APZ7: 17.52762999 | AQA7: 16.12672521 | AQB7: 17.22380675 | AQC7: 15.81962881 | AQD7: 16.88709632 | AQE7: 15.93361383 | AQF7: 17.012075 | AQG7: 15.99113238 | AQH7: 17.07514036 | AQI7: 16.14625516 | AQJ7: 17.24521946 | AQK7: 15.91451924 | AQL7: 16.99113892 | AQM7: 15.72569999 | AQN7: 16.78410691 | AQO7: 16.16582532 | AQP7: 17.26667616 | AQQ7: 16.81394004 | AQR7: 17.97721436 | AQS7: 16.89803484 | AQT7: 18.06939964 | AQU7: 16.68911072 | AQV7: 17.84037134 | AQW7: 16.30395094 | AQX7: 17.41811459 | AQY7: 16.14625516 | AQZ7: 17.24521946 | ARA7: 16.10723534 | ARB7: 17.20243794 | ARC7: 16.06837549 | ARD7: 17.15983151 | ARE7: 15.70702853 | ARF7: 16.76363423 | ARG7: 15.0767061 | ARH7: 16.07249312 | ARI7: 15.21690056 | ARJ7: 16.22621527 | ARK7: 15.02470686 | ARL7: 16.01547656 | ARM7: 14.90457373 | ARN7: 15.88375273 | ARO7: 14.83667068 | ARP7: 15.80929884 | ARQ7: 14.85359611 | ARR7: 15.82785708 | ARS7: 15.00744261 | ART7: 15.99654655 | ARU7: 13.11335411 | ARV7: 14.44739635 | ARW7: 13.15323554 | ARX7: 14.4941561 | ARY7: 13.28774243 | ARZ7: 14.65191426 | ASA7: 13.2741821 | ASB7: 14.63600618 | ASC7: 13.48019442 | ASD7: 14.87777274 | ASE7: 13.56418879 | ASF7: 14.97639699 | ASG7: 13.57827771 | ASH7: 14.99294278 | ASI7: 13.50293061 | ASJ7: 14.90235679 | ASK7: 13.46114428 | ASL7: 14.85330513 | ASM7: 13.70099741 | ASN7: 15.13496128 | ASO7: 13.64388659 | ASP7: 15.06787506 | ASQ7: 13.60132816 | ASR7: 15.01789183 | ASS7: 13.64388659 | AST7: 15.06787506 | ASU7: 13.64388659 | ASV7: 15.06787506 | ASW7: 13.43341353 | ASX7: 14.820757 | ASY7: 13.06872935 | ASZ7: 14.39303538 | ATA7: 13.05556062 | ATB7: 14.37760161 | ATC7: 13.09513784 | ATD7: 14.42398856 | ATE7: 13.1482405 | ATF7: 14.48623946 | ATG7: 13.10837771 | ATH7: 14.43950811 | ATI7: 13.20172708 | ATJ7: 14.54895339 | ATK7: 13.33714715 | ATL7: 14.70779313 | ATM7: 13.39200639 | ATN7: 14.77216281 | ATO7: 13.21515914 | ATP7: 14.56470474 | ATQ7: 13.18831925 | ATR7: 14.53323126 | ATS7: 13.20172708 | ATT7: 14.54895339 | ATU7: 13.21515914 | ATV7: 14.56470474 | ATW7: 13.21515914 | ATX7: 14.56470474 | ATY7: 13.18831925 | ATZ7: 14.53323126 | AUA7: 13.24209615 | AUB7: 14.59629537 | AUC7: 13.18831925 | AUD7: 14.53323126 | AUE7: 13.24209615 | AUF7: 14.59629537 | AUG7: 13.30986659 | AUH7: 14.67578809 | AUI7: 12.11126058 | AUJ7: 12.11126058 | AUK7: 13.3235 | AUL7: 14.6918 | AUM7: 13.21515914 | AUN7: 14.56470474 | AUO7: 13.36452693 | AUP7: 14.73991784 | AUQ7: 13.29626336 | AUR7: 14.65983027 | AUS7: 13.25560121 | AUT7: 14.61213478 | AUU7: 13.10837771 | AUV7: 14.43950811 | AUW7: 13.04241548 | AUX7: 14.36219632 | AUY7: 12.84803341 | AUZ7: 14.13448709 | AVA7: 12.86083108 | AVB7: 14.14947342 | AVC7: 12.75908329 | AVD7: 14.03034668 | AVE7: 12.58445309 | AVF7: 13.82600781 | AVG7: 12.58445309 | AVH7: 13.82600781 | AVI7: 12.30671062 | AVJ7: 13.50133551 | AVK7: 12.33042258 | AVL7: 13.52903826 | AVM7: 12.46232344 | AVN7: 13.68319264 | AVO7: 12.36614534 | AVP7: 13.57077891 | AVQ7: 12.23606604 | AVR7: 13.41881912 | AVS7: 12.17775297 | AVT7: 13.35072688 | AVU7: 12.46232344 | AVV7: 13.68319264 | AVW7: 12.59678431 | AVX7: 13.84043184 | AVY7: 12.69621949 | AVZ7: 13.95677079 | AWA7: 12.74646601 | AWB7: 14.01557783 | AWC7: 13.00312115 | AWD7: 14.31615053 | AWE7: 13.06872935 | AWF7: 14.39303538 | AWG7: 13.18831925 | AWH7: 14.53323126 | AWI7: 13.22861547 | AWJ7: 14.58048538 | AWK7: 13.15644222 | AWL7: 14.49374295 | AWM7: 13.06364062 | AWN7: 14.3849729 | AWO7: 13.11652698 | AWP7: 14.44695461 | AWQ7: 12.93307239 | AWR7: 14.23200548 | AWS7: 12.90723768 | AWT7: 14.20174834 | AWU7: 12.89435484 | AWV7: 14.18666138 | AWW7: 12.88149494 | AWX7: 14.17160208 | AWY7: 12.83028365 | AWZ7: 14.11164012 | AXA7: 12.83028365 | AXB7: 14.11164012 | AXC7: 13.73869389 | AXD7: 15.17705187 | AXE7: 13.65275236 | AXF7: 15.07610329 | AXG7: 13.48368473 | AXH7: 14.87760305 | AXI7: 13.45586598 | AXJ7: 14.84495301 | AXK7: 12.70383507 | AXL7: 13.96363952 | AXM7: 12.48177536 | AXN7: 13.7039251 | AXO7: 12.14993008 | AXP7: 13.31628832 | AXQ7: 12.16150668 | AXR7: 13.32980123 | AXS7: 12.17310325 | AXT7: 13.34333818 | AXU7: 12.50610344 | AXV7: 13.73236624 | AXW7: 12.44544244 | AXX7: 13.66145524 | AXY7: 12.36140183 | AXZ7: 13.56324592 | AYA7: 12.31383645 | AYB7: 13.50767786 | AYC7: 12.24310459 | AYD7: 13.42506808 | AYE7: 11.88907701 | AYF7: 13.01200396 | AYG7: 11.94491493 | AYH7: 13.07710622 | AYI7: 12.11531965 | AYJ7: 13.27589334 | AYK7: 12.14993008 | AYL7: 13.31628832 | AYM7: 12.16150668 | AYN7: 13.32980123 | AYO7: 12.30199665 | AYP7: 13.49384794 | AYQ7: 12.08088732 | AYR7: 13.23571284 | AYS7: 12.23138724 | AYT7: 13.41138566 | AYU7: 12.43337373 | AYV7: 13.64734955 | AYW7: 12.67881281 | AYX7: 13.93436178 | AYY7: 12.53051691 | AYZ7: 13.76091025 | AZA7: 12.34947946 | AZB7: 13.54931653 | AZC7: 12.33757781 | AZD7: 13.5354121 | AZE7: 12.49392875 | AZF7: 13.71813284 | AZG7: 12.79211342 | AZH7: 14.06695586 | AZI7: 12.83028365 | AZJ7: 14.11164012 | AZK7: 12.69131289 | AZL7: 13.94898733 | AZM7: 12.49392875 | AZN7: 13.71813284 | AZO7: 12.34947946 | AZP7: 13.54931653 | AZQ7: 12.05803078 | AZR7: 13.20904425 | AZS7: 12.04663187 | AZT7: 13.19574532
B8: 61 | C8: 13.5103 | D8: 15.2184 | E8: 15.26853857 | F8: 17.18317472 | G8: 15.33725673 | H8: 17.26348189 | I8: 15.40650071 | J8: 17.34439513 | K8: 15.47627565 | L8: 17.42592009 | M8: 15.54658672 | N8: 17.50806251 | O8: 15.59967501 | P8: 17.57007801 | Q8: 15.9431184 | R8: 17.9711447 | S8: 16.12901818 | T8: 18.18813822 | U8: 16.16330574 | V8: 18.20984011 | W8: 16.37277303 | X8: 18.45389777 | Y8: 16.5671868 | Z8: 18.6803334 | AA8: 16.78552023 | AB8: 18.93452999 | AC8: 16.98818259 | AD8: 19.17038592 | AE8: 18.83282791 | AF8: 20.34403888 | AG8: 19.08547797 | AH8: 20.62292558 | AI8: 19.34367964 | AJ8: 20.90788833 | AK8: 19.60758514 | AL8: 21.19909009 | AM8: 19.87735146 | AN8: 21.49669877 | AO8: 20.15314054 | AP8: 21.80088746 | AQ8: 20.43511944 | AR8: 22.11183452 | AS8: 20.57848372 | AT8: 22.26989969 | AU8: 20.87007223 | AV8: 22.59133087 | AW8: 20.57848372 | AX8: 22.26989969 | AY8: 20.29334561 | AZ8: 21.95550483 | BA8: 19.7417257 | BB8: 21.34708287 | BC8: 19.47490972 | BD8: 21.05269896 | BE8: 18.95846832 | BF8: 20.48273272 | BG8: 18.70853844 | BH8: 20.20682446 | BI8: 18.48866317 | BJ8: 19.95138582 | BK8: 18.15414541 | BL8: 19.58229238 | BM8: 17.92124475 | BN8: 19.32527281 | BO8: 17.6932285 | BP8: 19.07360829 | BQ8: 17.46996914 | BR8: 18.82716181 | BS8: 17.25134299 | BT8: 18.58580031 | BU8: 17.03723001 | BV8: 18.34939462 | BW8: 17.25134299 | BX8: 18.58580031 | BY8: 17.46996914 | BZ8: 18.82716181 | CA8: 17.6932285 | CB8: 19.07360829 | CC8: 17.92124475 | CD8: 19.32527281 | CE8: 18.15414541 | CF8: 19.58229238 | CG8: 18.39206191 | CH8: 19.84480815 | CI8: 19.7155007 | CJ8: 21.30429638 | CK8: 19.98770894 | CL8: 21.60430989 | CM8: 19.7155007 | CN8: 21.30429638 | CO8: 19.44921968 | CP8: 21.01075474 | CQ8: 18.68437373 | CR8: 20.1672871 | CS8: 18.44025897 | CT8: 19.89798357 | CU8: 18.68437373 | CV8: 20.1672871 | CW8: 18.93380804 | CX8: 20.44241251 | CY8: 19.18870686 | CZ8: 20.72351507 | DA8: 19.44921968 | DB8: 21.01075474 | DC8: 18.93380804 | DD8: 20.44241251 | DE8: 18.44025897 | DF8: 19.89798357 | DG8: 18.93380804 | DH8: 20.44241251 | DI8: 18.9594339 | DJ8: 20.45765796 | DK8: 18.7094195 | DL8: 20.18213669 | DM8: 18.9594339 | DN8: 20.45765796 | DO8: 19.21492944 | DP8: 20.73916861 | DQ8: 19.74298869 | DR8: 21.3208081 | DS8: 20.0158472 | DT8: 21.62126939 | DU8: 19.74298869 | DV8: 21.3208081 | DW8: 19.47607573 | DX8: 21.02683222 | DY8: 19.21494868 | DZ8: 20.7391714 | EA8: 18.7094381 | EB8: 20.18213873 | EC8: 18.95945282 | ED8: 20.45766037 | EE8: 19.21494868 | EF8: 20.7391714 | EG8: 19.74298869 | EH8: 21.3208081 | EI8: 20.0158472 | EJ8: 21.62126939 | EK8: 19.74298869 | EL8: 21.3208081 | EM8: 20.0158472 | EN8: 21.62126939 | EO8: 20.29481591 | EP8: 21.92839165 | EQ8: 20.87176882 | ER8: 22.56334858 | ES8: 21.47527232 | ET8: 23.22719482 | EU8: 22.10684387 | EV8: 23.92154192 | EW8: 22.7681001 | EX8: 24.64810363 | EY8: 23.11039404 | EZ8: 25.0240302 | FA8: 23.46076398 | FB8: 25.40870303 | FC8: 22.7681001 | FD8: 24.64810363 | FE8: 22.4336563 | FF8: 24.28068465 | FG8: 22.10684387 | FH8: 23.92154192 | FI8: 21.78745096 | FJ8: 23.57045113 | FK8: 22.10684387 | FL8: 23.92154192 | FM8: 21.47527232 | FN8: 23.22719482 | FO8: 21.17010915 | FP8: 22.89156213 | FQ8: 21.78745096 | FR8: 23.57045113 | FS8: 22.10684387 | FT8: 23.92154192 | FU8: 21.78745096 | FV8: 23.57045113 | FW8: 21.47527232 | FX8: 23.22719482 | FY8: 21.78745096 | FZ8: 23.57045113 | GA8: 21.81973225 | GB8: 23.59029142 | GC8: 22.46754794 | GD8: 24.30164982 | GE8: 22.80283324 | GF8: 24.66965832 | GG8: 23.14599397 | GH8: 25.04619333 | GI8: 23.49725685 | GJ8: 25.43149416 | GK8: 23.14599397 | GL8: 25.04619333 | GM8: 23.49725685 | GN8: 25.43149416 | GO8: 23.85685599 | GP8: 25.82580771 | GQ8: 24.22503319 | GR8: 26.22938875 | GS8: 24.60203819 | GT8: 26.64250014 | GU8: 23.7480867 | GV8: 25.70655231 | GW8: 23.04220549 | GX8: 24.93232345 | GY8: 22.04309059 | GZ8: 23.83560524 | HA8: 21.41427974 | HB8: 23.14485998 | HC8: 20.81339104 | HD8: 22.48443283 | HE8: 20.52294236 | HF8: 22.16508443 | HG8: 19.42365266 | HH8: 20.95573183 | HI8: 19.68943725 | HJ8: 21.24822354 | HK8: 20.23891579 | HL8: 21.85272273 | HM8: 19.68943725 | HN8: 21.24822354 | HO8: 19.96113705 | HP8: 21.54716237 | HQ8: 19.42365266 | HR8: 20.95573183 | HS8: 19.16362458 | HT8: 20.66951797 | HU8: 18.90919914 | HV8: 20.38941775 | HW8: 19.42365266 | HX8: 20.95573183 | HY8: 19.96113705 | HZ8: 21.54716237 | IA8: 19.42365266 | IB8: 20.95573183 | IC8: 19.96113705 | ID8: 21.54716237 | IE8: 19.68943725 | IF8: 21.24822354 | IG8: 19.16362458 | IH8: 20.66951797 | II8: 18.66022714 | IJ8: 20.11527182 | IK8: 18.41656393 | IL8: 19.8469255 | IM8: 18.66022714 | IN8: 20.11527182 | IO8: 18.68484428 | IP8: 20.12982982 | IQ8: 17.96760474 | IR8: 19.34049547 | IS8: 17.69327666 | IT8: 19.03851801 | IU8: 17.7612023 | IV8: 19.11330008 | IW8: 17.99075971 | IX8: 19.36600597 | IY8: 18.32044866 | IZ8: 19.72887589 | JA8: 18.39238792 | JB8: 19.80804487 | JC8: 18.51331971 | JD8: 19.9411213 | JE8: 18.58650471 | JF8: 20.02165057 | JG8: 18.73430075 | JH8: 20.18426577 | JI8: 18.68482281 | JJ8: 20.12982867 | JK8: 18.75911995 | JL8: 20.21157186 | JM8: 18.8089195 | JN8: 20.2663599 | JO8: 18.88402391 | JP8: 20.34898394 | JQ8: 18.78399281 | JR8: 20.23893652 | JS8: 18.75911995 | JT8: 20.21157186 | JU8: 19.11229073 | JV8: 20.60007774 | JW8: 19.47638756 | JX8: 21.00049651 | JY8: 19.55587003 | JZ8: 21.08789332 | KA8: 19.68951028 | KB8: 21.23482845 | KC8: 19.6358778 | KD8: 21.17586231 | KE8: 20.23906796 | KF8: 21.83889405 | KG8: 20.01632073 | KH8: 21.59408572 | KI8: 20.12719985 | KJ8: 21.71595194 | KK8: 20.2671908 | KL8: 21.86979904 | KM8: 20.43724987 | KN8: 22.0566666 | KO8: 20.58071619 | KP8: 22.21429252 | KQ8: 20.46581501 | KR8: 22.08805252 | KS8: 20.23906796 | KT8: 21.83889405 | KU8: 20.43724987 | KV8: 22.0566666 | KW8: 20.58071619 | KX8: 22.21429252 | KY8: 20.40874844 | KZ8: 22.02534994 | LA8: 20.43724987 | LB8: 22.0566666 | LC8: 20.15507373 | LD8: 21.74658615 | LE8: 19.93380394 | LF8: 21.50338521 | LG8: 19.82462973 | LH8: 21.3833743 | LI8: 19.55587003 | LJ8: 21.08789332 | LK8: 19.82462973 | LL8: 21.3833743 | LM8: 20.09938777 | LN8: 21.68538497 | LO8: 19.93380394 | LP8: 21.50338521 | LQ8: 20.04394838 | LR8: 21.62445204 | LS8: 19.90641984 | LT8: 21.47328393 | LU8: 19.77040315 | LV8: 21.3237613 | LW8: 19.71641519 | LX8: 21.26440808 | LY8: 19.77040315 | LZ8: 21.3237613 | MA8: 19.8518329 | MB8: 21.41327865 | MC8: 20.12719985 | MD8: 21.71595194 | ME8: 19.96124868 | MF8: 21.53355248 | MG8: 19.55587003 | MH8: 21.08789332 | MI8: 19.52931772 | MJ8: 21.0586977 | MK8: 20.1830096 | ML8: 21.77728778 | MM8: 20.23902946 | MN8: 21.82494878 | MO8: 20.46580701 | MP8: 22.0739273 | MQ8: 20.78432301 | MR8: 22.42354545 | MS8: 21.020964 | MT8: 22.6832324 | MU8: 21.32283845 | MV8: 23.01442865 | MW8: 21.47636064 | MX8: 23.18282928 | MY8: 21.66290682 | MZ8: 23.38742364 | NA8: 21.47636064 | NB8: 23.18282928 | NC8: 20.60961422 | ND8: 22.2317885 | NE8: 20.75504125 | NF8: 22.39140834 | NG8: 20.84308434 | NH8: 22.48803433 | NI8: 20.29534531 | NJ8: 21.88678218 | NK8: 19.90633787 | NL8: 21.45960362 | NM8: 19.63576162 | NN8: 21.16239835 | NO8: 19.74327671 | NP8: 21.28050228 | NQ8: 20.32359743 | NR8: 21.91780123 | NS8: 19.98868286 | NT8: 21.55003993 | NU8: 20.32359743 | NV8: 21.91780123 | NW8: 20.15502411 | NX8: 21.73270767 | NY8: 20.07157677 | NZ8: 21.64107301 | OA8: 19.5823579 | OB8: 21.10373135 | OC8: 19.6894008 | OD8: 21.22132154 | OE8: 19.90633787 | OF8: 21.45960362 | OG8: 19.8245373 | OH8: 21.36975931 | OI8: 19.44987031 | OJ8: 20.95817572 | OK8: 19.08652436 | OL8: 20.55891501 | OM8: 19.26680897 | ON8: 20.75703351 | OO8: 19.37107205 | OP8: 20.87159805 | OQ8: 19.29278935 | OR8: 20.78558167 | OS8: 19.31882656 | OT8: 20.81419171 | OU8: 19.47625169 | OV8: 20.98716045 | OW8: 19.34492074 | OX8: 20.84286378 | OY8: 19.31882656 | OZ8: 20.81419171 | PA8: 19.42354668 | PB8: 20.92925386 | PC8: 19.47625169 | PD8: 20.98716045 | PE8: 19.31882656 | PF8: 20.81419171 | PG8: 19.26680897 | PH8: 20.75703351 | PI8: 19.21501804 | PJ8: 20.70012213 | PK8: 19.18920719 | PL8: 20.67175859 | PM8: 19.34492074 | PN8: 20.84286378 | PO8: 19.18920719 | PP8: 20.67175859 | PQ8: 19.29278935 | PR8: 20.78558167 | PS8: 19.50269098 | PT8: 21.01620821 | PU8: 19.63576162 | PV8: 21.16239835 | PW8: 19.55574393 | PX8: 21.07449349 | PY8: 19.34492074 | PZ8: 20.84286378 | QA8: 19.13775397 | QB8: 20.61521501 | QC8: 19.16345255 | QD8: 20.64345627 | QE8: 19.06099304 | QF8: 20.53085595 | QG8: 18.83368868 | QH8: 20.28102401 | QI8: 18.68459467 | QJ8: 20.11713129 | QK8: 18.75890007 | QL8: 20.19881426 | QM8: 19.06099304 | QN8: 20.53085595 | QO8: 19.08614923 | QP8: 20.54578521 | QQ8: 18.9337749 | QR8: 20.37845843 | QS8: 18.90857158 | QT8: 20.35078009 | QU8: 19.03513691 | QV8: 20.48976917 | QW8: 18.80830261 | QX8: 20.24065945 | QY8: 18.90857158 | QZ8: 20.35078009 | RA8: 19.37072618 | RB8: 20.85823626 | RC8: 19.39693753 | RD8: 20.88701157 | RE8: 19.44953275 | RF8: 20.94474983 | RG8: 19.42320633 | RH8: 20.91584938 | RI8: 19.18884248 | RJ8: 20.65854498 | RK8: 19.13738402 | RL8: 20.60204338 | RM8: 19.16308521 | RN8: 20.63026367 | RO8: 19.31847523 | RP8: 20.80087245 | RQ8: 19.42320633 | RR8: 20.91584938 | RS8: 19.60870989 | RT8: 21.11947775 | RU8: 19.77000096 | RV8: 21.29650377 | RW8: 19.82424042 | RX8: 21.35602952 | RY8: 19.98840441 | RZ8: 21.53617744 | SA8: 19.85145009 | SB8: 21.38589013 | SC8: 19.9061 | SD8: 21.4458 | SE8: 19.82424042 | SF8: 21.35602952 | SG8: 19.5820345 | SH8: 21.09019783 | SI8: 19.24052585 | SJ8: 20.71529129 | SK8: 19.21465598 | SL8: 20.68688747 | SM8: 18.80830261 | SN8: 20.24065945 | SO8: 18.75849266 | SP8: 20.18595257 | SQ8: 18.95903295 | SR8: 20.40619635 | SS8: 19.34457214 | ST8: 20.82952328 | SU8: 19.68908902 | SV8: 21.2077012 | SW8: 19.87871994 | SX8: 21.41581612 | SY8: 19.635444 | SZ8: 21.14882151 | TA8: 19.82424042 | TB8: 21.35602952 | TC8: 19.77000096 | TD8: 21.29650377 | TE8: 19.85145009 | TF8: 21.38589013 | TG8: 20.01597763 | TH8: 21.566433 | TI8: 19.98840441 | TJ8: 21.53617744 | TK8: 19.9608922 | TL8: 21.50598815 | TM8: 19.90605013 | TN8: 21.44580767 | TO8: 19.55541766 | TP8: 21.06098158 | TQ8: 19.34457214 | TR8: 20.82952328 | TS8: 19.44953275 | TT8: 20.94474983 | TU8: 19.55541766 | TV8: 21.06098158 | TW8: 19.47591693 | TX8: 20.97371312 | TY8: 19.44953275 | TZ8: 20.94474983 | UA8: 19.31847523 | UB8: 20.80087245 | UC8: 18.88342284 | UD8: 20.32316118 | UE8: 18.53698962 | UF8: 19.94264938 | UG8: 17.85163849 | UH8: 19.18961206 | UI8: 17.49119014 | UJ8: 18.79343208 | UK8: 17.22869697 | UL8: 18.50486433 | UM8: 17.25032066 | UN8: 18.52863763 | UO8: 17.40295852 | UP8: 18.69644089 | UQ8: 17.35911936 | UR8: 18.64824758 | US8: 17.14194708 | UT8: 18.39865135 | UU8: 17.49050621 | UV8: 18.78152691 | UW8: 17.12054636 | UX8: 18.37514122 | UY8: 17.07787829 | UZ8: 18.32826664 | VA8: 17.01420786 | VB8: 18.25831714 | VC8: 17.16339242 | VD8: 18.42221022 | VE8: 17.40226917 | VF8: 18.68461003 | VG8: 17.71437293 | VH8: 19.02739217 | VI8: 17.91993391 | VJ8: 19.25312268 | VK8: 17.80525015 | VL8: 19.12718985 | VM8: 17.62426002 | VN8: 18.92842825 | VO8: 17.38032531 | VP8: 18.66050679 | VQ8: 17.42425907 | VR8: 18.70876354 | VS8: 17.69177336 | VT8: 19.00257336 | VU8: 17.89689983 | VV8: 19.22782998 | VW8: 17.85097792 | VX8: 19.17740406 | VY8: 17.82808984 | VZ8: 19.15227056 | WA8: 17.71437293 | WB8: 19.02739217 | WC8: 17.80525015 | WD8: 19.12718985 | WE8: 17.75971549 | WF8: 19.07718625 | WG8: 17.87391455 | WH8: 19.20259049 | WI8: 17.64671703 | WJ8: 18.95309153 | WK8: 17.71437293 | WL8: 19.02739217 | WM8: 18.17656639 | WN8: 19.5348936 | WO8: 18.36702663 | WP8: 19.74397902 | WQ8: 18.58523483 | WR8: 19.98349197 | WS8: 18.75789924 | WT8: 20.17298814 | WU8: 18.34304042 | WV8: 19.71764869 | WW8: 18.29522184 | WX8: 19.66515561 | WY8: 18.36702663 | WZ8: 19.74397902 | XA8: 18.31910554 | XB8: 19.69137427 | XC8: 18.36702663 | XD8: 19.74397902 | XE8: 18.41515356 | XF8: 19.79680797 | XG8: 18.46348744 | XH8: 19.8498623 | XI8: 18.43929457 | XJ8: 19.82330689 | XK8: 18.41515356 | XL8: 19.79680797 | XM8: 18.48773233 | XN8: 19.87647436 | XO8: 18.36702663 | XP8: 19.74397902 | XQ8: 18.3910643 | XR8: 19.7703654 | XS8: 18.22387651 | XT8: 19.58683272 | XU8: 17.80525015 | XV8: 19.12718985 | XW8: 17.78245875 | XX8: 19.10216179 | XY8: 17.71437293 | XZ8: 19.02739217 | YA8: 17.64671703 | YB8: 18.95309153 | YC8: 17.73702026 | YD8: 19.05226308 | YE8: 17.55717209 | YF8: 18.85474729 | YG8: 17.69177336 | YH8: 19.00257336 | YI8: 17.71437293 | YJ8: 19.02739217 | YK8: 17.64671703 | YL8: 18.95309153 | YM8: 17.57948767 | YN8: 18.87925626 | YO8: 17.31476875 | YP8: 18.5884973 | YQ8: 17.05574266 | YR8: 18.29327757 | YS8: 17.40141606 | YT8: 18.67269066 | YU8: 17.4896572 | YV8: 18.7695324 | YW8: 17.35757227 | YX8: 18.62457165 | YY8: 17.42340697 | YZ8: 18.69682544 | ZA8: 17.35757227 | ZB8: 18.62457165 | ZC8: 17.24876229 | ZD8: 18.50514626 | ZE8: 17.03451837 | ZF8: 18.26997926 | ZG8: 17.07701112 | ZH8: 18.31662408 | ZI8: 17.14108256 | ZJ8: 18.38695405 | ZK8: 17.1625288 | ZL8: 18.4104946 | ZM8: 17.2271364 | ZN8: 18.48140967 | ZO8: 17.33571914 | ZP8: 18.60058716 | ZQ8: 17.60100658 | ZR8: 18.89172732 | ZS8: 17.62341742 | ZT8: 18.91631998 | ZU8: 17.4896572 | ZV8: 18.7695324 | ZW8: 17.27043339 | ZX8: 18.52893218 | ZY8: 17.40141606 | ZZ8: 18.67269066 | AAA8: 17.24876229 | AAB8: 18.50514626 | AAC8: 17.18401977 | AAD8: 18.43408397 | AAE8: 17.14108256 | AAF8: 18.38695405 | AAG8: 17.18401977 | AAH8: 18.43408397 | AAI8: 16.99220179 | AAJ8: 18.22352674 | AAK8: 16.90809346 | AAL8: 18.1311947 | AAM8: 17.01333812 | AAN8: 18.24672902 | AAO8: 17.24876229 | AAP8: 18.50514626 | AAQ8: 17.33571914 | AAR8: 18.60058716 | AAS8: 17.2271364 | AAT8: 18.48140967 | AAU8: 17.18401977 | AAV8: 18.43408397 | AAW8: 17.24876229 | AAX8: 18.50514626 | AAY8: 17.27043339 | AAZ8: 18.52893218 | ABA8: 17.33571914 | ABB8: 18.60058716 | ABC8: 17.11968095 | ABD8: 18.3634622 | ABE8: 17.14108256 | ABF8: 18.38695405 | ABG8: 16.95006045 | ABH8: 18.17726555 | ABI8: 16.82467884 | ABJ8: 18.03962015 | ABK8: 16.78322943 | ABL8: 17.99411453 | ABM8: 16.86629989 | ABN8: 18.08531322 | ABO8: 16.59880728 | ABP8: 17.79163347 | ABQ8: 16.63949529 | ABR8: 17.8363073 | ABS8: 16.31861371 | ABT8: 17.48396882 | ABU8: 15.87528082 | ABV8: 16.99709482 | ABW8: 15.65201539 | ABX8: 16.75187138 | ABY8: 15.25633552 | ABZ8: 16.31723574 | ACA8: 15.1513846 | ACB8: 16.20194478 | ACC8: 15.11667598 | ACD8: 16.16381601 | ACE8: 14.8103537 | ACF8: 15.82729868 | ACG8: 14.87749589 | ACH8: 15.90106066 | ACI8: 14.92819787 | ACJ8: 15.95676106 | ACK8: 15.03049953 | ACL8: 16.06914668 | ACM8: 15.57877841 | ACN8: 16.6714277 | ACO8: 15.68885416 | ACP8: 16.79233447 | ACQ8: 15.68885416 | ACR8: 16.79233447 | ACS8: 15.76192976 | ACT8: 16.86316239 | ACU8: 15.6326043 | ACV8: 16.72122864 | ACW8: 15.48700315 | ACX8: 16.56142539 | ACY8: 15.50507651 | ACZ8: 16.58126203 | ADA8: 15.65096856 | ADB8: 16.74138365 | ADC8: 15.76192976 | ADD8: 16.86316239 | ADE8: 15.81791324 | ADF8: 16.92460191 | ADG8: 15.76192976 | ADH8: 16.86316239 | ADI8: 15.83664954 | ADJ8: 16.94516394 | ADK8: 15.91197297 | ADL8: 17.02782572 | ADM8: 16.02610353 | ADN8: 17.15307094 | ADO8: 16.12227582 | ADP8: 17.25860463 | ADQ8: 16.23897743 | ADR8: 17.38666032 | ADS8: 16.25856645 | ADT8: 17.40815456 | ADU8: 16.41672424 | ADV8: 17.58168789 | ADW8: 16.27819538 | ADX8: 17.42969241 | ADY8: 16.47670287 | ADZ8: 17.64749415 | AEA8: 16.49677773 | AEB8: 17.66951911 | AEC8: 16.27819538 | AED8: 17.42969241 | AEE8: 16.25856645 | AEF8: 17.40815456 | AEG8: 16.19991873 | AEH8: 17.34380224 | AEI8: 16.21942822 | AEJ8: 17.36520958 | AEK8: 16.29786434 | AEL8: 17.45127399 | AEM8: 16.45666907 | AEN8: 17.62551403 | AEO8: 16.51689376 | AEP8: 17.69158903 | AEQ8: 17.03349254 | AER8: 18.25828905 | AES8: 17.26941398 | AET8: 18.51703833 | AEU8: 17.6224091 | AEV8: 18.90412234 | AEW8: 17.40040055 | AEX8: 18.66068396 | AEY8: 17.14005953 | AEZ8: 18.3751718 | AFA8: 17.44442991 | AFB8: 18.70896596 | AFC8: 17.40040055 | AFD8: 18.66068396 | AFE8: 17.55531567 | AFF8: 18.83055608 | AFG8: 17.96432806 | AFH8: 19.27897906 | AFI8: 18.22208043 | AFJ8: 19.56150527 | AFK8: 18.19839776 | AFL8: 19.53554841 | AFM8: 17.96432806 | AFN8: 19.27897906 | AFO8: 17.89507258 | AFP8: 19.20305878 | AFQ8: 18.31731911 | AFR8: 19.66588518 | AFS8: 18.4859636 | AFT8: 19.85069945 | AFU8: 18.75616049 | AFV8: 20.14675643 | AFW8: 18.73133131 | AFX8: 20.11955332 | AFY8: 18.65716476 | AFZ8: 20.03829274 | AGA8: 18.60798645 | AGB8: 19.9844081 | AGC8: 18.55901966 | AGD8: 19.93075331 | AGE8: 18.31731911 | AGF8: 19.66588518 | AGG8: 18.2695979 | AGH8: 19.61358444 | AGI8: 18.12765238 | AGJ8: 19.45800701 | AGK8: 18.10417102 | AGL8: 19.43226913 | AGM8: 18.43752067 | AGN8: 19.79761403 | AGO8: 18.60798645 | AGP8: 19.9844081 | AGQ8: 18.48481249 | AGR8: 19.83766705 | AGS8: 18.46056427 | AGT8: 19.81111693 | AGU8: 18.73018816 | AGV8: 20.10630998 | AGW8: 18.75501819 | AGX8: 20.13349177 | AGY8: 18.90513219 | AGZ8: 20.29781294 | AHA8: 19.00629873 | AHB8: 20.40854364 | AHC8: 19.15970809 | AHD8: 20.57643974 | AHE8: 19.31513783 | AHF8: 20.74652663 | AHG8: 18.41222381 | AHH8: 19.75818611 | AHI8: 16.73973412 | AHJ8: 17.92584114 | AHK8: 16.78101396 | AHL8: 17.97108837 | AHM8: 17.5096468 | AHN8: 18.76957875 | AHO8: 17.26823547 | AHP8: 18.50505951 | AHQ8: 17.80224573 | AHR8: 19.09013205 | AHS8: 17.94002799 | AHT8: 19.24105675 | AHU8: 18.03286271 | AHV8: 19.34273875 | AHW8: 18.77990197 | AHX8: 20.16073189 | AHY8: 19.76678625 | AHZ8: 21.24064665 | AIA8: 19.79388375 | AIB8: 21.27028658 | AIC8: 19.93027316 | AID8: 21.4194627 | AIE8: 20.12377372 | AIF8: 21.6310753 | AIG8: 19.82104117 | AIH8: 21.29999138 | AII8: 20.23570372 | AIJ8: 21.75346652 | AIK8: 20.32030783 | AIL8: 21.84597022 | AIM8: 20.69354988 | AIN8: 22.25398249 | AIO8: 20.78123828 | AIP8: 22.34982061 | AIQ8: 20.92870725 | AIR8: 22.51097871 | AIS8: 20.66445149 | AIT8: 22.22217808 | AIU8: 20.89908044 | AIV8: 22.47860339 | AIW8: 20.72271369 | AIX8: 22.28585758 | AIY8: 20.86952032 | AIZ8: 22.44630012 | AJA8: 20.9881617 | AJB8: 22.57594624 | AJC8: 20.72271369 | AJD8: 22.28585758 | AJE8: 20.69354988 | AJF8: 22.25398249 | AJG8: 20.7519431 | AJH8: 22.31780356 | AJI8: 20.89908044 | AJJ8: 22.47860339 | AJK8: 20.84002671 | AJL8: 22.41406869 | AJM8: 20.57754698 | AJN8: 22.12718711 | AJO8: 19.7127703 | AJP8: 21.18156069 | AJQ8: 19.90287448 | AJR8: 21.3894967 | AJS8: 19.87553636 | AJT8: 21.35959626 | AJU8: 19.82104117 | AJV8: 21.29999138 | AJW8: 19.7127703 | AJX8: 21.18156069 | AJY8: 20.09594641 | AJZ8: 21.60064541 | AKA8: 20.06818084 | AKB8: 21.57028232 | AKC8: 20.20762776 | AKD8: 21.72276761 | AKE8: 20.4625792 | AKF8: 22.00151063 | AKG8: 20.63541832 | AKH8: 22.19044418 | AKI8: 20.78123828 | AKJ8: 22.34982061 | AKK8: 21.22868461 | AKL8: 22.83873745 | AKM8: 21.31877785 | AKN8: 22.92294487 | AKO8: 21.22744782 | AKP8: 22.82325614 | AKQ8: 20.95715125 | AKR8: 22.52817381 | AKS8: 21.22744782 | AKT8: 22.82325614 | AKU8: 21.380011 | AKV8: 22.9897776 | AKW8: 21.41073209 | AKX8: 23.02330665 | AKY8: 21.28826541 | AKZ8: 22.88964078 | ALA8: 20.37575126 | ALB8: 21.89322242 | ALC8: 20.26256333 | ALD8: 21.76957186 | ALE8: 20.12248958 | ALF8: 21.61653378 | ALG8: 19.68455267 | ALH8: 21.13794833 | ALI8: 18.92902284 | ALJ8: 20.31189222 | ALK8: 18.65469504 | ALL8: 20.01183693 | ALM8: 18.50778633 | ALN8: 19.85112536 | ALO8: 18.48348554 | ALP8: 19.82453971 | ALQ8: 18.36276167 | ALR8: 19.69245797 | ALS8: 18.12515936 | ALT8: 19.43246855 | ALU8: 17.96182936 | ALV8: 19.25372452 | ALW8: 18.07827431 | ALX8: 19.38112666 | ALY8: 18.10170658 | ALZ8: 19.40676947 | AMA8: 18.24335506 | AMB8: 19.56177183 | AMC8: 18.50781668 | AMD8: 19.85112391 | AME8: 18.87868891 | AMF8: 20.25680743 | AMG8: 18.77861116 | AMH8: 20.14734712 | AMI8: 18.41092588 | AMJ8: 19.74512037 | AMK8: 18.29097631 | AML8: 19.61387911 | AMM8: 18.3148635 | AMN8: 19.64001586 | AMO8: 18.48351583 | AMP8: 19.82453822 | AMQ8: 18.29097631 | AMR8: 19.61387911 | AMS8: 18.14872127 | AMT8: 19.45821816 | AMU8: 18.05489192 | AMV8: 19.35553802 | AMW8: 18.10170658 | AMX8: 19.40676947 | AMY8: 18.21962073 | AMZ8: 19.53580102 | ANA8: 18.26714021 | ANB8: 19.58779781 | ANC8: 18.24335506 | AND8: 19.56177183 | ANE8: 18.03155928 | ANF8: 19.33000341 | ANG8: 17.75539988 | ANH8: 19.02775159 | ANI8: 17.66489555 | ANJ8: 18.92868412 | ANK8: 17.75539988 | ANL8: 19.02775159 | ANM8: 17.66489555 | ANN8: 18.92868412 | ANO8: 17.59751704 | ANP8: 18.85492677 | ANQ8: 17.68744999 | ANR8: 18.95337311 | ANS8: 18.03155928 | ANT8: 19.33000341 | ANU8: 17.77814579 | ANV8: 19.0526487 | ANW8: 17.33221553 | ANX8: 18.56447836 | ANY8: 17.55283412 | ANZ8: 18.8060119 | AOA8: 17.84667314 | AOB8: 19.1276548 | AOC8: 17.91563761 | AOD8: 19.2031359 | AOE8: 17.82378229 | AOF8: 19.10260017 | AOG8: 17.68595327 | AOH8: 18.94085434 | AOI8: 17.35257687 | AOJ8: 18.57618274 | AOK8: 17.24376347 | AOL8: 18.45713824 | AOM8: 17.35257687 | AON8: 18.57618274 | AOO8: 17.30891484 | AOP8: 18.52841638 | AOQ8: 17.28715228 | AOR8: 18.5046076 | AOS8: 17.28715228 | AOT8: 18.5046076 | AOU8: 17.15752773 | AOV8: 18.36278871 | AOW8: 17.11467891 | AOX8: 18.31590652 | AOY8: 16.81967298 | AOZ8: 17.99310029 | APA8: 16.41275995 | APB8: 17.5477569 | APC8: 16.27423635 | APD8: 17.39613001 | APE8: 16.51292619 | APF8: 17.65739179 | APG8: 16.43271125 | APH8: 17.56959462 | API8: 16.49281078 | APJ8: 17.63537532 | APK8: 16.21547167 | APL8: 17.33180367 | APM8: 15.94591971 | APN8: 17.03671914 | APO8: 15.77662013 | APP8: 16.85136632 | APQ8: 15.55559476 | APR8: 16.60936541 | APS8: 15.6103544 | APT8: 16.66932355 | APU8: 15.81397762 | APV8: 16.89226716 | APW8: 16.00303924 | APX8: 17.09925198 | APY8: 16.17649402 | APZ8: 17.28913611 | AQA8: 15.90803181 | AQB8: 16.99523973 | AQC8: 15.6103544 | AQD8: 16.66932355 | AQE8: 15.72086455 | AQF8: 16.79032129 | AQG8: 15.77662013 | AQH8: 16.85136632 | AQI8: 15.92695665 | AQJ8: 17.01595859 | AQK8: 15.70235382 | AQL8: 16.7700542 | AQM8: 15.51927013 | AQN8: 16.56959175 | AQO8: 15.94591971 | AQP8: 17.03671914 | AQQ8: 16.57352059 | AQR8: 17.72371149 | AQS8: 16.65489626 | AQT8: 17.81277275 | AQU8: 16.45270342 | AQV8: 17.59147685 | AQW8: 16.07973974 | AQX8: 17.18321918 | AQY8: 15.92695665 | AQZ8: 17.01595859 | ARA8: 15.88914511 | ARB8: 16.97456246 | ARC8: 15.85148569 | ARD8: 16.93333226 | ARE8: 15.50116207 | ARF8: 16.54976416 | ARG8: 14.88945717 | ARH8: 15.87991258 | ARI8: 15.02557887 | ARJ8: 16.0289823 | ARK8: 14.83895853 | ARL8: 15.82460946 | ARM8: 14.72227142 | ARN8: 15.6968188 | ARO8: 14.65630325 | ARP8: 15.62457231 | ARQ8: 14.67274727 | ARR8: 15.64258141 | ARS8: 14.82219129 | ART8: 15.80624686 | ARU8: 12.89033216 | ARV8: 14.20713714 | ARW8: 12.9287885 | ARX8: 14.25217268 | ARY8: 13.05846088 | ARZ8: 14.40407557 | ASA8: 13.0453899 | ASB8: 14.38876059 | ASC8: 13.24392062 | ASD8: 14.62144971 | ASE8: 13.32483579 | ASF8: 14.71633201 | ASG8: 13.33840658 | ASH8: 14.73224783 | ASI8: 13.26659351 | ASJ8: 14.64620892 | ASK8: 13.22633109 | ASL8: 14.59900676 | ASM8: 13.45738116 | ASN8: 14.86996761 | ASO8: 13.40237864 | ASP8: 14.80544537 | ASQ8: 13.36138634 | ASR8: 14.75736577 | ASS8: 13.40237864 | AST8: 14.80544537 | ASU8: 13.40237864 | ASV8: 14.80544537 | ASW8: 13.19960938 | ASX8: 14.56768278 | ASY8: 12.84802466 | ASZ8: 14.15581786 | ATA8: 12.83532298 | ATB8: 14.1409482 | ATC8: 12.87349527 | ATD8: 14.185638 | ATE8: 12.92470693 | ATF8: 14.24560333 | ATG8: 12.8862643 | ATH8: 14.20058861 | ATI8: 12.97628197 | ATJ8: 14.30600543 | ATK8: 13.10683172 | ATL8: 14.45894843 | ATM8: 13.15970554 | ATN8: 14.52091167 | ATO8: 12.98923291 | ATP8: 14.32117467 | ATQ8: 12.96335396 | ATR8: 14.29086373 | ATS8: 12.97628197 | ATT8: 14.30600543 | ATU8: 12.98923291 | ATV8: 14.32117467 | ATW8: 12.98923291 | ATX8: 14.32117467 | ATY8: 12.96335396 | ATZ8: 14.29086373 | AUA8: 13.01520377 | AUB8: 14.35159608 | AUC8: 12.96335396 | AUD8: 14.29086373 | AUE8: 13.01520377 | AUF8: 14.35159608 | AUG8: 13.08053581 | AUH8: 14.4281363 | AUI8: 11.95791692 | AUJ8: 11.95791692 | AUK8: 13.0937 | AUL8: 14.4435 | AUM8: 12.98923291 | AUN8: 14.32117467 | AUO8: 13.13322149 | AUP8: 14.48987338 | AUQ8: 13.06742291 | AUR8: 14.41277238 | AUS8: 13.02822379 | AUT8: 14.36684837 | AUU8: 12.8862643 | AUV8: 14.20058861 | AUW8: 12.82264365 | AUX8: 14.1261054 | AUY8: 12.63510056 | AUZ8: 13.90664441 | AVA8: 12.6474508 | AVB8: 13.92109171 | AVC8: 12.54924923 | AVD8: 13.80623467 | AVE8: 12.38064604 | AVF8: 13.60913938 | AVG8: 12.38064604 | AVH8: 13.60913938 | AVI8: 12.11233305 | AVJ8: 13.29576525 | AVK8: 12.13524753 | AVL8: 13.32251418 | AVM8: 12.26268652 | AVN8: 13.47132612 | AVO8: 12.16976619 | AVP8: 13.36281408 | AVQ8: 12.04405598 | AVR8: 13.21607855 | AVS8: 11.98768762 | AVT8: 13.1503085 | AVU8: 12.26268652 | AVV8: 13.47132612 | AVW8: 12.39255415 | AVX8: 13.62305545 | AVY8: 12.48856373 | AVZ8: 13.73527869 | AWA8: 12.53706993 | AWB8: 13.79199277 | AWC8: 12.78473922 | AWD8: 14.08173752 | AWE8: 12.84802466 | AWF8: 14.15581786 | AWG8: 12.96335396 | AWH8: 14.29086373 | AWI8: 13.00220682 | AWJ8: 14.33637154 | AWK8: 12.93334939 | AWL8: 14.25388097 | AWM8: 12.84384113 | AWN8: 14.14908726 | AWO8: 12.8948532 | AWP8: 14.20880652 | AWQ8: 12.71787128 | AWR8: 14.00166436 | AWS8: 12.69294153 | AWT8: 13.97249731 | AWU8: 12.68050935 | AWV8: 13.95795307 | AWW8: 12.66809891 | AWX8: 13.94343495 | AWY8: 12.61867345 | AWZ8: 13.88562243 | AXA8: 12.61867345 | AXB8: 13.88562243 | AXC8: 13.49447081 | AXD8: 14.91157784 | AXE8: 13.41169831 | AXF8: 14.81448085 | AXG8: 13.24881453 | AXH8: 14.62348611 | AXI8: 13.22200684 | AXJ8: 14.59206191 | AXK8: 12.49660687 | AXL8: 13.74289001 | AXM8: 12.28214705 | AXN8: 13.49229133 | AXO8: 11.96142937 | AXP8: 13.1179501 | AXQ8: 11.97262245 | AXR8: 13.13100585 | AXS8: 11.98383451 | AXT8: 13.14408438 | AXU8: 12.30564849 | AXV8: 13.51974228 | AXW8: 12.24704595 | AXX8: 13.45129637 | AXY8: 12.16584196 | AXZ8: 13.35648056 | AYA8: 12.1198742 | AYB8: 13.30282199 | AYC8: 12.05150754 | AYD8: 13.2230367 | AYE8: 11.70912716 | AYF8: 12.82383754 | AYG8: 11.76314937 | AYH8: 12.88678334 | AYI8: 11.92796348 | AYJ8: 13.07891899 | AYK8: 11.96142937 | AYL8: 13.1179501 | AYM8: 11.97262245 | AYN8: 13.13100585 | AYO8: 12.10843119 | AYP8: 13.28946611 | AYQ8: 11.89466678 | AYR8: 13.04009102 | AYS8: 12.04018078 | AYT8: 13.20982044 | AYU8: 12.23538568 | AYV8: 13.43767955 | AYW8: 12.47244708 | AYX8: 13.71464814 | AYY8: 12.32923093 | AYZ8: 13.54729052 | AZA8: 12.15432057 | AZB8: 13.34303055 | AZC8: 12.14281885 | AZD8: 13.32960416 | AZE8: 12.29388767 | AZF8: 13.50600467 | AZG8: 12.58183012 | AZH8: 13.84253432 | AZI8: 12.61867345 | AZJ8: 13.88562243 | AZK8: 12.4845165 | AZL8: 13.72875649 | AZM8: 12.29388767 | AZN8: 13.50600467 | AZO8: 12.15432057 | AZP8: 13.34303055 | AZQ8: 11.87256242 | AZR8: 13.01431788 | AZS8: 11.86153814 | AZT8: 13.00146481
B9: 62 | C9: 13.1253 | D9: 14.8453 | E9: 14.96786219 | F9: 16.82943475 | G9: 15.03375892 | H9: 16.90607845 | I9: 15.10014911 | J9: 16.98328581 | K9: 15.16703749 | L9: 17.06106197 | M9: 15.2344288 | N9: 17.13941212 | O9: 15.28530524 | P9: 17.19855457 | Q9: 15.61428893 | R9: 17.58083528 | S9: 15.79225428 | T9: 17.78751826 | U9: 15.82594902 | V9: 17.8092755 | W9: 16.0264532 | X9: 18.04168275 | Y9: 16.21240582 | Z9: 18.25714567 | AA9: 16.42114211 | AB9: 18.4988962 | AC9: 16.61480723 | AD9: 18.72308432 | AE9: 18.49812564 | AF9: 19.97244466 | AG9: 18.74107858 | AH9: 20.23989145 | AI9: 18.98925693 | AJ9: 20.51302912 | AK9: 19.24280091 | AL9: 20.7920068 | AM9: 19.50185505 | AN9: 21.07697802 | AO9: 19.76656836 | AP9: 21.36810096 | AQ9: 20.03709443 | AR9: 21.66553851 | AS9: 20.17458656 | AT9: 21.81667752 | AU9: 20.45413028 | AV9: 22.12390322 | AW9: 20.17458656 | AX9: 21.81667752 | AY9: 19.90109501 | AZ9: 21.51602004 | BA9: 19.37163 | BB9: 20.93373344 | BC9: 19.11534929 | BD9: 20.65177847 | BE9: 18.61895753 | BF9: 20.10546585 | BG9: 18.37856601 | BH9: 19.84080994 | BI9: 18.16765862 | BJ9: 19.59644018 | BK9: 17.84558748 | BL9: 19.24200556 | BM9: 17.62123435 | BN9: 18.99505117 | BO9: 17.4014912 | BP9: 18.75312716 | BQ9: 17.18624015 | BR9: 18.51610764 | BS9: 16.97536672 | BT9: 18.28387033 | BU9: 16.76875981 | BV9: 18.05629638 | BW9: 16.97536672 | BX9: 18.28387033 | BY9: 17.18624015 | BZ9: 18.51610764 | CA9: 17.4014912 | CB9: 18.75312716 | CC9: 17.62123435 | CD9: 18.99505117 | CE9: 17.84558748 | CF9: 19.24200556 | CG9: 18.07467207 | CH9: 19.4941199 | CI9: 19.34718287 | CJ9: 20.89361727 | CK9: 19.60854845 | CL9: 21.18085851 | CM9: 19.34718287 | CN9: 20.89361727 | CO9: 19.09138902 | CP9: 20.61242953 | CQ9: 18.35599558 | CR9: 19.80365636 | CS9: 18.12106771 | CT9: 19.54517364 | CU9: 18.35599558 | CV9: 19.80365636 | CW9: 18.59593528 | CX9: 20.06759772 | CY9: 18.84102049 | CZ9: 20.33713996 | DA9: 19.09138902 | DB9: 20.61242953 | DC9: 18.59593528 | DD9: 20.06759772 | DE9: 18.12106771 | DF9: 19.54517364 | DG9: 18.59593528 | DH9: 20.06759772 | DI9: 18.62127295 | DJ9: 20.08301723 | DK9: 18.38077195 | DL9: 19.81868571 | DM9: 18.62127295 | DN9: 20.08301723 | DO9: 18.8669352 | DP9: 20.35296137 | DQ9: 19.37431958 | DR9: 20.91028358 | DS9: 19.63631278 | DT9: 21.19796481 | DU9: 19.37431958 | DV9: 20.91028358 | DW9: 19.1179154 | DX9: 20.62866883 | DY9: 18.86695331 | DZ9: 20.3529648 | EA9: 18.38078949 | EB9: 19.81868837 | EC9: 18.62129077 | ED9: 20.08302026 | EE9: 18.86695331 | EF9: 20.3529648 | EG9: 19.37431958 | EH9: 20.91028358 | EI9: 19.63631278 | EJ9: 21.19796481 | EK9: 19.37431958 | EL9: 20.91028358 | EM9: 19.63631278 | EN9: 21.19796481 | EO9: 19.90404646 | EP9: 21.49187295 | EQ9: 20.45736482 | ER9: 22.09903595 | ES9: 21.03558332 | ET9: 22.73315544 | EU9: 21.64009376 | EV9: 23.39569949 | EW9: 22.27237695 | EX9: 24.08822711 | EY9: 22.59942195 | EZ9: 24.44624836 | FA9: 22.93400897 | FB9: 24.81239452 | FC9: 22.27237695 | FD9: 24.08822711 | FE9: 21.95266756 | FF9: 23.73811419 | FG9: 21.64009376 | FH9: 23.39569949 | FI9: 21.33446165 | FJ9: 23.06077916 | FK9: 21.64009376 | FL9: 23.39569949 | FM9: 21.03558332 | FN9: 22.73315544 | FO9: 20.74327658 | FP9: 22.41263644 | FQ9: 21.33446165 | FR9: 23.06077916 | FS9: 21.64009376 | FT9: 23.39569949 | FU9: 21.33446165 | FV9: 23.06077916 | FW9: 21.03558332 | FX9: 22.73315544 | FY9: 21.33446165 | FZ9: 23.06077916 | GA9: 21.36621914 | GB9: 23.08070845 | GC9: 21.98597217 | GD9: 23.75914237 | GE9: 22.30648921 | GF9: 24.10983051 | GG9: 22.63436558 | GH9: 24.46844494 | GI9: 22.96980849 | GJ9: 24.83520286 | GK9: 22.63436558 | GL9: 24.46844494 | GM9: 22.96980849 | GN9: 24.83520286 | GO9: 23.31303173 | GP9: 25.2103282 | GQ9: 23.66425596 | GR9: 25.59405184 | GS9: 24.02370895 | GT9: 25.98661185 | GU9: 23.20923483 | GV9: 25.09689842 | GW9: 22.53521774 | GX9: 24.36001556 | GY9: 21.5799728 | GZ9: 23.31475187 | HA9: 20.97800785 | HB9: 22.65551249 | HC9: 20.40220322 | HD9: 22.02453411 | HE9: 20.1236752 | HF9: 21.71918351 | HG9: 19.0682621 | HH9: 20.56136293 | HI9: 19.32362124 | HJ9: 20.84160936 | HK9: 19.85117482 | HL9: 21.42035782 | HM9: 19.32362124 | HN9: 20.84160936 | HO9: 19.58454193 | HP9: 21.12788785 | HQ9: 19.0682621 | HR9: 20.56136293 | HS9: 18.81831838 | HT9: 20.28699377 | HU9: 18.57364832 | HV9: 20.01835157 | HW9: 19.0682621 | HX9: 20.56136293 | HY9: 19.58454193 | HZ9: 21.12788785 | IA9: 19.0682621 | IB9: 20.56136293 | IC9: 19.58454193 | ID9: 21.12788785 | IE9: 19.32362124 | IF9: 20.84160936 | IG9: 18.81831838 | IH9: 20.28699377 | II9: 18.3341144 | IJ9: 19.75529038 | IK9: 18.09958316 | IL9: 19.49766848 | IM9: 18.3341144 | IN9: 19.75529038 | IO9: 18.35848042 | IP9: 19.77003396 | IQ9: 17.66781103 | IR9: 19.01185477 | IS9: 17.40340196 | IT9: 18.72150283 | IU9: 17.46888438 | IV9: 18.79342114 | IW9: 17.69012277 | IX9: 19.03637498 | IY9: 18.00769812 | IZ9: 19.38504206 | JA9: 18.07696841 | JB9: 19.46108141 | JC9: 18.193393 | JD9: 19.58887248 | JE9: 18.26383785 | JF9: 19.6661884 | JG9: 18.40607161 | JH9: 19.8222805 | JI9: 18.35846001 | JJ9: 19.77003217 | JK9: 18.42995301 | JL9: 19.84848677 | JM9: 18.47786764 | JN9: 19.90106422 | JO9: 18.55012121 | JP9: 19.9803448 | JQ9: 18.45388497 | JR9: 19.87474796 | JS9: 18.42995301 | JT9: 19.84848677 | JU9: 18.76966369 | JV9: 20.22120641 | JW9: 19.11966075 | JX9: 20.60508801 | JY9: 19.19603546 | JZ9: 20.68883982 | KA9: 19.32442655 | KB9: 20.82961839 | KC9: 19.27290425 | KD9: 20.7731272 | KE9: 19.8520879 | KF9: 21.40800381 | KG9: 19.63827552 | KH9: 21.17367401 | KI9: 19.74471717 | KJ9: 21.29033603 | KK9: 19.87907692 | KL9: 21.43757914 | KM9: 20.04225254 | KN9: 21.61637449 | KO9: 20.17987557 | KP9: 21.76714836 | KQ9: 20.06965687 | KR9: 21.64639918 | KS9: 19.8520879 | KT9: 21.40800381 | KU9: 20.04225254 | KV9: 21.61637449 | KW9: 20.17987557 | KX9: 21.76714836 | KY9: 20.01490801 | KZ9: 21.58641451 | LA9: 20.04225254 | LB9: 21.61637449 | LC9: 19.77147236 | LD9: 21.31965827 | LE9: 19.55904803 | LF9: 21.08683122 | LG9: 19.4542085 | LH9: 20.97190415 | LI9: 19.19603546 | LJ9: 20.68883982 | LK9: 19.4542085 | LL9: 20.97190415 | LM9: 19.71802004 | LN9: 21.26107664 | LO9: 19.55904803 | LP9: 21.08683122 | LQ9: 19.66479938 | LR9: 21.2027458 | LS9: 19.53275305 | LT9: 21.05800728 | LU9: 19.40212763 | LV9: 20.91480773 | LW9: 19.35027108 | LX9: 20.85795434 | LY9: 19.40212763 | LZ9: 20.91480773 | MA9: 19.48033344 | MB9: 21.0005439 | MC9: 19.74471717 | MD9: 21.29033603 | ME9: 19.5854 | MF9: 21.11571688 | MG9: 19.19603546 | MH9: 20.68883982 | MI9: 19.17052252 | MJ9: 20.66086325 | MK9: 19.79828577 | ML9: 21.34904354 | MM9: 19.85281719 | MN9: 21.39553367 | MO9: 20.07042863 | MP9: 21.63377847 | MQ9: 20.37593119 | MR9: 21.96815898 | MS9: 20.60279966 | MT9: 22.21640446 | MU9: 20.89208032 | MV9: 22.53285809 | MW9: 21.03914356 | MX9: 22.69369864 | MY9: 21.21779268 | MZ9: 22.88905056 | NA9: 21.03914356 | NB9: 22.69369864 | NC9: 20.20838044 | ND9: 21.78478325 | NE9: 20.34785253 | NF9: 21.93743052 | NG9: 20.43227411 | NH9: 22.02981632 | NI9: 19.90686457 | NJ9: 21.45471058 | NK9: 19.5334213 | NL9: 21.04575923 | NM9: 19.27352397 | NN9: 20.76106081 | NO9: 19.37681027 | NP9: 20.87421205 | NQ9: 19.93397673 | NR9: 21.48439468 | NS9: 19.61249233 | NT9: 21.13236128 | NU9: 19.93397673 | NV9: 21.48439468 | NW9: 19.77218609 | NX9: 21.30724408 | NY9: 19.69207921 | NZ9: 21.21952143 | OA9: 19.22221357 | OB9: 20.70484548 | OC9: 19.32505581 | OD9: 20.81751592 | OE9: 19.5334213 | OF9: 21.04575923 | OG9: 19.45486197 | OH9: 20.95971093 | OI9: 19.0948986 | OJ9: 20.565348 | OK9: 18.7455864 | OL9: 20.18252344 | OM9: 18.91893576 | ON9: 20.3725195 | OO9: 19.01916282 | OP9: 20.48235708 | OQ9: 18.94391217 | OR9: 20.39989182 | OS9: 18.96894205 | OT9: 20.42732208 | OU9: 19.12025234 | OV9: 20.59312915 | OW9: 18.99402555 | OX9: 20.45481046 | OY9: 18.96894205 | OZ9: 20.42732208 | PA9: 19.0695992 | PB9: 20.5376257 | PC9: 19.12025234 | PD9: 20.59312915 | PE9: 18.96894205 | PF9: 20.42732208 | PG9: 18.91893576 | PH9: 20.3725195 | PI9: 18.86914281 | PJ9: 20.31794813 | PK9: 18.84432598 | PL9: 20.29074878 | PM9: 18.99402555 | PN9: 20.45481046 | PO9: 18.84432598 | PP9: 20.29074878 | PQ9: 18.94391217 | PR9: 20.39989182 | PS9: 19.14566057 | PT9: 20.62096933 | PU9: 19.27352397 | PV9: 20.76106081 | PW9: 19.19664103 | PX9: 20.67682734 | PY9: 18.99402555 | PZ9: 20.45481046 | QA9: 18.79485093 | QB9: 20.23652199 | QC9: 18.81956207 | QD9: 20.26360678 | QE9: 18.72103274 | QF9: 20.15560938 | QG9: 18.50238309 | QH9: 19.91591331 | QI9: 18.35891737 | QJ9: 19.75861183 | QK9: 18.43042258 | QL9: 19.83701554 | QM9: 18.72103274 | QN9: 20.15560938 | QO9: 18.74592508 | QP9: 20.17072076 | QQ9: 18.5993602 | QR9: 20.01018808 | QS9: 18.57511394 | QT9: 19.98362899 | QU9: 18.6968621 | QV9: 20.11698448 | QW9: 18.47864168 | QX9: 19.87794842 | QY9: 18.57511394 | QZ9: 19.98362899 | RA9: 19.01954609 | RB9: 20.47035859 | RC9: 19.04474142 | RD9: 20.49794564 | RE9: 19.09529442 | RF9: 20.55329546 | RG9: 19.06999082 | RH9: 20.52559121 | RI9: 18.84468062 | RJ9: 20.27887532 | RK9: 18.79519755 | RL9: 20.22468398 | RM9: 18.81991269 | RN9: 20.25175106 | RO9: 18.96931705 | RP9: 20.41535947 | RQ9: 19.06999082 | RR9: 20.52559121 | RS9: 19.2482626 | RT9: 20.72076179 | RU9: 19.40321909 | RV9: 20.89037938 | RW9: 19.45531864 | RX9: 20.94740248 | RY9: 19.61297626 | RZ9: 21.11994126 | SA9: 19.48145297 | SB9: 20.97600547 | SC9: 19.5339 | SD9: 21.0334 | SE9: 19.45531864 | SF9: 20.94740248 | SG9: 19.22263068 | SH9: 20.69270224 | SI9: 18.89437541 | SJ9: 20.33329596 | SK9: 18.86950148 | SL9: 20.30605691 | SM9: 18.47864168 | SN9: 19.87794842 | SO9: 18.43071132 | SP9: 19.8254396 | SQ9: 18.62365801 | SR9: 20.03680302 | SS9: 18.99440468 | ST9: 20.44282992 | SU9: 19.32549031 | SV9: 20.80529957 | SW9: 19.50764387 | SX9: 21.00466964 | SY9: 19.27394974 | SZ9: 20.74888108 | TA9: 19.45531864 | TB9: 20.94740248 | TC9: 19.40321909 | TD9: 20.89037938 | TE9: 19.48145297 | TF9: 20.97600547 | TG9: 19.63945231 | TH9: 21.14891372 | TI9: 19.61297626 | TJ9: 21.11994126 | TK9: 19.58655754 | TL9: 21.09103079 | TM9: 19.5338915 | TN9: 21.03339514 | TO9: 19.19705385 | TP9: 20.6647023 | TQ9: 18.99440468 | TR9: 20.44282992 | TS9: 19.09529442 | TT9: 20.55329546 | TU9: 19.19705385 | TV9: 20.6647023 | TW9: 19.12065239 | TX9: 20.58105854 | TY9: 19.09529442 | TZ9: 20.55329546 | UA9: 18.96931705 | UB9: 20.41535947 | UC9: 18.5509191 | UD9: 19.95712563 | UE9: 18.21751445 | UF9: 19.5918495 | UG9: 17.55731414 | UH9: 18.86821686 | UI9: 17.20975358 | UJ9: 18.48709893 | UK9: 16.95649534 | UL9: 18.20932085 | UM9: 16.97736312 | UN9: 18.23221109 | UO9: 17.12464034 | UP9: 18.39375145 | UQ9: 17.08234525 | UR9: 18.34736218 | US9: 16.87335911 | UT9: 18.10769645 | UU9: 17.20970306 | UV9: 18.47632126 | UW9: 16.85270099 | UX9: 18.08505249 | UY9: 16.81151094 | UZ9: 18.03990179 | VA9: 16.75003969 | VB9: 17.97251711 | VC9: 16.89405943 | VD9: 18.13038632 | VE9: 17.12457958 | VF9: 18.38303731 | VG9: 17.42560611 | VH9: 18.71289307 | VI9: 17.62377413 | VJ9: 18.92999456 | VK9: 17.51322441 | VL9: 18.80888712 | VM9: 17.33870985 | VN9: 18.61768315 | VO9: 17.1034078 | VP9: 18.35983488 | VQ9: 17.14579488 | VR9: 18.40628704 | VS9: 17.40381464 | VT9: 18.68901739 | VU9: 17.60157228 | VV9: 18.9056733 | VW9: 17.55730667 | VX9: 18.85718069 | VY9: 17.53524268 | VZ9: 18.83300909 | WA9: 17.42560611 | WB9: 18.71289307 | WC9: 17.51322441 | WD9: 18.80888712 | WE9: 17.46932454 | WF9: 18.76079158 | WG9: 17.5794165 | WH9: 18.88140205 | WI9: 17.36036663 | WJ9: 18.64141255 | WK9: 17.42560611 | WL9: 18.71289307 | WM9: 17.87106989 | WN9: 19.2008659 | WO9: 18.05452485 | WP9: 19.40177236 | WQ9: 18.26462839 | WR9: 19.63182186 | WS9: 18.43082064 | WT9: 19.81376021 | WU9: 18.03142442 | WV9: 19.37647626 | WW9: 17.98536866 | WX9: 19.3260414 | WY9: 18.05452485 | WZ9: 19.40177236 | XA9: 18.0083724 | XB9: 19.35123265 | XC9: 18.05452485 | XD9: 19.40177236 | XE9: 18.10087146 | XF9: 19.45252259 | XG9: 18.14741326 | XH9: 19.50348441 | XI9: 18.1241179 | XJ9: 19.47797698 | XK9: 18.10087146 | XL9: 19.45252259 | XM9: 18.17075767 | XN9: 19.52904501 | XO9: 18.05452485 | XP9: 19.40177236 | XQ9: 18.07767382 | XR9: 19.42712109 | XS9: 17.91664592 | XT9: 19.25078049 | XU9: 17.51322441 | XV9: 18.80888712 | XW9: 17.49125173 | XX9: 18.78481466 | XY9: 17.42560611 | XZ9: 18.71289307 | YA9: 17.36036663 | YB9: 18.64141255 | YC9: 17.4474427 | YD9: 18.73681776 | YE9: 17.27400702 | YF9: 18.54678554 | YG9: 17.40381464 | YH9: 18.68901739 | YI9: 17.42560611 | YJ9: 18.71289307 | YK9: 17.36036663 | YL9: 18.64141255 | YM9: 17.29553016 | YN9: 18.57036977 | YO9: 17.0401525 | YP9: 18.29051024 | YQ9: 16.79072554 | YR9: 18.00684412 | YS9: 17.1243604 | YT9: 18.37223367 | YU9: 17.20949286 | YV9: 18.46545329 | YW9: 17.08205584 | YX9: 18.325908 | YY9: 17.14557793 | YZ9: 18.39546736 | ZA9: 17.08205584 | ZB9: 18.325908 | ZC9: 16.97705047 | ZD9: 18.21091494 | ZE9: 16.77023313 | ZF9: 17.98439817 | ZG9: 16.81125974 | ZH9: 18.02933547 | ZI9: 16.87311411 | ZJ9: 18.09708316 | ZK9: 16.89381652 | ZL9: 18.11975731 | ZM9: 16.95617812 | ZN9: 18.18805615 | ZO9: 17.06096858 | ZP9: 18.30281578 | ZQ9: 17.31689903 | ZR9: 18.58305325 | ZS9: 17.33851349 | ZT9: 18.60671784 | ZU9: 17.20949286 | ZV9: 18.46545329 | ZW9: 16.99796558 | ZX9: 18.23382018 | ZY9: 17.1243604 | ZZ9: 18.37223367 | AAA9: 16.97705047 | AAB9: 18.21091494 | AAC9: 16.91456125 | AAD9: 18.14247745 | AAE9: 16.87311411 | AAF9: 18.09708316 | AAG9: 16.91456125 | AAH9: 18.14247745 | AAI9: 16.72937323 | AAJ9: 17.93964207 | AAK9: 16.64815015 | AAL9: 17.85066983 | AAM9: 16.74978239 | AAN9: 17.96199753 | AAO9: 16.97705047 | AAP9: 18.21091494 | AAQ9: 17.06096858 | AAR9: 18.30281578 | AAS9: 16.95617812 | AAT9: 18.18805615 | AAU9: 16.91456125 | AAV9: 18.14247745 | AAW9: 16.97705047 | AAX9: 18.21091494 | AAY9: 16.99796558 | AAZ9: 18.23382018 | ABA9: 17.06096858 | ABB9: 18.30281578 | ABC9: 16.85245392 | ABD9: 18.07445488 | ABE9: 16.87311411 | ABF9: 18.09708316 | ABG9: 16.68867918 | ABH9: 17.89506625 | ABI9: 16.56758377 | ABJ9: 17.76241159 | ABK9: 16.52754475 | ABL9: 17.71854799 | ABM9: 16.60778529 | ABN9: 17.80645191 | ABO9: 16.34935812 | ABP9: 17.52332524 | ABQ9: 16.38867602 | ABR9: 17.56640441 | ABS9: 16.0785129 | ABT9: 17.22653802 | ABU9: 15.64965799 | ABV9: 16.7564981 | ABW9: 15.43353616 | ABX9: 16.51957441 | ABY9: 15.0502693 | ABZ9: 16.09934877 | ACA9: 14.94855717 | ACB9: 15.98781485 | ACC9: 14.91491467 | ACD9: 15.95092251 | ACE9: 14.61789312 | ACF9: 15.62518538 | ACG9: 14.68301343 | ACH9: 15.69660487 | ACI9: 14.73218236 | ACJ9: 15.75052874 | ACK9: 14.83137448 | ACL9: 15.85930996 | ACM9: 15.36262066 | ACN9: 16.4418269 | ACO9: 15.46920311 | ACP9: 16.55867636 | ACQ9: 15.46920311 | ACR9: 16.55867636 | ACS9: 15.54046035 | ACT9: 16.62767437 | ACU9: 15.41524866 | ACV9: 16.49051269 | ACW9: 15.2742387 | ACX9: 16.33603338 | ACY9: 15.29174449 | ACZ9: 16.35521198 | ADA9: 15.43303081 | ADB9: 16.50999254 | ADC9: 15.54046035 | ADD9: 16.62767437 | ADE9: 15.59465264 | ADF9: 16.68703558 | ADG9: 15.54046035 | ADH9: 16.62767437 | ADI9: 15.61278807 | ADJ9: 16.70690036 | ADK9: 15.68568885 | ADL9: 16.78675058 | ADM9: 15.79612714 | ADN9: 16.90770985 | ADO9: 15.88916815 | ADP9: 17.00960793 | ADQ9: 16.00204565 | ADR9: 17.13322261 | ADS9: 16.02099015 | ADT9: 17.15396826 | ADU9: 16.1739169 | ADV9: 17.32142477 | ADW9: 16.03997251 | ADX9: 17.1747551 | ADY9: 16.23189904 | ADZ9: 17.38491128 | AEA9: 16.25130412 | AEB9: 17.40615795 | AEC9: 16.03997251 | AED9: 17.1747551 | AEE9: 16.02099015 | AEF9: 17.15396826 | AEG9: 15.9642698 | AEH9: 17.09185446 | AEI9: 15.9831389 | AEJ9: 17.11251804 | AEK9: 16.05899282 | AEL9: 17.19558322 | AEM9: 16.21253287 | AEN9: 17.36370692 | AEO9: 16.27074823 | AEP9: 17.42744706 | AEQ9: 16.76982589 | AER9: 17.97377797 | AES9: 16.99757799 | AET9: 18.22302502 | AEU9: 17.33815681 | AEV9: 18.59566213 | AEW9: 17.12398406 | AEX9: 18.36134165 | AEY9: 16.87271564 | AEZ9: 18.08638385 | AFA9: 17.16646661 | AFB9: 18.40782392 | AFC9: 17.12398406 | AFD9: 18.36134165 | AFE9: 17.273441 | AFF9: 18.52486272 | AFG9: 17.66783172 | AFH9: 18.95626782 | AFI9: 17.91621475 | AFJ9: 19.22788654 | AFK9: 17.8933979 | AFL9: 19.20293771 | AFM9: 17.66783172 | AFN9: 18.95626782 | AFO9: 17.60107337 | AFP9: 18.8832543 | AFQ9: 18.00796153 | AFR9: 19.32820087 | AFS9: 18.17038336 | AFT9: 19.50576969 | AFU9: 18.43050657 | AFV9: 19.79009613 | AFW9: 18.40660839 | AFX9: 19.76397721 | AFY9: 18.33521645 | AFZ9: 19.68594767 | AGA9: 18.28787264 | AGB9: 19.63419927 | AGC9: 18.24072827 | AGD9: 19.5826666 | AGE9: 18.00796153 | AGF9: 19.32820087 | AGG9: 17.96199202 | AGH9: 19.27793964 | AGI9: 17.82523296 | AGJ9: 19.12840052 | AGK9: 17.80260611 | AGL9: 19.10365745 | AGM9: 18.12373301 | AGN9: 19.45477155 | AGO9: 18.28787264 | AGP9: 19.63419927 | AGQ9: 18.1699385 | AGR9: 19.49398566 | AGS9: 18.14658665 | AGT9: 19.46847786 | AGU9: 18.40618552 | AGV9: 19.75201319 | AGW9: 18.43008596 | AGX9: 19.77811394 | AGY9: 18.57455728 | AGZ9: 19.93587293 | AHA9: 18.67189914 | AHB9: 20.04215557 | AHC9: 18.81947531 | AHD9: 20.20326758 | AHE9: 18.96895422 | AHF9: 20.36643341 | AHG9: 18.10003011 | AHH9: 19.41762135 | AHI9: 16.48665983 | AHJ9: 17.65397418 | AHK9: 16.52654299 | AHL9: 17.69759997 | AHM9: 17.22999492 | AHN9: 18.466842 | AHO9: 16.99703633 | AHP9: 18.21214376 | AHQ9: 17.51220535 | AHR9: 18.77532205 | AHS9: 17.64504188 | AHT9: 18.92049791 | AHU9: 17.73452498 | AHV9: 19.0182837 | AHW9: 18.45403707 | AHX9: 19.80426943 | AHY9: 19.40308015 | AHZ9: 20.84017385 | AIA9: 19.42911555 | AIB9: 20.86857852 | AIC9: 19.56014072 | AID9: 21.01151589 | AIE9: 19.74597849 | AIF9: 21.21421667 | AIG9: 19.4552073 | AIH9: 20.89704392 | AII9: 19.85344809 | AIJ9: 21.3314206 | AIK9: 19.93466727 | AIL9: 21.41998785 | AIM9: 20.29283893 | AIN9: 21.81047543 | AIO9: 20.37695452 | AIP9: 21.90215922 | AIQ9: 20.51838758 | AIR9: 22.05629932 | AIS9: 20.26492344 | AIT9: 21.78004649 | AIU9: 20.48997614 | AIV9: 22.0253371 | AIW9: 20.32081583 | AIX9: 21.84097041 | AIY9: 20.46162728 | AIZ9: 21.99444216 | AJA9: 20.57539888 | AJB9: 22.11842632 | AJC9: 20.32081583 | AJD9: 21.84097041 | AJE9: 20.29283893 | AJF9: 21.81047543 | AJG9: 20.34885431 | AJH9: 21.87153162 | AJI9: 20.48997614 | AJJ9: 22.0253371 | AJK9: 20.43334084 | AJL9: 21.96361431 | AJM9: 20.18154373 | AJN9: 21.68915419 | AJO9: 19.35117775 | AJP9: 20.78354605 | AJQ9: 19.5338221 | AJR9: 20.98280602 | AJS9: 19.50756042 | AJT9: 20.9541575 | AJU9: 19.4552073 | AJV9: 20.89704392 | AJW9: 19.35117775 | AJX9: 20.78354605 | AJY9: 19.71925693 | AJZ9: 21.18507274 | AKA9: 19.69259341 | AKB9: 21.15599131 | AKC9: 19.82649287 | AKD9: 21.30202505 | AKE9: 20.07122046 | AKF9: 21.5688786 | AKG9: 20.23706918 | AKH9: 21.74968342 | AKI9: 20.37695452 | AKJ9: 21.90215922 | AKK9: 20.80598166 | AKL9: 22.36966139 | AKM9: 20.89315411 | AKN9: 22.45106874 | AKO9: 20.80561652 | AKP9: 22.35578271 | AKQ9: 20.54646798 | AKR9: 22.0736434 | AKS9: 20.80561652 | AKT9: 22.35578271 | AKU9: 20.95183735 | AKV9: 22.51494139 | AKW9: 20.98127696 | AKX9: 22.54698285 | AKY9: 20.86391012 | AKZ9: 22.41923719 | ALA9: 19.98865706 | ALB9: 21.46608399 | ALC9: 19.87999866 | ALD9: 21.34769381 | ALE9: 19.74550167 | ALF9: 21.20113248 | ALG9: 19.32479344 | ALH9: 20.74255716 | ALI9: 18.59823446 | ALJ9: 19.95014945 | ALK9: 18.33418479 | ALL9: 19.66203074 | ALM9: 18.19272649 | ALN9: 19.50764859 | ALO9: 18.16932363 | ALP9: 19.48210565 | ALQ9: 18.05304525 | ALR9: 19.35518599 | ALS9: 17.82411705 | ALT9: 19.10526795 | ALU9: 17.66669136 | ALV9: 18.93337849 | ALW9: 17.77893187 | ALX9: 19.05590138 | ALY9: 17.80151511 | ALZ9: 19.0805585 | AMA9: 17.93801042 | AMB9: 19.22957786 | AMC9: 18.1927558 | AMD9: 19.50764785 | AME9: 18.54979617 | AMF9: 19.89726826 | AMG9: 18.45347438 | AMH9: 19.79216999 | AMI9: 18.09943905 | AMJ9: 19.40579451 | AMK9: 17.9838912 | AML9: 19.27966428 | AMM9: 18.00690384 | AMN9: 19.30478558 | AMO9: 18.1693529 | AMP9: 19.48210487 | AMQ9: 17.9838912 | AMR9: 19.27966428 | AMS9: 17.84682337 | AMT9: 19.13002602 | AMU9: 17.75639571 | AMV9: 19.03129517 | AMW9: 17.80151511 | AMX9: 19.0805585 | AMY9: 17.91514203 | AMZ9: 19.20461247 | ANA9: 17.96092676 | ANB9: 19.25459508 | ANC9: 17.93801042 | AND9: 19.22957786 | ANE9: 17.73390652 | ANF9: 19.00673977 | ANG9: 17.46765566 | ANH9: 18.71598986 | ANI9: 17.38036856 | ANJ9: 18.62065643 | ANK9: 17.46765566 | ANL9: 18.71598986 | ANM9: 17.38036856 | ANN9: 18.62065643 | ANO9: 17.31537551 | ANP9: 18.54966755 | ANQ9: 17.40212264 | ANR9: 18.64441651 | ANS9: 17.73390652 | ANT9: 19.00673977 | ANU9: 17.48959066 | ANV9: 18.73994575 | ANW9: 17.05938574 | ANX9: 18.27002416 | ANY9: 17.27226997 | ANZ9: 18.50258322 | AOA9: 17.55566928 | AOB9: 18.81210953 | AOC9: 17.62216084 | AOD9: 18.88472007 | AOE9: 17.53359735 | AOF9: 18.78800546 | AOG9: 17.40129708 | AOH9: 18.63304459 | AOI9: 17.07963662 | AOJ9: 18.28195011 | AOK9: 16.97460294 | AOL9: 18.16728473 | AOM9: 17.07963662 | AON9: 18.28195011 | AOO9: 17.03749387 | AOP9: 18.23594401 | AOQ9: 17.01648724 | AOR9: 18.21301106 | AOS9: 17.01648724 | AOT9: 18.21301106 | AOU9: 16.89134703 | AOV9: 18.07638719 | AOW9: 16.84997367 | AOX9: 18.03121412 | AOY9: 16.56503236 | AOZ9: 17.72006371 | APA9: 16.17173034 | APB9: 17.29047471 | APC9: 16.03776748 | APD9: 17.14412419 | APE9: 16.26857556 | APF9: 17.39626662 | APG9: 16.1910217 | APH9: 17.31154882 | API9: 16.24912864 | APJ9: 17.37502375 | APK9: 15.98092629 | APL9: 17.08202272 | APM9: 15.72011054 | APN9: 16.79703976 | APO9: 15.55622456 | APP9: 16.61794349 | APQ9: 15.34218065 | APR9: 16.38400712 | APS9: 15.39521976 | APT9: 16.44197825 | APU9: 15.59239239 | APV9: 16.65746965 | APW9: 15.77539076 | APX9: 16.85744634 | APY9: 15.94322072 | APZ9: 17.04082643 | AQA9: 15.68343911 | AQB9: 16.75696645 | AQC9: 15.39521976 | AQD9: 16.44197825 | AQE9: 15.50223936 | AQF9: 16.55894392 | AQG9: 15.55622456 | AQH9: 16.61794349 | AQI9: 15.70175668 | AQJ9: 16.7769834 | AQK9: 15.48431501 | AQL9: 16.53935426 | AQM9: 15.30699398 | AQN9: 16.34554752 | AQO9: 15.72011054 | AQP9: 16.79703976 | AQQ9: 16.32715158 | AQR9: 17.46025037 | AQS9: 16.40580553 | AQT9: 17.54616132 | AQU9: 16.2103518 | AQV9: 17.33266496 | AQW9: 15.8496113 | AQX9: 16.93854623 | AQY9: 15.70175668 | AQZ9: 16.7769834 | ARA9: 15.66515773 | ARB9: 16.73698883 | ARC9: 15.62870321 | ARD9: 16.69715117 | ARE9: 15.28945222 | ARF9: 16.3263738 | ARG9: 14.69648367 | ARH9: 15.67813537 | ARI9: 14.82850264 | ARJ9: 15.82247615 | ARK9: 14.64749727 | ARL9: 15.62457471 | ARM9: 14.53428408 | ARN9: 15.50078558 | ARO9: 14.47026723 | ARP9: 15.43078598 | ARQ9: 14.4862257 | ARR9: 15.44823603 | ARS9: 14.63123097 | ART9: 15.60678924 | ARU9: 12.66345029 | ARV9: 13.95970665 | ARW9: 12.70049113 | ARX9: 14.00301605 | ARY9: 12.82536334 | ARZ9: 14.14905998 | ASA9: 12.81277812 | ASB9: 14.13433827 | ASC9: 13.00388544 | ASD9: 14.3579519 | ASE9: 13.08174727 | ASF9: 14.44909591 | ASG9: 13.0948044 | ASH9: 14.46438254 | ASI9: 13.02648607 | ASJ9: 14.38287176 | ASK9: 12.98773526 | ASL9: 14.33751806 | ASM9: 13.21005708 | ASN9: 14.59779518 | ASO9: 13.15714414 | ASP9: 14.53583293 | ASQ9: 13.11770439 | ASR9: 14.48965448 | ASS9: 13.15714414 | AST9: 14.53583293 | ASU9: 13.15714414 | ASV9: 14.53583293 | ASW9: 12.96201458 | ASX9: 14.30741778 | ASY9: 12.62343647 | ASZ9: 13.91142031 | ATA9: 12.61119892 | ATB9: 13.89711572 | ATC9: 12.64797515 | ATD9: 13.94010559 | ATE9: 12.69730813 | ATF9: 13.99778218 | ATG9: 12.66027637 | ATH9: 13.9544864 | ATI9: 12.74698456 | ATJ9: 14.05586991 | ATK9: 12.8726989 | ATL9: 14.20291277 | ATM9: 12.92360234 | ATN9: 14.26246939 | ATO9: 12.7594577 | ATP9: 14.07045652 | ATQ9: 12.73453309 | ATR9: 14.04130923 | ATS9: 12.74698456 | ATT9: 14.05586991 | ATU9: 12.7594577 | ATV9: 14.07045652 | ATW9: 12.7594577 | ATX9: 14.07045652 | ATY9: 12.73453309 | ATZ9: 14.04130923 | AUA9: 12.78446916 | AUB9: 14.09970778 | AUC9: 12.73453309 | AUD9: 14.04130923 | AUE9: 12.78446916 | AUF9: 14.09970778 | AUG9: 12.84738035 | AUH9: 14.17329389 | AUI9: 11.79609098 | AUJ9: 11.79609098 | AUK9: 12.86 | AUL9: 14.1881 | AUM9: 12.7594577 | AUN9: 14.07045652 | AUO9: 12.8981061 | AUP9: 14.23263778 | AUQ9: 12.8347542 | AUR9: 14.15852409 | AUS9: 12.79700758 | AUT9: 14.11437254 | AUU9: 12.66027637 | AUV9: 13.9544864 | AUW9: 12.5989825 | AUX9: 13.88283642 | AUY9: 12.4182391 | AUZ9: 13.6716432 | AVA9: 12.4301443 | AVB9: 13.68554993 | AVC9: 12.33547074 | AVD9: 13.57497596 | AVE9: 12.17286738 | AVF9: 13.38515267 | AVG9: 12.17286738 | AVH9: 13.38515267 | AVI9: 11.91395118 | AVJ9: 13.08313597 | AVK9: 11.93607047 | AVL9: 13.10892537 | AVM9: 12.05906202 | AVN9: 13.25236526 | AVO9: 11.96938866 | AVP9: 13.14777611 | AVQ9: 11.84803535 | AVR9: 13.00629676 | AVS9: 11.79360716 | AVT9: 12.94286442 | AVU9: 12.05906202 | AVV9: 13.25236526 | AVW9: 12.18435413 | AVX9: 13.39855853 | AVY9: 12.27695315 | AVZ9: 13.50664932 | AWA9: 12.32372728 | AWB9: 13.56126283 | AWC9: 12.5624595 | AWD9: 13.8401497 | AWE9: 12.62343647 | AWF9: 13.91142031 | AWG9: 12.73453309 | AWH9: 14.04130923 | AWI9: 12.77195255 | AWJ9: 14.08506913 | AWK9: 12.70637968 | AWL9: 14.00682176 | AWM9: 12.62014392 | AWN9: 13.90601102 | AWO9: 12.6692934 | AWP9: 13.9634638 | AWQ9: 12.49874565 | AWR9: 13.76414529 | AWS9: 12.47471588 | AWT9: 13.73607129 | AWU9: 12.46273193 | AWV9: 13.72207132 | AWW9: 12.45076854 | AWX9: 13.70809596 | AWY9: 12.40311965 | AWZ9: 13.65243951 | AXA9: 12.40311965 | AXB9: 13.65243951 | AXC9: 13.24653536 | AXD9: 14.63891087 | AXE9: 13.1669039 | AXF9: 14.5456598 | AXG9: 13.01015268 | AXH9: 14.36216455 | AXI9: 12.98434809 | AXJ9: 14.33196584 | AXK9: 12.28541406 | AXL9: 13.51499417 | AXM9: 12.07852374 | AXN9: 13.27355314 | AXO9: 11.76890349 | AXP9: 12.91259035 | AXQ9: 11.77971381 | AXR9: 12.92518565 | AXS9: 11.79054212 | AXT9: 12.93780247 | AXU9: 12.10120146 | AXV9: 13.30000877 | AXW9: 12.04465026 | AXX9: 13.23404096 | AXY9: 11.96627404 | AXZ9: 13.14263807 | AYA9: 11.9218994 | AYB9: 13.09090063 | AYC9: 11.85589195 | AYD9: 13.01395808 | AYE9: 11.52514112 | AYF9: 12.62873143 | AYG9: 11.57734905 | AYH9: 12.68950204 | AYI9: 11.73658005 | AYJ9: 12.87493313 | AYK9: 11.76890349 | AYL9: 12.91259035 | AYM9: 11.77971381 | AYN9: 12.92518565 | AYO9: 11.91085212 | AYP9: 13.07802178 | AYQ9: 11.70441709 | AYR9: 12.83746791 | AYS9: 11.84495488 | AYT9: 13.00121111 | AYU9: 12.03339709 | AYV9: 13.22091571 | AYW9: 12.26211291 | AYX9: 13.48779234 | AYY9: 12.1239559 | AYZ9: 13.32655622 | AZA9: 11.95515247 | AZB9: 13.12967031 | AZC9: 11.94404954 | AZD9: 13.11672485 | AZE9: 12.08985303 | AZF9: 13.2867695 | AZG9: 12.36759659 | AZH9: 13.61095287 | AZI9: 12.40311965 | AZJ9: 13.65243951 | AZK9: 12.27375357 | AZL9: 13.50138139 | AZM9: 12.08985303 | AZN9: 13.2867695 | AZO9: 11.95515247 | AZP9: 13.12967031 | AZQ9: 11.68306375 | AZR9: 12.81259715 | AZS9: 11.67241355 | AZT9: 12.80019345
B10: 63 | C10: 12.737 | D10: 14.4677 | E10: 14.66363216 | F10: 16.46517851 | G10: 14.72674498 | H10: 16.53817567 | I10: 14.79032009 | J10: 16.61169556 | K10: 14.85436181 | L10: 16.68574285 | M10: 14.9188745 | N10: 16.7603222 | O10: 14.96757074 | P10: 16.81660874 | Q10: 15.28231241 | R10: 17.18023365 | S10: 15.45247043 | T10: 17.37669051 | U10: 15.48554596 | V10: 17.39848725 | W10: 15.67711619 | X10: 17.6193584 | Y10: 15.85475342 | Z10: 17.82395801 | AA10: 16.05406477 | AB10: 18.05339799 | AC10: 16.23890057 | AD10: 18.26605609 | AE10: 18.15818784 | AF10: 19.59059243 | AG10: 18.39153286 | AH10: 19.84664291 | AI10: 18.6297877 | AJ10: 20.10801131 | AK10: 18.87308126 | AL10: 20.37483368 | AM10: 19.12154632 | AN10: 20.64725004 | AO10: 19.37531966 | AP10: 20.92540452 | AQ10: 19.6345422 | AR10: 21.20944546 | AS10: 19.76624213 | AT10: 21.3537209 | AU10: 20.03391213 | AV10: 21.64687928 | AW10: 19.76624213 | AX10: 21.3537209 | AY10: 19.50424081 | AZ10: 21.06667974 | BA10: 18.9966589 | BB10: 20.5103337 | BC10: 18.75079644 | BD10: 20.24073209 | BE10: 18.27425453 | BF10: 19.71796128 | BG10: 18.04331727 | BH10: 19.46451995 | BI10: 17.84128197 | BJ10: 19.23118708 | BK10: 17.53156882 | BL10: 18.8913918 | BM10: 17.31571007 | BN10: 18.65450016 | BO10: 17.10419477 | BP10: 18.42232309 | BQ10: 16.89691416 | BR10: 18.19474528 | BS10: 16.69376256 | BT10: 17.97165462 | BU10: 16.49463733 | BV10: 17.75294212 | BW10: 16.69376256 | BX10: 17.97165462 | BY10: 16.89691416 | BZ10: 18.19474528 | CA10: 17.10419477 | CB10: 18.42232309 | CC10: 17.31571007 | CD10: 18.65450016 | CE10: 17.53156882 | CF10: 18.8913918 | CG10: 17.75188303 | CH10: 19.13311663 | CI10: 18.97394314 | CJ10: 20.47286427 | CK10: 19.2245928 | CL10: 20.74741972 | CM10: 18.97394314 | CN10: 20.47286427 | CO10: 18.72852193 | CP10: 20.20395803 | CQ10: 18.02230392 | CR10: 19.42973832 | CS10: 17.79649062 | CT10: 19.18205226 | CU10: 18.02230392 | CV10: 19.42973832 | CW10: 18.25283094 | CX10: 19.68253072 | CY10: 18.4881947 | CZ10: 19.94055938 | DA10: 18.72852193 | DB10: 20.20395803 | DC10: 18.25283094 | DD10: 19.68253072 | DE10: 17.79649062 | DF10: 19.18205226 | DG10: 18.25283094 | DH10: 19.68253072 | DI10: 18.27785859 | DJ10: 19.69811828 | DK10: 18.04678925 | DL10: 19.44494186 | DM10: 18.27785859 | DN10: 19.69811828 | DO10: 18.51377954 | DP10: 19.95654223 | DQ10: 19.00070627 | DR10: 20.48967792 | DS10: 19.2519608 | DT10: 20.76466514 | DU10: 19.00070627 | DV10: 20.48967792 | DW10: 18.75469649 | DX10: 20.22035234 | DY10: 18.51379649 | DZ10: 19.95654635 | EA10: 18.0468057 | EB10: 19.44494519 | EC10: 18.27787529 | ED10: 19.698122 | EE10: 18.51379649 | EF10: 19.95654635 | EG10: 19.00070627 | EH10: 20.48967792 | EI10: 19.2519608 | EJ10: 20.76466514 | EK10: 19.00070627 | EL10: 20.48967792 | EM10: 19.2519608 | EN10: 20.76466514 | EO10: 19.5085991 | EP10: 21.04546015 | EQ10: 20.03860439 | ER10: 21.6250799 | ES10: 20.59192134 | ET10: 22.22979508 | EU10: 21.16982368 | EV10: 22.86093927 | EW10: 21.77366482 | EX10: 23.51992673 | EY10: 22.08575848 | EZ10: 23.86032702 | FA10: 22.40488326 | FB10: 24.2082578 | FC10: 21.77366482 | FD10: 23.51992673 | FE10: 21.46841405 | FF10: 23.1868609 | FG10: 21.16982368 | FH10: 22.86093927 | FI10: 20.87771668 | FJ10: 22.54197711 | FK10: 21.16982368 | FL10: 22.86093927 | FM10: 20.59192134 | FN10: 22.22979508 | FO10: 20.3122711 | FP10: 21.92421905 | FQ10: 20.87771668 | FR10: 22.54197711 | FS10: 21.16982368 | FT10: 22.86093927 | FU10: 20.87771668 | FV10: 22.54197711 | FW10: 20.59192134 | FX10: 22.22979508 | FY10: 20.87771668 | FZ10: 22.54197711 | GA10: 20.90892788 | GB10: 22.56198514 | GC10: 21.50110946 | GD10: 23.20794101 | GE10: 21.80713426 | GF10: 23.54156735 | GG10: 22.12002418 | GH10: 23.8825452 | GI10: 22.43996813 | GJ10: 24.23107112 | GK10: 22.12002418 | GL10: 23.8825452 | GM10: 22.43996813 | GN10: 24.23107112 | GO10: 22.76716094 | GP10: 24.58734765 | GQ10: 23.10180353 | GR10: 24.95158342 | GS10: 23.44410315 | GT10: 25.32399346 | GU10: 22.66823013 | GV10: 24.47963858 | GW10: 22.02542524 | GX10: 23.77946835 | GY10: 21.11323996 | GZ10: 22.78490416 | HA10: 20.53767863 | HB10: 22.15678103 | HC10: 19.98658431 | HD10: 21.55494115 | HE10: 19.71981342 | HF10: 21.26346019 | HG10: 18.70775868 | HH10: 20.15681531 | HI10: 18.95280311 | HJ10: 20.42488393 | HK10: 19.45869008 | HL10: 20.97805892 | HM10: 18.95280311 | HN10: 20.42488393 | HO10: 19.20306747 | HP10: 20.69858336 | HQ10: 18.70775868 | HR10: 20.15681531 | HS10: 18.46779995 | HT10: 19.89423634 | HU10: 18.23279662 | HV10: 19.63700984 | HW10: 18.70775868 | HX10: 20.15681531 | HY10: 19.20306747 | HZ10: 20.69858336 | IA10: 18.70775868 | IB10: 20.15681531 | IC10: 19.20306747 | ID10: 20.69858336 | IE10: 18.95280311 | IF10: 20.42488393 | IG10: 18.46779995 | IH10: 19.89423634 | II10: 18.00262216 | IJ10: 19.38500254 | IK10: 17.77715376 | IL10: 19.13808491 | IM10: 18.00262216 | IN10: 19.38500254 | IO10: 18.02671528 | IP10: 19.39992639 | IQ10: 17.36243553 | IR10: 18.67287268 | IS10: 17.10789391 | IT10: 18.39415738 | IU10: 17.17094498 | IV10: 18.46320799 | IW10: 17.38390887 | IX10: 18.69640213 | IY10: 17.68944635 | IZ10: 19.03087064 | JA10: 17.75606607 | JB10: 19.10378371 | JC10: 17.86801585 | JD10: 19.22629696 | JE10: 17.93574108 | JF10: 19.30040529 | JG10: 18.07245614 | JH10: 19.44998865 | JI10: 18.02669598 | JJ10: 19.39992386 | JK10: 18.09540733 | JL10: 19.47509786 | JM10: 18.14145252 | JN10: 19.52547058 | JO10: 18.2108792 | JP10: 19.60141732 | JQ10: 18.11840608 | JR10: 19.50025846 | JS10: 18.09540733 | JT10: 19.47509786 | JU10: 18.42177466 | JV10: 19.83208179 | JW10: 18.75780933 | JX10: 20.19950019 | JY10: 18.83110858 | JZ10: 20.2796261 | KA10: 18.95430667 | KB10: 20.41428263 | KC10: 18.90487172 | KD10: 20.36025217 | KE10: 19.46032725 | KF10: 20.96716132 | KG10: 19.25534136 | KH10: 20.74323363 | KI10: 19.35739867 | KJ10: 20.85472845 | KK10: 19.48619661 | KL10: 20.99541723 | KM10: 19.64257654 | KN10: 21.16620513 | KO10: 19.77443329 | KP10: 21.31018535 | KQ10: 19.66883519 | KR10: 21.19487994 | KS10: 19.46032725 | KT10: 20.96716132 | KU10: 19.64257654 | KV10: 21.16620513 | KW10: 19.77443329 | KX10: 21.31018535 | KY10: 19.61637394 | KZ10: 21.13759062 | LA10: 19.64257654 | LB10: 21.16620513 | LC10: 19.38304878 | LD10: 20.88274835 | LE10: 19.17936468 | LF10: 20.66022237 | LG10: 19.07881028 | LH10: 20.55034626 | LI10: 18.83110858 | LJ10: 20.2796261 | LK10: 19.07881028 | LL10: 20.55034626 | LM10: 19.33180302 | LN10: 20.82676718 | LO10: 19.17936468 | LP10: 20.66022237 | LQ10: 19.28077451 | LR10: 20.77101992 | LS10: 19.15414624 | LT10: 20.63266733 | LU10: 19.02885108 | LV10: 20.49575081 | LW10: 18.9791024 | LX10: 20.44138222 | LY10: 19.02885108 | LZ10: 20.49575081 | MA10: 19.10386918 | MB10: 20.57772942 | MC10: 19.35739867 | MD10: 20.85472845 | ME10: 19.20463659 | MF10: 20.68783501 | MG10: 18.83110858 | MH10: 20.2796261 | MI10: 18.80662413 | MJ10: 20.25286208 | MK10: 19.40875348 | ML10: 20.91082702 | MM10: 19.46178752 | MN10: 20.95614843 | MO10: 19.67034872 | MP10: 21.18374422 | MQ10: 19.96301197 | MR10: 21.50302062 | MS10: 20.18024592 | MT10: 21.7399348 | MU10: 20.45711955 | MV10: 22.04179993 | MW10: 20.59782344 | MX10: 22.19516461 | MY10: 20.7687007 | MZ10: 22.3813817 | NA10: 20.59782344 | NB10: 22.19516461 | NC10: 19.80252208 | ND10: 21.32795077 | NE10: 19.93611983 | NF10: 21.47368781 | NG10: 20.01697005 | NH10: 21.5618729 | NI10: 19.51359458 | NJ10: 21.01268907 | NK10: 19.15552958 | NL10: 20.62183598 | NM10: 18.90619359 | NN10: 20.34956963 | NO10: 19.00529667 | NP10: 20.45779643 | NQ10: 19.53958105 | NR10: 21.04104859 | NS10: 19.23136435 | NT10: 20.70462895 | NU10: 19.53958105 | NV10: 21.04104859 | NW10: 19.38448948 | NX10: 20.87178115 | NY10: 19.30768305 | NZ10: 20.78794267 | OA10: 18.85695442 | OB10: 20.29579266 | OC10: 18.95564064 | OD10: 20.40357051 | OE10: 19.15552958 | OF10: 20.62183598 | OG10: 19.08017494 | OH10: 20.53955978 | OI10: 18.73475891 | OJ10: 20.16232235 | OK10: 18.39934639 | OL10: 19.79586406 | OM10: 18.56582487 | ON10: 19.97776962 | OO10: 18.66205506 | OP10: 20.08290116 | OQ10: 18.58980692 | OR10: 20.00397113 | OS10: 18.61383922 | OT10: 20.0302268 | OU10: 18.75909541 | OV10: 20.18890588 | OW10: 18.63792189 | OX10: 20.05653676 | OY10: 18.61383922 | OZ10: 20.0302268 | PA10: 18.71047344 | PB10: 20.13579382 | PC10: 18.75909541 | PD10: 20.18890588 | PE10: 18.61383922 | PF10: 20.0302268 | PG10: 18.56582487 | PH10: 19.97776962 | PI10: 18.51801097 | PJ10: 19.92552853 | PK10: 18.49417887 | PL10: 19.89948868 | PM10: 18.63792189 | PN10: 20.05653676 | PO10: 18.49417887 | PP10: 19.89948868 | PQ10: 18.58980692 | PR10: 20.00397113 | PS10: 18.78348308 | PT10: 20.21554453 | PU10: 18.90619359 | PV10: 20.34956963 | PW10: 18.83241245 | PX10: 20.26898778 | PY10: 18.63792189 | PZ10: 20.05653676 | QA10: 18.4466637 | QB10: 19.84756968 | QC10: 18.47039648 | QD10: 19.87350244 | QE10: 18.37576162 | QF10: 19.77009093 | QG10: 18.16569228 | QH10: 19.54049918 | QI10: 18.0278097 | QJ10: 19.3897729 | QK10: 18.09653685 | QL10: 19.4649049 | QM10: 18.37576162 | QN10: 19.77009093 | QO10: 18.40036787 | QP10: 19.78537863 | QQ10: 18.25956207 | QR10: 19.63161824 | QS10: 18.23626483 | QT10: 19.60617518 | QU10: 18.35323703 | QV10: 19.73391438 | QW10: 18.14355809 | QX10: 19.50492286 | QY10: 18.23626483 | QZ10: 19.60617518 | RA10: 18.66313507 | RB10: 20.07225426 | RC10: 18.68732432 | RD10: 20.09865842 | RE10: 18.73585532 | RF10: 20.15163095 | RG10: 18.71156436 | RH10: 20.12511727 | RI10: 18.49522134 | RJ10: 19.88894484 | RK10: 18.44769563 | RL10: 19.83705509 | RM10: 18.47143368 | RN10: 19.86297324 | RO10: 18.6149084 | RP10: 20.01960946 | RQ10: 18.71156436 | RR10: 20.12511727 | RS10: 18.88267789 | RT10: 20.31187219 | RU10: 19.03136737 | RV10: 20.47412266 | RW10: 19.08135048 | RX10: 20.52865797 | RY10: 19.23257515 | RZ10: 20.69363557 | SA10: 19.1064214 | SB10: 20.55601099 | SC10: 19.1567 | SD10: 20.6109 | SE10: 19.08135048 | SF10: 20.52865797 | SG10: 18.8580786 | SH10: 20.28502662 | SI10: 18.54294602 | SJ10: 19.94104896 | SK10: 18.51905874 | SL10: 19.91497004 | SM10: 18.14355809 | SN10: 19.50492286 | SO10: 18.09749232 | SP10: 19.45460683 | SQ10: 18.28290779 | SR10: 19.65711356 | SS10: 18.63899647 | ST10: 20.04590466 | SU10: 18.95678743 | SV10: 20.39274435 | SW10: 19.13154541 | SX10: 20.58342111 | SY10: 18.90732903 | SZ10: 20.33877358 | TA10: 19.08135048 | TB10: 20.52865797 | TC10: 19.03136737 | TD10: 20.47412266 | TE10: 19.1064214 | TF10: 20.55601099 | TG10: 19.25796672 | TH10: 20.72133341 | TI10: 19.23257515 | TJ10: 20.69363557 | TK10: 19.20723738 | TL10: 20.66599557 | TM10: 19.15672265 | TN10: 20.61088848 | TO10: 18.83353104 | TP10: 20.25823671 | TQ10: 18.63899647 | TR10: 20.04590466 | TS10: 18.73585532 | TT10: 20.15163095 | TU10: 18.83353104 | TV10: 20.25823671 | TW10: 18.76019734 | TX10: 20.17819959 | TY10: 18.73585532 | TZ10: 20.15163095 | UA10: 18.6149084 | UB10: 20.01960946 | UC10: 18.21301593 | UD10: 19.58078424 | UE10: 17.89253876 | UF10: 19.23071143 | UG10: 17.25733466 | UH10: 18.53647788 | UI10: 16.92260458 | UJ10: 18.17045 | UK10: 16.67854982 | UL10: 17.90349532 | UM10: 16.69866394 | UN10: 17.92549929 | UO10: 16.84059818 | UP10: 18.08075632 | UQ10: 16.79984178 | UR10: 18.03617659 | US10: 16.59899678 | UT10: 17.80647425 | UU10: 16.9231639 | UV10: 18.16079935 | UW10: 16.5790794 | UX10: 17.7847001 | UY10: 16.53936383 | UZ10: 17.74128077 | VA10: 16.48008689 | VB10: 17.67647263 | VC10: 16.618954 | VD10: 17.82829153 | VE10: 16.84114283 | VF10: 18.07115886 | VG10: 17.13113596 | VH10: 18.38805664 | VI10: 17.3219466 | VJ10: 18.59651696 | VK10: 17.2155104 | VL10: 18.48024084 | VM10: 17.04744244 | VN10: 18.29660822 | VO10: 16.82074051 | VP10: 18.04886007 | VQ10: 16.86158622 | VR10: 18.09350207 | VS10: 17.11014901 | VT10: 18.36512584 | VU10: 17.30057272 | VV10: 18.57316815 | VW10: 17.25795514 | VX10: 18.52661115 | VY10: 17.23671122 | VZ10: 18.50340272 | WA10: 17.13113596 | WB10: 18.38805664 | WC10: 17.2155104 | WD10: 18.48024084 | WE10: 17.17323763 | WF10: 18.43405632 | WG10: 17.27924227 | WH10: 18.54986625 | WI10: 17.06830236 | WJ10: 18.31940175 | WK10: 17.13113596 | WL10: 18.38805664 | WM10: 17.55995758 | WN10: 18.85648324 | WO10: 17.73645124 | WP10: 19.04921364 | WQ10: 17.93850621 | WR10: 19.26981035 | WS10: 18.098275 | WT10: 19.44420487 | WU10: 17.71423078 | WV10: 19.02495107 | WW10: 17.66992653 | WX10: 18.97657334 | WY10: 17.73645124 | WZ10: 19.04921364 | XA10: 17.69205592 | XB10: 19.00073768 | XC10: 17.73645124 | XD10: 19.04921364 | XE10: 17.78102938 | XF10: 19.09788683 | XG10: 17.82579128 | XH10: 19.14675821 | XI10: 17.8033873 | XJ10: 19.12229768 | XK10: 17.78102938 | XL10: 19.09788683 | XM10: 17.84824144 | XN10: 19.17126854 | XO10: 17.73645124 | XP10: 19.04921364 | XQ10: 17.7587174 | XR10: 19.07352552 | XS10: 17.60381002 | XT10: 18.90437345 | XU10: 17.2155104 | XV10: 18.48024084 | XW10: 17.19435258 | XX10: 18.45712542 | XY10: 17.13113596 | XZ10: 18.38805664 | YA10: 17.06830236 | YB10: 18.31940175 | YC10: 17.15216546 | YD10: 18.41103343 | YE10: 16.98511502 | YF10: 18.2285004 | YG10: 17.11014901 | YH10: 18.36512584 | YI10: 17.13113596 | YJ10: 18.38805664 | YK10: 17.06830236 | YL10: 18.31940175 | YM10: 17.00584888 | YN10: 18.25115766 | YO10: 16.759779 | YP10: 17.98222914 | YQ10: 16.5199054 | YR10: 17.71016021 | YS10: 16.8415345 | YT10: 18.06147113 | YU10: 16.92356906 | YV10: 18.15105764 | YW10: 16.80076419 | YX10: 18.01694472 | YY10: 16.86198124 | YZ10: 18.08380088 | ZA10: 16.80076419 | ZB10: 18.01694472 | ZC10: 16.6995521 | ZD10: 17.90640003 | ZE10: 16.50014333 | ZF10: 17.68857064 | ZG10: 16.53970693 | ZH10: 17.73179247 | ZI10: 16.59934935 | ZJ10: 17.79694644 | ZK10: 16.61930976 | ZL10: 17.81875051 | ZM10: 16.67943121 | ZN10: 17.88442245 | ZO10: 16.78044041 | ZP10: 17.99474785 | ZQ10: 17.02704698 | ZR10: 18.26405056 | ZS10: 17.04786825 | ZT10: 18.2867849 | ZU10: 16.92356906 | ZV10: 18.15105764 | ZW10: 16.71971336 | ZX10: 17.92842125 | ZY10: 16.8415345 | ZZ10: 18.06147113 | AAA10: 16.6995521 | AAB10: 17.90640003 | AAC10: 16.63931014 | AAD10: 17.8405978 | AAE10: 16.59934935 | AAF10: 17.79694644 | AAG10: 16.63931014 | AAH10: 17.8405978 | AAI10: 16.46073723 | AAJ10: 17.64551915 | AAK10: 16.38239433 | AAL10: 17.55992388 | AAM10: 16.48042064 | AAN10: 17.66702365 | AAO10: 16.6995521 | AAP10: 17.90640003 | AAQ10: 16.78044041 | AAR10: 17.99474785 | AAS10: 16.67943121 | AAT10: 17.88442245 | AAU10: 16.63931014 | AAV10: 17.8405978 | AAW10: 16.6995521 | AAX10: 17.90640003 | AAY10: 16.71971336 | AAZ10: 17.92842125 | ABA10: 16.78044041 | ABB10: 17.99474785 | ABC10: 16.57942881 | ABD10: 17.77518548 | ABE10: 16.59934935 | ABF10: 17.79694644 | ABG10: 16.42148782 | ABH10: 17.60263717 | ABI10: 16.304672 | ABJ10: 17.47500006 | ABK10: 16.26604162 | ABL10: 17.4327879 | ABM10: 16.34345598 | ABN10: 17.51737845 | ABO10: 16.09408525 | ABP10: 17.24486868 | ABQ10: 16.13203385 | ABR10: 17.28634276 | ABS10: 15.83258832 | ABT10: 16.95903786 | ABU10: 15.41823062 | ABV10: 16.50598201 | ABW10: 15.20927089 | ABX10: 16.27744508 | ABY10: 14.83846416 | ABZ10: 15.87180228 | ACA10: 14.74000636 | ACB10: 15.76407519 | ACC10: 14.7074354 | ACD10: 15.7284361 | ACE10: 14.41976823 | ACF10: 15.41363537 | ACG10: 14.48285401 | ACH10: 15.48267695 | ACI10: 14.53048066 | ACJ10: 15.53479798 | ACK10: 14.62654549 | ACL10: 15.63992288 | ACM10: 15.14068423 | ACN10: 16.20242397 | ACO10: 15.24376258 | ACP10: 16.31517101 | ACQ10: 15.24376258 | ACR10: 16.31517101 | ACS10: 15.31317871 | ACT10: 16.38231744 | ACU10: 15.19209301 | ACV10: 16.24998001 | ACW10: 15.05569031 | ACX10: 16.10088643 | ACY10: 15.0726264 | ACZ10: 16.11939915 | ADA10: 15.20929119 | ADB10: 16.26877713 | ADC10: 15.31317871 | ADD10: 16.38231744 | ADE10: 15.36557513 | ADF10: 16.43957853 | ADG10: 15.31317871 | ADH10: 16.38231744 | ADI10: 15.38310821 | ADJ10: 16.45873888 | ADK10: 15.4535808 | ADL10: 16.53574918 | ADM10: 15.56031969 | ADN10: 16.65238118 | ADO10: 15.65022462 | ADP10: 16.75061041 | ADQ10: 15.75927367 | ADR10: 16.86974564 | ADS10: 15.7775731 | ADT10: 16.88973646 | ADU10: 15.92526589 | ADV10: 17.05106793 | ADW10: 15.79590835 | ADX10: 16.90976608 | ADY10: 15.98125124 | ADZ10: 17.11221741 | AEA10: 15.99998654 | AEB10: 17.13268015 | AEC10: 15.79590835 | AED10: 16.90976608 | AEE10: 15.7775731 | AEF10: 16.88973646 | AEG10: 15.72278196 | AEH10: 16.82988004 | AEI10: 15.74100999 | AEJ10: 16.84979353 | AEK10: 15.81427953 | AEL10: 16.92983461 | AEM10: 15.96255276 | AEN10: 17.09179453 | AEO10: 16.01875875 | AEP10: 17.15318284 | AEQ10: 16.50033329 | AER10: 17.67902262 | AES10: 16.71993518 | AET10: 17.91872581 | AEU10: 17.04813927 | AEV10: 18.27687037 | AEW10: 16.84177436 | AEX10: 18.05169418 | AEY10: 16.59955359 | AEZ10: 17.78733173 | AFA10: 16.88271516 | AFB10: 18.09637085 | AFC10: 16.84177436 | AFD10: 18.05169418 | AFE10: 16.98579197 | AFF10: 18.20884495 | AFG10: 17.36562527 | AFH10: 18.62319995 | AFI10: 17.60469029 | AFJ10: 18.8839048 | AFK10: 17.58273418 | AFL10: 18.85996414 | AFM10: 17.36562527 | AFN10: 18.62319995 | AFO10: 17.30135169 | AFP10: 18.55309674 | AFQ10: 17.69296625 | AFR10: 18.98015391 | AFS10: 17.84920563 | AFT10: 19.15048157 | AFU10: 18.09932711 | AFV10: 19.423094 | AFW10: 18.07635294 | AFX10: 19.39805724 | AFY10: 18.00771515 | AFZ10: 19.32325331 | AGA10: 17.96219268 | AGB10: 19.27363805 | AGC10: 17.91685792 | AGD10: 19.22422482 | AGE10: 17.69296625 | AGF10: 18.98015391 | AGG10: 17.64873773 | AGH10: 18.93193182 | AGI10: 17.51713498 | AGJ10: 18.7884321 | AGK10: 17.49535789 | AGL10: 18.76468433 | AGM10: 17.80433594 | AGN10: 19.101569 | AGO10: 17.96219268 | AGP10: 19.27363805 | AGQ10: 17.84943916 | AGR10: 19.13994066 | AGS10: 17.82697781 | AGT10: 19.11547441 | AGU10: 18.07662132 | AGV10: 19.38736586 | AGW10: 18.09959906 | AGX10: 19.41238744 | AGY10: 18.23847098 | AGZ10: 19.5635977 | AHA10: 18.33201898 | AHB10: 19.66544342 | AHC10: 18.47381118 | AHD10: 19.81979141 | AHE10: 18.61739219 | AHF10: 19.97606042 | AHG10: 17.78219367 | AHH10: 19.06669098 | AHI10: 16.22772534 | AHJ10: 17.37193062 | AHK10: 16.26621301 | AHL10: 17.41392495 | AHM10: 16.9445396 | AHN10: 18.15378603 | AHO10: 16.72000808 | AHP10: 17.90894336 | AHQ10: 17.2164024 | AHR10: 18.45016339 | AHS10: 17.34431616 | AHT10: 18.58958132 | AHU10: 17.43046446 | AHV10: 18.68346652 | AHW10: 18.12262448 | AHX10: 19.43746027 | AHY10: 19.03416715 | AHZ10: 20.42951419 | AIA10: 19.05915159 | AIB10: 20.45669024 | AIC10: 19.18486999 | AID10: 20.59342408 | AIE10: 19.3631306 | AIF10: 20.78726823 | AIG10: 19.08418892 | AIH10: 20.483923 | AII10: 19.46619157 | AIJ10: 20.89931963 | AIK10: 19.54406601 | AIL10: 20.98397803 | AIM10: 19.88735575 | AIN10: 21.35707678 | AIO10: 19.96794544 | AIP10: 21.44464148 | AIQ10: 20.10342371 | AIR10: 21.59182566 | AIS10: 19.86060781 | AIT10: 21.32801189 | AIU10: 20.07621113 | AIV10: 21.56226377 | AIW10: 19.91416123 | AIX10: 21.38620323 | AIY10: 20.04905716 | AIZ10: 21.53276457 | AJA10: 20.15802538 | AJB10: 21.65113816 | AJC10: 19.91416123 | AJD10: 21.38620323 | AJE10: 19.88735575 | AJF10: 21.35707678 | AJG10: 19.94102441 | AJH10: 21.41539141 | AJI10: 20.07621113 | AJJ10: 21.56226377 | AJK10: 20.02196166 | AJL10: 21.5033279 | AJM10: 19.78070773 | AJN10: 21.24118502 | AJO10: 18.9843564 | AJP10: 20.37533167 | AJQ10: 19.15961968 | AJR10: 20.56596301 | AJS10: 19.13442283 | AJT10: 20.53855924 | AJU10: 19.08418892 | AJV10: 20.483923 | AJW10: 18.9843564 | AJX10: 20.37533167 | AJY10: 19.33750218 | AJZ10: 20.75940196 | AKA10: 19.31192821 | AKB10: 20.73159402 | AKC10: 19.44034394 | AKD10: 20.87121853 | AKE10: 19.67497073 | AKF10: 21.12626821 | AKG10: 19.83391726 | AKH10: 21.2990084 | AKI10: 19.96794544 | AKJ10: 21.44464148 | AKK10: 20.37880831 | AKL10: 21.89092833 | AKM10: 20.46307279 | AKN10: 21.9695564 | AKO10: 20.37927292 | AKP10: 21.87862903 | AKQ10: 20.1311168 | AKR10: 21.6093104 | AKS10: 20.37927292 | AKT10: 21.87862903 | AKU10: 20.51924344 | AKV10: 22.03049925 | AKW10: 20.54742047 | AKX10: 22.06106855 | AKY10: 20.43507885 | AKZ10: 21.93918253 | ALA10: 19.59659235 | ALB10: 21.02892024 | ALC10: 19.49240969 | ALD10: 20.91575348 | ALE10: 19.36342516 | ALF10: 20.77562608 | ALG10: 18.95976096 | ALH10: 20.33694763 | ALI10: 18.26191235 | ALJ10: 19.57806646 | ALK10: 18.00806432 | ALL10: 19.30186304 | ALM10: 17.87201943 | ALN10: 19.15380393 | ALO10: 17.84950865 | ALP10: 19.12930299 | ALQ10: 17.73764775 | ALR10: 19.00754323 | ALS10: 17.51734394 | ALT10: 18.76769921 | ALU10: 17.36579252 | ALV10: 18.60267139 | ALW10: 17.4738496 | ALX10: 18.72030978 | ALY10: 17.49558828 | ALZ10: 18.74398037 | AMA10: 17.62695876 | AMB10: 18.88701354 | AMC10: 17.87204765 | AMD10: 19.15380413 | AME10: 18.2153549 | AMF10: 19.52738429 | AMG10: 18.1227607 | AMH10: 19.42663969 | AMI10: 17.78228202 | AMJ10: 19.05609869 | AMK10: 17.67110917 | AML10: 18.93507876 | AMM10: 17.69325244 | AMN10: 18.95918457 | AMO10: 17.84953683 | AMP10: 19.12930315 | AMQ10: 17.67110917 | AMR10: 18.93507876 | AMS10: 17.53919923 | AMT10: 18.79146531 | AMU10: 17.45215531 | AMV10: 18.69668694 | AMW10: 17.49558828 | AMX10: 18.74398037 | AMY10: 17.60495139 | AMZ10: 18.86305388 | ANA10: 17.64901131 | ANB10: 18.91102179 | ANC10: 17.62695876 | AND10: 18.88701354 | ANE10: 17.43050529 | ANF10: 18.67311174 | ANG10: 17.17411737 | ANH10: 18.39388238 | ANI10: 17.09003465 | ANJ10: 18.30229176 | ANK10: 17.17411737 | ANL10: 18.39388238 | ANM10: 17.09003465 | ANN10: 18.30229176 | ANO10: 17.02741815 | ANP10: 18.23407872 | ANQ10: 17.11099146 | ANR10: 18.32512062 | ANS10: 17.43050529 | ANT10: 18.67311174 | ANU10: 17.19524485 | ANV10: 18.41689506 | ANW10: 16.78071052 | ANX10: 17.96527642 | ANY10: 16.98588438 | ANZ10: 18.1888302 | AOA10: 17.25888537 | AOB10: 18.486211 | AOC10: 17.32291529 | AOD10: 18.55594619 | AOE10: 17.23762874 | AOF10: 18.46305925 | AOG10: 17.11081311 | AOH10: 18.31489514 | AOI10: 16.80083058 | AOJ10: 17.9774218 | AOK10: 16.69956718 | AOL10: 17.86715373 | AOM10: 16.80083058 | AON10: 17.9774218 | AOO10: 16.76020314 | AOP10: 17.93318305 | AOQ10: 16.73995056 | AOR10: 17.91112954 | AOS10: 16.73995056 | AOT10: 17.91112954 | AOU10: 16.61928466 | AOV10: 17.77972391 | AOW10: 16.5793839 | AOX10: 17.7362682 | AOY10: 16.30449361 | AOZ10: 17.43683826 | APA10: 15.92480119 | APB10: 17.02311508 | APC10: 15.79540312 | APD10: 16.88208469 | APE10: 16.01832389 | APF10: 17.12503421 | APG10: 15.94343221 | APH10: 17.04341952 | API10: 15.99954565 | APJ10: 17.1045708 | APK10: 15.74048782 | APL10: 16.82222755 | APM10: 15.48842459 | APN10: 16.54744216 | APO10: 15.32996682 | APP10: 16.37466835 | APQ10: 15.12292844 | APR10: 16.14888906 | APS10: 15.17424052 | APT10: 16.20484957 | APU10: 15.36494148 | APV10: 16.41280491 | APW10: 15.54186133 | APX10: 16.60570121 | APY10: 15.70405618 | APZ10: 16.78251572 | AQA10: 15.4529726 | AQB10: 16.50878933 | AQC10: 15.17424052 | AQD10: 16.20484957 | AQE10: 15.27775752 | AQF10: 16.3177369 | AQG10: 15.32996682 | AQH10: 16.37466835 | AQI10: 15.4706814 | AQJ10: 16.52809715 | AQK10: 15.26042148 | AQL10: 16.2988323 | AQM10: 15.08888424 | AQN10: 16.11175943 | AQO10: 15.48842459 | AQP10: 16.54744216 | AQQ10: 16.07488119 | AQR10: 17.18666471 | AQS10: 16.1508137 | AQT10: 17.26940304 | AQU10: 15.9620999 | AQV10: 17.06376355 | AQW10: 15.61359692 | AQX10: 16.68390602 | AQY10: 15.4706814 | AQZ10: 16.52809715 | ARA10: 15.4352981 | ARB10: 16.4895186 | ARC10: 15.40005169 | ARD10: 16.45108809 | ARE10: 15.07191107 | ARF10: 16.09324758 | ARG10: 14.49777841 | ARH10: 15.46692085 | ARI10: 14.62566886 | ARJ10: 15.60646156 | ARK10: 14.45031433 | ARL10: 15.41512972 | ARM10: 14.34059946 | ARN10: 15.29540607 | ARO10: 14.27854836 | ARP10: 15.22769034 | ARQ10: 14.29401763 | ARR10: 15.24457206 | ARS10: 14.43455238 | ART10: 15.39793044 | ARU10: 12.43276868 | ARV10: 13.70505769 | ARW10: 12.46840505 | ARX10: 13.74664139 | ARY10: 12.58851635 | ARZ10: 13.88683058 | ASA10: 12.57641277 | ASB10: 13.87270152 | ASC10: 12.7601624 | ASD10: 14.08725386 | ASE10: 12.83499979 | ASF10: 14.17466831 | ASG10: 12.84754823 | ASH10: 14.18932738 | ASI10: 12.7826792 | ASJ10: 14.11231692 | ASK10: 12.74542617 | ASL10: 14.06880817 | ASM10: 12.95910317 | ASN10: 14.31842743 | ASO10: 12.90825904 | ASP10: 14.25901776 | ASQ10: 12.87035672 | ASR10: 14.21473544 | ASS10: 12.90825904 | AST10: 14.25901776 | ASU10: 12.90825904 | ASV10: 14.25901776 | ASW10: 12.72069753 | ASX10: 14.03992947 | ASY10: 12.39501995 | ASZ10: 13.6597888 | ATA10: 12.38324312 | ATB10: 13.64604948 | ATC10: 12.41863361 | ATD10: 13.68733893 | ATE10: 12.46610219 | ATF10: 13.74272671 | ATG10: 12.43047053 | ATH10: 13.70114986 | ATI10: 12.51389486 | ATJ10: 13.79850067 | ATK10: 12.6348136 | ATL10: 13.93964793 | ATM10: 12.6837637 | ATN10: 13.99680102 | ATO10: 12.52589401 | ATP10: 13.81250491 | ATQ10: 12.50191615 | ATR10: 13.78452079 | ATS10: 12.51389486 | ATT10: 13.79850067 | ATU10: 12.52589401 | ATV10: 13.81250491 | ATW10: 12.52589401 | ATX10: 13.81250491 | ATY10: 12.50191615 | ATZ10: 13.78452079 | AUA10: 12.5499538 | AUB10: 13.84058666 | AUC10: 12.50191615 | AUD10: 13.78452079 | AUE10: 12.5499538 | AUF10: 13.84058666 | AUG10: 12.61046415 | AUH10: 13.91122103 | AUI10: 11.62546984 | AUJ10: 11.62546984 | AUK10: 12.6226 | AUL10: 13.9254 | AUM10: 12.52589401 | AUN10: 13.81250491 | AUO10: 12.65924666 | AUP10: 13.96817445 | AUQ10: 12.59832065 | AUR10: 13.89704479 | AUS10: 12.56201454 | AUT10: 13.85466428 | AUU10: 12.43047053 | AUV10: 13.70114986 | AUW10: 12.37148624 | AUX10: 13.63233392 | AUY10: 12.19749618 | AUZ10: 13.42941677 | AVA10: 12.20895918 | AVB10: 13.44278212 | AVC10: 12.11779171 | AVD10: 13.33649877 | AVE10: 11.96115463 | AVF10: 13.15396605 | AVG10: 11.96115463 | AVH10: 13.15396605 | AVI10: 11.71159244 | AVJ10: 12.86335069 | AVK10: 11.73291969 | AVL10: 12.88817611 | AVM10: 11.85148303 | AVN10: 13.02622164 | AVO10: 11.76504232 | AVP10: 12.92557127 | AVQ10: 11.64802902 | AVR10: 12.78937293 | AVS10: 11.59553435 | AVT10: 12.72829066 | AVU10: 11.85148303 | AVV10: 13.02622164 | AVW10: 11.97222222 | AVX10: 13.16686016 | AVY10: 12.06142936 | AVZ10: 13.27080735 | AWA10: 12.1064815 | AWB10: 13.32331552 | AWC10: 12.33633479 | AWD10: 13.59132932 | AWE10: 12.39501995 | AWF10: 13.6597888 | AWG10: 12.50191615 | AWH10: 13.78452079 | AWI10: 12.53791364 | AWJ10: 13.82653355 | AWK10: 12.4755881 | AWL10: 13.75251237 | AWM10: 12.39260067 | AWN10: 13.65568583 | AWO10: 12.43990115 | AWP10: 13.71087119 | AWQ10: 12.27574243 | AWR10: 13.51938244 | AWS10: 12.25260676 | AWT10: 13.49240299 | AWU10: 12.24106814 | AWV10: 13.47894808 | AWW10: 12.22954894 | AWX10: 13.46551631 | AWY10: 12.18366546 | AWZ10: 13.41201964 | AXA10: 12.18366546 | AXB10: 13.41201964 | AXC10: 12.99496343 | AXD10: 14.3590323 | AXE10: 12.91844198 | AXF10: 14.2696164 | AXG10: 12.76776598 | AXH10: 14.09360459 | AXI10: 12.74295554 | AXJ10: 14.06462939 | AXK10: 12.07029528 | AXL10: 13.27987317 | AXM10: 11.87093602 | AXN10: 13.04761931 | AXO10: 11.57237111 | AXP10: 12.70009991 | AXQ10: 11.58279983 | AXR10: 12.71223208 | AXS10: 11.59324558 | AXT10: 12.72438454 | AXU10: 11.89279383 | AXV10: 13.07307584 | AXW10: 11.83828466 | AXX10: 13.00959583 | AXY10: 11.76272433 | AXZ10: 12.92162064 | AYA10: 11.71993661 | AYB10: 12.87181343 | AYC10: 11.65627984 | AYD10: 12.79772804 | AYE10: 11.33712824 | AYF10: 12.42656287 | AYG10: 11.38752529 | AYH10: 12.48514242 | AYI10: 11.54118678 | AYJ10: 12.66382477 | AYK10: 11.57237111 | AYL10: 12.70009991 | AYM10: 11.58279983 | AYN10: 12.71223208 | AYO10: 11.70928358 | AYP10: 12.85941393 | AYQ10: 11.51015442 | AYR10: 12.62773072 | AYS10: 11.64573111 | AYT10: 12.78545287 | AYU10: 11.82743681 | AYV10: 12.99696417 | AYW10: 12.04784802 | AYX10: 13.25371414 | AYY10: 11.9147242 | AYZ10: 13.09861884 | AZA10: 11.75200099 | AZB10: 12.90913736 | AZC10: 11.74129528 | AZD10: 12.89667509 | AZE10: 11.88185588 | AZF10: 13.06033679 | AZG10: 12.14945467 | AZH10: 13.37213765 | AZI10: 12.18366546 | AZJ10: 13.41201964 | AZK10: 12.05906228 | AZL10: 13.26678248 | AZM10: 11.88185588 | AZN10: 13.06033679 | AZO10: 11.75200099 | AZP10: 12.90913736 | AZQ10: 11.48955013 | AZR10: 12.60376807 | AZS10: 11.47927306 | AZT10: 12.59181662
B11: 64 | C11: 12.3459 | D11: 14.0857 | E11: 14.35599212 | F11: 16.0902982 | G11: 14.41636088 | H11: 16.15967117 | I11: 14.47716193 | J11: 16.22952748 | K11: 14.53839923 | L11: 16.29987132 | M11: 14.60007676 | N11: 16.3707069 | O11: 14.64662623 | P11: 16.42415886 | Q11: 14.94735462 | R11: 16.76928513 | S11: 15.10983819 | T11: 16.95561478 | U11: 15.14227027 | V11: 16.97743376 | W11: 15.32511642 | X11: 17.18676002 | Y11: 15.49459179 | Z11: 17.38061907 | AA11: 15.68465893 | AB11: 17.59789888 | AC11: 15.86084097 | AD11: 17.79917837 | AE11: 17.81312658 | AF11: 19.1982729 | AG11: 18.03696102 | AH11: 19.44298293 | AI11: 18.26540043 | AJ11: 19.69265037 | AK11: 18.49856302 | AL11: 19.947399 | AM11: 18.73657047 | AN11: 20.2073561 | AO11: 18.97954806 | AP11: 20.47265263 | AQ11: 19.22762479 | AR11: 20.74342327 | AS11: 19.35361668 | AT11: 20.88090452 | AU11: 19.60959239 | AV11: 21.16014737 | AW11: 19.35361668 | AX11: 20.88090452 | AY11: 19.10294082 | AZ11: 20.60734512 | BA11: 18.61695339 | BB11: 20.07671839 | BC11: 18.3813838 | BD11: 19.81938167 | BE11: 17.92447544 | BF11: 19.32001584 | BG11: 17.70290021 | BH11: 19.07773917 | BI11: 17.50963356 | BJ11: 18.85539919 | BK11: 17.2121787 | BL11: 18.5302077 | BM11: 17.00475342 | BN11: 18.30336526 | BO11: 16.80141311 | BP11: 18.08093076 | BQ11: 16.60205762 | BR11: 17.8627989 | BS11: 16.40658963 | BT11: 17.64886722 | BU11: 16.21491454 | BV11: 17.43903604 | BW11: 16.40658963 | BX11: 17.64886722 | BY11: 16.60205762 | BZ11: 17.8627989 | CA11: 16.80141311 | CB11: 18.08093076 | CC11: 17.00475342 | CD11: 18.30336526 | CE11: 17.2121787 | CF11: 18.5302077 | CG11: 17.42379197 | CH11: 18.76156636 | CI11: 18.59592141 | CJ11: 20.04186937 | CK11: 18.83599033 | CL11: 20.30383859 | CM11: 18.59592141 | CN11: 20.04186937 | CO11: 18.36074993 | CP11: 19.78515938 | CQ11: 17.68340555 | CR11: 19.0453151 | CS11: 17.46662646 | CT11: 18.80838977 | CU11: 17.68340555 | CV11: 19.0453151 | CW11: 17.90460997 | CX11: 19.28700568 | CY11: 18.13035268 | CZ11: 19.53357987 | DA11: 18.36074993 | DB11: 19.78515938 | DC11: 17.90460997 | DD11: 19.28700568 | DE11: 17.46662646 | DF11: 18.80838977 | DG11: 17.90460997 | DH11: 19.28700568 | DI11: 17.92930619 | DJ11: 19.30275513 | DK11: 17.70757856 | DL11: 19.06068707 | DM11: 17.92930619 | DN11: 19.30275513 | DO11: 18.15558612 | DP11: 19.54971756 | DQ11: 18.62228917 | DR11: 20.05882291 | DS11: 18.86294016 | DT11: 20.32121522 | DU11: 18.62228917 | DV11: 20.05882291 | DW11: 18.38655094 | DX11: 19.80170166 | DY11: 18.15560181 | DZ11: 19.54972238 | EA11: 17.70759382 | EB11: 19.06069109 | EC11: 17.92932167 | ED11: 19.30275953 | EE11: 18.15560181 | EF11: 19.54972238 | EG11: 18.62228917 | EH11: 20.05882291 | EI11: 18.86294016 | EJ11: 20.32121522 | EK11: 18.62228917 | EL11: 20.05882291 | EM11: 18.86294016 | EN11: 20.32121522 | EO11: 19.10863124 | EP11: 20.58901139 | EQ11: 19.61566195 | ER11: 21.1413657 | ES11: 20.14447765 | ET11: 21.71702664 | EU11: 20.69624135 | EV11: 22.31720206 | EW11: 21.2721871 | EX11: 22.94317109 | EY11: 21.56963451 | EZ11: 23.26624859 | FA11: 21.87362486 | FB11: 23.59628887 | FC11: 21.2721871 | FD11: 22.94317109 | FE11: 20.98111143 | FF11: 22.62687951 | FG11: 20.69624135 | FH11: 22.31720206 | FI11: 20.41741559 | FJ11: 22.01397182 | FK11: 20.69624135 | FL11: 22.31720206 | FM11: 20.14447765 | FN11: 21.71702664 | FO11: 19.8772756 | FP11: 21.42620897 | FQ11: 20.41741559 | FR11: 22.01397182 | FS11: 20.69624135 | FT11: 22.31720206 | FU11: 20.41741559 | FV11: 22.01397182 | FW11: 20.14447765 | FX11: 21.71702664 | FY11: 20.41741559 | FZ11: 22.01397182 | GA11: 20.44805889 | GB11: 22.03404821 | GC11: 21.01317644 | GD11: 22.64800037 | GE11: 21.30499284 | GF11: 22.96483738 | GG11: 21.60320171 | GH11: 23.28847643 | GI11: 21.90797494 | GJ11: 23.6190949 | GK11: 21.60320171 | GL11: 23.28847643 | GM11: 21.90797494 | GN11: 23.6190949 | GO11: 22.21948962 | GP11: 23.95687541 | GQ11: 22.53792829 | GR11: 24.30200598 | GS11: 22.86347911 | GT11: 24.6546802 | GU11: 22.12531661 | GV11: 23.85477817 | GW11: 21.51305772 | GX11: 23.19066004 | GY11: 20.64309823 | GZ11: 22.24599858 | HA11: 20.09348163 | HB11: 21.64857418 | HC11: 19.5667069 | HD11: 21.07553496 | HE11: 19.31152103 | HF11: 20.79778185 | HG11: 18.3422723 | HH11: 19.74190388 | HI11: 18.5771212 | HJ11: 19.99787494 | HK11: 19.06161701 | HL11: 20.52567999 | HM11: 18.5771212 | HN11: 19.99787494 | HO11: 18.81686055 | HP11: 20.25908963 | HQ11: 18.3422723 | HR11: 19.74190388 | HS11: 18.11219081 | HT11: 19.49104807 | HU11: 17.88675721 | HV11: 19.2451827 | HW11: 18.3422723 | HX11: 19.74190388 | HY11: 18.81686055 | HZ11: 20.25908963 | IA11: 18.3422723 | IB11: 19.74190388 | IC11: 18.81686055 | ID11: 20.25908963 | IE11: 18.5771212 | IF11: 19.99787494 | IG11: 18.11219081 | IH11: 19.49104807 | II11: 17.66585542 | IJ11: 19.00418641 | IK11: 17.44937264 | IL11: 18.7679412 | IM11: 17.66585542 | IN11: 19.00418641 | IO11: 17.68965417 | IP11: 19.01928503 | IQ11: 17.05155955 | IR11: 18.32329294 | IS11: 16.80682473 | IT11: 18.0562126 | IU11: 16.86745863 | IV11: 18.12239475 | IW11: 17.07220024 | IX11: 18.34583231 | IY11: 17.36578665 | IZ11: 18.66612218 | JA11: 17.42977657 | JB11: 18.73591573 | JC11: 17.537288 | JD11: 18.8531645 | JE11: 17.60231657 | JF11: 18.92407449 | JG11: 17.7335614 | JH11: 19.06717054 | JI11: 17.68963613 | JJ11: 19.01928172 | JK11: 17.7555908 | JL11: 19.09118666 | JM11: 17.79978368 | JN11: 19.1393629 | JO11: 17.86640991 | JP11: 19.21198904 | JQ11: 17.77766485 | JR11: 19.11525074 | JS11: 17.7555908 | JT11: 19.09118666 | JU11: 18.06874314 | JV11: 19.4325024 | JW11: 18.39096459 | JX11: 19.78354909 | JY11: 18.46122322 | JZ11: 19.86007203 | KA11: 18.57928873 | KB11: 19.98864745 | KC11: 18.53191662 | KD11: 19.93706093 | KE11: 19.06394131 | KF11: 20.51621907 | KG11: 18.86766665 | KH11: 20.30260649 | KI11: 18.96539619 | KJ11: 20.40897638 | KK11: 19.08870601 | KL11: 20.54316715 | KM11: 19.23838319 | KN11: 20.70602038 | KO11: 19.36455497 | KP11: 20.84327212 | KQ11: 19.26351213 | KR11: 20.73335802 | KS11: 19.06394131 | KT11: 20.51621907 | KU11: 19.23838319 | KV11: 20.70602038 | KW11: 19.36455497 | KX11: 20.84327212 | KY11: 19.21330668 | KZ11: 20.67873881 | LA11: 19.23838319 | LB11: 20.70602038 | LC11: 18.98995568 | LD11: 20.43570489 | LE11: 18.7948997 | LF11: 20.22339664 | LG11: 18.69857746 | LH11: 20.11853335 | LI11: 18.46122322 | LJ11: 19.86007203 | LK11: 18.69857746 | LL11: 20.11853335 | LM11: 18.94088767 | LN11: 20.38230243 | LO11: 18.7948997 | LP11: 20.22339664 | LQ11: 18.89202303 | LR11: 20.32911762 | LS11: 18.77074436 | LT11: 20.19710074 | LU11: 18.65071418 | LV11: 20.06642069 | LW11: 18.60304812 | LX11: 20.01451927 | LY11: 18.65071418 | LZ11: 20.06642069 | MA11: 18.72258336 | MB11: 20.14466923 | MC11: 18.96539619 | MD11: 20.40897638 | ME11: 18.81910511 | MF11: 20.24974614 | MG11: 18.46122322 | MH11: 19.86007203 | MI11: 18.43775553 | MJ11: 19.83451278 | MK11: 19.01456628 | ML11: 20.46248808 | MM11: 19.06609545 | MN11: 20.50664402 | MO11: 19.26572919 | MP11: 20.72368624 | MQ11: 19.5457368 | MR11: 21.02800697 | MS11: 19.75348118 | MT11: 21.25371099 | MU11: 20.01814316 | MV11: 21.54115556 | MW11: 20.15259155 | MX11: 21.68713553 | MY11: 20.31582724 | MZ11: 21.86433378 | NA11: 20.15259155 | NB11: 21.68713553 | NC11: 19.39220542 | ND11: 20.86115951 | NE11: 19.52001375 | NF11: 21.00005547 | NG11: 19.59734537 | NH11: 21.08408342 | NI11: 19.11569205 | NJ11: 20.56057131 | NK11: 18.77280734 | NL11: 20.18766901 | NM11: 18.53390648 | NN11: 19.92774702 | NO11: 18.62887537 | NP11: 20.03108277 | NQ11: 19.14056798 | NR11: 20.58761792 | NS11: 18.84544613 | NT11: 20.26668202 | NU11: 19.14056798 | NV11: 20.58761792 | NW11: 18.99208667 | NX11: 20.42616587 | NY11: 18.91853807 | NZ11: 20.34617976 | OA11: 18.48671476 | OB11: 19.87639253 | OC11: 18.58129302 | OD11: 19.97931009 | OE11: 18.77280734 | OF11: 20.18766901 | OG11: 18.70061823 | OH11: 20.10913712 | OI11: 18.36958127 | OJ11: 19.74891208 | OK11: 18.04792253 | OL11: 19.39873272 | OM11: 18.2076004 | ON11: 19.57258835 | OO11: 18.29987627 | OP11: 19.67303981 | OQ11: 18.23059857 | OR11: 19.59762535 | OS11: 18.25364386 | OT11: 19.62271284 | OU11: 18.39291179 | OV11: 19.77430517 | OW11: 18.27673638 | OX11: 19.64785095 | OY11: 18.25364386 | OZ11: 19.62271284 | PA11: 18.34629859 | PB11: 19.72357024 | PC11: 18.39291179 | PD11: 19.77430517 | PE11: 18.25364386 | PF11: 19.62271284 | PG11: 18.2076004 | PH11: 19.57258835 | PI11: 18.16174494 | PJ11: 19.52266533 | PK11: 18.13888741 | PL11: 19.49777906 | PM11: 18.27673638 | PN11: 19.64785095 | PO11: 18.13888741 | PP11: 19.49777906 | PQ11: 18.23059857 | PR11: 19.59762535 | PS11: 18.41629028 | PT11: 19.79974963 | PU11: 18.53390648 | PV11: 19.92774702 | PW11: 18.46319164 | PX11: 19.85079318 | PY11: 18.27673638 | PZ11: 19.64785095 | QA11: 18.09331216 | QB11: 19.44815639 | QC11: 18.11607652 | QD11: 19.47294279 | QE11: 18.02529703 | QF11: 19.3740952 | QG11: 17.82372612 | QH11: 19.15456532 | QI11: 17.69137657 | QJ11: 19.01039108 | QK11: 17.75735029 | QL11: 19.08226243 | QM11: 18.02529703 | QN11: 19.3740952 | QO11: 18.04959531 | QP11: 19.3895532 | QQ11: 17.91449318 | QR11: 19.24253601 | QS11: 17.89213608 | QT11: 19.21820452 | QU11: 18.00437773 | QV11: 19.3403508 | QW11: 17.80316036 | QX11: 19.12136384 | QY11: 17.89213608 | QZ11: 19.21820452 | RA11: 18.30162016 | RB11: 19.66373132 | RC11: 18.32481412 | RD11: 19.68895922 | RE11: 18.37134504 | RF11: 19.7395681 | RG11: 18.34805571 | RH11: 19.71423811 | RI11: 18.14058573 | RJ11: 19.48855285 | RK11: 18.09499766 | RL11: 19.43895356 | RM11: 18.11776842 | RN11: 19.46372828 | RO11: 18.25537461 | RP11: 19.61342794 | RQ11: 18.34805571 | RR11: 19.71423811 | RS11: 18.51209049 | RT11: 19.89262839 | RU11: 18.65458571 | RV11: 20.04756073 | RW11: 18.7024776 | RX11: 20.0996257 | RY11: 18.84734794 | RZ11: 20.25709792 | SA11: 18.7264979 | SB11: 20.12573769 | SC11: 18.7747 | SD11: 20.1781 | SE11: 18.7024776 | SF11: 20.0996257 | SG11: 18.48851213 | SH11: 19.86698909 | SI11: 18.18636046 | SJ11: 19.53835208 | SK11: 18.1634497 | SL11: 19.51342741 | SM11: 17.80316036 | SN11: 19.12136384 | SO11: 17.75894252 | SP11: 19.07323298 | SQ11: 17.93689579 | SR11: 19.26691626 | SS11: 18.27847369 | ST11: 19.63855426 | SU11: 18.5831177 | SV11: 19.96985881 | SW11: 18.75056793 | SX11: 20.15190285 | SY11: 18.53571746 | SZ11: 19.91831969 | TA11: 18.7024776 | TB11: 20.0996257 | TC11: 18.65458571 | TD11: 20.04756073 | TE11: 18.7264979 | TF11: 20.12573769 | TG11: 18.87166856 | TH11: 20.28353096 | TI11: 18.84734794 | TJ11: 20.25709792 | TK11: 18.8230777 | TL11: 20.23071872 | TM11: 18.77468782 | TN11: 20.17812132 | TO11: 18.46498225 | TP11: 19.84140167 | TQ11: 18.27847369 | TR11: 19.63855426 | TS11: 18.37134504 | TT11: 19.7395681 | TU11: 18.46498225 | TV11: 19.84140167 | TW11: 18.39468224 | TX11: 19.76494933 | TY11: 18.37134504 | TZ11: 19.7395681 | UA11: 18.25537461 | UB11: 19.61342794 | UC11: 17.86982436 | UD11: 19.19392168 | UE11: 17.56216201 | UF11: 18.85900332 | UG11: 16.95177641 | UH11: 18.19413092 | UI11: 16.62980728 | UJ11: 17.84320441 | UK11: 16.39491571 | UL11: 17.58709488 | UM11: 16.41427917 | UN11: 17.60821037 | UO11: 16.55089322 | UP11: 17.75717058 | UQ11: 16.51166866 | UR11: 17.71440385 | US11: 16.31891178 | UT11: 17.49468683 | UU11: 16.63095222 | UV11: 17.83467905 | UW11: 16.29973257 | UX11: 17.47378518 | UY11: 16.2614865 | UZ11: 17.4321028 | VA11: 16.20439686 | VB11: 17.36988009 | VC11: 16.33812856 | VD11: 17.51562892 | VE11: 16.55201943 | VF11: 17.74868853 | VG11: 16.83103356 | VH11: 18.05261106 | VI11: 17.01452937 | VJ11: 18.25242758 | VK11: 16.9121823 | VL11: 18.14098339 | VM11: 16.75052581 | VN11: 17.96492748 | VO11: 16.53238322 | VP11: 17.72729519 | VQ11: 16.57169434 | VR11: 17.77012348 | VS11: 16.81084678 | VT11: 18.03062585 | VU11: 16.99397843 | VV11: 18.23005118 | VW11: 16.95299904 | VX11: 18.18542993 | VY11: 16.93257039 | VZ11: 18.16318488 | WA11: 16.83103356 | WB11: 18.05261106 | WC11: 16.9121823 | WD11: 18.14098339 | WE11: 16.87152741 | WF11: 18.09671071 | WG11: 16.97346835 | WH11: 18.20771866 | WI11: 16.770593 | WJ11: 17.98678416 | WK11: 16.83103356 | WL11: 18.05261106 | WM11: 17.24331621 | WN11: 18.50149536 | WO11: 17.41289896 | WP11: 18.6860616 | WQ11: 17.60696879 | WR11: 18.89722652 | WS11: 17.76036864 | WT11: 19.06409943 | WU11: 17.39155189 | WV11: 18.66283072 | WW11: 17.34898618 | WX11: 18.61650675 | WY11: 17.41289896 | WZ11: 18.6860616 | XA11: 17.37024766 | XB11: 18.63964581 | XC11: 17.41289896 | XD11: 18.6860616 | XE11: 17.4557221 | XF11: 18.73266169 | XG11: 17.49871793 | XH11: 18.779447 | XI11: 17.47719837 | XJ11: 18.75603114 | XK11: 17.4557221 | XL11: 18.73266169 | XM11: 17.52028088 | XN11: 18.80290939 | XO11: 17.41289896 | XP11: 18.6860616 | XQ11: 17.434289 | XR11: 18.70933855 | XS11: 17.28545714 | XT11: 18.54736358 | XU11: 16.9121823 | XV11: 18.14098339 | XW11: 16.89183467 | XX11: 18.11882537 | XY11: 16.83103356 | XZ11: 18.05261106 | YA11: 16.770593 | YB11: 17.98678416 | YC11: 16.85126041 | YD11: 18.07463931 | YE11: 16.69056184 | YF11: 17.8996128 | YG11: 16.81084678 | YH11: 18.03062585 | YI11: 16.83103356 | YJ11: 18.05261106 | YK11: 16.770593 | YL11: 17.98678416 | YM11: 16.71051033 | YN11: 17.9213419 | YO11: 16.4737058 | YP11: 17.66336389 | YQ11: 16.24333033 | YR11: 17.40292297 | YS11: 16.55299819 | YT11: 17.74011565 | YU11: 16.63194858 | YV11: 17.82606207 | YW11: 16.51375565 | YX11: 17.69739245 | YY11: 16.57267747 | YZ11: 17.7615396 | ZA11: 16.51375565 | ZB11: 17.69739245 | ZC11: 16.41632181 | ZD11: 17.59130726 | ZE11: 16.22429637 | ZF11: 17.38219284 | ZG11: 16.2624015 | ZH11: 17.42369313 | ZI11: 16.31983926 | ZJ11: 17.48624479 | ZK11: 16.33906023 | ZL11: 17.50717606 | ZM11: 16.39694957 | ZN11: 17.57021334 | ZO11: 16.49419222 | ZP11: 17.676093 | ZQ11: 16.73151702 | ZR11: 17.93444099 | ZS11: 16.75154907 | ZT11: 17.9562439 | ZU11: 16.63194858 | ZV11: 17.82606207 | ZW11: 16.4357321 | ZX11: 17.61244209 | ZY11: 16.55299819 | ZZ11: 17.74011565 | AAA11: 16.41632181 | AAB11: 17.59130726 | AAC11: 16.35831887 | AAD11: 17.52814784 | AAE11: 16.31983926 | AAF11: 17.48624479 | AAG11: 16.35831887 | AAH11: 17.52814784 | AAI11: 16.18633974 | AAJ11: 17.3408523 | AAK11: 16.11086912 | AAL11: 17.25864746 | AAM11: 16.20529954 | AAN11: 17.36150265 | AAO11: 16.41632181 | AAP11: 17.59130726 | AAQ11: 16.49419222 | AAR11: 17.676093 | AAS11: 16.39694957 | AAT11: 17.57021334 | AAU11: 16.35831887 | AAV11: 17.52814784 | AAW11: 16.41632181 | AAX11: 17.59130726 | AAY11: 16.4357321 | AAZ11: 17.61244209 | ABA11: 16.49419222 | ABB11: 17.676093 | ABC11: 16.30065588 | ABD11: 17.46535395 | ABE11: 16.31983926 | ABF11: 17.48624479 | ABG11: 16.1485309 | ABH11: 17.29967076 | ABI11: 16.03598387 | ABJ11: 17.17707255 | ABK11: 15.99875897 | ABL11: 17.13651945 | ABM11: 16.07335368 | ABN11: 17.21778164 | ABO11: 15.83302144 | ABP11: 16.95594102 | ABQ11: 15.86960289 | ABR11: 16.99580131 | ABS11: 15.58086344 | ABT11: 16.68113375 | ABU11: 15.18100767 | ABV11: 16.24519398 | ABW11: 14.9792214 | ABX11: 16.02512214 | ABY11: 14.6209095 | ABZ11: 15.6342203 | ACA11: 14.52571834 | ACB11: 15.53034608 | ACC11: 14.49422325 | ACD11: 15.49597585 | ACE11: 14.21595493 | ACF11: 15.19225727 | ACG11: 14.27699549 | ACH11: 15.25888777 | ACI11: 14.32307215 | ACJ11: 15.30918135 | ACK11: 14.41599504 | ACL11: 15.4106015 | ACM11: 14.9129686 | ACN11: 15.95285483 | ACO11: 15.01253554 | ACP11: 16.06145858 | ACQ11: 15.01253554 | ACR11: 16.06145858 | ACS11: 15.08008943 | ACT11: 16.12673373 | ACU11: 14.96313778 | ACV11: 15.99926778 | ACW11: 14.83135383 | ACX11: 15.85561623 | ACY11: 14.84771866 | ACZ11: 15.8734559 | ADA11: 14.97975073 | ADB11: 16.0173753 | ADC11: 15.08008943 | ADD11: 16.12673373 | ADE11: 15.13068709 | ADF11: 16.18187508 | ADG11: 15.08008943 | ADH11: 16.12673373 | ADI11: 15.14761695 | ADJ11: 16.20032453 | ADK11: 15.21565823 | ADL11: 16.2744695 | ADM11: 15.31869431 | ADN11: 16.38673747 | ADO11: 15.4054615 | ADP11: 16.48126846 | ADQ11: 15.51068159 | ADR11: 16.59589056 | ADS11: 15.52833601 | ADT11: 16.61512111 | ADU11: 15.67079718 | ADV11: 16.77028587 | ADW11: 15.54602429 | ADX11: 16.63438813 | ADY11: 15.72478742 | ADZ11: 16.82908358 | AEA11: 15.74285359 | AEB11: 16.84875758 | AEC11: 15.54602429 | AED11: 16.63438813 | AEE11: 15.52833601 | AEF11: 16.61512111 | AEG11: 15.47547399 | AEH11: 16.55753855 | AEI11: 15.49306094 | AEJ11: 16.5766964 | AEK11: 15.56374651 | AEL11: 16.65369171 | AEM11: 15.70675601 | AEN11: 16.80944703 | AEO11: 15.76095463 | AEP11: 16.8684691 | AEQ11: 16.22506138 | AER11: 17.37371804 | AES11: 16.43654019 | AET11: 17.60384621 | AEU11: 16.75242309 | AEV11: 17.94746855 | AEW11: 16.55383054 | AEX11: 17.73145294 | AEY11: 16.32062363 | AEZ11: 17.47771519 | AFA11: 16.59323613 | AFB11: 17.77432014 | AFC11: 16.55383054 | AFD11: 17.73145294 | AFE11: 16.69243293 | AFF11: 17.8822212 | AFG11: 17.05778697 | AFH11: 18.27951269 | AFI11: 17.28759407 | AFJ11: 18.52930929 | AFK11: 17.26649285 | AFL11: 18.50637583 | AFM11: 17.05778697 | AFN11: 18.27951269 | AFO11: 16.99598345 | AFP11: 18.21232012 | AFQ11: 17.37242357 | AFR11: 18.62149802 | AFS11: 17.52252638 | AFT11: 18.78459672 | AFU11: 17.76272721 | AFV11: 19.04552447 | AFW11: 17.74066921 | AFX11: 19.02156667 | AFY11: 17.67476264 | AFZ11: 18.94997943 | AGA11: 17.63104667 | AGB11: 18.90249188 | AGC11: 17.58750706 | AGD11: 18.85519307 | AGE11: 17.37242357 | AGF11: 18.62149802 | AGG11: 17.32992369 | AGH11: 18.57531246 | AGI11: 17.20344225 | AGJ11: 18.43784658 | AGK11: 17.18250939 | AGL11: 18.41509352 | AGM11: 17.4794238 | AGN11: 18.73776574 | AGO11: 17.63104667 | AGP11: 18.90249188 | AGQ11: 17.52340982 | AGR11: 18.77529229 | AGS11: 17.50183225 | AGT11: 18.7518657 | AGU11: 17.74159921 | AGV11: 19.01213981 | AGW11: 17.76366196 | AGX11: 19.03608526 | AGY11: 17.89698283 | AGZ11: 19.18076735 | AHA11: 17.98677115 | AHB11: 19.27819207 | AHC11: 18.12283371 | AHD11: 19.42580338 | AHE11: 18.26057495 | AHF11: 19.57520721 | AHG11: 17.45880736 | AHH11: 18.70515185 | AHI11: 15.96296664 | AHJ11: 17.07939164 | AHK11: 16.00006141 | AHL11: 17.11974625 | AHM11: 16.65334292 | AHN11: 17.83012597 | AHO11: 16.43720457 | AHP11: 17.59516263 | AHQ11: 16.91490894 | AHR11: 18.11438458 | AHS11: 17.0379276 | AHT11: 18.24804184 | AHU11: 17.12076109 | AHV11: 18.33802635 | AHW11: 17.7857695 | AHX11: 19.06007859 | AHY11: 18.66018529 | AHZ11: 20.00848867 | AIA11: 18.68413077 | AIB11: 20.03444401 | AIC11: 18.80460426 | AID11: 20.16501602 | AIE11: 18.97537956 | AIF11: 20.3500679 | AIG11: 18.70812582 | AIH11: 20.0604522 | AII11: 19.07408721 | AIJ11: 20.45700678 | AIK11: 19.14865979 | AIL11: 20.53778794 | AIM11: 19.47726765 | AIN11: 20.89365116 | AIO11: 19.55438103 | AIP11: 20.97713607 | AIQ11: 19.68399012 | AIR11: 21.11743325 | AIS11: 19.45167103 | AIT11: 20.86593755 | AIU11: 19.65795897 | AIV11: 21.08925757 | AIW11: 19.5029181 | AIX11: 20.92142202 | AIY11: 19.63198262 | AIZ11: 21.06114015 | AJA11: 19.73621745 | AJB11: 21.17396002 | AJC11: 19.5029181 | AJD11: 20.92142202 | AJE11: 19.47726765 | AJF11: 20.89365116 | AJG11: 19.52862251 | AJH11: 20.94925027 | AJI11: 19.65795897 | AJJ11: 21.08925757 | AJK11: 19.60606094 | AJL11: 21.03308086 | AJM11: 19.37520274 | AJN11: 20.78313881 | AJO11: 18.61244253 | AJP11: 19.956736 | AJQ11: 18.78040965 | AJR11: 20.13879513 | AJS11: 18.75626513 | AJT11: 20.11262762 | AJU11: 18.70812582 | AJV11: 20.0604522 | AJW11: 18.61244253 | AJX11: 19.956736 | AJY11: 18.95083078 | AJZ11: 20.32346965 | AKA11: 18.92633298 | AKB11: 20.29692572 | AKC11: 19.04933316 | AKD11: 20.43018991 | AKE11: 19.27399019 | AKF11: 20.67353332 | AKG11: 19.4261281 | AKH11: 20.83828106 | AKI11: 19.55438103 | AKJ11: 20.97713607 | AKK11: 19.94734793 | AKL11: 21.40242757 | AKM11: 20.02871964 | AKN11: 21.47829968 | AKO11: 19.94860008 | AKP11: 21.39168279 | AKQ11: 19.71127268 | AKR11: 21.13505011 | AKS11: 19.94860008 | AKT11: 21.39168279 | AKU11: 20.08241678 | AKV11: 21.53634577 | AKW11: 20.10935102 | AKX11: 21.56545973 | AKY11: 20.00195644 | AKZ11: 21.44936724 | ALA11: 19.19971419 | ALB11: 20.58157939 | ALC11: 19.09994989 | ALD11: 20.47359379 | ALE11: 18.97640907 | ALF11: 20.3398509 | ALG11: 18.58959009 | ALH11: 19.92093538 | ALI11: 17.92016624 | ALJ11: 19.19542306 | ALK11: 17.6764341 | ALL11: 18.9311007 | ALM11: 17.5457606 | ALN11: 18.78935136 | ALO11: 17.52413521 | ALP11: 18.76589055 | ALQ11: 17.41665969 | ALR11: 18.6492829 | ALS11: 17.20492246 | ALT11: 18.41950446 | ALU11: 17.05920968 | ALV11: 18.26133782 | ALW11: 17.16310799 | ALX11: 18.37409172 | ALY11: 17.18400734 | ALZ11: 18.39677603 | AMA11: 17.31028619 | AMB11: 18.53382637 | AMC11: 17.54578733 | AMD11: 18.78935262 | AME11: 17.87547276 | AMF11: 19.14693283 | AMG11: 17.7865744 | AMH11: 19.05052882 | AMI11: 17.45954662 | AMJ11: 18.69578825 | AMK11: 17.35271796 | AML11: 18.57987226 | AMM11: 17.37399785 | AMN11: 18.60296367 | AMO11: 17.5241619 | AMP11: 18.76589178 | AMQ11: 17.35271796 | AMR11: 18.57987226 | AMS11: 17.22593173 | AMT11: 18.44227914 | AMU11: 17.14225039 | AMV11: 18.35145209 | AMW11: 17.18400734 | AMX11: 18.39677603 | AMY11: 17.2891341 | AMZ11: 18.51087166 | ANA11: 17.33148078 | ANB11: 18.55682654 | ANC11: 17.31028619 | AND11: 18.53382637 | ANE11: 17.12143445 | ANF11: 18.32885703 | ANG11: 16.87485445 | ANH11: 18.06115416 | ANI11: 16.79396015 | ANJ11: 17.97331098 | ANK11: 16.87485445 | ANL11: 18.06115416 | ANM11: 16.79396015 | ANN11: 17.97331098 | ANO11: 16.733709 | ANP11: 17.9078781 | ANQ11: 16.81412359 | ANR11: 17.99520735 | ANS11: 17.12143445 | ANT11: 18.32885703 | ANU11: 16.89517859 | ANV11: 18.08322267 | ANW11: 16.49624485 | ANX11: 17.64994103 | ANY11: 16.69373988 | ANZ11: 17.86446868 | AOA11: 16.95639396 | AOB11: 18.14968839 | AOC11: 17.01797588 | AOD11: 18.21654662 | AOE11: 16.93594824 | AOF11: 18.12748968 | AOG11: 16.81456768 | AOH11: 17.98612661 | AOI11: 16.51621365 | AOJ11: 17.66230346 | AOK11: 16.41870738 | AOL11: 17.55644606 | AOM11: 16.51621365 | AON11: 17.66230346 | AOO11: 16.47709607 | AOP11: 17.61983718 | AOQ11: 16.45759491 | AOR11: 17.5986658 | AOS11: 16.45759491 | AOT11: 17.5986658 | AOU11: 16.34138887 | AOV11: 17.4724959 | AOW11: 16.30295639 | AOX11: 17.43076394 | AOY11: 16.03809355 | AOZ11: 17.14310634 | APA11: 15.67199566 | APB11: 16.74534331 | APC11: 15.54716185 | APD11: 16.60967117 | APE11: 15.76219769 | APF11: 16.84336399 | APG11: 15.68996662 | APH11: 16.76487284 | API11: 15.74408766 | APJ11: 16.82368508 | APK11: 15.49417292 | APL11: 16.55207544 | APM11: 15.25086969 | APN11: 16.28757293 | APO11: 15.09784926 | APP11: 16.12118099 | APQ11: 14.89783345 | APR11: 15.90364303 | APS11: 14.94741376 | APT11: 15.95757134 | APU11: 15.13162845 | APV11: 16.15791446 | APW11: 15.30246064 | APX11: 16.34366542 | APY11: 15.45901574 | APZ11: 16.51385971 | AQA11: 15.21663889 | AQB11: 16.25035348 | AQC11: 14.94741376 | AQD11: 15.95757134 | AQE11: 15.04741963 | AQF11: 16.06633819 | AQG11: 15.09784926 | AQH11: 16.12118099 | AQI11: 15.23373802 | AQJ11: 16.2689457 | AQK11: 15.03067322 | AQL11: 16.04812557 | AQM11: 14.86493508 | AQN11: 15.86785794 | AQO11: 15.25086969 | AQP11: 16.28757293 | AQQ11: 15.81673796 | AQR11: 16.90262651 | AQS11: 15.88995202 | AQT11: 16.98217333 | AQU11: 15.70797221 | AQV11: 16.78443959 | AQW11: 15.37170878 | AQX11: 16.41895041 | AQY11: 15.23373802 | AQZ11: 16.2689457 | ARA11: 15.19957221 | ARB11: 16.23179617 | ARC11: 15.16553589 | ARD11: 16.19478597 | ARE11: 14.84853222 | ARF11: 15.85001529 | ARG11: 14.2933162 | ARH11: 15.24587767 | ARI11: 14.41705642 | ARJ11: 15.38055166 | ARK11: 14.24738303 | ARL11: 15.19588149 | ARM11: 14.14118741 | ARN11: 15.08028354 | ARO11: 14.08111459 | ARP11: 15.01488663 | ARQ11: 14.0960915 | ARR11: 15.03119126 | ARS11: 14.23212834 | ART11: 15.17927694 | ARU11: 12.19843496 | ARV11: 13.44324094 | ARW11: 12.23267959 | ARX11: 13.48310207 | ARY11: 12.34807492 | ARZ11: 13.61744986 | ASA11: 12.33644833 | ASB11: 13.60391191 | ASC11: 12.51291462 | ASD11: 13.80943116 | ASE11: 12.58475998 | ASF11: 13.89313046 | ASG11: 12.59680528 | ASH11: 13.90716456 | ASI11: 12.53533671 | ASJ11: 13.83461827 | ASK11: 12.4995659 | ASL11: 13.79294811 | ASM11: 12.70469149 | ASN11: 14.03195169 | ASO11: 12.65589304 | ASP11: 13.97508329 | ASQ11: 12.61951128 | ASR11: 13.9326892 | ASS11: 12.65589304 | AST11: 13.97508329 | ASU11: 12.65589304 | ASV11: 13.97508329 | ASW11: 12.47581914 | ASX11: 13.76528703 | ASY11: 12.16292057 | ASZ11: 13.40096788 | ATA11: 12.1516005 | ATB11: 13.38779315 | ATC11: 12.18561725 | ATD11: 13.42738436 | ATE11: 12.23123795 | ATF11: 13.48048681 | ATG11: 12.19699395 | ATH11: 13.44062621 | ATI11: 12.277164 | ATJ11: 13.53395121 | ATK11: 12.39333268 | ATL11: 13.66921655 | ATM11: 12.44034877 | ATN11: 13.7239729 | ATO11: 12.28869353 | ATP11: 13.54737423 | ATQ11: 12.26565371 | ATR11: 13.52055101 | ATS11: 12.277164 | ATT11: 13.53395121 | ATU11: 12.28869353 | ATV11: 13.54737423 | ATW11: 12.28869353 | ATX11: 13.54737423 | ATY11: 12.26565371 | ATZ11: 13.52055101 | AUA11: 12.31181053 | AUB11: 13.57428893 | AUC11: 12.26565371 | AUD11: 13.52055101 | AUE11: 12.31181053 | AUF11: 13.57428893 | AUG11: 12.36994289 | AUH11: 13.64197852 | AUI11: 11.44575551 | AUJ11: 11.44575551 | AUK11: 12.3816 | AUL11: 13.6556 | AUM11: 12.28869353 | AUN11: 13.54737423 | AUO11: 12.41680119 | AUP11: 13.69654787 | AUQ11: 12.3582774 | AUR11: 13.62839436 | AUS11: 12.32339807 | AUT11: 13.58778071 | AUU11: 12.19699395 | AUV11: 13.44062621 | AUW11: 12.14029923 | AUX11: 13.37464071 | AUY11: 11.97300785 | AUZ11: 13.17999498 | AVA11: 11.98403207 | AVB11: 13.19281897 | AVC11: 11.8963444 | AVD11: 13.09082708 | AVE11: 11.74563258 | AVF11: 12.915592 | AVG11: 11.74563258 | AVH11: 12.915592 | AVI11: 11.50536971 | AVJ11: 12.63640392 | AVK11: 11.52590908 | AVL11: 12.66026246 | AVM11: 11.64006909 | AVN11: 12.79289978 | AVO11: 11.55684261 | AVP11: 12.69619788 | AVQ11: 11.44414685 | AVR11: 12.56529706 | AVS11: 11.39357654 | AVT11: 12.50657352 | AVU11: 11.64006909 | AVV11: 12.79289978 | AVW11: 11.75628373 | AVX11: 12.92797364 | AVY11: 11.84212193 | AVZ11: 13.0277726 | AWA11: 11.8854643 | AWB11: 13.07817397 | AWC11: 12.10650777 | AWD11: 13.33531656 | AWE11: 12.16292057 | AWF11: 13.40096788 | AWG11: 12.26565371 | AWH11: 13.52055101 | AWI11: 12.30024236 | AWJ11: 13.56082012 | AWK11: 12.24112359 | AWL11: 13.4910001 | AWM11: 12.16135636 | AWN11: 13.39815282 | AWO11: 12.20682369 | AWP11: 13.45107332 | AWQ11: 12.04900104 | AWR11: 13.26740823 | AWS11: 12.02675246 | AWT11: 13.2415231 | AWU11: 12.01565572 | AWV11: 13.2286132 | AWW11: 12.00457729 | AWX11: 13.21572501 | AWY11: 11.96044592 | AWZ11: 13.16438847 | AXA11: 11.96044592 | AXB11: 13.16438847 | AXC11: 12.73992841 | AXD11: 14.07202874 | AXE11: 12.66648237 | AXF11: 13.98643141 | AXG11: 12.5218172 | AXH11: 13.81787556 | AXI11: 12.49799077 | AXJ11: 13.79012 | AXK11: 11.85138013 | AXL11: 13.03754431 | AXM11: 11.65950399 | AXN11: 12.81449273 | AXO11: 11.3719381 | AXP11: 12.48046053 | AXQ11: 11.38198687 | AXR11: 12.49212761 | AXS11: 11.39205174 | AXT11: 12.50381379 | AXU11: 11.68054673 | AXV11: 12.83894795 | AXW11: 11.62806769 | AXX11: 12.77796151 | AXY11: 11.55530775 | AXZ11: 12.69342341 | AYA11: 11.51409872 | AYB11: 12.64555247 | AYC11: 11.45278105 | AYD11: 12.57433421 | AYE11: 11.14518326 | AYF11: 12.21729742 | AYG11: 11.19377524 | AYH11: 12.27367347 | AYI11: 11.34188805 | AYJ11: 12.44557347 | AYK11: 11.3719381 | AYL11: 12.48046053 | AYM11: 11.38198687 | AYN11: 12.49212761 | AYO11: 11.50383793 | AYP11: 12.63363392 | AYQ11: 11.3119817 | AYR11: 12.41085687 | AYS11: 11.44261885 | AYT11: 12.56253259 | AYU11: 11.61762286 | AYV11: 12.76582468 | AYW11: 11.82978095 | AYX11: 13.01242921 | AYY11: 11.70165799 | AYZ11: 12.86348442 | AZA11: 11.54498054 | AZB11: 12.68142608 | AZC11: 11.53466999 | AZD11: 12.66944851 | AZE11: 11.67001681 | AZF11: 12.8267102 | AZG11: 11.92753774 | AZH11: 13.12611177 | AZI11: 11.96044592 | AZJ11: 13.16438847 | AZK11: 11.8405717 | AZL11: 13.02497627 | AZM11: 11.67001681 | AZN11: 12.8267102 | AZO11: 11.54498054 | AZP11: 12.68142608 | AZQ11: 11.29212352 | AZR11: 12.38780662 | AZS11: 11.28221815 | AZT11: 12.37630962
B12: 65 | C12: 11.9527 | D12: 13.7 | E12: 14.04509117 | F12: 15.70471319 | G12: 14.10275799 | H12: 15.77049001 | I12: 14.16082828 | J12: 15.83671233 | K12: 14.21930566 | L12: 15.90338392 | M12: 14.27819376 | N12: 15.97050853 | O12: 14.32263158 | P12: 16.0211516 | Q12: 14.60958608 | R12: 16.34796448 | S12: 14.76453361 | T12: 16.5242809 | U12: 14.79630056 | V12: 16.54610348 | W12: 14.97059701 | X12: 16.74402844 | Y12: 15.13206902 | Z12: 16.92728675 | AA12: 15.31307796 | AB12: 17.13257573 | AC12: 15.48078652 | AD12: 17.3226454 | AE12: 17.46283958 | AF12: 18.79544766 | AG12: 17.67726623 | AH12: 19.02888799 | AI12: 17.89600372 | AJ12: 19.26693796 | AK12: 18.1191602 | AL12: 19.50970983 | AM12: 18.34684692 | AN12: 19.75731897 | AO12: 18.57917835 | AP12: 20.00988397 | AQ12: 18.81627228 | AR12: 20.26752673 | AS12: 18.93664291 | AT12: 20.39829131 | AU12: 19.18110893 | AV12: 20.66378681 | AW12: 18.93664291 | AX12: 20.39829131 | AY12: 18.69712251 | AZ12: 20.13806288 | BA12: 18.2324302 | BB12: 19.63290241 | BC12: 18.00702271 | BD12: 19.38772652 | BE12: 17.56952069 | BF12: 18.91159852 | BG12: 17.35720986 | BH12: 18.68042187 | BI12: 17.17260568 | BJ12: 18.469014 | BK12: 16.88730186 | BL12: 18.15837112 | BM12: 16.68824387 | BN12: 17.94155071 | BO12: 16.49302044 | BP12: 17.72884115 | BQ12: 16.30153963 | BR12: 17.52014655 | BS12: 16.11371201 | BT12: 17.31537357 | BU12: 15.92945061 | BV12: 17.11443136 | BW12: 16.11371201 | BX12: 17.31537357 | BY12: 16.30153963 | BZ12: 17.52014655 | CA12: 16.49302044 | CB12: 17.72884115 | CC12: 16.68824387 | CD12: 17.94155071 | CE12: 16.88730186 | CF12: 18.15837112 | CG12: 17.09028899 | CH12: 18.37940089 | CI12: 18.21303628 | CJ12: 19.60064186 | CK12: 18.44266511 | CL12: 19.85014013 | CM12: 18.21303628 | CN12: 19.60064186 | CO12: 17.98798613 | CP12: 19.35602737 | CQ12: 17.33919708 | CR12: 18.65033567 | CS12: 17.13136641 | CT12: 18.42412082 | CU12: 17.33919708 | CV12: 18.65033567 | CW12: 17.55117447 | CX12: 18.88098625 | CY12: 17.76740201 | CZ12: 19.11618 | DA12: 17.98798613 | DB12: 19.35602737 | DC12: 17.55117447 | DD12: 18.88098625 | DE12: 17.13136641 | DF12: 18.42412082 | DG12: 17.55117447 | DH12: 18.88098625 | DI12: 17.57552055 | DJ12: 18.89688901 | DK12: 17.36303915 | DL12: 18.66586798 | DM12: 17.57552055 | DN12: 18.89688901 | DO12: 17.79226529 | DP12: 19.13246351 | DQ12: 18.23898973 | DR12: 19.61772531 | DS12: 18.46917787 | DT12: 19.86763756 | DU12: 18.23898973 | DV12: 19.61772531 | DW12: 18.01339465 | DX12: 19.37270812 | DY12: 17.79227958 | DZ12: 19.13246898 | EA12: 17.36305309 | EB12: 18.66587263 | EC12: 17.57553466 | ED12: 18.89689407 | EE12: 17.79227958 | EF12: 19.13246898 | EG12: 18.23898973 | EH12: 19.61772531 | EI12: 18.46917787 | EJ12: 19.86763756 | EK12: 18.23898973 | EL12: 19.61772531 | EM12: 18.46917787 | EN12: 19.86763756 | EO12: 18.70407538 | EP12: 20.12256513 | EQ12: 19.18848074 | ER12: 20.64796426 | ES12: 19.69320573 | ET12: 21.19495412 | EU12: 20.21930964 | EV12: 21.76462526 | EW12: 20.76791503 | EX12: 22.35813104 | EY12: 21.05102489 | EZ12: 22.66420051 | FA12: 21.34021186 | FB12: 22.97669165 | FC12: 20.76791503 | FD12: 22.35813104 | FE12: 20.49072691 | FF12: 22.05832418 | FG12: 20.21930964 | FH12: 21.76462526 | FI12: 19.95351669 | FJ12: 21.47688397 | FK12: 20.21930964 | FL12: 21.76462526 | FM12: 19.69320573 | FN12: 21.19495412 | FO12: 19.43823851 | FP12: 20.91869362 | FQ12: 19.95351669 | FR12: 21.47688397 | FS12: 20.21930964 | FT12: 21.76462526 | FU12: 19.95351669 | FV12: 21.47688397 | FW12: 19.69320573 | FX12: 21.19495412 | FY12: 19.95351669 | FZ12: 21.47688397 | GA12: 19.98357383 | GB12: 21.49701575 | GC12: 20.52214387 | GD12: 22.07947201 | GE12: 20.80003978 | GF12: 22.37980883 | GG12: 21.08387677 | GH12: 22.68642347 | GI12: 21.3738108 | GJ12: 22.99947549 | GK12: 21.08387677 | GL12: 22.68642347 | GM12: 21.3738108 | GN12: 22.99947549 | GO12: 21.6700025 | GP12: 23.31912904 | GQ12: 21.97261731 | GR12: 23.64555303 | GS12: 22.28182562 | GT12: 23.97892124 | GU12: 21.58047819 | GV12: 23.22252986 | GW12: 20.99809266 | GX12: 22.5937705 | GY12: 20.16951257 | GZ12: 21.69816496 | HA12: 19.64537209 | HB12: 21.1309884 | HC12: 19.14251573 | HD12: 20.58637901 | HE12: 18.89873735 | HF12: 20.32219572 | HG12: 17.97171991 | HH12: 19.31661294 | HI12: 18.19649812 | HJ12: 19.56058208 | HK12: 18.65988942 | HL12: 20.06325218 | HM12: 18.19649812 | HN12: 19.56058208 | HO12: 18.42584938 | HP12: 19.80942195 | HQ12: 17.97171991 | HR12: 19.31661294 | HS12: 17.75140225 | HT12: 19.07739816 | HU12: 17.5354358 | HV12: 18.84282453 | HW12: 17.97171991 | HX12: 19.31661294 | HY12: 18.42584938 | HZ12: 19.80942195 | IA12: 17.97171991 | IB12: 19.31661294 | IC12: 18.42584938 | ID12: 19.80942195 | IE12: 18.19649812 | IF12: 19.56058208 | IG12: 17.75140225 | IH12: 19.07739816 | II12: 17.32371427 | IJ12: 18.6127819 | IK12: 17.11613435 | IL12: 18.38716308 | IM12: 17.32371427 | IN12: 18.6127819 | IO12: 17.34719967 | IP12: 18.62804743 | IQ12: 16.73506907 | IR12: 17.96301159 | IS12: 16.50007407 | IT12: 17.70754882 | IU12: 16.55830657 | IV12: 17.77086564 | IW12: 16.75488352 | IX12: 17.98456297 | IY12: 17.03661333 | IZ12: 18.29071317 | JA12: 17.09799591 | JB12: 18.35739814 | JC12: 17.20110821 | JD12: 18.46940278 | JE12: 17.26346477 | JF12: 18.53712793 | JG12: 17.38929124 | JH12: 18.67376669 | JI12: 17.3471832 | JJ12: 18.62804338 | JK12: 17.41040783 | JL12: 18.69669511 | JM12: 17.45276665 | JN12: 18.74268601 | JO12: 17.51662056 | JP12: 18.81200915 | JQ12: 17.43156627 | JR12: 18.71966818 | JS12: 17.41040783 | JT12: 18.69669511 | JU12: 17.71048148 | JV12: 19.02243067 | JW12: 18.01904689 | JX12: 19.35721822 | JY12: 18.08630145 | JZ12: 19.43016569 | KA12: 18.19929767 | KB12: 19.55270861 | KC12: 18.15396272 | KD12: 19.50354618 | KE12: 18.66286636 | KF12: 20.05520426 | KG12: 18.47518313 | KH12: 19.8518071 | KI12: 18.56864375 | KJ12: 19.95310066 | KK12: 18.68654198 | KL12: 20.08085766 | KM12: 18.82961271 | KN12: 20.23585864 | KO12: 18.95018361 | KP12: 20.3664551 | KQ12: 18.85362847 | KR12: 20.26187341 | KS12: 18.66286636 | KT12: 20.05520426 | KU12: 18.82961271 | KV12: 20.23585864 | KW12: 18.95018361 | KX12: 20.3664551 | KY12: 18.8056459 | KZ12: 20.20989587 | LA12: 18.82961271 | LB12: 20.23585864 | LC12: 18.59212766 | LD12: 19.97855031 | LE12: 18.40558316 | LF12: 19.7763638 | LG12: 18.3134378 | LH12: 19.67646898 | LI12: 18.08630145 | LJ12: 19.43016569 | LK12: 18.3134378 | LL12: 19.67646898 | LM12: 18.54520745 | LN12: 19.92770164 | LO12: 18.40558316 | LP12: 19.7763638 | LQ12: 18.49847727 | LR12: 19.87705498 | LS12: 18.38247691 | LT12: 19.75131574 | LU12: 18.26764356 | LV12: 19.62681779 | LW12: 18.22203373 | LX12: 19.57736282 | LY12: 18.26764356 | LZ12: 19.62681779 | MA12: 18.33640435 | MB12: 19.70136844 | MC12: 18.56864375 | MD12: 19.95310066 | ME12: 18.4287362 | MF12: 19.80146163 | MG12: 18.08630145 | MH12: 19.43016569 | MI12: 18.06383823 | MJ12: 19.40580191 | MK12: 18.61565933 | ML12: 20.00405071 | MM12: 18.66567959 | MN12: 20.04704362 | MO12: 18.85651321 | MP12: 20.25364049 | MQ12: 19.12405503 | MR12: 20.54317175 | MS12: 19.32245919 | MT12: 20.75779982 | MU12: 19.57511029 | MV12: 21.03100823 | MW12: 19.7034097 | MX12: 21.16970292 | MY12: 19.85913722 | MZ12: 21.33800826 | NA12: 19.7034097 | NB12: 21.16970292 | NC12: 18.97737644 | ND12: 20.38445346 | NE12: 19.0994831 | NF12: 20.51658559 | NG12: 19.17335052 | NH12: 20.59650483 | NI12: 18.71309676 | NJ12: 20.09838364 | NK12: 18.3851863 | NL12: 19.74326259 | NM12: 18.1565886 | NN12: 19.49558175 | NO12: 18.24747461 | NP12: 19.59406602 | NQ12: 18.73687785 | NR12: 20.12413063 | NS12: 18.45467112 | NT12: 19.81852945 | NU12: 18.73687785 | NV12: 20.12413063 | NW12: 18.59491455 | NX12: 19.97041665 | NY12: 18.52457947 | NZ12: 19.89424637 | OA12: 18.11141937 | OB12: 19.44663081 | OC12: 18.20194004 | OD12: 19.54472651 | OE12: 18.3851863 | OF12: 19.74326259 | OG12: 18.31612184 | OH12: 19.66844253 | OI12: 17.99928758 | OJ12: 19.32509528 | OK12: 17.69122862 | OL12: 18.99108656 | OM12: 17.8441802 | ON12: 19.15694325 | OO12: 17.9325466 | OP12: 19.25274657 | OQ12: 17.86620553 | OR12: 19.18082353 | OS12: 17.88827497 | OT12: 19.20475077 | OU12: 18.02162396 | OV12: 19.34930664 | OW12: 17.91038862 | OX12: 19.22872508 | OY12: 17.88827497 | OZ12: 19.20475077 | PA12: 17.97699597 | PB12: 19.30093155 | PC12: 18.02162396 | PD12: 19.34930664 | PE12: 17.88827497 | PF12: 19.20475077 | PG12: 17.8441802 | PH12: 19.15694325 | PI12: 17.8002614 | PJ12: 19.10932309 | PK12: 17.77836773 | PL12: 19.085583 | PM12: 17.91038862 | PN12: 19.22872508 | PO12: 17.77836773 | PP12: 19.085583 | PQ12: 17.86620553 | PR12: 19.18082353 | PS12: 18.04400521 | PT12: 19.37356576 | PU12: 18.1565886 | PV12: 19.49558175 | PW12: 18.08890281 | PX12: 19.42222773 | PY12: 17.91038862 | PZ12: 19.22872508 | QA12: 17.73471127 | QB12: 19.03824221 | QC12: 17.75651772 | QD12: 19.06188941 | QE12: 17.66955221 | QF12: 18.96757787 | QG12: 17.47639268 | QH12: 18.75805425 | QI12: 17.34952263 | QJ12: 18.62040027 | QK12: 17.41276923 | QL12: 18.68902635 | QM12: 17.66955221 | QN12: 18.96757787 | QO12: 17.69352318 | QP12: 18.98319782 | QQ12: 17.56406584 | QR12: 18.84288596 | QS12: 17.54263942 | QT12: 18.81966016 | QU12: 17.65019882 | QV12: 18.93624417 | QW12: 17.45735789 | QX12: 18.72720871 | QY12: 17.54263942 | QZ12: 18.81966016 | RA12: 17.93492357 | RB12: 19.24475946 | RC12: 17.95713362 | RD12: 19.26881925 | RE12: 18.00168754 | RF12: 19.31708116 | RG12: 17.97938824 | RH12: 19.29292645 | RI12: 17.78069191 | RJ12: 19.07765861 | RK12: 17.73702059 | RL12: 19.03033567 | RM12: 17.75883446 | RN12: 19.05397395 | RO12: 17.89063673 | RP12: 19.19678162 | RQ12: 17.97938824 | RR12: 19.29292645 | RS12: 18.1364279 | RT12: 19.46301374 | RU12: 18.27280509 | RV12: 19.61068618 | RW12: 18.31863215 | RX12: 19.66030135 | RY12: 18.45723028 | RZ12: 19.8103333 | SA12: 18.3416152 | SB12: 19.68518278 | SC12: 18.3877 | SD12: 19.7351 | SE12: 18.31863215 | SF12: 19.66030135 | SG12: 18.11385816 | SH12: 19.43857151 | SI12: 17.824538 | SJ12: 19.12516754 | SK12: 17.80259305 | SL12: 19.10138977 | SM12: 17.45735789 | SN12: 18.72720871 | SO12: 17.41497015 | SP12: 18.68125252 | SQ12: 17.58553488 | SR12: 18.86615715 | SS12: 17.91275797 | ST12: 19.22074695 | SU12: 18.20441035 | SV12: 19.5366309 | SW12: 18.36464475 | SX12: 19.71011362 | SY12: 18.1590431 | SZ12: 19.48750431 | TA12: 18.31863215 | TB12: 19.66030135 | TC12: 18.27280509 | TD12: 19.61068618 | TE12: 18.3416152 | TF12: 19.68518278 | TG12: 18.48049408 | TH12: 19.83551291 | TI12: 18.45723028 | TJ12: 19.8103333 | TK12: 18.43401356 | TL12: 19.78520368 | TM12: 18.38772091 | TN12: 19.73509396 | TO12: 18.09133378 | TP12: 19.41417748 | TQ12: 17.91275797 | TR12: 19.22074695 | TS12: 18.00168754 | TT12: 19.31708116 | TU12: 18.09133378 | TV12: 19.41417748 | TW12: 18.02403163 | TX12: 19.3412835 | TY12: 18.00168754 | TZ12: 19.31708116 | UA12: 17.89063673 | UB12: 19.19678162 | UC12: 17.52125552 | UD12: 18.79647964 | UE12: 17.22628728 | UF12: 18.47664689 | UG12: 16.64052622 | UH12: 17.84105842 | UI12: 16.3312399 | UJ12: 17.50522416 | UK12: 16.1054649 | UL12: 17.2599668 | UM12: 16.12408122 | UN12: 17.28019279 | UO12: 16.25540154 | UP12: 17.42285124 | UQ12: 16.21770092 | UR12: 17.38189855 | US12: 16.03297548 | UT12: 17.17217338 | UU12: 16.33294781 | UV12: 17.49781896 | UW12: 16.01453133 | UX12: 17.15214574 | UY12: 15.97774875 | UZ12: 17.11220353 | VA12: 15.92283788 | VB12: 17.0525716 | VC12: 16.05145498 | VD12: 17.19223884 | VE12: 16.25708702 | VF12: 17.41547998 | VG12: 16.5251841 | VH12: 17.70642753 | VI12: 16.70141258 | VJ12: 17.89760931 | VK12: 16.60312748 | VL12: 17.79099113 | VM12: 16.44784297 | VN12: 17.62250704 | VO12: 16.23821301 | VP12: 17.39499269 | VQ12: 16.27599742 | VR12: 17.43600616 | VS12: 16.50579258 | VT12: 17.68538735 | VU12: 16.68167898 | VV12: 17.87620394 | VW12: 16.64232684 | VX12: 17.833516 | VY12: 16.62270811 | VZ12: 17.81223323 | WA12: 16.5251841 | WB12: 17.70642753 | WC12: 16.60312748 | WD12: 17.79099113 | WE12: 16.56408014 | WF12: 17.74862856 | WG12: 16.66198377 | WH12: 17.85483954 | WI12: 16.46712211 | WJ12: 17.64342721 | WK12: 16.5251841 | WL12: 17.70642753 | WM12: 16.92104207 | WN12: 18.13579972 | WO12: 17.08376888 | WP12: 18.31222459 | WQ12: 17.26992218 | WR12: 18.51399124 | WS12: 17.41701164 | WT12: 18.67337465 | WU12: 17.06328801 | WV12: 18.29002221 | WW12: 17.02244677 | WX12: 18.24574591 | WY12: 17.08376888 | WZ12: 18.31222459 | XA12: 17.04284734 | XB12: 18.26786269 | XC12: 17.08376888 | XD12: 18.31222459 | XE12: 17.12485162 | XF12: 18.35675831 | XG12: 17.16609636 | XH12: 18.40146466 | XI12: 17.14545369 | XJ12: 18.37908985 | XK12: 17.12485162 | XL12: 18.35675831 | XM12: 17.18677973 | XN12: 18.42388283 | XO12: 17.08376888 | XP12: 18.31222459 | XQ12: 17.10429005 | XR12: 18.33446992 | XS12: 16.96148471 | XT12: 18.17965106 | XU12: 16.60312748 | XV12: 17.79099113 | XW12: 16.58358485 | XX12: 17.7697896 | XY12: 16.5251841 | XZ12: 17.70642753 | YA12: 16.46712211 | YB12: 17.64342721 | YC12: 16.54461325 | YD12: 17.7275079 | YE12: 16.39022886 | YF12: 17.55998509 | YG12: 16.50579258 | YH12: 17.68538735 | YI12: 16.5251841 | YJ12: 17.70642753 | YK12: 16.46712211 | YL12: 17.64342721 | YM12: 16.40939644 | YN12: 17.58078608 | YO12: 16.18180842 | YP12: 17.33376325 | YQ12: 15.96087107 | YR12: 17.08496362 | YS12: 16.25863059 | YT12: 17.40801757 | YU12: 16.33451274 | YV12: 17.49032185 | YW12: 16.2209083 | YX12: 17.36709908 | YY12: 16.2775463 | YZ12: 17.42853509 | ZA12: 16.2209083 | ZB12: 17.36709908 | ZC12: 16.12723504 | ZD12: 17.2654785 | ZE12: 15.94256246 | ZF12: 17.06509483 | ZG12: 15.97921471 | ZH12: 17.10486985 | ZI12: 16.03445666 | ZJ12: 17.16481413 | ZK12: 16.05294126 | ZL12: 17.18487105 | ZM12: 16.10860812 | ZN12: 17.24526949 | ZO12: 16.20210153 | ZP12: 17.34669793 | ZQ12: 16.43019314 | ZR12: 17.594086 | ZS12: 16.44944048 | ZT12: 17.6149576 | ZU12: 16.33451274 | ZV12: 17.49032185 | ZW12: 16.14589775 | ZX12: 17.28572576 | ZY12: 16.25863059 | ZZ12: 17.40801757 | AAA12: 16.12723504 | AAB12: 17.2654785 | AAC12: 16.07146131 | AAD12: 17.20496585 | AAE12: 16.03445666 | AAF12: 17.16481413 | AAG12: 16.07146131 | AAH12: 17.20496585 | AAI12: 15.90604997 | AAJ12: 17.02546927 | AAK12: 15.83344167 | AAL12: 16.94666372 | AAM12: 15.92428878 | AAN12: 17.04526341 | AAO12: 16.12723504 | AAP12: 17.2654785 | AAQ12: 16.20210153 | AAR12: 17.34669793 | AAS12: 16.10860812 | AAT12: 17.24526949 | AAU12: 16.07146131 | AAV12: 17.20496585 | AAW12: 16.12723504 | AAX12: 17.2654785 | AAY12: 16.14589775 | AAZ12: 17.28572576 | ABA12: 16.20210153 | ABB12: 17.34669793 | ABC12: 16.01600742 | ABD12: 17.14479502 | ABE12: 16.03445666 | ABF12: 17.16481413 | ABG12: 15.8696766 | ABH12: 16.98599246 | ABI12: 15.7613845 | ABJ12: 16.86844766 | ABK12: 15.72556095 | ABL12: 16.82955899 | ABM12: 15.79734453 | ABN12: 16.90748235 | ABO12: 15.56602639 | ABP12: 16.65634871 | ABQ12: 15.60124384 | ABR12: 16.69458869 | ABS12: 15.32319129 | ABT12: 16.39261728 | ABU12: 14.93783182 | ABV12: 15.97390272 | ABW12: 14.74322528 | ABX12: 15.76236313 | ABY12: 14.39743411 | ABZ12: 15.38634117 | ACA12: 14.3055196 | ACB12: 15.28636091 | ACC12: 14.27510401 | ACD12: 15.25327353 | ACE12: 14.00627252 | ACF12: 14.96076887 | ACG12: 14.0652586 | ACH12: 15.02495811 | ACI12: 14.10977861 | ACJ12: 15.07340196 | ACK12: 14.19954705 | ACL12: 15.17107359 | ACM12: 14.67930971 | ACN12: 15.6928734 | ACO12: 14.77536041 | ACP12: 15.79729843 | ACQ12: 14.77536041 | ACR12: 15.79729843 | ACS12: 14.8410338 | ACT12: 15.86068349 | ACU12: 14.72822134 | ACV12: 15.73812987 | ACW12: 14.60106432 | ACX12: 15.59996957 | ACY12: 14.61685673 | ACZ12: 15.61712989 | ADA12: 14.74424821 | ADB12: 15.75554183 | ADC12: 14.8410338 | ADD12: 15.86068349 | ADE12: 14.88983112 | ADF12: 15.91368827 | ADG12: 14.8410338 | ADH12: 15.86068349 | ADI12: 14.9061573 | ADJ12: 15.93142131 | ADK12: 14.97176591 | ADL12: 16.00267934 | ADM12: 15.07109842 | ADN12: 16.11055228 | ADO12: 15.15472847 | ADP12: 16.20136057 | ADQ12: 15.25612186 | ADR12: 16.3114419 | ADS12: 15.27313182 | ADT12: 16.32990775 | ADU12: 15.41036747 | ADV12: 16.4788724 | ADW12: 15.29017371 | ADX12: 16.3484078 | ADY12: 15.4623657 | ADZ12: 16.53530675 | AEA12: 15.4797639 | AEB12: 16.55418825 | AEC12: 15.29017371 | AED12: 16.3484078 | AEE12: 15.27313182 | AEF12: 16.32990775 | AEG12: 15.22219743 | AEH12: 16.27461247 | AEI12: 15.23914375 | AEJ12: 16.29301016 | AEK12: 15.30724761 | AEL12: 16.36694213 | AEM12: 15.44500028 | AEN12: 16.51646033 | AEO12: 15.49719495 | AEP12: 16.57310491 | AEQ12: 15.94388178 | AER12: 17.05769107 | AES12: 16.14727041 | AET12: 17.27822601 | AEU12: 16.45089436 | AEV12: 17.60731603 | AEW12: 16.26003319 | AEX12: 17.40046494 | AEY12: 16.03579998 | AEZ12: 17.15736689 | AFA12: 16.29791122 | AFB12: 17.44152125 | AFC12: 16.26003319 | AFD12: 17.40046494 | AFE12: 16.39324831 | AFF12: 17.54484708 | AFG12: 16.74421129 | AFH12: 17.92508457 | AFI12: 16.96482686 | AFJ12: 18.16399312 | AFK12: 16.94457406 | AFL12: 18.14206454 | AFM12: 16.74421129 | AFN12: 17.92508457 | AFO12: 16.6848614 | AFP12: 17.86079911 | AFQ12: 17.04623652 | AFR12: 18.25213171 | AFS12: 17.19025277 | AFT12: 18.40802325 | AFU12: 17.42062051 | AFV12: 18.65731098 | AFW12: 17.39947024 | AFX12: 18.63442755 | AFY12: 17.33627017 | AFZ12: 18.56604382 | AGA12: 17.2943447 | AGB12: 18.52067576 | AGC12: 17.2525846 | AGD12: 18.47548358 | AGE12: 17.04623652 | AGF12: 18.25213171 | AGG12: 17.00545179 | AGH12: 18.20797736 | AGI12: 16.88405323 | AGJ12: 18.07653174 | AGK12: 16.86395848 | AGL12: 18.05477145 | AGM12: 17.14890257 | AGN12: 18.36326711 | AGO12: 17.2943447 | AGP12: 18.52067576 | AGQ12: 17.19175923 | AGR12: 18.39994508 | AGS12: 17.17105815 | AGT12: 18.37755487 | AGU12: 17.40103389 | AGV12: 18.62625346 | AGW12: 17.42218998 | AGX12: 18.64912725 | AGY12: 17.55001175 | AGZ12: 18.78731021 | AHA12: 17.636077 | AHB12: 18.8803356 | AHC12: 17.76646792 | AHD12: 19.02124629 | AHE12: 17.89843114 | AHF12: 19.1638254 | AHG12: 17.12977817 | AHH12: 18.33290435 | AHI12: 15.69224956 | AHJ12: 16.77616517 | AHK12: 15.72795502 | AHL12: 16.81487402 | AHM12: 16.35628966 | AHN12: 17.49571166 | AHO12: 16.14850462 | AHP12: 17.27063809 | AHQ12: 16.60761698 | AHR12: 17.76785172 | AHS12: 16.7257716 | AHT12: 17.89575328 | AHU12: 16.80531256 | AHV12: 17.9818422 | AHW12: 17.44338805 | AHX12: 18.67204562 | AHY12: 18.28107361 | AHZ12: 19.57707442 | AIA12: 18.30399275 | AIB12: 19.6018185 | AIC12: 18.41928626 | AID12: 19.72627804 | AIE12: 18.58267239 | AIF12: 19.90261286 | AIG12: 18.32695825 | AIH12: 19.6266117 | AII12: 18.67708447 | AIJ12: 20.00448548 | AIK12: 18.74839988 | AIL12: 20.08142571 | AIM12: 19.0625338 | AIN12: 20.42022738 | AIO12: 19.13622224 | AIP12: 20.49967662 | AIQ12: 19.26005074 | AIR12: 20.63316377 | AIS12: 19.03807166 | AIT12: 20.39385069 | AIU12: 19.235183 | AIV12: 20.60635855 | AIW12: 19.08704619 | AIX12: 20.44665718 | AIY12: 19.2103664 | AIZ12: 20.57960736 | AJA12: 19.30994021 | AJB12: 20.68693684 | AJC12: 19.08704619 | AJD12: 20.44665718 | AJE12: 19.0625338 | AJF12: 20.42022738 | AJG12: 19.11160896 | AJH12: 20.47314022 | AJI12: 19.235183 | AJJ12: 20.60635855 | AJK12: 19.18560083 | AJL12: 20.55291006 | AJM12: 18.9649855 | AJN12: 20.31503796 | AJO12: 18.23537396 | AJP12: 19.52773312 | AJQ12: 18.39613412 | AJR12: 19.70128718 | AJS12: 18.37302882 | AJT12: 19.67634592 | AJU12: 18.32695825 | AJV12: 19.6266117 | AJW12: 18.23537396 | AJX12: 19.52773312 | AJY12: 18.55918912 | AJZ12: 19.87727144 | AKA12: 18.53575352 | AKB12: 19.85198047 | AKC12: 18.65340936 | AKD12: 19.97894104 | AKE12: 18.86823316 | AKF12: 20.21068996 | AKG12: 19.01365965 | AKH12: 20.36752698 | AKI12: 19.13622224 | AKJ12: 20.49967662 | AKK12: 19.51157034 | AKL12: 20.90421705 | AKM12: 19.59006853 | AKN12: 20.97735741 | AKO12: 19.51357009 | AKP12: 20.89499791 | AKQ12: 19.28690237 | AKR12: 20.65090184 | AKS12: 19.51357009 | AKT12: 20.89499791 | AKU12: 19.64133242 | AKV12: 21.03254308 | AKW12: 19.66704425 | AKX12: 21.06022014 | AKY12: 19.5645162 | AKZ12: 20.94984851 | ALA12: 18.79797713 | ALB12: 20.12406884 | ALC12: 18.70257132 | ALD12: 20.02121586 | ALE12: 18.58440237 | ALF12: 19.89380025 | ALG12: 18.21421988 | ALH12: 19.49448917 | ALI12: 17.57291735 | ALJ12: 18.8021454 | ALK12: 17.33920867 | ALL12: 18.54965438 | ALM12: 17.21386096 | ALN12: 18.41419322 | ALO12: 17.19311369 | ALP12: 18.39176933 | ALQ12: 17.08998846 | ALR12: 18.28029918 | ALS12: 16.88675412 | ALT12: 18.06056454 | ALU12: 16.74684029 | ALV12: 17.90924946 | ALW12: 16.84660701 | ALX12: 18.01712526 | ALY12: 16.86667287 | ALZ12: 18.03882485 | AMA12: 16.98789679 | AMB12: 18.1699037 | AMC12: 17.21388543 | AMD12: 18.41419554 | AME12: 17.53006937 | AMF12: 18.75583704 | AMG12: 17.44483268 | AMH12: 18.66375488 | AMI12: 17.13114105 | AMJ12: 18.32475994 | AMK12: 17.02862282 | AML12: 18.2139348 | AMM12: 17.04904591 | AMN12: 18.23601421 | AMO12: 17.19313812 | AMP12: 18.39177161 | AMQ12: 17.02862282 | AMR12: 18.2139348 | AMS12: 16.90692259 | AMT12: 18.08234953 | AMU12: 16.82658036 | AMV12: 17.99546738 | AMW12: 16.86667287 | AMX12: 18.03882485 | AMY12: 16.96759365 | AMZ12: 18.1479518 | ANA12: 17.00823981 | ANB12: 18.191898 | ANC12: 16.98789679 | AND12: 18.1699037 | ANE12: 16.80659283 | ANF12: 17.9738511 | ANG12: 16.56975886 | ANH12: 17.71766525 | ANI12: 16.49203477 | ANJ12: 17.63356915 | ANK12: 16.56975886 | ANL12: 17.71766525 | ANM12: 16.49203477 | ANN12: 17.63356915 | ANO12: 16.43413607 | ANP12: 17.57091701 | ANQ12: 16.51140927 | ANR12: 17.65453299 | ANS12: 16.80659283 | ANT12: 17.9738511 | ANU12: 16.58928439 | ANV12: 17.7387899 | ANW12: 16.20587017 | ANX12: 17.32385475 | ANY12: 16.39572337 | ANZ12: 17.52934749 | AOA12: 16.64808928 | AOB12: 17.80240685 | AOC12: 16.70723855 | AOD12: 17.86639033 | AOE12: 16.62844951 | AOF12: 17.7811606 | AOG12: 16.51245241 | AOH12: 17.64659196 | AOI12: 16.22566909 | AOJ12: 17.3364298 | AOK12: 16.13190409 | AOL12: 17.23499051 | AOM12: 16.22566909 | AON12: 17.3364298 | AOO12: 16.18805483 | AOP12: 17.29573875 | AOQ12: 16.16930191 | AOR12: 17.27545098 | AOS12: 16.16930191 | AOT12: 17.27545098 | AOU12: 16.05753807 | AOV12: 17.1545273 | AOW12: 16.02056848 | AOX12: 17.11452313 | AOY12: 15.76570216 | AOZ12: 16.83867401 | APA12: 15.41317375 | APB12: 16.45694418 | APC12: 15.2929003 | APD12: 16.32666129 | APE12: 15.50005937 | APF12: 16.55104594 | APG12: 15.43048539 | APH12: 16.4756946 | API12: 15.48261661 | APJ12: 16.53215549 | APK12: 15.24183678 | APL12: 16.27134105 | APM12: 15.00729459 | APN12: 16.0171932 | APO12: 14.85971667 | APP12: 15.85723419 | APQ12: 14.66673535 | APR12: 15.64801115 | APS12: 14.71458037 | APT12: 15.69988831 | APU12: 14.89229894 | APV12: 15.89255291 | APW12: 15.0570388 | APX12: 16.07110294 | APY12: 15.20795367 | APZ12: 16.23463107 | AQA12: 14.97428584 | AQB12: 15.98141816 | AQC12: 14.71458037 | AQD12: 15.69988831 | AQE12: 14.81106915 | AQF12: 15.80449787 | AQG12: 14.85971667 | AQH12: 15.85723419 | AQI12: 14.99077486 | AQJ12: 15.99928925 | AQK12: 14.79491327 | AQL12: 15.78698327 | AQM12: 14.63498532 | AQN12: 15.61358344 | AQO12: 15.00729459 | AQP12: 16.0171932 | AQQ12: 15.55258582 | AQR12: 16.60792886 | AQS12: 15.62308641 | AQT12: 16.68426954 | AQU12: 15.4478297 | AQV12: 16.4944799 | AQW12: 15.12379884 | AQX12: 16.14344719 | AQY12: 14.99077486 | AQZ12: 15.99928925 | ARA12: 14.95782746 | ARB12: 15.96357985 | ARC12: 14.92500235 | ARD12: 15.92800127 | ARE12: 14.61915409 | ARF12: 15.59641649 | ARG12: 14.08292193 | ARH12: 15.01471744 | ARI12: 14.20249316 | ARJ12: 15.14446408 | ARK12: 14.03852719 | ARL12: 14.96653945 | ARM12: 13.93586932 | ARN12: 14.85512239 | ARO12: 13.87778593 | ARP12: 14.79207645 | ARQ12: 13.89226765 | ARR12: 14.80779592 | ARS12: 14.02378232 | ART12: 14.95053742 | ARU12: 11.96055493 | ARV12: 13.17426221 | ARW12: 11.9934221 | ARX12: 13.21240645 | ARY12: 12.10415156 | ARZ12: 13.3409349 | ASA12: 12.09299676 | ASB12: 13.32798563 | ASC12: 12.26226193 | ASD12: 13.52451335 | ASE12: 12.33115082 | ASF12: 13.60451742 | ASG12: 12.34269906 | ASH12: 13.61793004 | ASI12: 12.28457746 | ASJ12: 13.54980187 | ASK12: 12.25027172 | ASL12: 13.50996124 | ASM12: 12.44694834 | ASN12: 13.73840683 | ASO12: 12.40017029 | ASP12: 13.68406471 | ASQ12: 12.36529062 | ASR12: 13.6435482 | ASS12: 12.40017029 | AST12: 13.68406471 | ASU12: 12.40017029 | ASV12: 13.68406471 | ASW12: 12.22749561 | ASX12: 13.48351199 | ASY12: 11.9272406 | ASZ12: 13.13495561 | ATA12: 11.91637282 | ATB12: 13.12234395 | ATC12: 11.94902936 | ATD12: 13.16024162 | ATE12: 11.99282074 | ATF12: 13.21106566 | ATG12: 11.95995041 | ATH12: 13.17291606 | ATI12: 12.03689934 | ATJ12: 13.26222813 | ATK12: 12.14836869 | ATL12: 13.39163397 | ATM12: 12.19347219 | ATN12: 13.44400391 | ATO12: 12.04796416 | ATP12: 13.27507196 | ATQ12: 12.02585263 | ATR12: 13.24940563 | ATS12: 12.03689934 | ATT12: 13.26222813 | ATU12: 12.04796416 | ATV12: 13.27507196 | ATW12: 12.04796416 | ATX12: 13.27507196 | ATY12: 12.02585263 | ATZ12: 13.24940563 | AUA12: 12.07014826 | AUB12: 13.30082381 | AUC12: 12.02585263 | AUD12: 13.24940563 | AUE12: 12.07014826 | AUF12: 13.30082381 | AUG12: 12.1259281 | AUH12: 13.36557994 | AUI12: 11.25666005 | AUJ12: 11.25666005 | AUK12: 12.1371 | AUL12: 13.3786 | AUM12: 12.04796416 | AUN12: 13.27507196 | AUO12: 12.17088328 | AUP12: 13.41777517 | AUQ12: 12.11473545 | AUR12: 13.3525855 | AUS12: 12.08126763 | AUT12: 13.31373191 | AUU12: 11.95995041 | AUV12: 13.17291606 | AUW12: 11.90552272 | AUX12: 13.10975313 | AUY12: 11.74486783 | AUZ12: 12.92336177 | AVA12: 11.75545715 | AVB12: 12.93564524 | AVC12: 11.67121905 | AVD12: 12.83793915 | AVE12: 11.52638463 | AVF12: 12.66999776 | AVG12: 11.52638463 | AVH12: 12.66999776 | AVI12: 11.2953555 | AVJ12: 12.40224555 | AVK12: 11.31511209 | AVL12: 12.42513576 | AVM12: 11.42489883 | AVN12: 12.55235927 | AVO12: 11.34486437 | AVP12: 12.45960953 | AVQ12: 11.23645858 | AVR12: 12.33401467 | AVS12: 11.18780118 | AVT12: 12.27765495 | AVU12: 11.42489883 | AVV12: 12.55235927 | AVW12: 11.53662256 | AVX12: 12.68186696 | AVY12: 11.61911864 | AVZ12: 12.77751935 | AWA12: 11.66076543 | AWB12: 12.82581566 | AWC12: 11.87307816 | AWD12: 13.07210527 | AWE12: 11.9272406 | AWF12: 13.13495561 | AWG12: 12.02585263 | AWH12: 13.24940563 | AWI12: 12.05904712 | AWJ12: 13.28793717 | AWK12: 12.00308997 | AWL12: 13.22228381 | AWM12: 11.92651124 | AWN12: 13.1334049 | AWO12: 11.97016331 | AWP12: 13.18406651 | AWQ12: 11.81861669 | AWR12: 13.00820727 | AWS12: 11.7972472 | AWT12: 12.9834146 | AWU12: 11.78658839 | AWV12: 12.97104884 | AWW12: 11.77594682 | AWX12: 12.95870341 | AWY12: 11.73355224 | AWZ12: 12.90952407 | AXA12: 11.73355224 | AXB12: 12.90952407 | AXC12: 12.48155615 | AXD12: 13.77793651 | AXE12: 12.41114772 | AXF12: 13.69613561 | AXG12: 12.27242261 | AXH12: 13.53499735 | AXI12: 12.24956901 | AXJ12: 13.50845576 | AXK12: 11.62875493 | AXL12: 12.78797771 | AXM12: 11.44430527 | AXN12: 12.57412962 | AXO12: 11.16766909 | AXP12: 12.25360799 | AXQ12: 11.17734002 | AXR12: 12.26480874 | AXS12: 11.18702616 | AXT12: 12.27602742 | AXU12: 11.46453876 | AXV12: 12.59758282 | AXW12: 11.41407555 | AXX12: 12.53909195 | AXY12: 11.34409724 | AXZ12: 12.45799516 | AYA12: 11.30445678 | AYB12: 12.4120636 | AYC12: 11.24546389 | AYD12: 12.34371807 | AYE12: 10.94936062 | AYF12: 12.00085521 | AYG12: 10.9961555 | AYH12: 12.05501865 | AYI12: 11.13874715 | AYJ12: 12.22011296 | AYK12: 11.16766909 | AYL12: 12.25360799 | AYM12: 11.17734002 | AYN12: 12.26480874 | AYO12: 11.29458578 | AYP12: 12.40062685 | AYQ12: 11.10996087 | AYR12: 12.18677796 | AYS12: 11.2356859 | AYT12: 12.33239103 | AYU12: 11.40403098 | AYV12: 12.52745047 | AYW12: 11.60799702 | AYX12: 12.76390609 | AYY12: 11.48483683 | AYZ12: 12.62111219 | AZA12: 11.33416359 | AZB12: 12.44648451 | AZC12: 11.32424565 | AZD12: 12.43499239 | AZE12: 11.45441395 | AZF12: 12.58584672 | AZG12: 11.70193556 | AZH12: 12.8728509 | AZI12: 11.73355224 | AZJ12: 12.90952407 | AZK12: 11.61836764 | AZL12: 12.77593207 | AZM12: 11.45441395 | AZN12: 12.58584672 | AZO12: 11.33416359 | AZP12: 12.44648451 | AZQ12: 11.09084496 | AZR12: 12.16464305 | AZS12: 11.08130939 | AZT12: 12.15360201
